Workbook

Sheet APT Adjusted Factors (hidden)
E6: 1 | F6: 2 | G6: 3 | H6: 4 | I6: 5 | J6: 6 | K6: 7 | L6: 8 | M6: 9 | N6: 10 | O6: 11 | P6: 12 | Q6: 13 | R6: 14 | S6: 15 | T6: 16 | U6: 17 | V6: 18 | W6: 19 | X6: 20 | Y6: 21 | Z6: 22 | AA6: 23 | AB6: 24 | AC6: 25 | AD6: 26 | AE6: 27 | AF6: 28 | AG6: 29 | AH6: 30 | AI6: 31 | AJ6: 32 | AK6: 33 | AL6: 34 | AM6: 35 | AN6: 36 | AO6: 37 | AP6: 38 | AQ6: 39 | AR6: 40 | AS6: 41 | AT6: 42 | AU6: 43 | AV6: 44 | AW6: 45 | AX6: 46 | AY6: 47 | AZ6: 48 | BA6: 49 | BB6: 50 | BC6: 51 | BD6: 52 | BE6: 53 | BF6: 54 | BG6: 55 | BH6: 56 | BI6: 57 | BJ6: 58 | BK6: 59 | BL6: 60 | BM6: 61 | BN6: 62 | BO6: 63 | BP6: 64
A7: Schools Block Data match # | B7: I & A match # | C7: Pri_FSM6_updated | D7: Sec_FSM6_updated | E7: LA Short | F7: LAESTAB | G7: School Name | H7: Phase | I7: Academy Type | J7: London Fringe | K7: Number of Primary year groups for middle schools | L7: Number of Secondary year groups for middle schools | M7: Number of Primary year groups for all schools | N7: Number of Secondary year groups for all schools | O7: Number of KS3 year groups for all schools | P7: Number of KS4 year groups for all schools | Q7: NOR | R7: NOR Primary | S7: NOR Reception | T7: NOR Y1-6 for calculation of the eligible pupils for the primary prior attainment factor ONLY | U7: NOR Secondary | V7: NOR KS3 | W7: NOR KS4 | X7: NOR Y7 for calculation of the eligible pupils for the secondary prior attainment factor ONLY | Y7: NOR Y8 for calculation of the eligible pupils for the secondary prior attainment factor ONLY | Z7: NOR Y9 for calculation of the eligible pupils for the secondary prior attainment factor ONLY | AA7: NOR Y10 for calculation of the eligible pupils for the secondary prior attainment factor ONLY | AB7: NOR Y11 for calculation of the eligible pupils for the secondary prior attainment factor ONLY | AC7: Reception Difference | AD7: 23-24 Base NOR | AE7: Average Year Group Size | AF7: Primary FSM Units | AG7: Primary FSM6 Units | AH7: Secondary FSM Units | AI7: Secondary FSM6 Units | AJ7: IDACI Primary Units Band G | AK7: IDACI Primary Units Band F | AL7: IDACI Primary Units Band E | AM7: IDACI Primary Units Band D | AN7: IDACI Primary Units Band C | AO7: IDACI Primary Units Band B | AP7: IDACI Primary Units Band A | AQ7: IDACI Secondary Units Band G | AR7: IDACI Secondary Units Band F | AS7: IDACI Secondary Units Band E | AT7: IDACI Secondary Units Band D | AU7: IDACI Secondary Units Band C | AV7: IDACI Secondary Units Band B | AW7: IDACI Secondary Units Band A | AX7: EAL 3 Primary Units | AY7: EAL 3 Secondary Units | AZ7: Low Prior Attainment under new EYFSP Proportion | BA7: Low prior attainment total Primary Units | BB7: Low Prior Attainment Secondary Units - Y7 | BC7: Low Prior Attainment Secondary Units - Y8 | BD7: Low Prior Attainment Secondary Units - Y9 | BE7: Low Prior Attainment Secondary Units - Y10 | BF7: Low Prior Attainment Secondary Units - Y11 | BG7: Low prior attainment total Secondary Units | BH7: Mobility Primary Units | BI7: Mobility Secondary Units | BJ7: Primary sparsity av. Distance to 2nd school (miles) | BK7: Secondary sparsity av. Distance to 2nd school (miles) | BL7: Sparsity NOR taper | BM7: Sparsity distance taper | BN7: Sparsity flag | BO7: Proportion of total NOR in Primary phase | BP7: Proportion of total NOR in Secondary phase
E8: All | Q8: =SUM(Q9:Q98) -> 40446.58333 | R8: =SUM(R9:R98) -> 23274.41667 | S8: 3092.833333 | T8: 20181.58333 | U8: 17172.16667 | V8: 10593.16667 | W8: 6579 | X8: 3614.166667 | Y8: 3524 | Z8: 3455 | AA8: 3356 | AB8: 3223 | AC8: =SUM(AC9:AC97) -> 0 | AD8: =SUM(AD9:AD98) -> 40446.58333 | AF8: =SUM(AF9:AF98) -> 7877.73168 | AG8: 8188.188662 | AH8: 4822.992754 | AI8: 5834.623139 | AJ8: 9686.069169 | AK8: 2738.8912 | AL8: 2983.575268 | AM8: 2002.127677 | AN8: 2366.998253 | AO8: 2068.773899 | AP8: 1427.981201 | AQ8: 7597.814424 | AR8: 1950.528806 | AS8: 2034.713524 | AT8: 1389.317631 | AU8: 1644.371355 | AV8: 1482.623376 | AW8: 1072.797551 | AX8: 4368.440744 | AY8: 557.2639617 | AZ8: 6220.52015 | BA8: 7185.250243 | BB8: 1663.582298 | BC8: 1338.433055 | BD8: 1313.163627 | BE8: 1271.532352 | BF8: 1247.819464 | BG8: 4231.058125 | BH8: 348.7192426 | BI8: 133.3571779
A9: 5 | C9: 0.4528301887 | D9: 0 | E9: 2001 | F9: 8312001 | G9: Roe Farm Primary School | H9: Primary | I9: 0 | J9: 1 | K9: 0 | L9: 0 | M9: 7 | N9: 0 | O9: 0 | P9: 0 | Q9: 366 | R9: 366 | S9: 47 | T9: 319 | U9: 0 | V9: 0 | W9: 0 | X9: 0 | Y9: 0 | Z9: 0 | AA9: 0 | AB9: 0 | AC9: 0 | AD9: 366 | AE9: 52.28571429 | AF9: 157 | AG9: 172 | AH9: 0 | AI9: 0 | AJ9: 46 | AK9: 72 | AL9: 50 | AM9: 27 | AN9: 2 | AO9: 92 | AP9: 77 | AQ9: 0 | AR9: 0 | AS9: 0 | AT9: 0 | AU9: 0 | AV9: 0 | AW9: 0 | AX9: 10.35849057 | AY9: 0 | AZ9: 102.6945934 | BA9: 117.8251448 | BB9: 0 | BC9: 0 | BD9: 0 | BE9: 0 | BF9: 0 | BG9: 0 | BH9: 14.04 | BI9: 0 | BJ9: 0.492 | BK9: 0 | BL9: 0 | BM9: 0 | BN9: 0 | BO9: 1 | BP9: 0
A10: 6 | C10: 0.06132075472 | D10: 0 | E10: 2003 | F10: 8312003 | G10: Parkview Primary School | H10: Primary | I10: 0 | J10: 1 | K10: 0 | L10: 0 | M10: 7 | N10: 0 | O10: 0 | P10: 0 | Q10: 211 | R10: 211 | S10: 30 | T10: 181 | U10: 0 | V10: 0 | W10: 0 | X10: 0 | Y10: 0 | Z10: 0 | AA10: 0 | AB10: 0 | AC10: 0 | AD10: 211 | AE10: 30.14285714 | AF10: 15 | AG10: 16 | AH10: 0 | AI10: 0 | AJ10: 196 | AK10: 9 | AL10: 2 | AM10: 3 | AN10: 1 | AO10: 0 | AP10: 0 | AQ10: 0 | AR10: 0 | AS10: 0 | AT10: 0 | AU10: 0 | AV10: 0 | AW10: 0 | AX10: 3.497237569 | AY10: 0 | AZ10: 31.3062963 | BA10: 36.49518519 | BB10: 0 | BC10: 0 | BD10: 0 | BE10: 0 | BF10: 0 | BG10: 0 | BH10: 0 | BI10: 0 | BJ10: 1.236 | BK10: 0 | BL10: 0 | BM10: 0 | BN10: 0 | BO10: 1 | BP10: 0
A11: 7 | C11: 0.39 | D11: 0 | E11: 2005 | F11: 8312005 | G11: Ashgate Primary School | H11: Primary | I11: 0 | J11: 1 | K11: 0 | L11: 0 | M11: 7 | N11: 0 | O11: 0 | P11: 0 | Q11: 309 | R11: 309 | S11: 43 | T11: 266 | U11: 0 | V11: 0 | W11: 0 | X11: 0 | Y11: 0 | Z11: 0 | AA11: 0 | AB11: 0 | AC11: 0 | AD11: 309 | AE11: 44.14285714 | AF11: 114 | AG11: 120 | AH11: 0 | AI11: 0 | AJ11: 11 | AK11: 63 | AL11: 107 | AM11: 3 | AN11: 28 | AO11: 51 | AP11: 46 | AQ11: 0 | AR11: 0 | AS11: 0 | AT11: 0 | AU11: 0 | AV11: 0 | AW11: 0 | AX11: 53.43609023 | AY11: 0 | AZ11: 77.22857143 | BA11: 89.71288937 | BB11: 0 | BC11: 0 | BD11: 0 | BE11: 0 | BF11: 0 | BG11: 0 | BH11: 14.46 | BI11: 0 | BJ11: 0.762 | BK11: 0 | BL11: 0 | BM11: 0 | BN11: 0 | BO11: 1 | BP11: 0
A12: 8 | C12: 0.5392156863 | D12: 0 | E12: 2405 | F12: 8312405 | G12: Becket Primary School | H12: Primary | I12: 0 | J12: 1 | K12: 0 | L12: 0 | M12: 7 | N12: 0 | O12: 0 | P12: 0 | Q12: 205 | R12: 205 | S12: 30 | T12: 175 | U12: 0 | V12: 0 | W12: 0 | X12: 0 | Y12: 0 | Z12: 0 | AA12: 0 | AB12: 0 | AC12: 0 | AD12: 205 | AE12: 29.28571429 | AF12: 104 | AG12: 114 | AH12: 0 | AI12: 0 | AJ12: 6 | AK12: 6 | AL12: 82 | AM12: 15 | AN12: 25 | AO12: 69 | AP12: 2 | AQ12: 0 | AR12: 0 | AS12: 0 | AT12: 0 | AU12: 0 | AV12: 0 | AW12: 0 | AX12: 72.62857143 | AY12: 0 | AZ12: 68.88343558 | BA12: 80.69202454 | BB12: 0 | BC12: 0 | BD12: 0 | BE12: 0 | BF12: 0 | BG12: 0 | BH12: 3.7 | BI12: 0 | BJ12: 0.614 | BK12: 0 | BL12: 0 | BM12: 0 | BN12: 0 | BO12: 1 | BP12: 0
A13: 9 | C13: 0.417721519 | D13: 0 | E13: 2409 | F13: 8312409 | G13: Dale Community Primary School | H13: Primary | I13: 0 | J13: 1 | K13: 0 | L13: 0 | M13: 7 | N13: 0 | O13: 0 | P13: 0 | Q13: 547 | R13: 547 | S13: 75 | T13: 472 | U13: 0 | V13: 0 | W13: 0 | X13: 0 | Y13: 0 | Z13: 0 | AA13: 0 | AB13: 0 | AC13: 0 | AD13: 547 | AE13: 78.14285714 | AF13: 238 | AG13: 248 | AH13: 0 | AI13: 0 | AJ13: 149 | AK13: 10 | AL13: 176 | AM13: 126 | AN13: 74 | AO13: 9 | AP13: 3 | AQ13: 0 | AR13: 0 | AS13: 0 | AT13: 0 | AU13: 0 | AV13: 0 | AW13: 0 | AX13: 220.190678 | AY13: 0 | AZ13: 186.0958255 | BA13: 215.6661368 | BB13: 0 | BC13: 0 | BD13: 0 | BE13: 0 | BF13: 0 | BG13: 0 | BH13: 0 | BI13: 0 | BJ13: 0.487 | BK13: 0 | BL13: 0 | BM13: 0 | BN13: 0 | BO13: 1 | BP13: 0
A14: 10 | C14: 0.5977859779 | D14: 0 | E14: 2424 | F14: 8312424 | G14: Pear Tree Infant School | H14: Primary | I14: 0 | J14: 1 | K14: 0 | L14: 0 | M14: 3 | N14: 0 | O14: 0 | P14: 0 | Q14: 261 | R14: 261 | S14: 81 | T14: 180 | U14: 0 | V14: 0 | W14: 0 | X14: 0 | Y14: 0 | Z14: 0 | AA14: 0 | AB14: 0 | AC14: 0 | AD14: 261 | AE14: 87 | AF14: 170 | AG14: 174 | AH14: 0 | AI14: 0 | AJ14: 2 | AK14: 24 | AL14: 18 | AM14: 100 | AN14: 111 | AO14: 3 | AP14: 3 | AQ14: 0 | AR14: 0 | AS14: 0 | AT14: 0 | AU14: 0 | AV14: 0 | AW14: 0 | AX14: 205.9 | AY14: 0 | AZ14: 56.34158521 | BA14: 81.69529855 | BB14: 0 | BC14: 0 | BD14: 0 | BE14: 0 | BF14: 0 | BG14: 0 | BH14: 0 | BI14: 0 | BJ14: 0.459 | BK14: 0 | BL14: 0 | BM14: 0 | BN14: 0 | BO14: 1 | BP14: 0
A15: 11 | C15: 0.3623188406 | D15: 0 | E15: 2429 | F15: 8312429 | G15: Rosehill Infant and Nursery School | H15: Primary | I15: 0 | J15: 1 | K15: 0 | L15: 0 | M15: 3 | N15: 0 | O15: 0 | P15: 0 | Q15: 138 | R15: 138 | S15: 44 | T15: 94 | U15: 0 | V15: 0 | W15: 0 | X15: 0 | Y15: 0 | Z15: 0 | AA15: 0 | AB15: 0 | AC15: 0 | AD15: 138 | AE15: 46 | AF15: 49 | AG15: 49 | AH15: 0 | AI15: 0 | AJ15: 0 | AK15: 33 | AL15: 8 | AM15: 60 | AN15: 19 | AO15: 2 | AP15: 16 | AQ15: 0 | AR15: 0 | AS15: 0 | AT15: 0 | AU15: 0 | AV15: 0 | AW15: 0 | AX15: 113.0425532 | AY15: 0 | AZ15: 34.42552071 | BA15: 50.53959424 | BB15: 0 | BC15: 0 | BD15: 0 | BE15: 0 | BF15: 0 | BG15: 0 | BH15: 2.72 | BI15: 0 | BJ15: 0.449 | BK15: 0 | BL15: 0 | BM15: 0 | BN15: 0 | BO15: 1 | BP15: 0
A16: 12 | C16: 0.2110311751 | D16: 0 | E16: 2436 | F16: 8312436 | G16: Markeaton Primary School | H16: Primary | I16: 0 | J16: 1 | K16: 0 | L16: 0 | M16: 7 | N16: 0 | O16: 0 | P16: 0 | Q16: 415 | R16: 415 | S16: 56 | T16: 359 | U16: 0 | V16: 0 | W16: 0 | X16: 0 | Y16: 0 | Z16: 0 | AA16: 0 | AB16: 0 | AC16: 0 | AD16: 415 | AE16: 59.28571429 | AF16: 91 | AG16: 98 | AH16: 0 | AI16: 0 | AJ16: 247 | AK16: 66 | AL16: 63 | AM16: 2 | AN16: 8 | AO16: 2 | AP16: 27 | AQ16: 0 | AR16: 0 | AS16: 0 | AT16: 0 | AU16: 0 | AV16: 0 | AW16: 0 | AX16: 24.48033708 | AY16: 0 | AZ16: 92.96459448 | BA16: 107.4660354 | BB16: 0 | BC16: 0 | BD16: 0 | BE16: 0 | BF16: 0 | BG16: 0 | BH16: 0 | BI16: 0 | BJ16: 0.745 | BK16: 0 | BL16: 0 | BM16: 0 | BN16: 0 | BO16: 1 | BP16: 0
A17: 13 | C17: 0.1320754717 | D17: 0 | E17: 2439 | F17: 8312439 | G17: Portway Infant School | H17: Primary | I17: 0 | J17: 1 | K17: 0 | L17: 0 | M17: 3 | N17: 0 | O17: 0 | P17: 0 | Q17: 183 | R17: 183 | S17: 56 | T17: 127 | U17: 0 | V17: 0 | W17: 0 | X17: 0 | Y17: 0 | Z17: 0 | AA17: 0 | AB17: 0 | AC17: 0 | AD17: 183 | AE17: 61 | AF17: 13 | AG17: 13 | AH17: 0 | AI17: 0 | AJ17: 153 | AK17: 21 | AL17: 5 | AM17: 1 | AN17: 2 | AO17: 1 | AP17: 0 | AQ17: 0 | AR17: 0 | AS17: 0 | AT17: 0 | AU17: 0 | AV17: 0 | AW17: 0 | AX17: 13.28225806 | AY17: 0 | AZ17: 35.51810995 | BA17: 51.17963874 | BB17: 0 | BC17: 0 | BD17: 0 | BE17: 0 | BF17: 0 | BG17: 0 | BH17: 0 | BI17: 0 | BJ17: 1.027 | BK17: 0 | BL17: 0 | BM17: 0 | BN17: 0 | BO17: 1 | BP17: 0
A18: 14 | C18: 0.2958333333 | D18: 0 | E18: 2443 | F18: 8312443 | G18: Alvaston Infant and Nursery School | H18: Primary | I18: 0 | J18: 1 | K18: 0 | L18: 0 | M18: 3 | N18: 0 | O18: 0 | P18: 0 | Q18: 241 | R18: 241 | S18: 83 | T18: 158 | U18: 0 | V18: 0 | W18: 0 | X18: 0 | Y18: 0 | Z18: 0 | AA18: 0 | AB18: 0 | AC18: 0 | AD18: 241 | AE18: 80.33333333 | AF18: 88 | AG18: 92 | AH18: 0 | AI18: 0 | AJ18: 85 | AK18: 27 | AL18: 50 | AM18: 1 | AN18: 39 | AO18: 16 | AP18: 23 | AQ18: 0 | AR18: 0 | AS18: 0 | AT18: 0 | AU18: 0 | AV18: 0 | AW18: 0 | AX18: 24.40506329 | AY18: 0 | AZ18: 42.51767016 | BA18: 64.85290195 | BB18: 0 | BC18: 0 | BD18: 0 | BE18: 0 | BF18: 0 | BG18: 0 | BH18: 0 | BI18: 0 | BJ18: 0.936 | BK18: 0 | BL18: 0 | BM18: 0 | BN18: 0 | BO18: 1 | BP18: 0
A19: 15 | C19: 0.3333333333 | D19: 0 | E19: 2444 | F19: 8312444 | G19: Shelton Infant School | H19: Primary | I19: 0 | J19: 1 | K19: 0 | L19: 0 | M19: 3 | N19: 0 | O19: 0 | P19: 0 | Q19: 193 | R19: 193 | S19: 67 | T19: 126 | U19: 0 | V19: 0 | W19: 0 | X19: 0 | Y19: 0 | Z19: 0 | AA19: 0 | AB19: 0 | AC19: 0 | AD19: 193 | AE19: 64.33333333 | AF19: 69 | AG19: 71 | AH19: 0 | AI19: 0 | AJ19: 48.5026178 | AK19: 53.55497382 | AL19: 12.12565445 | AM19: 0 | AN19: 27.28272251 | AO19: 38.39790576 | AP19: 13.13612565 | AQ19: 0 | AR19: 0 | AS19: 0 | AT19: 0 | AU19: 0 | AV19: 0 | AW19: 0 | AX19: 45.95238095 | AY19: 0 | AZ19: 38.72316754 | BA19: 59.31405821 | BB19: 0 | BC19: 0 | BD19: 0 | BE19: 0 | BF19: 0 | BG19: 0 | BH19: 0 | BI19: 0 | BJ19: 0.922 | BK19: 0 | BL19: 0 | BM19: 0 | BN19: 0 | BO19: 1 | BP19: 0
A20: 16 | C20: 0.3045454545 | D20: 0 | E20: 2449 | F20: 8312449 | G20: Cavendish Close Infant School | H20: Primary | I20: 0 | J20: 1 | K20: 0 | L20: 0 | M20: 3 | N20: 0 | O20: 0 | P20: 0 | Q20: 201 | R20: 201 | S20: 68 | T20: 133 | U20: 0 | V20: 0 | W20: 0 | X20: 0 | Y20: 0 | Z20: 0 | AA20: 0 | AB20: 0 | AC20: 0 | AD20: 201 | AE20: 67 | AF20: 66 | AG20: 67 | AH20: 0 | AI20: 0 | AJ20: 103 | AK20: 50 | AL20: 29 | AM20: 5 | AN20: 2 | AO20: 9 | AP20: 3 | AQ20: 0 | AR20: 0 | AS20: 0 | AT20: 0 | AU20: 0 | AV20: 0 | AW20: 0 | AX20: 9.067669173 | AY20: 0 | AZ20: 38.84096859 | BA20: 58.69950892 | BB20: 0 | BC20: 0 | BD20: 0 | BE20: 0 | BF20: 0 | BG20: 0 | BH20: 0 | BI20: 0 | BJ20: 0.689 | BK20: 0 | BL20: 0 | BM20: 0 | BN20: 0 | BO20: 1 | BP20: 0
A21: 17 | C21: 0.4362416107 | D21: 0 | E21: 2452 | F21: 8312452 | G21: Meadow Farm Community Primary School | H21: Primary | I21: 0 | J21: 1 | K21: 0 | L21: 0 | M21: 7 | N21: 0 | O21: 0 | P21: 0 | Q21: 150 | R21: 150 | S21: 24 | T21: 126 | U21: 0 | V21: 0 | W21: 0 | X21: 0 | Y21: 0 | Z21: 0 | AA21: 0 | AB21: 0 | AC21: 0 | AD21: 150 | AE21: 21.42857143 | AF21: 77 | AG21: 78 | AH21: 0 | AI21: 0 | AJ21: 74 | AK21: 5 | AL21: 5 | AM21: 2 | AN21: 57 | AO21: 1 | AP21: 6 | AQ21: 0 | AR21: 0 | AS21: 0 | AT21: 0 | AU21: 0 | AV21: 0 | AW21: 0 | AX21: 10.71428571 | AY21: 0 | AZ21: 44.04878049 | BA21: 52.43902439 | BB21: 0 | BC21: 0 | BD21: 0 | BE21: 0 | BF21: 0 | BG21: 0 | BH21: 8 | BI21: 0 | BJ21: 0.643 | BK21: 0 | BL21: 0 | BM21: 0 | BN21: 0 | BO21: 1 | BP21: 0
A22: 18 | C22: 0.275 | D22: 0 | E22: 2457 | F22: 8312457 | G22: Gayton Junior School | H22: Primary | I22: 0 | J22: 1 | K22: 0 | L22: 0 | M22: 4 | N22: 0 | O22: 0 | P22: 0 | Q22: 360 | R22: 360 | S22: 0 | T22: 360 | U22: 0 | V22: 0 | W22: 0 | X22: 0 | Y22: 0 | Z22: 0 | AA22: 0 | AB22: 0 | AC22: 0 | AD22: 360 | AE22: 90 | AF22: 99 | AG22: 111 | AH22: 0 | AI22: 0 | AJ22: 275 | AK22: 1 | AL22: 63 | AM22: 5 | AN22: 0 | AO22: 16 | AP22: 0 | AQ22: 0 | AR22: 0 | AS22: 0 | AT22: 0 | AU22: 0 | AV22: 0 | AW22: 0 | AX22: 39 | AY22: 0 | AZ22: 93.90224675 | BA22: 93.90224675 | BB22: 0 | BC22: 0 | BD22: 0 | BE22: 0 | BF22: 0 | BG22: 0 | BH22: 0 | BI22: 0 | BJ22: 0.746 | BK22: 0 | BL22: 0 | BM22: 0 | BN22: 0 | BO22: 1 | BP22: 0
A23: 19 | C23: 0.2 | D23: 0 | E23: 2458 | F23: 8312458 | G23: Ridgeway Infant School | H23: Primary | I23: 0 | J23: 1 | K23: 0 | L23: 0 | M23: 3 | N23: 0 | O23: 0 | P23: 0 | Q23: 268 | R23: 268 | S23: 88 | T23: 180 | U23: 0 | V23: 0 | W23: 0 | X23: 0 | Y23: 0 | Z23: 0 | AA23: 0 | AB23: 0 | AC23: 0 | AD23: 268 | AE23: 89.33333333 | AF23: 52 | AG23: 52 | AH23: 0 | AI23: 0 | AJ23: 196 | AK23: 0 | AL23: 47 | AM23: 6 | AN23: 0 | AO23: 19 | AP23: 0 | AQ23: 0 | AR23: 0 | AS23: 0 | AT23: 0 | AU23: 0 | AV23: 0 | AW23: 0 | AX23: 142.2346369 | AY23: 0 | AZ23: 65.51449297 | BA23: 97.54380064 | BB23: 0 | BC23: 0 | BD23: 0 | BE23: 0 | BF23: 0 | BG23: 0 | BH23: 0 | BI23: 0 | BJ23: 0.654 | BK23: 0 | BL23: 0 | BM23: 0 | BN23: 0 | BO23: 1 | BP23: 0
A24: 20 | C24: 0.07874015748 | D24: 0 | E24: 2459 | F24: 8312459 | G24: Wren Park Primary School | H24: Primary | I24: 0 | J24: 1 | K24: 0 | L24: 0 | M24: 7 | N24: 0 | O24: 0 | P24: 0 | Q24: 381 | R24: 381 | S24: 54 | T24: 327 | U24: 0 | V24: 0 | W24: 0 | X24: 0 | Y24: 0 | Z24: 0 | AA24: 0 | AB24: 0 | AC24: 0 | AD24: 381 | AE24: 54.42857143 | AF24: 31 | AG24: 33 | AH24: 0 | AI24: 0 | AJ24: 367.8968254 | AK24: 2.015873016 | AL24: 5.03968254 | AM24: 2.015873016 | AN24: 3.023809524 | AO24: 1.007936508 | AP24: 0 | AQ24: 0 | AR24: 0 | AS24: 0 | AT24: 0 | AU24: 0 | AV24: 0 | AW24: 0 | AX24: 72.23853211 | AY24: 0 | AZ24: 68.68661773 | BA24: 80.02936194 | BB24: 0 | BC24: 0 | BD24: 0 | BE24: 0 | BF24: 0 | BG24: 0 | BH24: 0 | BI24: 0 | BJ24: 0.898 | BK24: 0 | BL24: 0 | BM24: 0 | BN24: 0 | BO24: 1 | BP24: 0
A25: 21 | C25: 0.2567567568 | D25: 0 | E25: 2462 | F25: 8312462 | G25: Ravensdale Infant and Nursery School | H25: Primary | I25: 0 | J25: 1 | K25: 0 | L25: 0 | M25: 3 | N25: 0 | O25: 0 | P25: 0 | Q25: 243 | R25: 243 | S25: 86 | T25: 157 | U25: 0 | V25: 0 | W25: 0 | X25: 0 | Y25: 0 | Z25: 0 | AA25: 0 | AB25: 0 | AC25: 0 | AD25: 243 | AE25: 81 | AF25: 64 | AG25: 64 | AH25: 0 | AI25: 0 | AJ25: 189 | AK25: 28 | AL25: 8 | AM25: 5 | AN25: 9 | AO25: 1 | AP25: 3 | AQ25: 0 | AR25: 0 | AS25: 0 | AT25: 0 | AU25: 0 | AV25: 0 | AW25: 0 | AX25: 26.82467532 | AY25: 0 | AZ25: 47.47586134 | BA25: 73.48174717 | BB25: 0 | BC25: 0 | BD25: 0 | BE25: 0 | BF25: 0 | BG25: 0 | BH25: 0 | BI25: 0 | BJ25: 0.855 | BK25: 0 | BL25: 0 | BM25: 0 | BN25: 0 | BO25: 1 | BP25: 0
A26: 22 | C26: 0.05275779376 | D26: 0 | E26: 2469 | F26: 8312469 | G26: Silverhill Primary School | H26: Primary | I26: 0 | J26: 1 | K26: 0 | L26: 0 | M26: 7 | N26: 0 | O26: 0 | P26: 0 | Q26: 419 | R26: 419 | S26: 60 | T26: 359 | U26: 0 | V26: 0 | W26: 0 | X26: 0 | Y26: 0 | Z26: 0 | AA26: 0 | AB26: 0 | AC26: 0 | AD26: 419 | AE26: 59.85714286 | AF26: 20 | AG26: 22 | AH26: 0 | AI26: 0 | AJ26: 395 | AK26: 15 | AL26: 3 | AM26: 0 | AN26: 6 | AO26: 0 | AP26: 0 | AQ26: 0 | AR26: 0 | AS26: 0 | AT26: 0 | AU26: 0 | AV26: 0 | AW26: 0 | AX26: 12.98309859 | AY26: 0 | AZ26: 75.50798122 | BA26: 88.12769953 | BB26: 0 | BC26: 0 | BD26: 0 | BE26: 0 | BF26: 0 | BG26: 0 | BH26: 0 | BI26: 0 | BJ26: 0.915 | BK26: 0 | BL26: 0 | BM26: 0 | BN26: 0 | BO26: 1 | BP26: 0
A27: 23 | C27: 0.3730769231 | D27: 0 | E27: 2473 | F27: 8312473 | G27: Oakwood Infant and Nursery School | H27: Primary | I27: 0 | J27: 1 | K27: 0 | L27: 0 | M27: 3 | N27: 0 | O27: 0 | P27: 0 | Q27: 260 | R27: 260 | S27: 90 | T27: 170 | U27: 0 | V27: 0 | W27: 0 | X27: 0 | Y27: 0 | Z27: 0 | AA27: 0 | AB27: 0 | AC27: 0 | AD27: 260 | AE27: 86.66666667 | AF27: 87 | AG27: 89 | AH27: 0 | AI27: 0 | AJ27: 129.4980695 | AK27: 4.015444015 | AL27: 59.22779923 | AM27: 0 | AN27: 16.06177606 | AO27: 16.06177606 | AP27: 35.13513514 | AQ27: 0 | AR27: 0 | AS27: 0 | AT27: 0 | AU27: 0 | AV27: 0 | AW27: 0 | AX27: 30.58823529 | AY27: 0 | AZ27: 60.31217277 | BA27: 92.2421466 | BB27: 0 | BC27: 0 | BD27: 0 | BE27: 0 | BF27: 0 | BG27: 0 | BH27: 0 | BI27: 0 | BJ27: 0.734 | BK27: 0 | BL27: 0 | BM27: 0 | BN27: 0 | BO27: 1 | BP27: 0
A28: 24 | C28: 0.3657718121 | D28: 0 | E28: 2505 | F28: 8312505 | G28: Redwood Primary School | H28: Primary | I28: 0 | J28: 1 | K28: 0 | L28: 0 | M28: 7 | N28: 0 | O28: 0 | P28: 0 | Q28: 595 | R28: 595 | S28: 87 | T28: 508 | U28: 0 | V28: 0 | W28: 0 | X28: 0 | Y28: 0 | Z28: 0 | AA28: 0 | AB28: 0 | AC28: 0 | AD28: 595 | AE28: 85 | AF28: 222 | AG28: 224 | AH28: 0 | AI28: 0 | AJ28: 220.3703704 | AK28: 5.008417508 | AL28: 89.14983165 | AM28: 11.01851852 | AN28: 84.14141414 | AO28: 177.2979798 | AP28: 8.013468013 | AQ28: 0 | AR28: 0 | AS28: 0 | AT28: 0 | AU28: 0 | AV28: 0 | AW28: 0 | AX28: 148.75 | AY28: 0 | AZ28: 194.8930818 | BA28: 228.2704403 | BB28: 0 | BC28: 0 | BD28: 0 | BE28: 0 | BF28: 0 | BG28: 0 | BH28: 1.3 | BI28: 0 | BJ28: 0.509 | BK28: 0 | BL28: 0 | BM28: 0 | BN28: 0 | BO28: 1 | BP28: 0
A29: 25 | C29: 0.1304347826 | D29: 0 | E29: 2627 | F29: 8312627 | G29: Mickleover Primary School | H29: Primary | I29: 0 | J29: 1 | K29: 0 | L29: 0 | M29: 7 | N29: 0 | O29: 0 | P29: 0 | Q29: 422 | R29: 422 | S29: 58 | T29: 364 | U29: 0 | V29: 0 | W29: 0 | X29: 0 | Y29: 0 | Z29: 0 | AA29: 0 | AB29: 0 | AC29: 0 | AD29: 422 | AE29: 60.28571429 | AF29: 49 | AG29: 51 | AH29: 0 | AI29: 0 | AJ29: 383 | AK29: 19 | AL29: 12 | AM29: 3 | AN29: 3 | AO29: 2 | AP29: 0 | AQ29: 0 | AR29: 0 | AS29: 0 | AT29: 0 | AU29: 0 | AV29: 0 | AW29: 0 | AX29: 52.17032967 | AY29: 0 | AZ29: 90.05439595 | BA29: 104.4037228 | BB29: 0 | BC29: 0 | BD29: 0 | BE29: 0 | BF29: 0 | BG29: 0 | BH29: 0 | BI29: 0 | BJ29: 0.593 | BK29: 0 | BL29: 0 | BM29: 0 | BN29: 0 | BO29: 1 | BP29: 0
A30: 26 | C30: 0.3924050633 | D30: 0 | E30: 3526 | F30: 8313526 | G30: St James' Church of England Aided Infant School | H30: Primary | I30: 0 | J30: 1 | K30: 0 | L30: 0 | M30: 3 | N30: 0 | O30: 0 | P30: 0 | Q30: 69 | R30: 69 | S30: 18 | T30: 51 | U30: 0 | V30: 0 | W30: 0 | X30: 0 | Y30: 0 | Z30: 0 | AA30: 0 | AB30: 0 | AC30: 0 | AD30: 69 | AE30: 23 | AF30: 36 | AG30: 36 | AH30: 0 | AI30: 0 | AJ30: 0 | AK30: 4 | AL30: 20 | AM30: 16 | AN30: 18 | AO30: 2 | AP30: 9 | AQ30: 0 | AR30: 0 | AS30: 0 | AT30: 0 | AU30: 0 | AV30: 0 | AW30: 0 | AX30: 56.82352941 | AY30: 0 | AZ30: 16.08627604 | BA30: 21.76378523 | BB30: 0 | BC30: 0 | BD30: 0 | BE30: 0 | BF30: 0 | BG30: 0 | BH30: 2.86 | BI30: 0 | BJ30: 0.491 | BK30: 0 | BL30: 0 | BM30: 0 | BN30: 0 | BO30: 1 | BP30: 0
A31: 27 | C31: 0.3870967742 | D31: 0 | E31: 5209 | F31: 8315209 | G31: Shelton Junior School | H31: Primary | I31: 0 | J31: 1 | K31: 0 | L31: 0 | M31: 4 | N31: 0 | O31: 0 | P31: 0 | Q31: 281 | R31: 281 | S31: 0 | T31: 281 | U31: 0 | V31: 0 | W31: 0 | X31: 0 | Y31: 0 | Z31: 0 | AA31: 0 | AB31: 0 | AC31: 0 | AD31: 281 | AE31: 70.25 | AF31: 105 | AG31: 115 | AH31: 0 | AI31: 0 | AJ31: 87 | AK31: 88 | AL31: 16 | AM31: 0 | AN31: 24 | AO31: 47 | AP31: 19 | AQ31: 0 | AR31: 0 | AS31: 0 | AT31: 0 | AU31: 0 | AV31: 0 | AW31: 0 | AX31: 15 | AY31: 0 | AZ31: 86.89987326 | BA31: 86.89987326 | BB31: 0 | BC31: 0 | BD31: 0 | BE31: 0 | BF31: 0 | BG31: 0 | BH31: 3.14 | BI31: 0 | BJ31: 0.836 | BK31: 0 | BL31: 0 | BM31: 0 | BN31: 0 | BO31: 1 | BP31: 0
A32: 28 | C32: 0 | D32: 0.1521145975 | E32: 4182 | F32: 8314182 | G32: Littleover Community School | H32: Secondary | I32: 0 | J32: 1 | K32: 0 | L32: 0 | M32: 0 | N32: 5 | O32: 3 | P32: 2 | Q32: 1465 | R32: 0 | S32: 0 | T32: 0 | U32: 1465 | V32: 879 | W32: 586 | X32: 293 | Y32: 295 | Z32: 291 | AA32: 292 | AB32: 294 | AC32: 0 | AD32: 1465 | AE32: 293 | AF32: 0 | AG32: 0 | AH32: 182 | AI32: 232 | AJ32: 0 | AK32: 0 | AL32: 0 | AM32: 0 | AN32: 0 | AO32: 0 | AP32: 0 | AQ32: 1217.49316 | AR32: 155.3180575 | AS32: 51.10465116 | AT32: 30.06155951 | AU32: 6.012311902 | AV32: 4.008207934 | AW32: 1.002051984 | AX32: 0 | AY32: 22.04514364 | AZ32: 0 | BA32: 0 | BB32: 103.9007092 | BC32: 87.13523132 | BD32: 85.95373665 | BE32: 86.24911032 | BF32: 81.78169014 | BG32: 275.9388106 | BH32: 0 | BI32: 0 | BJ32: 0 | BK32: 2.034 | BL32: 0 | BM32: 0 | BN32: 0 | BO32: 0 | BP32: 1
A33: 29 | B33: 11 | C33: 0 | D33: 0.356741573 | E33: 5406 | F33: 8315406 | G33: Murray Park Community School | H33: Secondary | I33: 0 | J33: 1 | K33: 0 | L33: 0 | M33: 0 | N33: 5 | O33: 3 | P33: 2 | Q33: 1124.333333 | R33: 0 | S33: 0 | T33: 0 | U33: 1124.333333 | V33: 694.3333333 | W33: 430 | X33: 258.3333333 | Y33: 224 | Z33: 212 | AA33: 213 | AB33: 217 | AC33: 0 | AD33: 1124.333333 | AE33: 224.8666667 | AF33: 0 | AG33: 0 | AH33: 334.0112736 | AI33: 403.8967093 | AJ33: 0 | AK33: 0 | AL33: 0 | AM33: 0 | AN33: 0 | AO33: 0 | AP33: 0 | AQ33: 478.3302836 | AR33: 297.2848429 | AS33: 118.2967368 | AT33: 64.80603843 | AU33: 96.694724 | AV33: 33.94602013 | AW33: 34.9746874 | AX33: 0 | AY33: 21.62179487 | AZ33: 0 | BA33: 0 | BB33: 114.4371345 | BC33: 101.3065327 | BD33: 95.87939698 | BE33: 96.33165829 | BF33: 103.5929648 | BG33: 317.6018065 | BH33: 0 | BI33: 0 | BJ33: 0 | BK33: 2.418 | BL33: 0 | BM33: 0.03 | BN33: 0 | BO33: 0 | BP33: 1
A34: 30 | C34: 0.3253012048 | D34: 0.5449620802 | E34: 4177 | F34: 8314177 | G34: The Bemrose School | H34: All-through | I34: 0 | J34: 1 | K34: 0 | L34: 0 | M34: 7 | N34: 5 | O34: 3 | P34: 2 | Q34: 1281.25 | R34: 343 | S34: 46 | T34: 297 | U34: 938.25 | V34: 581.25 | W34: 357 | X34: 211.25 | Y34: 197 | Z34: 173 | AA34: 179 | AB34: 178 | AC34: 0 | AD34: 1281.25 | AE34: 106.7708333 | AF34: 100 | AG34: 112 | AH34: 453.6932566 | AI34: 517.4777961 | AJ34: 56 | AK34: 18 | AL34: 113 | AM34: 63 | AN34: 50 | AO34: 33 | AP34: 10 | AQ34: 68.92845395 | AR34: 94.64802632 | AS34: 162.5476974 | AT34: 308.6348684 | AU34: 210.9004934 | AV34: 49.38157895 | AW34: 43.20888158 | AX34: 81.996633 | AY34: 150.9586592 | AZ34: 108.3456 | BA34: 125.1264 | BB34: 149.7468354 | BC34: 139.4817518 | BD34: 122.4890511 | BE34: 126.7372263 | BF34: 112.4210526 | BG34: 403.871829 | BH34: 28.42 | BI34: 64.33714286 | BJ34: 0 | BK34: 1.37 | BL34: 0 | BM34: 0 | BN34: 0 | BO34: 0.2677073171 | BP34: 0.7322926829
A35: 31 | C35: 0.06896551724 | D35: 0 | E35: 2002 | F35: 8312002 | G35: Griffe Field Primary School | H35: Primary | I35: Recoupment Academy | J35: 1 | K35: 0 | L35: 0 | M35: 7 | N35: 0 | O35: 0 | P35: 0 | Q35: 428 | R35: 428 | S35: 60 | T35: 368 | U35: 0 | V35: 0 | W35: 0 | X35: 0 | Y35: 0 | Z35: 0 | AA35: 0 | AB35: 0 | AC35: 0 | AD35: 428 | AE35: 61.14285714 | AF35: 27 | AG35: 27 | AH35: 0 | AI35: 0 | AJ35: 334.1226415 | AK35: 80.75471698 | AL35: 3.028301887 | AM35: 6.056603774 | AN35: 3.028301887 | AO35: 1.009433962 | AP35: 0 | AQ35: 0 | AR35: 0 | AS35: 0 | AT35: 0 | AU35: 0 | AV35: 0 | AW35: 0 | AX35: 27.91304348 | AY35: 0 | AZ35: 73.94148281 | BA35: 85.99715936 | BB35: 0 | BC35: 0 | BD35: 0 | BE35: 0 | BF35: 0 | BG35: 0 | BH35: 0 | BI35: 0 | BJ35: 1.347 | BK35: 0 | BL35: 0 | BM35: 0 | BN35: 0 | BO35: 1 | BP35: 0
A36: 32 | C36: 0.5451263538 | D36: 0 | E36: 2004 | F36: 8312004 | G36: Beaufort Community Primary School | H36: Primary | I36: Recoupment Academy | J36: 1 | K36: 0 | L36: 0 | M36: 7 | N36: 0 | O36: 0 | P36: 0 | Q36: 277 | R36: 277 | S36: 32 | T36: 245 | U36: 0 | V36: 0 | W36: 0 | X36: 0 | Y36: 0 | Z36: 0 | AA36: 0 | AB36: 0 | AC36: 0 | AD36: 277 | AE36: 39.57142857 | AF36: 150 | AG36: 151 | AH36: 0 | AI36: 0 | AJ36: 32 | AK36: 46 | AL36: 24 | AM36: 27 | AN36: 1 | AO36: 19 | AP36: 128 | AQ36: 0 | AR36: 0 | AS36: 0 | AT36: 0 | AU36: 0 | AV36: 0 | AW36: 0 | AX36: 24.87346939 | AY36: 0 | AZ36: 64.07692308 | BA36: 72.44615385 | BB36: 0 | BC36: 0 | BD36: 0 | BE36: 0 | BF36: 0 | BG36: 0 | BH36: 0 | BI36: 0 | BJ36: 0.528 | BK36: 0 | BL36: 0 | BM36: 0 | BN36: 0 | BO36: 1 | BP36: 0
A37: 33 | C37: 0.03225806452 | D37: 0 | E37: 2006 | F37: 8312006 | G37: Homefields Primary School | H37: Primary | I37: Recoupment Academy | J37: 1 | K37: 0 | L37: 0 | M37: 7 | N37: 0 | O37: 0 | P37: 0 | Q37: 315 | R37: 315 | S37: 45 | T37: 270 | U37: 0 | V37: 0 | W37: 0 | X37: 0 | Y37: 0 | Z37: 0 | AA37: 0 | AB37: 0 | AC37: 0 | AD37: 315 | AE37: 45 | AF37: 11 | AG37: 13 | AH37: 0 | AI37: 0 | AJ37: 304 | AK37: 8 | AL37: 2 | AM37: 0 | AN37: 1 | AO37: 0 | AP37: 0 | AQ37: 0 | AR37: 0 | AS37: 0 | AT37: 0 | AU37: 0 | AV37: 0 | AW37: 0 | AX37: 42.63157895 | AY37: 0 | AZ37: 49.2303719 | BA37: 57.43543388 | BB37: 0 | BC37: 0 | BD37: 0 | BE37: 0 | BF37: 0 | BG37: 0 | BH37: 0 | BI37: 0 | BJ37: 0.797 | BK37: 0 | BL37: 0 | BM37: 0 | BN37: 0 | BO37: 1 | BP37: 0
A38: 34 | C38: 0.387755102 | D38: 0 | E38: 2007 | F38: 8312007 | G38: Wyndham Spencer Academy | H38: Primary | I38: Recoupment Academy | J38: 1 | K38: 0 | L38: 0 | M38: 7 | N38: 0 | O38: 0 | P38: 0 | Q38: 441 | R38: 441 | S38: 60 | T38: 381 | U38: 0 | V38: 0 | W38: 0 | X38: 0 | Y38: 0 | Z38: 0 | AA38: 0 | AB38: 0 | AC38: 0 | AD38: 441 | AE38: 63 | AF38: 153 | AG38: 165 | AH38: 0 | AI38: 0 | AJ38: 81 | AK38: 32 | AL38: 53 | AM38: 0 | AN38: 74 | AO38: 185 | AP38: 16 | AQ38: 0 | AR38: 0 | AS38: 0 | AT38: 0 | AU38: 0 | AV38: 0 | AW38: 0 | AX38: 63.66141732 | AY38: 0 | AZ38: 99.1701891 | BA38: 114.7875417 | BB38: 0 | BC38: 0 | BD38: 0 | BE38: 0 | BF38: 0 | BG38: 0 | BH38: 1.54 | BI38: 0 | BJ38: 0.618 | BK38: 0 | BL38: 0 | BM38: 0 | BN38: 0 | BO38: 1 | BP38: 0
A39: 35 | C39: 0.2167487685 | D39: 0 | E39: 2008 | F39: 8312008 | G39: St John Fisher Catholic Voluntary Academy | H39: Primary | I39: Recoupment Academy | J39: 1 | K39: 0 | L39: 0 | M39: 7 | N39: 0 | O39: 0 | P39: 0 | Q39: 203 | R39: 203 | S39: 26 | T39: 177 | U39: 0 | V39: 0 | W39: 0 | X39: 0 | Y39: 0 | Z39: 0 | AA39: 0 | AB39: 0 | AC39: 0 | AD39: 203 | AE39: 29 | AF39: 38 | AG39: 42 | AH39: 0 | AI39: 0 | AJ39: 51 | AK39: 37 | AL39: 37 | AM39: 0 | AN39: 39 | AO39: 30 | AP39: 9 | AQ39: 0 | AR39: 0 | AS39: 0 | AT39: 0 | AU39: 0 | AV39: 0 | AW39: 0 | AX39: 25.23163842 | AY39: 0 | AZ39: 44.25 | BA39: 50.75 | BB39: 0 | BC39: 0 | BD39: 0 | BE39: 0 | BF39: 0 | BG39: 0 | BH39: 0 | BI39: 0 | BJ39: 0.452 | BK39: 0 | BL39: 0 | BM39: 0 | BN39: 0 | BO39: 1 | BP39: 0
A40: 36 | C40: 0.476635514 | D40: 0 | E40: 2009 | F40: 8312009 | G40: Landau Forte Academy Moorhead | H40: Primary | I40: Recoupment Academy | J40: 1 | K40: 0 | L40: 0 | M40: 7 | N40: 0 | O40: 0 | P40: 0 | Q40: 206 | R40: 206 | S40: 16 | T40: 190 | U40: 0 | V40: 0 | W40: 0 | X40: 0 | Y40: 0 | Z40: 0 | AA40: 0 | AB40: 0 | AC40: 0 | AD40: 206 | AE40: 29.42857143 | AF40: 132 | AG40: 134 | AH40: 0 | AI40: 0 | AJ40: 31.61386139 | AK40: 7.138613861 | AL40: 11.21782178 | AM40: 0 | AN40: 60.16831683 | AO40: 72.40594059 | AP40: 23.45544554 | AQ40: 0 | AR40: 0 | AS40: 0 | AT40: 0 | AU40: 0 | AV40: 0 | AW40: 0 | AX40: 44.45263158 | AY40: 0 | AZ40: 77.3490719 | BA40: 83.86267796 | BB40: 0 | BC40: 0 | BD40: 0 | BE40: 0 | BF40: 0 | BG40: 0 | BH40: 4.64 | BI40: 0 | BJ40: 0.529 | BK40: 0 | BL40: 0 | BM40: 0 | BN40: 0 | BO40: 1 | BP40: 0
A41: 37 | C41: 0.5603864734 | D41: 0 | E41: 2010 | F41: 8312010 | G41: Grampian Primary Academy | H41: Primary | I41: Recoupment Academy | J41: 1 | K41: 0 | L41: 0 | M41: 7 | N41: 0 | O41: 0 | P41: 0 | Q41: 204 | R41: 204 | S41: 30 | T41: 174 | U41: 0 | V41: 0 | W41: 0 | X41: 0 | Y41: 0 | Z41: 0 | AA41: 0 | AB41: 0 | AC41: 0 | AD41: 204 | AE41: 29.14285714 | AF41: 109 | AG41: 112 | AH41: 0 | AI41: 0 | AJ41: 37 | AK41: 1 | AL41: 16 | AM41: 2 | AN41: 77 | AO41: 66 | AP41: 5 | AQ41: 0 | AR41: 0 | AS41: 0 | AT41: 0 | AU41: 0 | AV41: 0 | AW41: 0 | AX41: 25.79310345 | AY41: 0 | AZ41: 49.3255814 | BA41: 57.82999198 | BB41: 0 | BC41: 0 | BD41: 0 | BE41: 0 | BF41: 0 | BG41: 0 | BH41: 2.76 | BI41: 0 | BJ41: 0.709 | BK41: 0 | BL41: 0 | BM41: 0 | BN41: 0 | BO41: 1 | BP41: 0
A42: 38 | C42: 0.323943662 | D42: 0 | E42: 2011 | F42: 8312011 | G42: Bishop Lonsdale Church of England Primary School and Nursery | H42: Primary | I42: Recoupment Academy | J42: 1 | K42: 0 | L42: 0 | M42: 7 | N42: 0 | O42: 0 | P42: 0 | Q42: 212 | R42: 212 | S42: 26 | T42: 186 | U42: 0 | V42: 0 | W42: 0 | X42: 0 | Y42: 0 | Z42: 0 | AA42: 0 | AB42: 0 | AC42: 0 | AD42: 212 | AE42: 30.28571429 | AF42: 78 | AG42: 78 | AH42: 0 | AI42: 0 | AJ42: 32.3047619 | AK42: 7.066666667 | AL42: 111.047619 | AM42: 29.27619048 | AN42: 17.16190476 | AO42: 15.14285714 | AP42: 0 | AQ42: 0 | AR42: 0 | AS42: 0 | AT42: 0 | AU42: 0 | AV42: 0 | AW42: 0 | AX42: 28.49462366 | AY42: 0 | AZ42: 45.50556031 | BA42: 51.86655261 | BB42: 0 | BC42: 0 | BD42: 0 | BE42: 0 | BF42: 0 | BG42: 0 | BH42: 0 | BI42: 0 | BJ42: 0.447 | BK42: 0 | BL42: 0 | BM42: 0 | BN42: 0 | BO42: 1 | BP42: 0
A43: 39 | C43: 0.556547619 | D43: 0 | E43: 2012 | F43: 8312012 | G43: Allenton Primary School | H43: Primary | I43: Recoupment Academy | J43: 1 | K43: 0 | L43: 0 | M43: 7 | N43: 0 | O43: 0 | P43: 0 | Q43: 317 | R43: 317 | S43: 31 | T43: 286 | U43: 0 | V43: 0 | W43: 0 | X43: 0 | Y43: 0 | Z43: 0 | AA43: 0 | AB43: 0 | AC43: 0 | AD43: 317 | AE43: 45.28571429 | AF43: 198 | AG43: 200 | AH43: 0 | AI43: 0 | AJ43: 8.025316456 | AK43: 7.022151899 | AL43: 3.009493671 | AM43: 3.009493671 | AN43: 56.17721519 | AO43: 194.6139241 | AP43: 45.14240506 | AQ43: 0 | AR43: 0 | AS43: 0 | AT43: 0 | AU43: 0 | AV43: 0 | AW43: 0 | AX43: 54.31118881 | AY43: 0 | AZ43: 101.5880443 | BA43: 112.5993358 | BB43: 0 | BC43: 0 | BD43: 0 | BE43: 0 | BF43: 0 | BG43: 0 | BH43: 7.98 | BI43: 0 | BJ43: 0.533 | BK43: 0 | BL43: 0 | BM43: 0 | BN43: 0 | BO43: 1 | BP43: 0
A44: 40 | C44: 0.5906593407 | D44: 0 | E44: 2013 | F44: 8312013 | G44: Firs Primary School | H44: Primary | I44: Recoupment Academy | J44: 1 | K44: 0 | L44: 0 | M44: 7 | N44: 0 | O44: 0 | P44: 0 | Q44: 383 | R44: 383 | S44: 42 | T44: 341 | U44: 0 | V44: 0 | W44: 0 | X44: 0 | Y44: 0 | Z44: 0 | AA44: 0 | AB44: 0 | AC44: 0 | AD44: 383 | AE44: 54.71428571 | AF44: 224 | AG44: 225 | AH44: 0 | AI44: 0 | AJ44: 19 | AK44: 18 | AL44: 125 | AM44: 71 | AN44: 87 | AO44: 52 | AP44: 11 | AQ44: 0 | AR44: 0 | AS44: 0 | AT44: 0 | AU44: 0 | AV44: 0 | AW44: 0 | AX44: 197.6774194 | AY44: 0 | AZ44: 181.2401575 | BA44: 203.5629921 | BB44: 0 | BC44: 0 | BD44: 0 | BE44: 0 | BF44: 0 | BG44: 0 | BH44: 66.25298429 | BI44: 0 | BJ44: 0.405 | BK44: 0 | BL44: 0 | BM44: 0 | BN44: 0 | BO44: 1 | BP44: 0
A45: 41 | C45: 0.2245989305 | D45: 0 | E45: 2014 | F45: 8312014 | G45: Akaal Primary School | H45: Primary | I45: Recoupment Academy | J45: 1 | K45: 0 | L45: 0 | M45: 7 | N45: 0 | O45: 0 | P45: 0 | Q45: 204 | R45: 204 | S45: 19 | T45: 185 | U45: 0 | V45: 0 | W45: 0 | X45: 0 | Y45: 0 | Z45: 0 | AA45: 0 | AB45: 0 | AC45: 0 | AD45: 204 | AE45: 29.14285714 | AF45: 58 | AG45: 60 | AH45: 0 | AI45: 0 | AJ45: 79.38916256 | AK45: 3.014778325 | AL45: 32.15763547 | AM45: 37.18226601 | AN45: 21.10344828 | AO45: 28.13793103 | AP45: 3.014778325 | AQ45: 0 | AR45: 0 | AS45: 0 | AT45: 0 | AU45: 0 | AV45: 0 | AW45: 0 | AX45: 80.4972973 | AY45: 0 | AZ45: 79.26288511 | BA45: 87.40339764 | BB45: 0 | BC45: 0 | BD45: 0 | BE45: 0 | BF45: 0 | BG45: 0 | BH45: 9.76 | BI45: 0 | BJ45: 0.654 | BK45: 0 | BL45: 0 | BM45: 0 | BN45: 0 | BO45: 1 | BP45: 0
A46: 42 | C46: 0.6509433962 | D46: 0 | E46: 2016 | F46: 8312016 | G46: Derwent Primary School | H46: Primary | I46: Recoupment Academy | J46: 1 | K46: 0 | L46: 0 | M46: 7 | N46: 0 | O46: 0 | P46: 0 | Q46: 231 | R46: 231 | S46: 35 | T46: 196 | U46: 0 | V46: 0 | W46: 0 | X46: 0 | Y46: 0 | Z46: 0 | AA46: 0 | AB46: 0 | AC46: 0 | AD46: 231 | AE46: 33 | AF46: 155 | AG46: 155 | AH46: 0 | AI46: 0 | AJ46: 18.23684211 | AK46: 10.13157895 | AL46: 48.63157895 | AM46: 4.052631579 | AN46: 2.026315789 | AO46: 7.092105263 | AP46: 140.8289474 | AQ46: 0 | AR46: 0 | AS46: 0 | AT46: 0 | AU46: 0 | AV46: 0 | AW46: 0 | AX46: 31.82142857 | AY46: 0 | AZ46: 56.51851852 | BA46: 66.61111111 | BB46: 0 | BC46: 0 | BD46: 0 | BE46: 0 | BF46: 0 | BG46: 0 | BH46: 11.14 | BI46: 0 | BJ46: 0.575 | BK46: 0 | BL46: 0 | BM46: 0 | BN46: 0 | BO46: 1 | BP46: 0
A47: 43 | C47: 0.6837606838 | D47: 0 | E47: 2017 | F47: 8312017 | G47: Pear Tree Community Junior School | H47: Primary | I47: Recoupment Academy | J47: 1 | K47: 0 | L47: 0 | M47: 4 | N47: 0 | O47: 0 | P47: 0 | Q47: 355 | R47: 355 | S47: 0 | T47: 355 | U47: 0 | V47: 0 | W47: 0 | X47: 0 | Y47: 0 | Z47: 0 | AA47: 0 | AB47: 0 | AC47: 0 | AD47: 355 | AE47: 88.75 | AF47: 249 | AG47: 260 | AH47: 0 | AI47: 0 | AJ47: 4 | AK47: 38 | AL47: 23 | AM47: 138 | AN47: 135 | AO47: 6 | AP47: 11 | AQ47: 0 | AR47: 0 | AS47: 0 | AT47: 0 | AU47: 0 | AV47: 0 | AW47: 0 | AX47: 119.674221 | AY47: 0 | AZ47: 138.8068783 | BA47: 138.8068783 | BB47: 0 | BC47: 0 | BD47: 0 | BE47: 0 | BF47: 0 | BG47: 0 | BH47: 0 | BI47: 0 | BJ47: 0.472 | BK47: 0 | BL47: 0 | BM47: 0 | BN47: 0 | BO47: 1 | BP47: 0
A48: 44 | C48: 0.4804469274 | D48: 0 | E48: 2018 | F48: 8312018 | G48: Breadsall Hill Top Primary School | H48: Primary | I48: Recoupment Academy | J48: 1 | K48: 0 | L48: 0 | M48: 7 | N48: 0 | O48: 0 | P48: 0 | Q48: 366 | R48: 366 | S48: 40 | T48: 326 | U48: 0 | V48: 0 | W48: 0 | X48: 0 | Y48: 0 | Z48: 0 | AA48: 0 | AB48: 0 | AC48: 0 | AD48: 366 | AE48: 52.28571429 | AF48: 187 | AG48: 189 | AH48: 0 | AI48: 0 | AJ48: 73.2 | AK48: 142.3890411 | AL48: 64.17534247 | AM48: 33.09041096 | AN48: 7.019178082 | AO48: 14.03835616 | AP48: 32.08767123 | AQ48: 0 | AR48: 0 | AS48: 0 | AT48: 0 | AU48: 0 | AV48: 0 | AW48: 0 | AX48: 16.8404908 | AY48: 0 | AZ48: 122.4172682 | BA48: 137.4377919 | BB48: 0 | BC48: 0 | BD48: 0 | BE48: 0 | BF48: 0 | BG48: 0 | BH48: 12.04 | BI48: 0 | BJ48: 0.687 | BK48: 0 | BL48: 0 | BM48: 0 | BN48: 0 | BO48: 1 | BP48: 0
A49: 45 | C49: 0.4064516129 | D49: 0 | E49: 2019 | F49: 8312019 | G49: Cavendish Close Junior Academy | H49: Primary | I49: Recoupment Academy | J49: 1 | K49: 0 | L49: 0 | M49: 4 | N49: 0 | O49: 0 | P49: 0 | Q49: 313 | R49: 313 | S49: 0 | T49: 313 | U49: 0 | V49: 0 | W49: 0 | X49: 0 | Y49: 0 | Z49: 0 | AA49: 0 | AB49: 0 | AC49: 0 | AD49: 313 | AE49: 78.25 | AF49: 110 | AG49: 123 | AH49: 0 | AI49: 0 | AJ49: 180 | AK49: 65 | AL49: 43 | AM49: 9 | AN49: 3 | AO49: 10 | AP49: 3 | AQ49: 0 | AR49: 0 | AS49: 0 | AT49: 0 | AU49: 0 | AV49: 0 | AW49: 0 | AX49: 7 | AY49: 0 | AZ49: 119.5621974 | BA49: 119.5621974 | BB49: 0 | BC49: 0 | BD49: 0 | BE49: 0 | BF49: 0 | BG49: 0 | BH49: 0 | BI49: 0 | BJ49: 0.73 | BK49: 0 | BL49: 0 | BM49: 0 | BN49: 0 | BO49: 1 | BP49: 0
A50: 46 | C50: 0.4649859944 | D50: 0 | E50: 2020 | F50: 8312020 | G50: Reigate Park Primary Academy | H50: Primary | I50: Recoupment Academy | J50: 1 | K50: 0 | L50: 0 | M50: 7 | N50: 0 | O50: 0 | P50: 0 | Q50: 360 | R50: 360 | S50: 52 | T50: 308 | U50: 0 | V50: 0 | W50: 0 | X50: 0 | Y50: 0 | Z50: 0 | AA50: 0 | AB50: 0 | AC50: 0 | AD50: 360 | AE50: 51.42857143 | AF50: 142 | AG50: 151 | AH50: 0 | AI50: 0 | AJ50: 35.09749304 | AK50: 231.643454 | AL50: 7.019498607 | AM50: 4.011142061 | AN50: 57.15877437 | AO50: 5.013927577 | AP50: 20.05571031 | AQ50: 0 | AR50: 0 | AS50: 0 | AT50: 0 | AU50: 0 | AV50: 0 | AW50: 0 | AX50: 37.4025974 | AY50: 0 | AZ50: 124.1715619 | BA50: 145.1355919 | BB50: 0 | BC50: 0 | BD50: 0 | BE50: 0 | BF50: 0 | BG50: 0 | BH50: 15.4 | BI50: 0 | BJ50: 0.758 | BK50: 0 | BL50: 0 | BM50: 0 | BN50: 0 | BO50: 1 | BP50: 0
A51: 47 | C51: 0.5684410646 | D51: 0 | E51: 2021 | F51: 8312021 | G51: Ashwood Spencer Academy | H51: Primary | I51: Recoupment Academy | J51: 1 | K51: 0 | L51: 0 | M51: 7 | N51: 0 | O51: 0 | P51: 0 | Q51: 503 | R51: 503 | S51: 61 | T51: 442 | U51: 0 | V51: 0 | W51: 0 | X51: 0 | Y51: 0 | Z51: 0 | AA51: 0 | AB51: 0 | AC51: 0 | AD51: 503 | AE51: 71.85714286 | AF51: 305 | AG51: 307 | AH51: 0 | AI51: 0 | AJ51: 10.01992032 | AK51: 10.01992032 | AL51: 15.02988048 | AM51: 17.03386454 | AN51: 20.03984064 | AO51: 147.2928287 | AP51: 283.563745 | AQ51: 0 | AR51: 0 | AS51: 0 | AT51: 0 | AU51: 0 | AV51: 0 | AW51: 0 | AX51: 110.3868778 | AY51: 0 | AZ51: 157.158046 | BA51: 178.8472786 | BB51: 0 | BC51: 0 | BD51: 0 | BE51: 0 | BF51: 0 | BG51: 0 | BH51: 17.82 | BI51: 0 | BJ51: 0.768 | BK51: 0 | BL51: 0 | BM51: 0 | BN51: 0 | BO51: 1 | BP51: 0
A52: 48 | C52: 0.4551724138 | D52: 0 | E52: 2022 | F52: 8312022 | G52: Lakeside Primary Academy | H52: Primary | I52: Recoupment Academy | J52: 1 | K52: 0 | L52: 0 | M52: 7 | N52: 0 | O52: 0 | P52: 0 | Q52: 568 | R52: 568 | S52: 70 | T52: 498 | U52: 0 | V52: 0 | W52: 0 | X52: 0 | Y52: 0 | Z52: 0 | AA52: 0 | AB52: 0 | AC52: 0 | AD52: 568 | AE52: 81.14285714 | AF52: 264 | AG52: 273 | AH52: 0 | AI52: 0 | AJ52: 128 | AK52: 109 | AL52: 114 | AM52: 5 | AN52: 91 | AO52: 88 | AP52: 33 | AQ52: 0 | AR52: 0 | AS52: 0 | AT52: 0 | AU52: 0 | AV52: 0 | AW52: 0 | AX52: 78.69879518 | AY52: 0 | AZ52: 189.3919098 | BA52: 216.0132626 | BB52: 0 | BC52: 0 | BD52: 0 | BE52: 0 | BF52: 0 | BG52: 0 | BH52: 12.92 | BI52: 0 | BJ52: 0.77 | BK52: 0 | BL52: 0 | BM52: 0 | BN52: 0 | BO52: 1 | BP52: 0
A53: 49 | C53: 0.6421052632 | D53: 0 | E53: 2023 | F53: 8312023 | G53: Cottons Farm Primary Academy | H53: Primary | I53: Recoupment Academy | J53: 1 | K53: 0 | L53: 0 | M53: 7 | N53: 0 | O53: 0 | P53: 0 | Q53: 98 | R53: 98 | S53: 13 | T53: 85 | U53: 0 | V53: 0 | W53: 0 | X53: 0 | Y53: 0 | Z53: 0 | AA53: 0 | AB53: 0 | AC53: 0 | AD53: 98 | AE53: 14 | AF53: 67 | AG53: 67 | AH53: 0 | AI53: 0 | AJ53: 14 | AK53: 1 | AL53: 2 | AM53: 3 | AN53: 2 | AO53: 75 | AP53: 1 | AQ53: 0 | AR53: 0 | AS53: 0 | AT53: 0 | AU53: 0 | AV53: 0 | AW53: 0 | AX53: 36.89411765 | AY53: 0 | AZ53: 39.36698718 | BA53: 45.38782051 | BB53: 0 | BC53: 0 | BD53: 0 | BE53: 0 | BF53: 0 | BG53: 0 | BH53: 9.12 | BI53: 0 | BJ53: 0.688 | BK53: 0 | BL53: 0.691588785 | BM53: 0 | BN53: 0 | BO53: 1 | BP53: 0
A54: 50 | B54: 10 | C54: 0.3024691358 | D54: 0 | E54: 2024 | F54: 8312024 | G54: Hackwood Primary Academy | H54: Primary | I54: Recoupment Academy | J54: 1 | K54: 0 | L54: 0 | M54: 7 | N54: 0 | O54: 0 | P54: 0 | Q54: 203 | R54: 203 | S54: 29 | T54: 174 | U54: 0 | V54: 0 | W54: 0 | X54: 0 | Y54: 0 | Z54: 0 | AA54: 0 | AB54: 0 | AC54: 0 | AD54: 203 | AE54: 29 | AF54: 57 | AG54: 61 | AH54: 0 | AI54: 0 | AJ54: 177 | AK54: 23 | AL54: 3 | AM54: 0 | AN54: 0 | AO54: 0 | AP54: 0 | AQ54: 0 | AR54: 0 | AS54: 0 | AT54: 0 | AU54: 0 | AV54: 0 | AW54: 0 | AX54: 29.16666667 | AY54: 0 | AZ54: 43.34464286 | BA54: 50.56875 | BB54: 0 | BC54: 0 | BD54: 0 | BE54: 0 | BF54: 0 | BG54: 0 | BH54: 20.82 | BI54: 0 | BJ54: 1.161 | BK54: 0 | BL54: 0 | BM54: 0 | BN54: 0 | BO54: 1 | BP54: 0
A55: 51 | C55: 0.2660098522 | D55: 0 | E55: 2025 | F55: 8312025 | G55: St Peter's Church of England Aided Junior School | H55: Primary | I55: Recoupment Academy | J55: 1 | K55: 0 | L55: 0 | M55: 4 | N55: 0 | O55: 0 | P55: 0 | Q55: 196 | R55: 196 | S55: 0 | T55: 196 | U55: 0 | V55: 0 | W55: 0 | X55: 0 | Y55: 0 | Z55: 0 | AA55: 0 | AB55: 0 | AC55: 0 | AD55: 196 | AE55: 49 | AF55: 57 | AG55: 58 | AH55: 0 | AI55: 0 | AJ55: 157 | AK55: 9 | AL55: 17 | AM55: 7 | AN55: 3 | AO55: 2 | AP55: 1 | AQ55: 0 | AR55: 0 | AS55: 0 | AT55: 0 | AU55: 0 | AV55: 0 | AW55: 0 | AX55: 14 | AY55: 0 | AZ55: 62.81157948 | BA55: 62.81157948 | BB55: 0 | BC55: 0 | BD55: 0 | BE55: 0 | BF55: 0 | BG55: 0 | BH55: 0 | BI55: 0 | BJ55: 0.824 | BK55: 0 | BL55: 0 | BM55: 0 | BN55: 0 | BO55: 1 | BP55: 0
A56: 52 | B56: 6 | C56: 0.4038004751 | D56: 0 | E56: 2026 | F56: 8312026 | G56: Brackensdale Spencer Academy | H56: Primary | I56: Recoupment Academy | J56: 1 | K56: 0 | L56: 0 | M56: 7 | N56: 0 | O56: 0 | P56: 0 | Q56: 431 | R56: 431 | S56: 62 | T56: 369 | U56: 0 | V56: 0 | W56: 0 | X56: 0 | Y56: 0 | Z56: 0 | AA56: 0 | AB56: 0 | AC56: 0 | AD56: 431 | AE56: 61.57142857 | AF56: 171 | AG56: 173 | AH56: 0 | AI56: 0 | AJ56: 41.09534884 | AK56: 256.5953488 | AL56: 27.0627907 | AM56: 1.002325581 | AN56: 53.12325581 | AO56: 3.006976744 | AP56: 49.11395349 | AQ56: 0 | AR56: 0 | AS56: 0 | AT56: 0 | AU56: 0 | AV56: 0 | AW56: 0 | AX56: 30.36856369 | AY56: 0 | AZ56: 166.8882237 | BA56: 194.9290635 | BB56: 0 | BC56: 0 | BD56: 0 | BE56: 0 | BF56: 0 | BG56: 0 | BH56: 0 | BI56: 0 | BJ56: 0.796 | BK56: 0 | BL56: 0 | BM56: 0 | BN56: 0 | BO56: 1 | BP56: 0
A57: 53 | B57: 7 | C57: 0.6666666667 | D57: 0 | E57: 2027 | F57: 8312027 | G57: Castleward Spencer Academy | H57: Primary | I57: Recoupment Academy | J57: 1 | K57: 0 | L57: 0 | M57: 3 | N57: 0 | O57: 0 | P57: 0 | Q57: 64.16666667 | R57: 64.16666667 | S57: 24.58333333 | T57: 39.58333333 | U57: 0 | V57: 0 | W57: 0 | X57: 0 | Y57: 0 | Z57: 0 | AA57: 0 | AB57: 0 | AC57: 0 | AD57: 64.16666667 | AE57: 21.38888889 | AF57: 18.33333333 | AG57: 18.33333333 | AH57: 0 | AI57: 0 | AJ57: 2.291666667 | AK57: 4.583333333 | AL57: 41.25 | AM57: 0 | AN57: 6.875 | AO57: 0 | AP57: 9.166666667 | AQ57: 0 | AR57: 0 | AS57: 0 | AT57: 0 | AU57: 0 | AV57: 0 | AW57: 0 | AX57: 40.83333333 | AY57: 0 | AZ57: 32.38636364 | BA57: 52.5 | BB57: 0 | BC57: 0 | BD57: 0 | BE57: 0 | BF57: 0 | BG57: 0 | BH57: 3.025 | BI57: 0 | BJ57: 0.555 | BK57: 0 | BL57: 0.001038421599 | BM57: 0 | BN57: 0 | BO57: 1 | BP57: 0
A58: 54 | C58: 0.1415929204 | D58: 0 | E58: 2440 | F58: 8312440 | G58: Portway Junior School | H58: Primary | I58: Recoupment Academy | J58: 1 | K58: 0 | L58: 0 | M58: 4 | N58: 0 | O58: 0 | P58: 0 | Q58: 343 | R58: 343 | S58: 0 | T58: 343 | U58: 0 | V58: 0 | W58: 0 | X58: 0 | Y58: 0 | Z58: 0 | AA58: 0 | AB58: 0 | AC58: 0 | AD58: 343 | AE58: 85.75 | AF58: 44 | AG58: 50 | AH58: 0 | AI58: 0 | AJ58: 295 | AK58: 23 | AL58: 8 | AM58: 5 | AN58: 9 | AO58: 3 | AP58: 0 | AQ58: 0 | AR58: 0 | AS58: 0 | AT58: 0 | AU58: 0 | AV58: 0 | AW58: 0 | AX58: 3.017595308 | AY58: 0 | AZ58: 65.0873494 | BA58: 65.0873494 | BB58: 0 | BC58: 0 | BD58: 0 | BE58: 0 | BF58: 0 | BG58: 0 | BH58: 0 | BI58: 0 | BJ58: 1.012 | BK58: 0 | BL58: 0 | BM58: 0 | BN58: 0 | BO58: 1 | BP58: 0
A59: 55 | C59: 0.3922155689 | D59: 0 | E59: 2442 | F59: 8312442 | G59: Alvaston Junior Academy | H59: Primary | I59: Recoupment Academy | J59: 1 | K59: 0 | L59: 0 | M59: 4 | N59: 0 | O59: 0 | P59: 0 | Q59: 333 | R59: 333 | S59: 0 | T59: 333 | U59: 0 | V59: 0 | W59: 0 | X59: 0 | Y59: 0 | Z59: 0 | AA59: 0 | AB59: 0 | AC59: 0 | AD59: 333 | AE59: 83.25 | AF59: 116 | AG59: 133 | AH59: 0 | AI59: 0 | AJ59: 119 | AK59: 60 | AL59: 65 | AM59: 3 | AN59: 32 | AO59: 21 | AP59: 33 | AQ59: 0 | AR59: 0 | AS59: 0 | AT59: 0 | AU59: 0 | AV59: 0 | AW59: 0 | AX59: 16 | AY59: 0 | AZ59: 60.9326862 | BA59: 60.9326862 | BB59: 0 | BC59: 0 | BD59: 0 | BE59: 0 | BF59: 0 | BG59: 0 | BH59: 0 | BI59: 0 | BJ59: 1.038 | BK59: 0 | BL59: 0 | BM59: 0 | BN59: 0 | BO59: 1 | BP59: 0
A60: 56 | C60: 0.3235800344 | D60: 0 | E60: 2451 | F60: 8312451 | G60: Cherry Tree Hill Primary School | H60: Primary | I60: Recoupment Academy | J60: 1 | K60: 0 | L60: 0 | M60: 7 | N60: 0 | O60: 0 | P60: 0 | Q60: 583 | R60: 583 | S60: 85 | T60: 498 | U60: 0 | V60: 0 | W60: 0 | X60: 0 | Y60: 0 | Z60: 0 | AA60: 0 | AB60: 0 | AC60: 0 | AD60: 583 | AE60: 83.28571429 | AF60: 199 | AG60: 209 | AH60: 0 | AI60: 0 | AJ60: 270.4639175 | AK60: 43.07388316 | AL60: 141.242268 | AM60: 49.08419244 | AN60: 50.08591065 | AO60: 11.01890034 | AP60: 18.03092784 | AQ60: 0 | AR60: 0 | AS60: 0 | AT60: 0 | AU60: 0 | AV60: 0 | AW60: 0 | AX60: 17.56024096 | AY60: 0 | AZ60: 98.53482701 | BA60: 115.3530204 | BB60: 0 | BC60: 0 | BD60: 0 | BE60: 0 | BF60: 0 | BG60: 0 | BH60: 0 | BI60: 0 | BJ60: 0.566 | BK60: 0 | BL60: 0 | BM60: 0 | BN60: 0 | BO60: 1 | BP60: 0
A61: 57 | C61: 0.2540716612 | D61: 0 | E61: 2455 | F61: 8312455 | G61: Chellaston Infant School | H61: Primary | I61: Recoupment Academy | J61: 1 | K61: 0 | L61: 0 | M61: 3 | N61: 0 | O61: 0 | P61: 0 | Q61: 284 | R61: 284 | S61: 89 | T61: 195 | U61: 0 | V61: 0 | W61: 0 | X61: 0 | Y61: 0 | Z61: 0 | AA61: 0 | AB61: 0 | AC61: 0 | AD61: 284 | AE61: 94.66666667 | AF61: 69 | AG61: 69 | AH61: 0 | AI61: 0 | AJ61: 231.8162544 | AK61: 40.14134276 | AL61: 1.003533569 | AM61: 0 | AN61: 2.007067138 | AO61: 6.021201413 | AP61: 3.010600707 | AQ61: 0 | AR61: 0 | AS61: 0 | AT61: 0 | AU61: 0 | AV61: 0 | AW61: 0 | AX61: 26.21538462 | AY61: 0 | AZ61: 65.95998408 | BA61: 96.06479732 | BB61: 0 | BC61: 0 | BD61: 0 | BE61: 0 | BF61: 0 | BG61: 0 | BH61: 0 | BI61: 0 | BJ61: 1.193 | BK61: 0 | BL61: 0 | BM61: 0 | BN61: 0 | BO61: 1 | BP61: 0
A62: 58 | C62: 0.178343949 | D62: 0 | E62: 2456 | F62: 8312456 | G62: Carlyle Infant and Nursery Academy | H62: Primary | I62: Recoupment Academy | J62: 1 | K62: 0 | L62: 0 | M62: 3 | N62: 0 | O62: 0 | P62: 0 | Q62: 125 | R62: 125 | S62: 31 | T62: 94 | U62: 0 | V62: 0 | W62: 0 | X62: 0 | Y62: 0 | Z62: 0 | AA62: 0 | AB62: 0 | AC62: 0 | AD62: 125 | AE62: 41.66666667 | AF62: 18 | AG62: 19 | AH62: 0 | AI62: 0 | AJ62: 105 | AK62: 4 | AL62: 6 | AM62: 5 | AN62: 2 | AO62: 2 | AP62: 1 | AQ62: 0 | AR62: 0 | AS62: 0 | AT62: 0 | AU62: 0 | AV62: 0 | AW62: 0 | AX62: 54.5212766 | AY62: 0 | AZ62: 30.2937628 | BA62: 40.28425905 | BB62: 0 | BC62: 0 | BD62: 0 | BE62: 0 | BF62: 0 | BG62: 0 | BH62: 0 | BI62: 0 | BJ62: 0.912 | BK62: 0 | BL62: 0 | BM62: 0 | BN62: 0 | BO62: 1 | BP62: 0
A63: 59 | C63: 0.28125 | D63: 0 | E63: 2463 | F63: 8312463 | G63: Ravensdale Junior School | H63: Primary | I63: Recoupment Academy | J63: 1 | K63: 0 | L63: 0 | M63: 4 | N63: 0 | O63: 0 | P63: 0 | Q63: 358 | R63: 358 | S63: 0 | T63: 358 | U63: 0 | V63: 0 | W63: 0 | X63: 0 | Y63: 0 | Z63: 0 | AA63: 0 | AB63: 0 | AC63: 0 | AD63: 358 | AE63: 89.5 | AF63: 100 | AG63: 105 | AH63: 0 | AI63: 0 | AJ63: 264.4775281 | AK63: 40.2247191 | AL63: 25.14044944 | AM63: 12.06741573 | AN63: 8.04494382 | AO63: 1.005617978 | AP63: 7.039325843 | AQ63: 0 | AR63: 0 | AS63: 0 | AT63: 0 | AU63: 0 | AV63: 0 | AW63: 0 | AX63: 26 | AY63: 0 | AZ63: 101.1103794 | BA63: 101.1103794 | BB63: 0 | BC63: 0 | BD63: 0 | BE63: 0 | BF63: 0 | BG63: 0 | BH63: 0 | BI63: 0 | BJ63: 0.828 | BK63: 0 | BL63: 0 | BM63: 0 | BN63: 0 | BO63: 1 | BP63: 0
A64: 60 | C64: 0.3088235294 | D64: 0 | E64: 2464 | F64: 8312464 | G64: Asterdale Primary School | H64: Primary | I64: Recoupment Academy | J64: 1 | K64: 0 | L64: 0 | M64: 7 | N64: 0 | O64: 0 | P64: 0 | Q64: 197 | R64: 197 | S64: 26 | T64: 171 | U64: 0 | V64: 0 | W64: 0 | X64: 0 | Y64: 0 | Z64: 0 | AA64: 0 | AB64: 0 | AC64: 0 | AD64: 197 | AE64: 28.14285714 | AF64: 55 | AG64: 55 | AH64: 0 | AI64: 0 | AJ64: 40.41025641 | AK64: 42.43076923 | AL64: 68.6974359 | AM64: 2.020512821 | AN64: 42.43076923 | AO64: 0 | AP64: 1.01025641 | AQ64: 0 | AR64: 0 | AS64: 0 | AT64: 0 | AU64: 0 | AV64: 0 | AW64: 0 | AX64: 6.912280702 | AY64: 0 | AZ64: 43 | BA64: 49.5380117 | BB64: 0 | BC64: 0 | BD64: 0 | BE64: 0 | BF64: 0 | BG64: 0 | BH64: 0 | BI64: 0 | BJ64: 0.921 | BK64: 0 | BL64: 0 | BM64: 0 | BN64: 0 | BO64: 1 | BP64: 0
A65: 61 | C65: 0.2711370262 | D65: 0 | E65: 2466 | F65: 8312466 | G65: Springfield Primary School | H65: Primary | I65: Recoupment Academy | J65: 1 | K65: 0 | L65: 0 | M65: 7 | N65: 0 | O65: 0 | P65: 0 | Q65: 342 | R65: 342 | S65: 42 | T65: 300 | U65: 0 | V65: 0 | W65: 0 | X65: 0 | Y65: 0 | Z65: 0 | AA65: 0 | AB65: 0 | AC65: 0 | AD65: 342 | AE65: 48.85714286 | AF65: 90 | AG65: 95 | AH65: 0 | AI65: 0 | AJ65: 175 | AK65: 73 | AL65: 37 | AM65: 5 | AN65: 36 | AO65: 6 | AP65: 10 | AQ65: 0 | AR65: 0 | AS65: 0 | AT65: 0 | AU65: 0 | AV65: 0 | AW65: 0 | AX65: 12.54 | AY65: 0 | AZ65: 107.8398846 | BA65: 122.9374684 | BB65: 0 | BC65: 0 | BD65: 0 | BE65: 0 | BF65: 0 | BG65: 0 | BH65: 0 | BI65: 0 | BJ65: 0.162 | BK65: 0 | BL65: 0 | BM65: 0 | BN65: 0 | BO65: 1 | BP65: 0
A66: 62 | C66: 0.3728222997 | D66: 0 | E66: 2467 | F66: 8312467 | G66: Chaddesden Park Primary School | H66: Primary | I66: Recoupment Academy | J66: 1 | K66: 0 | L66: 0 | M66: 7 | N66: 0 | O66: 0 | P66: 0 | Q66: 275 | R66: 275 | S66: 25 | T66: 250 | U66: 0 | V66: 0 | W66: 0 | X66: 0 | Y66: 0 | Z66: 0 | AA66: 0 | AB66: 0 | AC66: 0 | AD66: 275 | AE66: 39.28571429 | AF66: 104 | AG66: 108 | AH66: 0 | AI66: 0 | AJ66: 103 | AK66: 19 | AL66: 52 | AM66: 84 | AN66: 3 | AO66: 9 | AP66: 5 | AQ66: 0 | AR66: 0 | AS66: 0 | AT66: 0 | AU66: 0 | AV66: 0 | AW66: 0 | AX66: 8.8 | AY66: 0 | AZ66: 65.47381048 | BA66: 72.02119152 | BB66: 0 | BC66: 0 | BD66: 0 | BE66: 0 | BF66: 0 | BG66: 0 | BH66: 0 | BI66: 0 | BJ66: 0.559 | BK66: 0 | BL66: 0 | BM66: 0 | BN66: 0 | BO66: 1 | BP66: 0
A67: 63 | C67: 0.4770114943 | D67: 0 | E67: 2471 | F67: 8312471 | G67: Oakwood Junior School | H67: Primary | I67: Recoupment Academy | J67: 1 | K67: 0 | L67: 0 | M67: 4 | N67: 0 | O67: 0 | P67: 0 | Q67: 349 | R67: 349 | S67: 0 | T67: 349 | U67: 0 | V67: 0 | W67: 0 | X67: 0 | Y67: 0 | Z67: 0 | AA67: 0 | AB67: 0 | AC67: 0 | AD67: 349 | AE67: 87.25 | AF67: 153 | AG67: 165 | AH67: 0 | AI67: 0 | AJ67: 152 | AK67: 12 | AL67: 81 | AM67: 0 | AN67: 22 | AO67: 24 | AP67: 58 | AQ67: 0 | AR67: 0 | AS67: 0 | AT67: 0 | AU67: 0 | AV67: 0 | AW67: 0 | AX67: 13 | AY67: 0 | AZ67: 103.5501121 | BA67: 103.5501121 | BB67: 0 | BC67: 0 | BD67: 0 | BE67: 0 | BF67: 0 | BG67: 0 | BH67: 0 | BI67: 0 | BJ67: 0.779 | BK67: 0 | BL67: 0 | BM67: 0 | BN67: 0 | BO67: 1 | BP67: 0
A68: 64 | C68: 0.4478527607 | D68: 0 | E68: 2509 | F68: 8312509 | G68: Ash Croft Primary Academy | H68: Primary | I68: Recoupment Academy | J68: 1 | K68: 0 | L68: 0 | M68: 7 | N68: 0 | O68: 0 | P68: 0 | Q68: 152 | R68: 152 | S68: 16 | T68: 136 | U68: 0 | V68: 0 | W68: 0 | X68: 0 | Y68: 0 | Z68: 0 | AA68: 0 | AB68: 0 | AC68: 0 | AD68: 152 | AE68: 21.71428571 | AF68: 82 | AG68: 82 | AH68: 0 | AI68: 0 | AJ68: 83 | AK68: 0 | AL68: 24 | AM68: 3 | AN68: 20 | AO68: 21 | AP68: 1 | AQ68: 0 | AR68: 0 | AS68: 0 | AT68: 0 | AU68: 0 | AV68: 0 | AW68: 0 | AX68: 43.58823529 | AY68: 0 | AZ68: 48.832 | BA68: 54.57694118 | BB68: 0 | BC68: 0 | BD68: 0 | BE68: 0 | BF68: 0 | BG68: 0 | BH68: 15.88 | BI68: 0 | BJ68: 0.779 | BK68: 0 | BL68: 0 | BM68: 0 | BN68: 0 | BO68: 1 | BP68: 0
A69: 65 | C69: 0.1168224299 | D69: 0 | E69: 2512 | F69: 8312512 | G69: Brookfield Primary School | H69: Primary | I69: Recoupment Academy | J69: 1 | K69: 0 | L69: 0 | M69: 7 | N69: 0 | O69: 0 | P69: 0 | Q69: 217 | R69: 217 | S69: 30 | T69: 187 | U69: 0 | V69: 0 | W69: 0 | X69: 0 | Y69: 0 | Z69: 0 | AA69: 0 | AB69: 0 | AC69: 0 | AD69: 217 | AE69: 31 | AF69: 27 | AG69: 28 | AH69: 0 | AI69: 0 | AJ69: 159.4697674 | AK69: 52.48372093 | AL69: 4.037209302 | AM69: 0 | AN69: 0 | AO69: 1.009302326 | AP69: 0 | AQ69: 0 | AR69: 0 | AS69: 0 | AT69: 0 | AU69: 0 | AV69: 0 | AW69: 0 | AX69: 32.49197861 | AY69: 0 | AZ69: 48.52853261 | BA69: 56.3138587 | BB69: 0 | BC69: 0 | BD69: 0 | BE69: 0 | BF69: 0 | BG69: 0 | BH69: 0 | BI69: 0 | BJ69: 1.043 | BK69: 0 | BL69: 0 | BM69: 0 | BN69: 0 | BO69: 1 | BP69: 0
A70: 66 | C70: 0.07511737089 | D70: 0 | E70: 2522 | F70: 8312522 | G70: Lawn Primary School | H70: Primary | I70: Recoupment Academy | J70: 1 | K70: 0 | L70: 0 | M70: 7 | N70: 0 | O70: 0 | P70: 0 | Q70: 425 | R70: 425 | S70: 60 | T70: 365 | U70: 0 | V70: 0 | W70: 0 | X70: 0 | Y70: 0 | Z70: 0 | AA70: 0 | AB70: 0 | AC70: 0 | AD70: 425 | AE70: 60.71428571 | AF70: 32 | AG70: 36 | AH70: 0 | AI70: 0 | AJ70: 374 | AK70: 29 | AL70: 8 | AM70: 4 | AN70: 5 | AO70: 2 | AP70: 3 | AQ70: 0 | AR70: 0 | AS70: 0 | AT70: 0 | AU70: 0 | AV70: 0 | AW70: 0 | AX70: 11.64383562 | AY70: 0 | AZ70: 78.11663077 | BA70: 90.95772076 | BB70: 0 | BC70: 0 | BD70: 0 | BE70: 0 | BF70: 0 | BG70: 0 | BH70: 0 | BI70: 0 | BJ70: 0.92 | BK70: 0 | BL70: 0 | BM70: 0 | BN70: 0 | BO70: 1 | BP70: 0
A71: 67 | C71: 0.3980952381 | D71: 0 | E71: 2629 | F71: 8312629 | G71: Arboretum Primary School | H71: Primary | I71: Recoupment Academy | J71: 1 | K71: 0 | L71: 0 | M71: 7 | N71: 0 | O71: 0 | P71: 0 | Q71: 536 | R71: 536 | S71: 75 | T71: 461 | U71: 0 | V71: 0 | W71: 0 | X71: 0 | Y71: 0 | Z71: 0 | AA71: 0 | AB71: 0 | AC71: 0 | AD71: 536 | AE71: 76.57142857 | AF71: 214 | AG71: 218 | AH71: 0 | AI71: 0 | AJ71: 26 | AK71: 52 | AL71: 26 | AM71: 251 | AN71: 165 | AO71: 10 | AP71: 6 | AQ71: 0 | AR71: 0 | AS71: 0 | AT71: 0 | AU71: 0 | AV71: 0 | AW71: 0 | AX71: 210.4468547 | AY71: 0 | AZ71: 175.748205 | BA71: 204.3406462 | BB71: 0 | BC71: 0 | BD71: 0 | BE71: 0 | BF71: 0 | BG71: 0 | BH71: 0 | BI71: 0 | BJ71: 0.383 | BK71: 0 | BL71: 0 | BM71: 0 | BN71: 0 | BO71: 1 | BP71: 0
A72: 68 | C72: 0.4693877551 | D72: 0 | E72: 3158 | F72: 8313158 | G72: Derby St Chad's CofE Nursery and Infant School | H72: Primary | I72: Recoupment Academy | J72: 1 | K72: 0 | L72: 0 | M72: 3 | N72: 0 | O72: 0 | P72: 0 | Q72: 102 | R72: 102 | S72: 32 | T72: 70 | U72: 0 | V72: 0 | W72: 0 | X72: 0 | Y72: 0 | Z72: 0 | AA72: 0 | AB72: 0 | AC72: 0 | AD72: 102 | AE72: 34 | AF72: 55 | AG72: 56 | AH72: 0 | AI72: 0 | AJ72: 5 | AK72: 1 | AL72: 23 | AM72: 45 | AN72: 26 | AO72: 1 | AP72: 1 | AQ72: 0 | AR72: 0 | AS72: 0 | AT72: 0 | AU72: 0 | AV72: 0 | AW72: 0 | AX72: 96.17142857 | AY72: 0 | AZ72: 25.13234439 | BA72: 36.62141611 | BB72: 0 | BC72: 0 | BD72: 0 | BE72: 0 | BF72: 0 | BG72: 0 | BH72: 0 | BI72: 0 | BJ72: 0.259 | BK72: 0 | BL72: 0 | BM72: 0 | BN72: 0 | BO72: 1 | BP72: 0
A73: 69 | C73: 0.286163522 | D73: 0 | E73: 3528 | F73: 8313528 | G73: St Mary's Catholic Voluntary Academy | H73: Primary | I73: Recoupment Academy | J73: 1 | K73: 0 | L73: 0 | M73: 7 | N73: 0 | O73: 0 | P73: 0 | Q73: 329 | R73: 329 | S73: 36 | T73: 293 | U73: 0 | V73: 0 | W73: 0 | X73: 0 | Y73: 0 | Z73: 0 | AA73: 0 | AB73: 0 | AC73: 0 | AD73: 329 | AE73: 47 | AF73: 95 | AG73: 101 | AH73: 0 | AI73: 0 | AJ73: 128 | AK73: 86 | AL73: 37 | AM73: 20 | AN73: 21 | AO73: 10 | AP73: 27 | AQ73: 0 | AR73: 0 | AS73: 0 | AT73: 0 | AU73: 0 | AV73: 0 | AW73: 0 | AX73: 77.74315068 | AY73: 0 | AZ73: 110.3706767 | BA73: 123.9315789 | BB73: 0 | BC73: 0 | BD73: 0 | BE73: 0 | BF73: 0 | BG73: 0 | BH73: 17.26 | BI73: 0 | BJ73: 0.747 | BK73: 0 | BL73: 0 | BM73: 0 | BN73: 0 | BO73: 1 | BP73: 0
A74: 70 | C74: 0.05035971223 | D74: 0 | E74: 3530 | F74: 8313530 | G74: Walter Evans Church of England Aided Primary School | H74: Primary | I74: Recoupment Academy | J74: 1 | K74: 0 | L74: 0 | M74: 7 | N74: 0 | O74: 0 | P74: 0 | Q74: 415 | R74: 415 | S74: 58 | T74: 357 | U74: 0 | V74: 0 | W74: 0 | X74: 0 | Y74: 0 | Z74: 0 | AA74: 0 | AB74: 0 | AC74: 0 | AD74: 415 | AE74: 59.28571429 | AF74: 19 | AG74: 21 | AH74: 0 | AI74: 0 | AJ74: 388 | AK74: 10 | AL74: 5 | AM74: 3 | AN74: 6 | AO74: 1 | AP74: 2 | AQ74: 0 | AR74: 0 | AS74: 0 | AT74: 0 | AU74: 0 | AV74: 0 | AW74: 0 | AX74: 6.974789916 | AY74: 0 | AZ74: 48.81428571 | BA74: 56.74489796 | BB74: 0 | BC74: 0 | BD74: 0 | BE74: 0 | BF74: 0 | BG74: 0 | BH74: 0 | BI74: 0 | BJ74: 1.052 | BK74: 0 | BL74: 0 | BM74: 0 | BN74: 0 | BO74: 1 | BP74: 0
A75: 71 | C75: 0.2307692308 | D75: 0 | E75: 3531 | F75: 8313531 | G75: St George's Catholic Voluntary Academy | H75: Primary | I75: Recoupment Academy | J75: 1 | K75: 0 | L75: 0 | M75: 7 | N75: 0 | O75: 0 | P75: 0 | Q75: 323 | R75: 323 | S75: 38 | T75: 285 | U75: 0 | V75: 0 | W75: 0 | X75: 0 | Y75: 0 | Z75: 0 | AA75: 0 | AB75: 0 | AC75: 0 | AD75: 323 | AE75: 46.14285714 | AF75: 80 | AG75: 80 | AH75: 0 | AI75: 0 | AJ75: 193 | AK75: 2 | AL75: 48 | AM75: 11 | AN75: 19 | AO75: 45 | AP75: 5 | AQ75: 0 | AR75: 0 | AS75: 0 | AT75: 0 | AU75: 0 | AV75: 0 | AW75: 0 | AX75: 75.93333333 | AY75: 0 | AZ75: 72.94880785 | BA75: 82.67531557 | BB75: 0 | BC75: 0 | BD75: 0 | BE75: 0 | BF75: 0 | BG75: 0 | BH75: 0 | BI75: 0 | BJ75: 0.654 | BK75: 0 | BL75: 0 | BM75: 0 | BN75: 0 | BO75: 1 | BP75: 0
A76: 72 | C76: 0.1378205128 | D76: 0 | E76: 3532 | F76: 8313532 | G76: St Werburgh's CofE Primary School | H76: Primary | I76: Recoupment Academy | J76: 1 | K76: 0 | L76: 0 | M76: 7 | N76: 0 | O76: 0 | P76: 0 | Q76: 300 | R76: 300 | S76: 31 | T76: 269 | U76: 0 | V76: 0 | W76: 0 | X76: 0 | Y76: 0 | Z76: 0 | AA76: 0 | AB76: 0 | AC76: 0 | AD76: 300 | AE76: 42.85714286 | AF76: 47 | AG76: 50 | AH76: 0 | AI76: 0 | AJ76: 210 | AK76: 53 | AL76: 14 | AM76: 5 | AN76: 12 | AO76: 4 | AP76: 2 | AQ76: 0 | AR76: 0 | AS76: 0 | AT76: 0 | AU76: 0 | AV76: 0 | AW76: 0 | AX76: 3.345724907 | AY76: 0 | AZ76: 63.46536797 | BA76: 70.77922078 | BB76: 0 | BC76: 0 | BD76: 0 | BE76: 0 | BF76: 0 | BG76: 0 | BH76: 0 | BI76: 0 | BJ76: 0.658 | BK76: 0 | BL76: 0 | BM76: 0 | BN76: 0 | BO76: 1 | BP76: 0
A77: 73 | C77: 0.5053380783 | D77: 0 | E77: 3535 | F77: 8313535 | G77: St James' Church of England Aided Junior School | H77: Primary | I77: Recoupment Academy | J77: 1 | K77: 0 | L77: 0 | M77: 4 | N77: 0 | O77: 0 | P77: 0 | Q77: 287 | R77: 287 | S77: 0 | T77: 287 | U77: 0 | V77: 0 | W77: 0 | X77: 0 | Y77: 0 | Z77: 0 | AA77: 0 | AB77: 0 | AC77: 0 | AD77: 287 | AE77: 71.75 | AF77: 167 | AG77: 168 | AH77: 0 | AI77: 0 | AJ77: 6 | AK77: 52 | AL77: 35 | AM77: 102 | AN77: 53 | AO77: 6 | AP77: 33 | AQ77: 0 | AR77: 0 | AS77: 0 | AT77: 0 | AU77: 0 | AV77: 0 | AW77: 0 | AX77: 87.3041958 | AY77: 0 | AZ77: 111.7597458 | BA77: 111.7597458 | BB77: 0 | BC77: 0 | BD77: 0 | BE77: 0 | BF77: 0 | BG77: 0 | BH77: 2.78 | BI77: 0 | BJ77: 0.512 | BK77: 0 | BL77: 0 | BM77: 0 | BN77: 0 | BO77: 1 | BP77: 0
A78: 74 | C78: 0.2245989305 | D78: 0 | E78: 3542 | F78: 8313542 | G78: St Joseph's Catholic Voluntary Academy | H78: Primary | I78: Recoupment Academy | J78: 1 | K78: 0 | L78: 0 | M78: 7 | N78: 0 | O78: 0 | P78: 0 | Q78: 373 | R78: 373 | S78: 50 | T78: 323 | U78: 0 | V78: 0 | W78: 0 | X78: 0 | Y78: 0 | Z78: 0 | AA78: 0 | AB78: 0 | AC78: 0 | AD78: 373 | AE78: 53.28571429 | AF78: 72 | AG78: 76 | AH78: 0 | AI78: 0 | AJ78: 92 | AK78: 28 | AL78: 103 | AM78: 42 | AN78: 51 | AO78: 34 | AP78: 23 | AQ78: 0 | AR78: 0 | AS78: 0 | AT78: 0 | AU78: 0 | AV78: 0 | AW78: 0 | AX78: 127.0278638 | AY78: 0 | AZ78: 67.60886644 | BA78: 78.07463524 | BB78: 0 | BC78: 0 | BD78: 0 | BE78: 0 | BF78: 0 | BG78: 0 | BH78: 0 | BI78: 0 | BJ78: 0.397 | BK78: 0 | BL78: 0 | BM78: 0 | BN78: 0 | BO78: 1 | BP78: 0
A79: 75 | C79: 0.1485148515 | D79: 0 | E79: 3543 | F79: 8313543 | G79: St Alban's Catholic Voluntary Academy | H79: Primary | I79: Recoupment Academy | J79: 1 | K79: 0 | L79: 0 | M79: 7 | N79: 0 | O79: 0 | P79: 0 | Q79: 301 | R79: 301 | S79: 42 | T79: 259 | U79: 0 | V79: 0 | W79: 0 | X79: 0 | Y79: 0 | Z79: 0 | AA79: 0 | AB79: 0 | AC79: 0 | AD79: 301 | AE79: 43 | AF79: 41 | AG79: 44 | AH79: 0 | AI79: 0 | AJ79: 149 | AK79: 56 | AL79: 28 | AM79: 21 | AN79: 7 | AO79: 22 | AP79: 18 | AQ79: 0 | AR79: 0 | AS79: 0 | AT79: 0 | AU79: 0 | AV79: 0 | AW79: 0 | AX79: 27.89189189 | AY79: 0 | AZ79: 61.46458774 | BA79: 71.43181818 | BB79: 0 | BC79: 0 | BD79: 0 | BE79: 0 | BF79: 0 | BG79: 0 | BH79: 0 | BI79: 0 | BJ79: 0.758 | BK79: 0 | BL79: 0 | BM79: 0 | BN79: 0 | BO79: 1 | BP79: 0
A80: 76 | C80: 0.4703703704 | D80: 0 | E80: 3544 | F80: 8313544 | G80: Hardwick Primary School | H80: Primary | I80: Recoupment Academy | J80: 1 | K80: 0 | L80: 0 | M80: 7 | N80: 0 | O80: 0 | P80: 0 | Q80: 539 | R80: 539 | S80: 60 | T80: 479 | U80: 0 | V80: 0 | W80: 0 | X80: 0 | Y80: 0 | Z80: 0 | AA80: 0 | AB80: 0 | AC80: 0 | AD80: 539 | AE80: 77 | AF80: 276 | AG80: 281 | AH80: 0 | AI80: 0 | AJ80: 13 | AK80: 9 | AL80: 36 | AM80: 255 | AN80: 221 | AO80: 4 | AP80: 1 | AQ80: 0 | AR80: 0 | AS80: 0 | AT80: 0 | AU80: 0 | AV80: 0 | AW80: 0 | AX80: 252.0584551 | AY80: 0 | AZ80: 214.5140746 | BA80: 241.3843136 | BB80: 0 | BC80: 0 | BD80: 0 | BE80: 0 | BF80: 0 | BG80: 0 | BH80: 4.66 | BI80: 0 | BJ80: 0.357 | BK80: 0 | BL80: 0 | BM80: 0 | BN80: 0 | BO80: 1 | BP80: 0
A81: 77 | C81: 0.4674267101 | D81: 0 | E81: 3546 | F81: 8313546 | G81: Village Primary Academy | H81: Primary | I81: Recoupment Academy | J81: 1 | K81: 0 | L81: 0 | M81: 7 | N81: 0 | O81: 0 | P81: 0 | Q81: 605 | R81: 605 | S81: 90 | T81: 515 | U81: 0 | V81: 0 | W81: 0 | X81: 0 | Y81: 0 | Z81: 0 | AA81: 0 | AB81: 0 | AC81: 0 | AD81: 605 | AE81: 86.42857143 | AF81: 280 | AG81: 290 | AH81: 0 | AI81: 0 | AJ81: 139 | AK81: 4 | AL81: 137 | AM81: 140 | AN81: 23 | AO81: 154 | AP81: 8 | AQ81: 0 | AR81: 0 | AS81: 0 | AT81: 0 | AU81: 0 | AV81: 0 | AW81: 0 | AX81: 211.4563107 | AY81: 0 | AZ81: 197.1587751 | BA81: 231.6137067 | BB81: 0 | BC81: 0 | BD81: 0 | BE81: 0 | BF81: 0 | BG81: 0 | BH81: 0.7612582781 | BI81: 0 | BJ81: 0.547 | BK81: 0 | BL81: 0 | BM81: 0 | BN81: 0 | BO81: 1 | BP81: 0
A82: 78 | C82: 0.3187660668 | D82: 0 | E82: 4000 | F82: 8314000 | G82: Zaytouna Primary School | H82: Primary | I82: Recoupment Academy | J82: 1 | K82: 0 | L82: 0 | M82: 7 | N82: 0 | O82: 0 | P82: 0 | Q82: 420 | R82: 420 | S82: 60 | T82: 360 | U82: 0 | V82: 0 | W82: 0 | X82: 0 | Y82: 0 | Z82: 0 | AA82: 0 | AB82: 0 | AC82: 0 | AD82: 420 | AE82: 60 | AF82: 160 | AG82: 161 | AH82: 0 | AI82: 0 | AJ82: 81.19331742 | AK82: 53.12649165 | AL82: 79.18854415 | AM82: 81.19331742 | AN82: 67.15990453 | AO82: 31.07398568 | AP82: 27.06443914 | AQ82: 0 | AR82: 0 | AS82: 0 | AT82: 0 | AU82: 0 | AV82: 0 | AW82: 0 | AX82: 234.5 | AY82: 0 | AZ82: 99.74025974 | BA82: 116.3636364 | BB82: 0 | BC82: 0 | BD82: 0 | BE82: 0 | BF82: 0 | BG82: 0 | BH82: 28.8 | BI82: 0 | BJ82: 0.548 | BK82: 0 | BL82: 0 | BM82: 0 | BN82: 0 | BO82: 1 | BP82: 0
A83: 79 | C83: 0.2082018927 | D83: 0 | E83: 5201 | F83: 8315201 | G83: Borrow Wood Primary School | H83: Primary | I83: Recoupment Academy | J83: 1 | K83: 0 | L83: 0 | M83: 7 | N83: 0 | O83: 0 | P83: 0 | Q83: 288 | R83: 288 | S83: 26 | T83: 262 | U83: 0 | V83: 0 | W83: 0 | X83: 0 | Y83: 0 | Z83: 0 | AA83: 0 | AB83: 0 | AC83: 0 | AD83: 288 | AE83: 41.14285714 | AF83: 64 | AG83: 68 | AH83: 0 | AI83: 0 | AJ83: 204 | AK83: 28 | AL83: 19 | AM83: 0 | AN83: 37 | AO83: 0 | AP83: 0 | AQ83: 0 | AR83: 0 | AS83: 0 | AT83: 0 | AU83: 0 | AV83: 0 | AW83: 0 | AX83: 14.29007634 | AY83: 0 | AZ83: 58.22706117 | BA83: 64.00531915 | BB83: 0 | BC83: 0 | BD83: 0 | BE83: 0 | BF83: 0 | BG83: 0 | BH83: 4.72 | BI83: 0 | BJ83: 0.894 | BK83: 0 | BL83: 0 | BM83: 0 | BN83: 0 | BO83: 1 | BP83: 0
A84: 80 | C84: 0.2775590551 | D84: 0 | E84: 5203 | F84: 8315203 | G84: Chellaston Junior School | H84: Primary | I84: Recoupment Academy | J84: 1 | K84: 0 | L84: 0 | M84: 4 | N84: 0 | O84: 0 | P84: 0 | Q84: 508 | R84: 508 | S84: 0 | T84: 508 | U84: 0 | V84: 0 | W84: 0 | X84: 0 | Y84: 0 | Z84: 0 | AA84: 0 | AB84: 0 | AC84: 0 | AD84: 508 | AE84: 127 | AF84: 134 | AG84: 148 | AH84: 0 | AI84: 0 | AJ84: 394 | AK84: 93 | AL84: 4 | AM84: 1 | AN84: 1 | AO84: 10 | AP84: 5 | AQ84: 0 | AR84: 0 | AS84: 0 | AT84: 0 | AU84: 0 | AV84: 0 | AW84: 0 | AX84: 15 | AY84: 0 | AZ84: 121.2749686 | BA84: 121.2749686 | BB84: 0 | BC84: 0 | BD84: 0 | BE84: 0 | BF84: 0 | BG84: 0 | BH84: 0 | BI84: 0 | BJ84: 0.903 | BK84: 0 | BL84: 0 | BM84: 0 | BN84: 0 | BO84: 1 | BP84: 0
A85: 81 | B85: 8 | C85: 0 | D85: 0.40472879 | E85: 4004 | F85: 8314004 | G85: Derby Cathedral School | H85: Secondary | I85: Recoupment Academy | J85: 1 | K85: 0 | L85: 0 | M85: 0 | N85: 5 | O85: 3 | P85: 2 | Q85: 884 | R85: 0 | S85: 0 | T85: 0 | U85: 884 | V85: 536 | W85: 348 | X85: 179 | Y85: 180 | Z85: 177 | AA85: 179 | AB85: 169 | AC85: 0 | AD85: 884 | AE85: 176.8 | AF85: 0 | AG85: 0 | AH85: 313 | AI85: 368 | AJ85: 0 | AK85: 0 | AL85: 0 | AM85: 0 | AN85: 0 | AO85: 0 | AP85: 0 | AQ85: 187.211778 | AR85: 94.10645527 | AS85: 193.218573 | AT85: 81.09173273 | AU85: 120.1359003 | AV85: 110.1245753 | AW85: 98.11098528 | AX85: 0 | AY85: 25.08513053 | AZ85: 0 | BA85: 0 | BB85: 102.5730337 | BC85: 58.17073171 | BD85: 57.20121951 | BE85: 57.84756098 | BF85: 62.71069182 | BG85: 207.5193975 | BH85: 0 | BI85: 0 | BJ85: 0 | BK85: 1.555 | BL85: 0 | BM85: 0 | BN85: 0 | BO85: 0 | BP85: 1
A86: 82 | C86: 0 | D86: 0.4411214953 | E86: 4005 | F86: 8314005 | G86: Noel-Baker Academy | H86: Secondary | I86: Recoupment Academy | J86: 1 | K86: 0 | L86: 0 | M86: 0 | N86: 5 | O86: 3 | P86: 2 | Q86: 1123 | R86: 0 | S86: 0 | T86: 0 | U86: 1123 | V86: 775 | W86: 348 | X86: 275 | Y86: 276 | Z86: 224 | AA86: 141 | AB86: 207 | AC86: 0 | AD86: 1123 | AE86: 224.6 | AF86: 0 | AG86: 0 | AH86: 409 | AI86: 529 | AJ86: 0 | AK86: 0 | AL86: 0 | AM86: 0 | AN86: 0 | AO86: 0 | AP86: 0 | AQ86: 320 | AR86: 136 | AS86: 158 | AT86: 8 | AU86: 145 | AV86: 194 | AW86: 162 | AX86: 0 | AY86: 17.01515152 | AZ86: 0 | BA86: 0 | BB86: 124.3566176 | BC86: 118.5777778 | BD86: 96.23703704 | BE86: 60.57777778 | BF86: 94.185 | BG86: 305.3272432 | BH86: 0 | BI86: 0 | BJ86: 0 | BK86: 1.16 | BL86: 0 | BM86: 0 | BN86: 0 | BO86: 0 | BP86: 1
A87: 83 | C87: 0 | D87: 0.2985645933 | E87: 4006 | F87: 8314006 | G87: Lees Brook Academy | H87: Secondary | I87: Recoupment Academy | J87: 1 | K87: 0 | L87: 0 | M87: 0 | N87: 5 | O87: 3 | P87: 2 | Q87: 1038 | R87: 0 | S87: 0 | T87: 0 | U87: 1038 | V87: 618 | W87: 420 | X87: 217 | Y87: 194 | Z87: 207 | AA87: 213 | AB87: 207 | AC87: 0 | AD87: 1038 | AE87: 207.6 | AF87: 0 | AG87: 0 | AH87: 260 | AI87: 333 | AJ87: 0 | AK87: 0 | AL87: 0 | AM87: 0 | AN87: 0 | AO87: 0 | AP87: 0 | AQ87: 578.557377 | AR87: 158.1523626 | AS87: 100.096432 | AT87: 79.07618129 | AU87: 19.01832208 | AV87: 37.03567985 | AW87: 66.06364513 | AX87: 0 | AY87: 15.05802708 | AZ87: 0 | BA87: 0 | BB87: 96.21698113 | BC87: 66.86407767 | BD87: 71.34466019 | BE87: 73.41262136 | BF87: 82.31578947 | BG87: 241.3029106 | BH87: 0 | BI87: 0 | BJ87: 0 | BK87: 1.584 | BL87: 0 | BM87: 0 | BN87: 0 | BO87: 0 | BP87: 1
A88: 84 | C88: 0 | D88: 0.5688073394 | E88: 4007 | F88: 8314007 | G88: Da Vinci Academy | H88: Secondary | I88: Recoupment Academy | J88: 1 | K88: 0 | L88: 0 | M88: 0 | N88: 5 | O88: 3 | P88: 2 | Q88: 725.4166667 | R88: 0 | S88: 0 | T88: 0 | U88: 725.4166667 | V88: 443.4166667 | W88: 282 | X88: 150.4166667 | Y88: 149 | Z88: 144 | AA88: 148 | AB88: 134 | AC88: 0 | AD88: 725.4166667 | AE88: 145.0833333 | AF88: 0 | AG88: 0 | AH88: 337.2372425 | AI88: 393.2736423 | AJ88: 0 | AK88: 0 | AL88: 0 | AM88: 0 | AN88: 0 | AO88: 0 | AP88: 0 | AQ88: 95.7713015 | AR88: 172.184574 | AS88: 97.80898876 | AT88: 43.81027622 | AU88: 6.113061798 | AV88: 97.80898876 | AW88: 211.9194757 | AX88: 0 | AY88: 19.49493164 | AZ88: 0 | BA88: 0 | BB88: 79.16666667 | BC88: 75.53472222 | BD88: 73 | BE88: 75.02777778 | BF88: 71.1875 | BG88: 232.6450059 | BH88: 0 | BI88: 4.428000469 | BJ88: 0 | BK88: 1.469 | BL88: 0 | BM88: 0 | BN88: 0 | BO88: 0 | BP88: 1
A89: 85 | C89: 0 | D89: 0.4854771784 | E89: 4008 | F89: 8314008 | G89: City of Derby Academy | H89: Secondary | I89: Recoupment Academy | J89: 1 | K89: 0 | L89: 0 | M89: 0 | N89: 5 | O89: 3 | P89: 2 | Q89: 973.9166667 | R89: 0 | S89: 0 | T89: 0 | U89: 973.9166667 | V89: 613.9166667 | W89: 360 | X89: 212.9166667 | Y89: 204 | Z89: 197 | AA89: 177 | AB89: 183 | AC89: 0 | AD89: 973.9166667 | AE89: 194.7833333 | AF89: 0 | AG89: 0 | AH89: 431.3925484 | AI89: 485.9480463 | AJ89: 0 | AK89: 0 | AL89: 0 | AM89: 0 | AN89: 0 | AO89: 0 | AP89: 0 | AQ89: 222.7252252 | AR89: 39.48310811 | AS89: 145.7837838 | AT89: 160.9695946 | AU89: 187.2916667 | AV89: 191.3412162 | AW89: 26.32207207 | AX89: 0 | AY89: 90.2154386 | AZ89: 0 | BA89: 0 | BB89: 131.4434524 | BC89: 103.3783784 | BD89: 99.83108108 | BE89: 89.69594595 | BF89: 114.8235294 | BG89: 333.6110308 | BH89: 0 | BI89: 24.4945604 | BJ89: 0 | BK89: 2.246 | BL89: 0 | BM89: 0 | BN89: 0 | BO89: 0 | BP89: 1
A90: 86 | C90: 0 | D90: 0.4812030075 | E90: 4010 | F90: 8314010 | G90: UTC Derby Pride Park | H90: Secondary | I90: Recoupment Academy | J90: 1 | K90: 0 | L90: 0 | M90: 0 | N90: 3 | O90: 1 | P90: 2 | Q90: 212 | R90: 0 | S90: 0 | T90: 0 | U90: 212 | V90: 93 | W90: 119 | X90: 0 | Y90: 0 | Z90: 93 | AA90: 78 | AB90: 41 | AC90: 0 | AD90: 212 | AE90: 70.66666667 | AF90: 0 | AG90: 0 | AH90: 56 | AI90: 82 | AJ90: 0 | AK90: 0 | AL90: 0 | AM90: 0 | AN90: 0 | AO90: 0 | AP90: 0 | AQ90: 99 | AR90: 21 | AS90: 22 | AT90: 16 | AU90: 16 | AV90: 25 | AW90: 13 | AX90: 0 | AY90: 5.139393939 | AZ90: 0 | BA90: 0 | BB90: 0 | BC90: 0 | BD90: 47.1369863 | BE90: 39.53424658 | BF90: 17.26315789 | BG90: 66.90333181 | BH90: 0 | BI90: 6.28 | BJ90: 0 | BK90: 1.641 | BL90: 0.8222222222 | BM90: 0 | BN90: 0 | BO90: 0 | BP90: 1
A91: 87 | C91: 0 | D91: 0.6580188679 | E91: 4011 | F91: 8314011 | G91: Alvaston Moor Academy | H91: Secondary | I91: Recoupment Academy | J91: 1 | K91: 0 | L91: 0 | M91: 0 | N91: 5 | O91: 3 | P91: 2 | Q91: 873 | R91: 0 | S91: 0 | T91: 0 | U91: 873 | V91: 540 | W91: 333 | X91: 173 | Y91: 195 | Z91: 172 | AA91: 181 | AB91: 152 | AC91: 0 | AD91: 873 | AE91: 174.6 | AF91: 0 | AG91: 0 | AH91: 485 | AI91: 585 | AJ91: 0 | AK91: 0 | AL91: 0 | AM91: 0 | AN91: 0 | AO91: 0 | AP91: 0 | AQ91: 73.0837156 | AR91: 55.06307339 | AS91: 69.07912844 | AT91: 49.05619266 | AU91: 162.1857798 | AV91: 280.3211009 | AW91: 184.2110092 | AX91: 0 | AY91: 88.20206659 | AZ91: 0 | BA91: 0 | BB91: 119.0063694 | BC91: 110.0613497 | BD91: 97.0797546 | BE91: 102.1595092 | BF91: 81.22137405 | BG91: 316.0498813 | BH91: 0 | BI91: 33.81747417 | BJ91: 0 | BK91: 1.458 | BL91: 0 | BM91: 0 | BN91: 0 | BO91: 0 | BP91: 1
A92: 88 | C92: 0 | D92: 0.1591530055 | E92: 4012 | F92: 8314012 | G92: Chellaston Academy | H92: Secondary | I92: Recoupment Academy | J92: 1 | K92: 0 | L92: 0 | M92: 0 | N92: 5 | O92: 3 | P92: 2 | Q92: 1483 | R92: 0 | S92: 0 | T92: 0 | U92: 1483 | V92: 902 | W92: 581 | X92: 300 | Y92: 302 | Z92: 300 | AA92: 297 | AB92: 284 | AC92: 0 | AD92: 1483 | AE92: 296.6 | AF92: 0 | AG92: 0 | AH92: 213 | AI92: 244 | AJ92: 0 | AK92: 0 | AL92: 0 | AM92: 0 | AN92: 0 | AO92: 0 | AP92: 0 | AQ92: 1321.782579 | AR92: 136.1836597 | AS92: 6.008102633 | AT92: 1.001350439 | AU92: 5.006752194 | AV92: 10.01350439 | AW92: 3.004051317 | AX92: 0 | AY92: 9.024340771 | AZ92: 0 | BA92: 0 | BB92: 106.7114094 | BC92: 81.62162162 | BD92: 81.08108108 | BE92: 80.27027027 | BF92: 58.44043321 | BG92: 252.0681876 | BH92: 0 | BI92: 0 | BJ92: 0 | BK92: 2.868 | BL92: 0 | BM92: 0.78 | BN92: 0 | BO92: 0 | BP92: 1
A93: 89 | B93: 9 | C93: 0 | D93: 0.313655761 | E93: 4178 | F93: 8314178 | G93: Derby Moor Spencer Academy | H93: Secondary | I93: Recoupment Academy | J93: 1 | K93: 0 | L93: 0 | M93: 0 | N93: 5 | O93: 3 | P93: 2 | Q93: 1434 | R93: 0 | S93: 0 | T93: 0 | U93: 1434 | V93: 881 | W93: 553 | X93: 297 | Y93: 296 | Z93: 288 | AA93: 294 | AB93: 259 | AC93: 0 | AD93: 1434 | AE93: 286.8 | AF93: 0 | AG93: 0 | AH93: 395 | AI93: 451 | AJ93: 0 | AK93: 0 | AL93: 0 | AM93: 0 | AN93: 0 | AO93: 0 | AP93: 0 | AQ93: 585.4082345 | AR93: 7.004884857 | AS93: 243.1695743 | AT93: 252.1758548 | AU93: 207.1444522 | AV93: 131.0914166 | AW93: 8.005582694 | AX93: 0 | AY93: 40.02791347 | AZ93: 0 | BA93: 0 | BB93: 155.2264808 | BC93: 101.1245552 | BD93: 98.39145907 | BE93: 100.4412811 | BF93: 97.7966805 | BG93: 340.2892691 | BH93: 0 | BI93: 0 | BJ93: 0 | BK93: 1.795 | BL93: 0 | BM93: 0 | BN93: 0 | BO93: 0 | BP93: 1
A94: 90 | C94: 0 | D94: 0.2911813644 | E94: 4607 | F94: 8314607 | G94: Saint Benedict, A Catholic Voluntary Academy | H94: Secondary | I94: Recoupment Academy | J94: 1 | K94: 0 | L94: 0 | M94: 0 | N94: 5 | O94: 3 | P94: 2 | Q94: 1246.5 | R94: 0 | S94: 0 | T94: 0 | U94: 1246.5 | V94: 785.5 | W94: 461 | X94: 297.5 | Y94: 245 | Z94: 243 | AA94: 232 | AB94: 229 | AC94: 0 | AD94: 1246.5 | AE94: 249.3 | AF94: 0 | AG94: 0 | AH94: 315.2788945 | AI94: 367.4773869 | AJ94: 0 | AK94: 0 | AL94: 0 | AM94: 0 | AN94: 0 | AO94: 0 | AP94: 0 | AQ94: 353.9057789 | AR94: 139.8919598 | AS94: 198.3542714 | AT94: 104.3969849 | AU94: 134.6721106 | AV94: 199.3982412 | AW94: 115.8806533 | AX94: 0 | AY94: 30.32592282 | AZ94: 0 | BA94: 0 | BB94: 129.2932489 | BC94: 82.41935484 | BD94: 81.74654378 | BE94: 78.04608295 | BF94: 87.74766355 | BG94: 282.512484 | BH94: 0 | BI94: 0 | BJ94: 0 | BK94: 1.298 | BL94: 0 | BM94: 0 | BN94: 0 | BO94: 0 | BP94: 1
A95: 91 | C95: 0 | D95: 0.203601108 | E95: 5412 | F95: 8315412 | G95: West Park School | H95: Secondary | I95: Recoupment Academy | J95: 1 | K95: 0 | L95: 0 | M95: 0 | N95: 5 | O95: 3 | P95: 2 | Q95: 1484 | R95: 0 | S95: 0 | T95: 0 | U95: 1484 | V95: 895 | W95: 589 | X95: 300 | Y95: 294 | Z95: 301 | AA95: 300 | AB95: 289 | AC95: 0 | AD95: 1484 | AE95: 296.8 | AF95: 0 | AG95: 0 | AH95: 233 | AI95: 297 | AJ95: 0 | AK95: 0 | AL95: 0 | AM95: 0 | AN95: 0 | AO95: 0 | AP95: 0 | AQ95: 844 | AR95: 169 | AS95: 262 | AT95: 39 | AU95: 153 | AV95: 7 | AW95: 10 | AX95: 0 | AY95: 1.002702703 | AZ95: 0 | BA95: 0 | BB95: 101.3377926 | BC95: 102.3040541 | BD95: 104.7398649 | BE95: 104.3918919 | BF95: 92.64111498 | BG95: 315.0650017 | BH95: 0 | BI95: 0 | BJ95: 0 | BK95: 3.039 | BL95: 0 | BM95: 1 | BN95: 0 | BO95: 0 | BP95: 1
A96: 92 | C96: 0 | D96: 0.2126736111 | E96: 5414 | F96: 8315414 | G96: Allestree Woodlands School | H96: Secondary | I96: Recoupment Academy | J96: 1 | K96: 0 | L96: 0 | M96: 0 | N96: 5 | O96: 3 | P96: 2 | Q96: 1147 | R96: 0 | S96: 0 | T96: 0 | U96: 1147 | V96: 696 | W96: 451 | X96: 223 | Y96: 238 | Z96: 235 | AA96: 237 | AB96: 214 | AC96: 0 | AD96: 1147 | AE96: 229.4 | AF96: 0 | AG96: 0 | AH96: 184 | AI96: 225 | AJ96: 0 | AK96: 0 | AL96: 0 | AM96: 0 | AN96: 0 | AO96: 0 | AP96: 0 | AQ96: 792 | AR96: 154 | AS96: 64 | AT96: 13 | AU96: 61 | AV96: 23 | AW96: 40 | AX96: 0 | AY96: 12.0104712 | AZ96: 0 | BA96: 0 | BB96: 76.07009346 | BC96: 55.15879828 | BD96: 54.46351931 | BE96: 54.92703863 | BF96: 51.69082126 | BG96: 180.4817663 | BH96: 0 | BI96: 0 | BJ96: 0 | BK96: 1.604 | BL96: 0 | BM96: 0 | BN96: 0 | BO96: 0 | BP96: 1
A97: 93 | C97: 0 | D97: 0.2980561555 | E97: 6905 | F97: 8316905 | G97: Landau Forte College | H97: Secondary | I97: Recoupment Academy | J97: 1 | K97: 0 | L97: 0 | M97: 0 | N97: 5 | O97: 3 | P97: 2 | Q97: 1020.75 | R97: 0 | S97: 0 | T97: 0 | U97: 1020.75 | V97: 659.75 | W97: 361 | X97: 226.75 | Y97: 235 | Z97: 198 | AA97: 195 | AB97: 166 | AC97: 0 | AD97: 1020.75 | AE97: 204.15 | AF97: 0 | AG97: 0 | AH97: 221.3795388 | AI97: 320.5495584 | AJ97: 0 | AK97: 0 | AL97: 0 | AM97: 0 | AN97: 0 | AO97: 0 | AP97: 0 | AQ97: 359.6165358 | AR97: 121.2078018 | AS97: 143.2455839 | AT97: 138.2369971 | AU97: 114.1957802 | AV97: 89.15284593 | AW97: 55.09445535 | AX97: 0 | AY97: 10.03687316 | AZ97: 0 | BA97: 0 | BB97: 74.09547244 | BC97: 55.29411765 | BD97: 46.58823529 | BE97: 45.88235294 | BF97: 38 | BG97: 159.8701685 | BH97: 0 | BI97: 0 | BJ97: 0 | BK97: 1.089 | BL97: 0 | BM97: 0 | BN97: 0 | BO97: 0 | BP97: 1
E98: 0124 | F98: 8310124 | G98: Oak Grange Primary School | H98: Primary | I98: Recoupment Academy | J98: 1 | K98: 0 | L98: 0 | M98: 1 | N98: 0 | O98: 0 | P98: 0 | Q98: 26.25 | R98: 26.25 | S98: 26.25 | T98: 0 | U98: 0 | V98: 0 | W98: 0 | X98: 0 | Y98: 0 | Z98: 0 | AA98: 0 | AB98: 0 | AC98: 0 | AD98: 26.25 | AE98: 45 | AF98: 8.398346736 | AG98: 8.855328504 | AH98: 0 | AI98: 0 | AJ98: 16.57322987 | AK98: 2.455960447 | AL98: 3.092896426 | AM98: 0.01291830709 | AN98: 0.8783837528 | AO98: 1.12501215 | AP98: 2.111599043 | AQ98: 0 | AR98: 0 | AS98: 0 | AT98: 0 | AU98: 0 | AV98: 0 | AW98: 0 | AX98: 1.816051085 | AY98: 0 | AZ98: 0 | BA98: 0 | BB98: 0 | BC98: 0 | BD98: 0 | BE98: 0 | BF98: 0 | BG98: 0 | BH98: 0 | BI98: 0 | BJ98: 0.90225 | BK98: 0 | BL98: 0 | BM98: 0 | BN98: 0 | BO98: 1 | BP98: 0

Sheet APT Proforma (hidden)
C8: Local Authority Funding Reform Proforma
C10: LA Name: | D10: Derby
C11: LA Number: | D11: 831
D13: Primary minimum per pupil funding level | E13: Secondary (KS3 only) minimum per pupil funding level | G13: Secondary (KS4 only) minimum per pupil funding level | I13: Secondary minimum per pupil funding level | L13: Disapplication number where alternative MPPF values are used
D14: 4405 | E14: 5503 | G14: 6033 | I14: 5715
C16: Pupil Led Factors
C17: 1) Basic Entitlement Age Weighted Pupil Unit (AWPU) | D17: Reception uplift | E17: No | F17: Pupil Units | H17: 0 | O17: TRUE
D18: Description | E18: Amount per pupil | G18: Pupil Units | I18: Sub Total | J18: Total | K18: Proportion of total pre MFG funding (%) | L18: Notional SEN (%)
D19: Primary (Years R-6) | E19: 3394 | G19: 23274.41667 | I19: 78993370.17 | J19: =SUM(I19:I21) -> 165162219.7 | K19: 0.3450008072 | L19: 0.12
D20: Key Stage 3 (Years 7-9) | E20: 4785 | G20: 10593.16667 | I20: 50688302.5 | K20: 0.2213794049 | L20: 0.097
D21: Key Stage 4 (Years 10-11) | E21: 5393 | G21: 6579 | I21: 35480547 | K21: 0.1549600597 | L21: 0.0863
D22: Description | E22: Primary amount per pupil | F22: Secondary amount per pupil | G22: Eligible proportion of primary NOR | H22: Eligible proportion of secondary NOR | I22: Sub Total | J22: Total | K22: Proportion of total pre MFG funding (%) | L22: Primary Notional SEN (%) | M22: Secondary Notional SEN (%) | O22: TRUE
C23: 2) Deprivation | D23: FSM | E23: 480 | F23: 480 | G23: 7877.73168 | H23: 4822.992754 | I23: 6096347.729 | J23: =SUM(I23:I30) -> 28991386.96 | K23: 0.126618878 | L23: 0.3525 | M23: 0.3525
D24: FSM6 | E24: 705 | F24: 1030 | G24: 8188.188662 | H24: 5834.623139 | I24: 11782334.84 | L24: 0.3525 | M24: 0.3525
D25: IDACI Band F | E25: 230 | F25: 335 | G25: 2738.8912 | H25: 1950.528806 | I25: 1283372.126 | L25: 0.3525 | M25: 0.3525
D26: IDACI Band E | E26: 280 | F26: 445 | G26: 2983.575268 | H26: 2034.713524 | I26: 1740848.593 | L26: 0.3525 | M26: 0.3525
D27: IDACI Band D | E27: 440 | F27: 620 | G27: 2002.127677 | H27: 1389.317631 | I27: 1742313.109 | L27: 0.3525 | M27: 0.3525
D28: IDACI Band C | E28: 480 | F28: 680 | G28: 2366.998253 | H28: 1644.371355 | I28: 2254331.683 | L28: 0.3525 | M28: 0.3525
D29: IDACI Band B | E29: 510 | F29: 730 | G29: 2068.773899 | H29: 1482.623376 | I29: 2137389.753 | L29: 0.3525 | M29: 0.3525
D30: IDACI Band A | E30: 670 | F30: 930 | G30: 1427.981201 | H30: 1072.797551 | I30: 1954449.127 | L30: 0.3525 | M30: 0.3525
D31: Description | E31: Primary amount per pupil | F31: Secondary amount per pupil | G31: Eligible proportion of primary NOR | H31: Eligible proportion of secondary NOR | I31: Sub Total | J31: Total | K31: Proportion of total pre MFG funding (%) | L31: Primary Notional SEN (%) | M31: Secondary Notional SEN (%)
C32: 4) English as an Additional Language (EAL) | D32: EAL 3 Primary | E32: 580 | G32: 4368.440744 | I32: 2533695.631 | J32: 3916719.178 | K32: 0.01487477347 | L32: 0.4005
D33: EAL 3 Secondary | F33: 1565 | H33: 557.2639617 | I33: 872118.1001 | M33: 0.4005
C34: 5) Mobility | D34: Pupils starting school outside of normal entry dates | E34: 945 | F34: 1360 | G34: 348.7192426 | H34: 133.3571779 | I34: 510905.4462 | K34: 0.002231361834 | L34: 1 | M34: 1
D35: Description | E35: Weighting | F35: Amount per pupil (primary or secondary respectively) | G35: Percentage of eligible pupils | H35: Eligible proportion of primary and secondary NOR respectively | I35: Sub Total | J35: Total | K35: Proportion of total pre MFG funding (%) | L35: Primary Notional SEN (%) | M35: Secondary Notional SEN (%) | O35: FALSE
C36: 6) Low prior attainment | D36: Primary low prior attainment | F36: 1155 | G36: 0.3087188111 | H36: 7185.250243 | I36: 8298964.03 | J36: =SUM(I36:I41) -> 15703315.75 | K36: 0.06858368743 | L36: 0.3525
D37: Secondary low prior attainment (year 7) | E37: 0.54469374 | F37: 1750 | G37: 0.2507197225 | H37: 4231.058125 | I37: 7404351.718 | M37: 0.3525
D38: Secondary low prior attainment (year 8) | E38: 0.64527134 | G38: 0.2450773243
D39: Secondary low prior attainment (year 9) | E39: 0.64527134 | G39: 0.2452523453
D40: Secondary low prior attainment (year 10) | E40: 0.64527134 | G40: 0.2444825342
D41: Secondary low prior attainment (year 11) | E41: 0.63585523 | G41: 0.24617826
C45: Other Factors
O46: TRUE
C47: Factor | F47: Lump Sum per Primary School (£) | G47: Lump Sum per Secondary School (£) | H47: Lump Sum per Middle School (£) | I47: Lump Sum per All-through School (£) | J47: Total (£) | K47: Proportion of total pre MFG funding (%) | L47: Notional SEN (%)
C48: 7) Lump Sum | F48: 128000 | G48: 128000 | J48: 11466666.67 | K48: 0.05008026936
C49: 8) Sparsity factor | F49: 56300 | G49: 81900 | H49: 81900 | I49: 81900 | J49: 0 | K49: 0
C50: Rows 46 to 49 are populated with the NFF methodology, please leave this as is if you wish to follow the NFF. As per the Operational Guidance, the distance thresholds can be increased or the year group size thresholds decreased and the distance threshold taper is optional. An alternative method of allocation to the NFF’s average year group size taper can be chosen: the continuous taper (Tapered) or fixed sum (Fixed). Examples of each are provided in the Operational Guidance.
C51: Primary distance threshold (miles) | D51: 2 | E51: Primary pupil number average year group threshold | G51: 21.4 | H51: Apply primary distance taper | J51: Yes | K51: NFF, tapered or fixed sparsity primary lump sum? | L51: NFF
C52: Secondary distance threshold (miles) | D52: 3 | E52: Secondary pupil number average year group threshold | G52: 120 | H52: Apply secondary distance taper | J52: Yes | K52: NFF, tapered or fixed sparsity secondary lump sum? | L52: NFF
C53: Middle schools distance threshold (miles) | D53: 2 | E53: Middle school pupil number average year group threshold | G53: 69.2 | H53: Apply middle school distance taper | J53: Yes | K53: NFF, tapered or fixed sparsity middle school lump sum? | L53: NFF
C54: All-through schools distance threshold (miles) | D54: 2 | E54: All-through pupil number average year group threshold | G54: 62.5 | H54: Apply all-through distance taper | J54: Yes | K54: NFF, tapered or fixed sparsity all-through lump sum? | L54: NFF
C55: 9) Fringe Payments | J55: 0 | K55: 0 | N55: TRUE
C56: 10) Split Sites | J56: 0 | K56: 0
C57: 11) Rates | J57: 1485641.491 | K57: 0.00539373236
C58: 12) PFI funding | J58: 1234980 | K58: 0
C59: 13 ) Exceptional circumstances (can only be used with prior agreement of ESFA)
C60: Circumstance | J60: Total (£) | K60: Proportion of total pre MFG funding (%) | L60: Notional SEN (%)
C61: Additional lump sum for schools amalgamated during FY21-22 | J61: 0 | K61: 0 | L61: 0 | M61: 0
C62: Additional sparsity lump sum for small schools | J62: 0 | K62: 0
C63: Exceptional Circumstance3 | J63: 0 | K63: 0
C64: Exceptional Circumstance4 | J64: 0 | K64: 0
C65: Exceptional Circumstance5 | J65: 0 | K65: 0
C66: Exceptional Circumstance6 | J66: 0 | K66: 0
C67: Exceptional Circumstance7 | J67: 0 | K67: 0
C70: Total Funding for Schools Block Formula (excluding minimum per pupil funding level and MFG Funding Total) | J70: 227960929.7 | K70: 0
C73: 14) Additional funding to meet minimum per pupil funding level | J73: 1004824.922 | K73: 1
C74: Total Funding for Schools Block Formula (excluding MFG Funding Total) | J74: =SUM(J70:J73) -> 228965754.6 | K74: =SUM(K70:K73) -> 1
C77: 15) Minimum Funding Guarantee | H77: 0.005 | J77: 17265.56245
C78: Where a value less than 0.5% or greater than 2% has been entered please provide the disapplication reference number authorising the value
C79: Apply capping and scaling factors? (gains may be capped above a specific ceiling and/or scaled) | J79: Yes
C80: Capping Factor (%) | D80: 0.034 | E80: Scaling Factor (%) | G80: 1
C82: Total deduction if capping and scaling factors are applied | J82: -989720.3382
J83: Total (£) | K83: Proportion of Total funding(%) | L83: Notional SEN (%)
C84: MFG Net Total Funding (MFG + deduction from capping and scaling) | E84: (Please note that the total deducation for capping and scaling is greater than the total MFG) | J84: -972454.7758 | K84: -0.004261944646
C85: Total Funding for Schools Block Formula | J85: 227993299.9 | L85: 35087757.52
C88: High Needs threshold (only fill in if, exceptionally, a high needs threshold different from £6,000 has been approved)
C89: Additional funding from the high needs budget | J89: 0
C90: Growth fund (if applicable) | J90: 178311.14
C91: Falling rolls fund (if applicable) | J91: 0
C94: Other Adjustment to 21-22 Budget Shares | J94: 0
C95: Total Funding For Schools Block Formula (including growth and falling rolls funding) | J95: 228171611
C96: % Distributed through Basic Entitlement | J96: 0.7213402717
C97: % Pupil Led Funding | J97: 0.9336489725
C98: Primary: Secondary Ratio | J98: 1 : | K98: 1.300274199 | O98: FALSE
C101: 22-23 NFF NNDR allocation | J101: 1419029.641
C102: Total Funding For Schools Block Formula (including growth and falling rolls funding) after deduction of 22-23 NFF NNDR allocation | J102: 226752581.4

Sheet School Formula Budget 2023-24
B2: ‘The documents listed below may not be accessible for users using assistive technology. If you need to access any of these documents please contact schoolfinanceteam@derby.gov.uk.’
B6: Early Years, Schools and High Needs Block Formula Budgets 2023/24
L8: =VLOOKUP(B11,'School & Nursery Setting Lookup'!A:F,5,FALSE) -> 0
B9: To view the list of schools click on the ‘All Schools’ cell below. Using the dropdown menu arrow that appears to the right of the cell select your school from the dropdown list. The spreadsheet will then be populated with financial information relating to your school. | F9: DfE No or Ofsted ID | H9: Setting Type
B11: CLICK ON THE ARROW BUTTON TO SELECT YOUR SCHOOL FROM THE LIST | F11: =VLOOKUP(B11,'School & Nursery Setting Lookup'!A:E,3,FALSE) -> 12345 | H11: =VLOOKUP(B11,'School & Nursery Setting Lookup'!A:F,4,FALSE) -> 0
C13: Early Years Nursery Funding 2023/24
B16: 1. Base Rate(s) per hour, per provider type. | D16: Amount (£) | E16: May 2023 Term Hours | F16: Oct 2023 Term Hours | G16: Jan 2024 Term Hours | H16: Anticipated Total Budget (£) | L16: May 2023 Term Hours | M16: Oct 2023 Term Hours | N16: Jan 2024 Term Hours | P16: Anticipated ALL Schools Total Budget (£) | R16: Anticipated Total Budget (£) | S16: Variance | T16: May 2023 Term Hours | U16: Oct 2023 Term Hours | V16: Jan 2024 Term Hours
B17: M = Maintained Nursery at a School / Academy | C17: 4.7 | D17: per hour | E17: =IF($L$8=1,L17,0)+IF($L$8=6,T17) -> 0 | F17: =IF($L$8=1,M17,0)+IF($L$8=6,U17) -> 0 | G17: 0 | H17: =IF($H$11=6,Q17,R17) -> 0 | L17: =VLOOKUP($F$11,'2023-24 Nursery Budget'!C:G,3,FALSE) ->  | M17: =VLOOKUP($F$11,'2023-24 Nursery Budget'!C:G,4,FALSE) ->  | N17: =VLOOKUP($F$11,'2023-24 Nursery Budget'!C:G,5,FALSE) ->  | P17: ='2023-24 Nursery Budget'!E253 -> 5543296.437 | Q17: =IF(F$11=12345,0,P17) -> 0 | R17: =SUM($E17+$F17+$G17)*$C17 -> 0 | S17: =H17-R17 -> 0 | T17: ='2023-24 Nursery Budget'!E246+'2023-24 Nursery Budget'!E247 -> 420394 | U17: ='2023-24 Nursery Budget'!F246+'2023-24 Nursery Budget'!F247 -> 407302.5 | V17: ='2023-24 Nursery Budget'!G246+'2023-24 Nursery Budget'!G247 -> 351728.2738 | W17: M & A
B18: S = Stand Alone Maintained Nursery School | C18: 4.7 | E18: =IF($L$8=2,L18,0)+IF($L$8=6,T18) -> 0 | F18: =IF($L$8=2,M18,0)+IF($L$8=6,U18) -> 0 | G18: 0 | H18: =IF($H$11=6,Q18,R18) -> 0 | L18: =VLOOKUP($F$11,'2023-24 Nursery Budget'!C:G,3,FALSE) ->  | M18: =VLOOKUP($F$11,'2023-24 Nursery Budget'!C:G,4,FALSE) ->  | N18: =VLOOKUP($F$11,'2023-24 Nursery Budget'!C:G,5,FALSE) ->  | P18: ='2023-24 Nursery Budget'!E254 -> 1084819.589 | Q18: =IF(F$11=12345,0,P18) -> 0 | R18: =SUM($E18+$F18+$G18)*$C18 -> 0 | S18: =H18-R18 -> 0 | T18: ='2023-24 Nursery Budget'!E245 -> 81854.5 | U18: ='2023-24 Nursery Budget'!F245 -> 79802.67857 | V18: ='2023-24 Nursery Budget'!G245 -> 69155.5 | W18: S
B19: P = Pre School | C19: 4.7 | E19: =IF($L$8=3,L19,0)+IF($L$8=6,T19) -> 0 | F19: =IF($L$8=3,M19,0)+IF($L$8=6,U19) -> 0 | G19: 0 | H19: =IF($H$11=6,Q19,R19) -> 0 | L19: =VLOOKUP($F$11,'2023-24 Nursery Budget'!C:G,3,FALSE) ->  | M19: =VLOOKUP($F$11,'2023-24 Nursery Budget'!C:G,4,FALSE) ->  | N19: =VLOOKUP($F$11,'2023-24 Nursery Budget'!C:G,5,FALSE) ->  | P19: ='2023-24 Nursery Budget'!E255 -> 4496008.921 | Q19: =IF(F$11=12345,0,P19) -> 0 | R19: 0 | S19: 0 | T19: ='2023-24 Nursery Budget'!E248 -> 368482 | U19: ='2023-24 Nursery Budget'!F248 -> 301630.8214 | V19: ='2023-24 Nursery Budget'!G248 -> 286484.8214 | W19: P
B20: D = Day Nursery | C20: 4.7 | E20: =IF($L$8=4,L20,0)+IF($L$8=6,T20) -> 0 | F20: =IF($L$8=4,M20,0)+IF($L$8=6,U20) -> 0 | G20: 0 | H20: =IF($H$11=6,Q20,R20) -> 0 | L20: =VLOOKUP($F$11,'2023-24 Nursery Budget'!C:G,3,FALSE) ->  | M20: =VLOOKUP($F$11,'2023-24 Nursery Budget'!C:G,4,FALSE) ->  | N20: =VLOOKUP($F$11,'2023-24 Nursery Budget'!C:G,5,FALSE) ->  | P20: ='2023-24 Nursery Budget'!E256 -> 3896232.074 | Q20: =IF(F$11=12345,0,P20) -> 0 | R20: =SUM($E20+$F20+$G20)*$C20 -> 0 | S20: 0 | T20: ='2023-24 Nursery Budget'!E249 -> 340379.5 | U20: ='2023-24 Nursery Budget'!F249 -> 242256.4643 | V20: ='2023-24 Nursery Budget'!G249 -> 246349.5833 | W20: D
B21: Deprivation (Mandatory) Supplement | C21: Amount (£) | D21: Unit | E21: May 2023 Term Hours | F21: Oct 2023 Term Hours | G21: Jan 2024 Term Hours | H21: Anticipated Total Budget (£)
B22: IMD - top 20% most deprived | C22: 0.6 | D22: per hour | E22: =IF($L$8=0,0,L22) -> 0 | F22: =IF($L$8=0,0,M22) -> 0 | G22: =IF($L$8=0,0,N22) -> 0 | H22: =SUM(E22+F22+G22)*C22 -> 0 | L22: =VLOOKUP($F$11,'2023-24 Nursery Budget'!C:N,10,FALSE) ->  | M22: =VLOOKUP($F$11,'2023-24 Nursery Budget'!C:N,11,FALSE) ->  | N22: =VLOOKUP($F$11,'2023-24 Nursery Budget'!C:N,12,FALSE) ->  | P22: =SUM(L22:N22)*C22 -> 
B23: IMD - 20% to 40% most deprived | C23: 0.2 | D23: per hour | E23: =IF($L$8=0,0,L23) -> 0 | F23: =IF($L$8=0,0,M23) -> 0 | G23: =IF($L$8=0,0,N23) -> 0 | H23: =SUM(E23+F23+G23)*C23 -> 0 | L23: =VLOOKUP($F$11,'2023-24 Nursery Budget'!C:S,15,FALSE) ->  | M23: =VLOOKUP($F$11,'2023-24 Nursery Budget'!C:S,16,FALSE) ->  | N23: =VLOOKUP($F$11,'2023-24 Nursery Budget'!C:S,17,FALSE) ->  | P23: =SUM(L23:N23)*C23 -> 
B24: EAL | C24: 0.2 | D24: per hour | E24: =IF($L$8=0,0,L24) -> 0 | F24: 0 | G24: =IF($L$8=0,0,N24) -> 0 | H24: =SUM(E24+F24+G24)*C24 -> 0 | L24: =VLOOKUP($F$11,'2023-24 Nursery Budget'!C:Z,22,FALSE) ->  | M24: =VLOOKUP($F$11,'2023-24 Nursery Budget'!C:Z,23,FALSE) ->  | N24: =VLOOKUP($F$11,'2023-24 Nursery Budget'!C:Z,24,FALSE) ->  | P24: =SUM(L24:N24)*C24 -> 
B25: Other Supplements | C25: Amount (£) | D25: Unit | E25: Number of units | H25: Anticipated Total Budget (£)
B26: Disability Access Fund (see guidance notes) | C26: =IF(L8=6,137448,0) -> 0 | D26: lump sum | E26: =+IF(L8=6,1,0) -> 0 | H26: =IF(H11=6,C26,0) -> 0 | P26: =IF(H11<>6,0,H26) -> 0
B27: SEN Locality Funding (see guidance notes) | C27: =IF(L8=6,450000,0) -> 0 | D27: lump sum | E27: =+IF(L8=6,1,0) -> 0 | H27: =IF(H11=6,C27,0) -> 0 | P27: =IF(H11<>6,0,H27) -> 0
B28: 3. Other formula factors and lump sums (if applicable) | C28: Amount (£) | D28: Unit | E28: Number of units | H28: Anticipated Total Budget (£) | L28: 1
B29: Base for Stand Alone Maintained Nurseries | C29: 100000 | D29: lump sum | E29: =IF($L$8=2,L28,0) -> 0 | H29: =IF(L8=6,700000,$E29*$C29) -> 0 | L29: =IF(H11="S",VLOOKUP($F$11,'2023-24 Nursery Budget'!C:AQ,41,FALSE),0) -> 0 | P29: =H29 -> 0
B30: Stand Alone Maintained Nursery Supplement Funding (Universal Hours only) | C30: 2.048250321 | D30: per hour | E30: =IF($L$8=2,L29,0) -> 0 | H30: =IF(L8=6,'2023-24 Nursery Budget'!AD31,(SUM(E30:G30)*C30)) -> 0 | L30: Check with Nursery Budget | P30: =VLOOKUP(F11,'2023-24 Nursery Budget'!C:AD,28,FALSE) ->  | Q30: =H30-P30 -> 
B31: TOTAL FUNDING FOR EARLY YEARS SINGLE FUNDING FORMULA excluding Rates* | H31: =SUM(H17:H30) -> 0 | L31: =IFERROR(VLOOKUP(F11,'2023-24 Nursery Budget'!C:AJ,34,FALSE),0)-IFERROR(VLOOKUP(F11,'2023-24 Nursery Budget'!C:AJ,29,FALSE),0)+H26+H27 -> 0 | M31: =L31-H31 -> 0 | P31: =IF(H11<>6,0,SUM(P17:P30)) -> 0
B32: Please note: * Early Years budgets are adjusted for actual hour take up in year
C39: High Needs Formula Budget 2023/24
L42: Check with Summary for Prints
D43: Element 1 & 2 Place Rate | G43: Number | H43: Total (£)
B44: Element 2 (Place led funding) - ERS Pre 16 | C44: See Separate breakdown | E44: 6000 | G44: =SUMIF('ERS 2023-24'!C:C,'School Formula Budget 2023-24'!F$11,'ERS 2023-24'!I:I) -> 0 | H44: =$G44*$E44 -> 0 | L44: =VLOOKUP(F11,'Summary for Prints'!A:CF,82,FALSE) ->  | M44: =L44-H44 -> 
D45: Element 1 & 2 Place Rate | G45: Places | H45: Total (£)
B46: Element 2 (Place led funding) - ERS Post 16 | C46: See Separate breakdown | E46: 6000 | G46: 0 | H46: =$G46*$E46 -> 0 | L46: 0 | M46: 0
D47: Indicative Element 3 Pupils (banding) funding | G47: Number | H47: Total (£)
B48: Element 3 - Derby City Pupils (banding) funding Pre & Post 16* | C48: See Separate breakdown | E48: =SUMIF('ERS 2023-24'!C:C,F11,'ERS 2023-24'!S:S) -> 0 | G48: 1 | H48: =$G48*$E48 -> 0 | L48: =VLOOKUP(F11,'Summary for Prints'!A:CF,83,FALSE) ->  | M48: =L48-H48 -> 
D49: Other Funding | G49: Number | H49: Total (£)
B50: ERS - Other | C50: See Separate breakdown | E50: =SUMIF('ERS 2023-24'!C:C,F11,'ERS 2023-24'!T:T)+SUMIF('ERS 2023-24'!C:C,F11,'ERS 2023-24'!U:U) -> 0 | G50: 1 | H50: =$G50*$E50 -> 0 | L50: =VLOOKUP(F11,'Summary for Prints'!A:CF,84,FALSE) ->  | M50: =L50-H50 -> 
G51: Number | H51: Total (£)
B52: High Needs Funding from Derby City / ESFA* | C52: Including both Pre 16 & Post 16 Funding | H52: =H48+H50+H44+H46 -> 0 | L52: =VLOOKUP(F11,'Summary for Prints'!A:CF,82,FALSE)+VLOOKUP(F11,'Summary for Prints'!A:CF,83,FALSE)+VLOOKUP(F11,'Summary for Prints'!A:CF,84,FALSE) ->  | M52: =L52-H52 -> 
D54: ERS Pupil Top up funding | G54: Number | H54: Total (£)
B55: Other LA Top up funding (Income not Budget. Academies to reclaim Element 3 from other LA's directly)* | C55: See Separate breakdown | E55: =SUMIF('ERS 2023-24'!B:B,F11,'ERS 2023-24'!Y:Y) -> 0 | G55: 1 | H55: =$G55*$E55 -> 0
B58: *Please note that High Needs top up funding follows the pupil, therefore funding will be adjusted in year where there are pupil movements
B65: =B11 -> CLICK ON THE ARROW BUTTON TO SELECT YOUR SCHOOL FROM THE LIST | F65: =F11 -> 12345 | H65: =H11 -> 0
C67: Schools Block Funding 2023/24
B71: Factor | C71: Description | D71: Primary amount per pupil | E71: Secondary KS3 amount per pupil | F71: Secondary KS4 amount per pupil | G71: Number of Pupils (Including High Needs Places) | H71: Sub total (£) | I71: Notional SEN % | J71: Notional SEN within School Budget £
B72: 1) Basic Entitlement - Age Weighted Pupil Funding (AWPU) | C72: Primary (including reception) | D72: ='APT Proforma'!E19:F19 -> 3394 | E72: 0 | G72: =IFERROR(VLOOKUP($F$65,'Summary for Prints'!A:H,5,FALSE),0) -> 0 | H72: =G72*D72 -> 0 | I72: 0.12 | J72: =D72*G72*I72 -> 0
C73: Key Stage 3 | E73: ='APT Proforma'!E20:F20 -> 4785 | F73: 0 | G73: =IFERROR(VLOOKUP($F$65,'Summary for Prints'!A:H,7,FALSE),0) -> 0 | H73: =G73*E73 -> 0 | I73: 0.097 | J73: =E73*G73*I73 -> 0 | P73: Checks with 'Summary for Prints' tab
C74: Key Stage 4 | F74: ='APT Proforma'!E21 -> 5393 | G74: =IFERROR(VLOOKUP($F$65,'Summary for Prints'!A:H,8,FALSE),0) -> 0 | H74: =G74*F74 -> 0 | I74: 0.0863 | J74: =F74*G74*I74 -> 0 | P74: Summary for Prints | Q74: Variance
F75: Total | G75: =SUM(G72:G74) -> 0 | H75: =SUM(H72:H74) -> 0 | J75: =SUM(J72:J74) -> 0 | P75: =VLOOKUP(F65,'Summary for Prints'!A:K,9,FALSE)+VLOOKUP(F65,'Summary for Prints'!A:K,10,FALSE)+VLOOKUP(F65,'Summary for Prints'!A:K,11,FALSE) ->  | Q75: =P75-H75 -> 
B77: De-delegation - see separate breakdown | C77: Primary (including reception) | D77: =-'De-del'!Q8 -> -71.43 | G77: =F131 -> 0 | H77: =G77*D77 -> 0
C78: Secondary | E78: =-'De-del'!R9 -> -60.25 | F78: =E78 -> -60.25 | G78: =G131 -> 0 | H78: =G78*F78 -> 0
F79: Total | G79: =SUM(G77:G78) -> 0 | H79: =SUM(H77:H78) -> 0 | P79: =VLOOKUP(F11,'Summary for Prints'!A:BV,74,FALSE) ->  | Q79: =P79-H79 -> 
D80: Primary amount per pupil | E80: Secondary amount per pupil | F80: Number of eligible primary pupils | G80: Number of eligible secondary pupils | H80: Sub total (£) | I80: Notional SEN % | J80: Notional SEN within School Budget £
B81: 2) Deprivation
C82: FSM Current | D82: ='APT Proforma'!E23 -> 480 | E82: ='APT Proforma'!F23 -> 480 | F82: =IFERROR(VLOOKUP($F$11,'APT Adjusted Factors'!E:BN,28,FALSE),0) -> 0 | G82: =IFERROR(VLOOKUP($F$11,'APT Adjusted Factors'!E:BN,30,FALSE),0) -> 0 | H82: =$D82*$F82+($E82*$G82) -> 0 | I82: 0.3525 | J82: =I82*H82 -> 0 | P82: =VLOOKUP(F11,'Summary for Prints'!A:M,12,FALSE)+VLOOKUP(F11,'Summary for Prints'!A:M,13,FALSE) ->  | Q82: =P82-H82 -> 
C83: FSM Ever 6 | D83: ='APT Proforma'!E24 -> 705 | E83: ='APT Proforma'!F24 -> 1030 | F83: =IFERROR(VLOOKUP($F$11,'APT Adjusted Factors'!E:BN,29,FALSE),0) -> 0 | G83: =IFERROR(VLOOKUP($F$11,'APT Adjusted Factors'!E:BN,31,FALSE),0) -> 0 | H83: =$D83*$F83+($E83*$G83) -> 0 | I83: 0.3525 | J83: =I83*H83 -> 0 | P83: =VLOOKUP(F11,'Summary for Prints'!A:O,14,FALSE)+VLOOKUP(F11,'Summary for Prints'!A:O,15,FALSE) ->  | Q83: =P83-H83 -> 
C84: IDACI Band F | D84: ='APT Proforma'!E25 -> 230 | E84: ='APT Proforma'!F25 -> 335 | F84: =IFERROR(VLOOKUP($F$11,'APT Adjusted Factors'!E:BN,33,FALSE),0) -> 0 | G84: =IFERROR(VLOOKUP($F$11,'APT Adjusted Factors'!E:BN,40,FALSE),0) -> 0 | H84: =$D84*$F84+($E84*$G84) -> 0 | I84: 0.3525 | J84: 0 | P84: =VLOOKUP(F11,'Summary for Prints'!A:AA,16,FALSE)+VLOOKUP(F11,'Summary for Prints'!A:AA,22,FALSE) ->  | Q84: =P84-H84 -> 
C85: IDACI Band E | D85: ='APT Proforma'!E26 -> 280 | E85: ='APT Proforma'!F26 -> 445 | F85: =IFERROR(VLOOKUP($F$11,'APT Adjusted Factors'!E:BN,34,FALSE),0) -> 0 | G85: =IFERROR(VLOOKUP($F$11,'APT Adjusted Factors'!E:BN,41,FALSE),0) -> 0 | H85: 0 | I85: 0.3525 | J85: 0 | P85: =VLOOKUP(F11,'Summary for Prints'!A:AA,17,FALSE)+VLOOKUP(F11,'Summary for Prints'!A:AA,23,FALSE) -> 
C86: IDACI Band D | D86: ='APT Proforma'!E27 -> 440 | E86: ='APT Proforma'!F27 -> 620 | F86: =IFERROR(VLOOKUP($F$11,'APT Adjusted Factors'!E:BN,35,FALSE),0) -> 0 | G86: =IFERROR(VLOOKUP($F$11,'APT Adjusted Factors'!E:BN,42,FALSE),0) -> 0 | H86: 0 | I86: 0.3525 | J86: 0 | P86: =VLOOKUP(F11,'Summary for Prints'!A:AA,18,FALSE)+VLOOKUP(F11,'Summary for Prints'!A:AA,24,FALSE) -> 
C87: IDACI Band C | D87: ='APT Proforma'!E28 -> 480 | E87: ='APT Proforma'!F28 -> 680 | F87: =IFERROR(VLOOKUP($F$11,'APT Adjusted Factors'!E:BN,36,FALSE),0) -> 0 | G87: =IFERROR(VLOOKUP($F$11,'APT Adjusted Factors'!E:BN,43,FALSE),0) -> 0 | H87: 0 | I87: 0.3525 | J87: 0 | P87: =VLOOKUP(F11,'Summary for Prints'!A:AA,19,FALSE)+VLOOKUP(F11,'Summary for Prints'!A:AA,25,FALSE) -> 
C88: IDACI Band B | D88: ='APT Proforma'!E29 -> 510 | E88: ='APT Proforma'!F29 -> 730 | F88: =IFERROR(VLOOKUP($F$11,'APT Adjusted Factors'!E:BN,37,FALSE),0) -> 0 | G88: =IFERROR(VLOOKUP($F$11,'APT Adjusted Factors'!E:BN,44,FALSE),0) -> 0 | H88: 0 | I88: 0.3525 | J88: 0 | P88: =VLOOKUP(F11,'Summary for Prints'!A:AA,20,FALSE)+VLOOKUP(F11,'Summary for Prints'!A:AA,26,FALSE) -> 
C89: IDACI Band A | D89: ='APT Proforma'!E30 -> 670 | E89: ='APT Proforma'!F30 -> 930 | F89: =IFERROR(VLOOKUP($F$11,'APT Adjusted Factors'!E:BN,38,FALSE),0) -> 0 | G89: =IFERROR(VLOOKUP($F$11,'APT Adjusted Factors'!E:BN,45,FALSE),0) -> 0 | H89: 0 | I89: 0.3525 | J89: =I89*H89 -> 0 | P89: =VLOOKUP(F11,'Summary for Prints'!A:AA,21,FALSE)+VLOOKUP(F11,'Summary for Prints'!A:AA,27,FALSE) -> 
E90: Total | F90: =SUM(F81:F89) -> 0 | G90: =SUM(G81:G89) -> 0 | H90: =SUM(H81:H89) -> 0 | J90: =SUM(J82:J89) -> 0 | P90: =SUM(P82:P89) ->  | Q90: =SUM(Q82:Q89) -> 
D91: Amount per pupil | G91: Number of Pupils | H91: Total (£) | J91: Total (£)
B92: 3) Prior Attainment | C92: Primary Low prior attainment | D92: ='APT Proforma'!F36 -> 1155 | G92: =IFERROR(VLOOKUP($F$11,'APT Adjusted Factors'!E:BL,49,FALSE),0) -> 0 | H92: =$G92*$D92 -> 0 | I92: 0.3525 | J92: =I92*H92 -> 0 | P92: =VLOOKUP(F11,'Summary for Prints'!A:AE,30,FALSE) ->  | Q92: =P92-H92 -> 
C93: Secondary pupils not achieving KS2 in Reading or Writing or Maths | D93: ='APT Proforma'!F37 -> 1750 | G93: =IFERROR(VLOOKUP($F$11,'APT Adjusted Factors'!E:BL,55,FALSE),0) -> 0 | H93: =$G93*$D93 -> 0 | I93: 0.3525 | J93: =I93*H93 -> 0 | P93: =VLOOKUP(F11,'Summary for Prints'!A:AE,31,FALSE) ->  | Q93: =P93-H93 -> 
D94: Amount per pupil | G94: Number of Pupils | H94: Total (£) | J94: Total (£)
B95: 4) English as an Additional Language | C95: Primary pupils EAL funded for first 3 years in Statutory Education | D95: ='APT Proforma'!E32 -> 580 | G95: =IFERROR(VLOOKUP($F$11,'APT Adjusted Factors'!E:BC,46,FALSE),0) -> 0 | H95: =$G95*$D95 -> 0 | I95: 0.4005 | J95: =I95*H95 -> 0 | P95: =VLOOKUP(F11,'Summary for Prints'!A:AC,28,FALSE) ->  | Q95: =P95-H95 -> 
C96: Secondary pupils EAL funded for first 3 years in Statutory Education | D96: ='APT Proforma'!F33 -> 1565 | G96: =IFERROR(VLOOKUP($F$11,'APT Adjusted Factors'!E:BC,47,FALSE),0) -> 0 | H96: =$G96*$D96 -> 0 | I96: 0.4005 | J96: =I96*H96 -> 0 | P96: =VLOOKUP(F11,'Summary for Prints'!A:AC,29,FALSE) ->  | Q96: =P96-H96 -> 
D97: % of NOR | E97: Amount per pupil | G97: Number of Pupils | H97: Total (£) | J97: Total (£)
B98: 5) Mobility | C98: Primary pupils included in the October School Census who did not start in September (Last 3 academic years) | D98: =IFERROR(G98/G72,0) -> 0 | E98: ='APT Proforma'!E34 -> 945 | G98: =IFERROR(VLOOKUP($F$11,'APT Adjusted Factors'!E:BN,56,FALSE),0) -> 0 | H98: =$G98*$E98 -> 0 | I98: 1 | J98: =I98*H98 -> 0 | P98: =VLOOKUP(F11,'Summary for Prints'!A:AG,32,FALSE) ->  | Q98: =P98-H98 -> 
B99: Mobility is calculated after deducting 6% threshold level | C99: Secondary pupils included in the October School Census who did not start in September (Last 3 academic years) | D99: =IFERROR(G99/(G73+G74),0) -> 0 | E99: ='APT Proforma'!F34 -> 1360 | G99: =IFERROR(VLOOKUP($F$11,'APT Adjusted Factors'!E:BN,57,FALSE),0) -> 0 | H99: =$G99*$E99 -> 0 | I99: 1 | J99: =I99*H99 -> 0 | P99: =VLOOKUP(F11,'Summary for Prints'!A:AG,33,FALSE) ->  | Q99: =P99-H99 -> 
D100: Amount of lump sum | G100: Number | H100: Total (£)
B101: 6) Lump Sum | D101: =IFERROR(VLOOKUP($F$11,'Summary for Prints'!A:AN,34,FALSE),0) -> 0 | G101: 1 | H101: =$G101*$D101 -> 0 | P101: =VLOOKUP(F11,'Summary for Prints'!A:AH,34,FALSE) ->  | Q101: =P101-D101 -> 
D102: Amount of split site funding | G102: Number | H102: Total (£)
B103: 7) Split Site | D103: 0 | G103: 1 | H103: =$G103*$D103 -> 0 | P103: =IFERROR(VLOOKUP($F$11,'Summary for Prints'!A:AN,37,FALSE),0) -> 0 | Q103: =P103-D103 -> 0
D104: Amount of Rates Adjustment
B105: Adjustment to 22-23 rates / inflationary increases to 23-24 rates | D105: =IFERROR(VLOOKUP($F$11,'Summary for Prints'!A:AN,39,FALSE),0) -> 0 | G105: 1 | H105: =$G105*$D105 -> 0 | P105: =IFERROR(VLOOKUP($F$11,'Summary for Prints'!A:AN,39,FALSE),0) -> 0 | Q105: =P105-D105 -> 0
D106: Amount of PFI funding | G106: Number | H106: Total (£)
B107: PFI to be paid back to the LA | D107: =IFERROR(VLOOKUP($F$11,'Summary for Prints'!A:AN,40,FALSE),0) -> 0 | G107: 1 | H107: =$G107*$D107 -> 0 | P107: =IFERROR(VLOOKUP($F$11,'Summary for Prints'!A:AN,40,FALSE),0) -> 0 | Q107: =P107-D107 -> 0
D108: MFG Adjustments | G108: Number | H108: Total (£)
B109: Minimum Funding level per pupil / MFG (0.50%) / Capping (3.40%) & Scaling (100%) | D109: =IFERROR(VLOOKUP($F$11,'Summary for Prints'!A:BP,56,FALSE),0)+IFERROR(VLOOKUP($F$11,'Summary for Prints'!A:BP,57,FALSE),0)+IFERROR(VLOOKUP($F$11,'Summary for Prints'!A:BP,68,FALSE),0) -> 0 | G109: 1 | H109: =$G109*$D109 -> 0 | J109: Total Notional SEN within the School Budget | P109: =IFERROR(VLOOKUP($F$11,'Summary for Prints'!A:BP,56,FALSE),0)+IFERROR(VLOOKUP($F$11,'Summary for Prints'!A:BP,57,FALSE),0)+IFERROR(VLOOKUP($F$11,'Summary for Prints'!A:BP,68,FALSE),0) -> 0 | Q109: =P109-D109 -> 0
H110: Total (£)
B111: Schools Block Total | H111: =H75+H90+H92+H93+H95+H96+H98+H99+H101+H103+H107+H109+H79+H105 -> 0 | J111: =J75+J90+J92+J93+J95+J96+J98+J99+J101+J103+J107+J79 -> 0 | P111: =IFERROR(VLOOKUP($F$11,'Summary for Prints'!A:CA,79,FALSE),0) -> 0 | Q111: =P111-H111 -> 0
B115: Total School Budget INCLUDING Early Years, Schools Block and High Needs (excl other LA Top up) | I115: =$H31+$H52+$H111 -> 0 | P115: =VLOOKUP(F11,'Summary for Prints'!A:CJ,87,FALSE)+P26+P27 ->  | Q115: =P115-I115 -> 
B119: NNDR RATES (to be paid by Schools)
B120: RATES 2023-24 (NFF NNDR indicative allocation) | E120: =IFERROR(VLOOKUP($F$11,'Summary for Prints'!A:BZ,78,FALSE),0) -> 0 | G120: 1 | I120: =$G120*$E120 -> 0 | P120: =IFERROR(VLOOKUP($F$11,'Summary for Prints'!A:CA,78,FALSE),0) -> 0 | Q120: =P120-I120 -> 0
B124: Total School Budget INCLUDING Rates 2023-24 (NFF indicative allocation) | I124: =I115+I120 -> 0 | P124: =IFERROR(VLOOKUP($F$11,'Summary for Prints'!A:CJ,88,FALSE),0)+P26+P27 -> 0 | Q124: =P124-I124 -> 0
C129: De-delegation from Maintained Schools 2023-24
D130: Primary Rate | E130: Secondary Rate | F130: Primary net NOR | G130: Secondary Net NOR | H130: Total (£)
B131: CFR code E23 | C131: Contingencies (SIFD & Contingencies) | D131: ='De-del'!G8 -> 6.44 | E131: ='De-del'!H9 -> 6.44 | F131: =IFERROR(VLOOKUP($F$11,'De-del'!A:F,5,FALSE),0) -> 0 | G131: =IFERROR(VLOOKUP($F$11,'De-del'!A:F,6,FALSE),0) -> 0 | H131: =D131*F131+E131*G131 -> 0
D132: Rate | E132: Rate | F132: Prim Net NOR | G132: Sec Net NOR | H132: Total (£)
B133: CFR code E23 | C133: Insurance | D133: ='De-del'!I8 -> 14.65 | E133: ='De-del'!J9 -> 14.65 | F133: =F131 -> 0 | G133: =G131 -> 0 | H133: =D133*F133+E133*G133 -> 0
D134: Rate | E134: Rate | F134: Prim Net NOR | G134: Sec Net NOR | H134: Total (£)
B135: CFR code E19 | C135: Staff Costs Supply | D135: ='De-del'!K8 -> 24.66 | E135: ='De-del'!L9 -> 24.66 | F135: =F131 -> 0 | G135: =G131 -> 0 | H135: =D135*F135+E135*G135 -> 0
D136: Rate | E136: Rate | F136: Prim Net NOR | G136: Sec Net NOR | H136: Total (£)
B137: CFR code E27 | C137: Support UAG and Bilingual | D137: ='De-del'!M8 -> 14.5 | E137: ='De-del'!N9 -> 14.5 | F137: =F131 -> 0 | G137: =G131 -> 0 | H137: =D137*F137+E137*G137 -> 0
D138: Rate | E138: Rate | F138: Prim Net NOR | G138: Sec Net NOR | H138: Total (£)
B139: CFR code E27 | C139: Behaviour Support | D139: ='De-del'!O8 -> 11.18 | E139: ='De-del'!P9 -> 0 | F139: =F131 -> 0 | G139: 0 | H139: =D139*F139+E139*G139 -> 0
H140: Total (£)
B141: CFR Code I01 | C141: LA Services De-delegated from maintained schools | H141: =H131+H133+H135+H137+H139 -> 0 | P141: =_xlfn.IFS(H11="M",VLOOKUP(F11,'De-del'!A:U,21,FALSE),F11="All",VLOOKUP(F11,'De-del'!A:U,21,FALSE),F11<>"All",0) -> 0 | Q141: =P141-H141 -> 0
C146: Academies & other non maintained Schools - to be confirmed
D147: Primary Rate | E147: Secondary Rate | F147: Primary net NOR | G147: Secondary Net NOR | H147: Total (£)
C148: Staff Costs Supply | D148: -21.14 | E148: -21.14 | F148: =IF($H$141>0,,L$75) -> 0 | G148: =IF($H$141>0,,M$75) -> 0 | H148: =D148*F148+E148*G148 -> 0
D149: Rate | E149: Rate | F149: Prim Net NOR | G149: Sec Net NOR | H149: Total (£)
C150: Support UAG and Bilingual | D150: -9.7 | E150: -11.93 | F150: =IF($H$141>0,,L$75) -> 0 | G150: =IF($H$141>0,,M$75) -> 0 | H150: =D150*F150+E150*G150 -> 0
D151: Rate | E151: Rate | F151: Prim Net NOR | G151: Sec Net NOR | H151: Total (£)
C152: Behaviour Support - Secondary Hard to Place & Support to Inclusion | D152: -21.89 | E152: -16.8 | F152: =IF($H$141>0,,L$75) -> 0 | G152: =IF($H$141>0,,M$75) -> 0 | H152: =D152*F152+E152*G152 -> 0
H153: Total (£)
C154: LA Services to be Invoiced to non maintained schools | H154: =H152+H150+H148 -> 0

Sheet Special Schools & PRU
B2: ‘The documents listed below may not be accessible for users using assistive technology. If you need to access any of these documents please contact schoolfinanceteam@derby.gov.uk.’
B7: Special School Budgets 2023/24
B8: To view the list of schools click on the ‘All Specials’ cell below. Using the dropdown menu arrow that appears to the right of the cell select your school from the dropdown list. The spreadsheet will then be populated with financial information relating to your school.
B12: CLICK ON THE ARROW BUTTON TO SELECT YOUR SCHOOL FROM THE LIST
D13: DFE
D14: =VLOOKUP($B$12,'Special Schools List'!A:C,3,FALSE) -> All
B16: High Needs Formula Indicative 2023/24
C17: Places | D17: Rate | E17: Total (£)
B18: Element 1 & 2 (Place led funding) - Special Schools Pre 16 | C18: =SUMIF('Special Schools 2023-24'!C:C,D14,'Special Schools 2023-24'!I:I) -> 704.8333333 | D18: 10000 | E18: =D18*C18 -> 7048333.333
C19: Places | D19: Rate | E19: Total (£)
B20: Element 1 & 2 (Place led funding) - Special Schools Post 16 | C20: =SUMIF('Special Schools 2023-24'!C:C,D14,'Special Schools 2023-24'!J:J) -> 147 | D20: 10000 | E20: =D20*C20 -> 1470000
C21: Places | E21: Total (£)
B22: Element 1 & 2 (Place led funding) - Alternative Provision | C22: =SUMIF('Special Schools 2023-24'!C:C,D14,'Special Schools 2023-24'!K:K) -> 100 | D22: 10000 | E22: =C22*D22 -> 1000000
E23: Total (£)
B24: Teacher Pay and Pension Grant | C24: =C18+C20+C22 -> 951.8333333 | D24: 660 | E24: =D24*C24 -> 628210
B26: Element 3 - Derby City Pupils (banding) funding Pre 16* | C26: See separate breakdown sheet | E26: =SUMIF('Special Schools 2023-24'!C:C,$D$14,'Special Schools 2023-24'!W:W) -> 8389037
E27: Total (£)
B28: Element 3 - Derby City Pupils (banding) funding Post 16* | C28: See separate breakdown sheet | E28: =SUMIF('Special Schools 2023-24'!C:C,$D$14,'Special Schools 2023-24'!X:X) -> 1858619
E29: Total (£)
B30: Residential Places | C30: See separate breakdown sheet | E30: =SUMIF('Special Schools 2023-24'!C:C,$D$14,'Special Schools 2023-24'!Y:Y) -> 234360
E31: Total (£)
B32: Other - Exceptional Payments | C32: See separate breakdown sheet | E32: =SUMIF('Special Schools 2023-24'!C:C,$D$14,'Special Schools 2023-24'!Z:Z) -> 183739.67
E33: Total (£)
B34: MFG | E34: =SUMIF('Special Schools 2023-24'!C:C,$D$14,'Special Schools 2023-24'!AA:AA) -> 0
E35: Total (£)
B36: PFI | E36: =SUMIF('Special Schools 2023-24'!C:C,$D$14,'Special Schools 2023-24'!AB:AB) -> 94219
E37: Total (£)
B38: High Needs Funding from Derby City LA / EFA* | E38: =E18+E20+E22+E26+E28+E32+E36+E30+E34+E24 -> 20906518 | K38: =SUMIF('Special Schools 2023-24'!C:C,'Special Schools & PRU'!D14,'Special Schools 2023-24'!AC:AC) -> 20906518 | L38: =E38-K38 -> 0
C39: No.of Pupils | E39: Total (£)
B40: Element 3 - Other LA (banding) funding (Academies to reclaim Element 3 from other LA's directly)* | C40: =SUMIF('Special Schools 2023-24'!C:C,D14,'Special Schools 2023-24'!O:O)+SUMIF('Special Schools 2023-24'!C:C,D14,'Special Schools 2023-24'!P:P) -> 81 | D40: See separate breakdown sheet | E40: =SUMIF('Special Schools 2023-24'!$C:$C,$D$14,'Special Schools 2023-24'!$AF:$AF) -> 839957 | K40: =VLOOKUP(D14,'Special Schools 2023-24'!C:AF,30,FALSE) -> 839957 | L40: =E40-K40 -> 0
B42: *Please note that High Needs top up funding follows the pupil, therefore funding will be adjusted in year where there are pupil movements

Sheet Summary for Prints (hidden)
D1: ‘The documents listed below may not be accessible for users using assistive technology. If you need to access any of these documents please contact schoolfinanceteam@derby.gov.uk.’ | CD1: Checks
CD2: ='ERS 2023-24'!R17 -> 1032000 | CE2: ='ERS 2023-24'!S17 -> 1220555 | CF2: ='ERS 2023-24'!T17+'ERS 2023-24'!U17 -> 125383.19 | CG2: ='2023-24 Nursery Budget'!AJ242-SUM(CK103:CK109) -> 17004290.72
CD3: =CD2-CD8 -> 0 | CE3: =CE2-CE8 -> 0 | CF3: =CF2-CF8 -> 0 | CG3: =CG2-CG8 -> -8.778571431
C6: 3 | D6: 4 | E6: 5 | F6: 6 | G6: 7 | H6: 8 | I6: 9 | J6: 10 | K6: 11 | L6: 12 | M6: 13 | N6: 14 | O6: 15 | P6: 16 | Q6: 17 | R6: 18 | S6: 19 | T6: 20 | U6: 21 | V6: 22 | W6: 23 | X6: 24 | Y6: 25 | Z6: 26 | AA6: 27 | AB6: 28 | AC6: 29 | AD6: 30 | AE6: 31 | AF6: 32 | AG6: 33 | AH6: 34 | AI6: 35 | AJ6: 36 | AK6: 37 | AL6: 38 | AM6: 39 | AN6: 40 | AO6: 41 | AP6: 42 | AQ6: 43 | AR6: 44 | AS6: 45 | AT6: 46 | AU6: 47 | AV6: 48 | AW6: 49 | AX6: 50 | AY6: 51 | AZ6: 52 | BA6: 53 | BB6: 54 | BC6: 55 | BD6: 56 | BE6: 57 | BF6: 58 | BG6: 59 | BH6: 60 | BI6: 61 | BJ6: 62 | BK6: 63 | BL6: 64 | BM6: 65 | BN6: 66 | BO6: 67 | BP6: 68 | BQ6: 69 | BR6: 70 | BS6: 71 | BT6: 72 | BU6: 73 | BV6: 74 | BW6: 75 | BX6: 76 | BY6: 77 | BZ6: 78 | CA6: 79 | CB6: 80 | CC6: 81 | CD6: 82 | CE6: 83 | CF6: 84 | CG6: 85 | CH6: 86 | CI6: 87 | CJ6: 88 | CK6: 89
A7: URN | B7: LAESTAB | C7: School Name | D7: NOR (from Adjusted Factors column O) | E7: NOR Primary (from Adjusted Factors column P) | F7: NOR Secondary (from Adjusted Factors column S) | G7: NOR KS3 | H7: NOR KS4 | I7: Basic Entitlement (Primary) | J7: Basic Entitlement (KS3) | K7: Basic Entitlement (KS4) | L7: Free School Meals (Primary) | M7: Free School Meals (Secondary) | N7: Free School Meals Ever 6 (Primary) | O7: Free School Meals Ever 6 (Secondary) | P7: IDACI (P F) | Q7: IDACI (P E) | R7: IDACI (P D) | S7: IDACI (P C) | T7: IDACI (P B) | U7: IDACI (P A) | V7: IDACI (S F) | W7: IDACI (S E) | X7: IDACI (S D) | Y7: IDACI (S C) | Z7: IDACI (S B) | AA7: IDACI (S A) | AB7: EAL (P) | AC7: EAL (S) | AD7: Low Prior Attainment (P) | AE7: Low Prior Attainment (S) | AF7: Mobility (P) | AG7: Mobility (S) | AH7: Lump Sum | AI7: Sparsity Funding | AJ7: London Fringe | AK7: Split Sites | AL7: 23-24 NFF NNDR allocation | AM7: Adjustment to 22-23 rates (or inflationary increases to 23-24 rates) | AN7: PFI | AO7: 23-24 Approved Exceptional Circumstance 1: Reserved for Additional lump sum for schools amalgamated during FY22-23 | AP7: 23-24 Approved Exceptional Circumstance 2: Reserved for additional sparsity lump sum | AQ7: 23-24 Approved Exceptional Circumstance 3 | AR7: 23-24 Approved Exceptional Circumstance 4 | AS7: 23-24 Approved Exceptional Circumstance 5 | AT7: 23-24 Approved Exceptional Circumstance 6 | AU7: 23-24 Approved Exceptional Circumstance 7 | AV7: Basic Entitlement Total | AW7: AEN Total | AX7: School Factors total | AY7: Notional SEN Budget | AZ7: Total Allocation | BA7: Minimum per pupil funding: adjusted total allocation (excluding premises costs) | BB7: Minimum per pupil funding: minimum per pupil rate | BC7: Minimum per pupil funding: minimum funding level | BD7: Minimum per pupil funding: additional funding to meet the primary minimum funding level | BE7: Minimum per pupil funding: additional funding to meet the secondary minimum funding level | BF7: Total allocation including minimum funding level adjustment | BG7: Primary Funding | BH7: Secondary Funding | BI7: 23-24 MFG budget using minimum funding level | BJ7: Minimum allocation after capping/scaling | BK7: 23-24 MFG Budget | BL7: 23-24 MFG Unit Value | BM7: 22-23 MFG Unit Value | BN7: MFG % change | BO7: MFG Value adjustment | BP7: 23-24 MFG Adjustment | BQ7: 23-24 Post MFG Budget | BR7: Minimum per pupil funding: post MFG minimum funding per pupil rate | BS7: Minimum per pupil funding: per pupil rate is greater than or equal to the minimum entered on the Proforma sheet? | BT7: 23-24 Post MFG per pupil Budget | BU7: Year on year % Change | BV7: De-delegation | BW7: Post De-delegation budget | BX7: Education functions for maintained schools | BY7: Post De-delegation and Education functions budget | BZ7: 23-24 NFF NNDR allocation | CA7: Post De-delegation and Education functions budget after deduction of 23-24 NFF NNDR allocation | CC7: ERS E1 Empty Places | CD7: ERS Element 2 Pre & Post 16 | CE7: ERS Element 3 Pre & Post 16 | CF7: ERS Other | CG7: Schools with Nurseries, TA, ERS | CH7: Contingency | CI7: Total (excl. Rates) | CJ7: Total Incl. Rates
A8: All | D8: =SUM(D9:D101) -> 40446.58333 | E8: 23274.41667 | F8: 17172.16667 | G8: 10593.16667 | H8: 6579 | I8: 78993370.17 | J8: 50688302.5 | K8: 35480547 | L8: 3781311.206 | M8: 2315036.522 | N8: 5772673.007 | O8: 6009661.834 | P8: 629944.976 | Q8: 835401.075 | R8: 880936.1778 | S8: 1136159.161 | T8: 1055074.689 | U8: 956747.4045 | V8: 653427.1501 | W8: 905447.518 | X8: 861376.9313 | Y8: 1118172.522 | Z8: 1082315.065 | AA8: 997701.7223 | AB8: 2533695.631 | AC8: 872118.1001 | AD8: 8298964.03 | AE8: 7404351.718 | AF8: 329539.6842 | AG8: 181365.7619 | AH8: 11466666.67 | AI8: =SUM(AI9:AI101) -> 0 | AJ8: 0 | AK8: 0 | AL8: 1419029.641 | AM8: 66611.85 | AN8: 1234980 | AO8: 0 | AP8: 0 | AQ8: 0 | AR8: 0 | AS8: 0 | AT8: 0 | AU8: 0 | AV8: 165162219.7 | AW8: 48611421.89 | AX8: 14187288.16 | AY8: 35087757.52 | AZ8: 227960929.7 | BA8: 225240308.2 | BD8: =SUM(BD9:BD101) -> 978109.5303 | BE8: 26715.39196 | BF8: 228965754.6 | BG8: 116857469.1 | BH8: 112108285.6 | BI8: 202883563.5 | BK8: =SUM(BK9:BK101) -> 216013446.5 | BL8: =SUM(BL9:BL101) -> 442163.5791 | BM8: =SUM(BM9:BM101) -> 421823.7859 | BP8: =SUM(BP9:BP101) -> -972454.7758 | BQ8: =SUM(BQ9:BQ101) -> 227993299.9 | BV8: =SUM(BV9:BV101) -> -716904.1258 | BW8: 227276395.7 | BX8: 0 | BY8: 227276395.7 | BZ8: =SUM(BZ9:BZ109) -> 1474780.141 | CA8: 225857366.1 | CC8: =SUM(CC9:CC330) -> 0 | CD8: 1032000 | CE8: 1220555 | CF8: 125383.19 | CG8: 17004299.5 | CH8: 0 | CI8: 245239603.8 | CJ8: 246714383.9
A9: 2001 | B9: 8312001 | C9: Roe Farm Primary School | D9: 366 | E9: 366 | F9: 0 | G9: =VLOOKUP(B9,'APT Adjusted Factors'!F:W,17,FALSE) -> 0 | H9: =VLOOKUP(B9,'APT Adjusted Factors'!F:W,18,FALSE) -> 0 | I9: 1242204 | J9: 0 | K9: 0 | L9: 75360 | M9: 0 | N9: 121260 | O9: 0 | P9: 16560 | Q9: 14000 | R9: 11880 | S9: 960 | T9: 46920 | U9: 51590 | V9: 0 | W9: 0 | X9: 0 | Y9: 0 | Z9: 0 | AA9: 0 | AB9: 6007.924528 | AC9: 0 | AD9: 136088.0423 | AE9: 0 | AF9: 13267.8 | AG9: 0 | AH9: 128000 | AI9: 0 | AJ9: 0 | AK9: 0 | AL9: 30208 | AM9: 4644 | AN9: 0 | AO9: 0 | AP9: 0 | AQ9: 0 | AR9: 0 | AS9: 0 | AT9: 0 | AU9: 0 | AV9: 1242204 | AW9: 493893.7668 | AX9: 162852 | AY9: 332041.3137 | AZ9: 1898949.767 | BA9: 1864097.767 | BB9: 4405 | BC9: 1612230 | BD9: 0 | BE9: 0 | BF9: 1898949.767 | BG9: 1898949.767 | BH9: 0 | BI9: 1647082 | BJ9: 1484230 | BK9: 1736097.767 | BL9: 4743.436521 | BM9: 4581.283101 | BN9: 0.03539476089 | BO9: -0.001394760891 | BP9: -2338.664787 | BQ9: 1896611.102 | BR9: 5086.773503 | BS9: Y | BT9: 5181.997546 | BU9: 0.03477843232 | BV9: -26143.38 | BW9: 1870467.722 | BX9: 0 | BY9: 1870467.722 | BZ9: 30208 | CA9: 1840259.722 | CD9: =IFERROR(VLOOKUP(A9,'ERS 2023-24'!C:S,16,FALSE),0) -> 0 | CE9: =IFERROR(VLOOKUP(A9,'ERS 2023-24'!C:S,17,FALSE),0) -> 0 | CF9: =IFERROR(VLOOKUP(A9,'ERS 2023-24'!C:V,18,FALSE),0)+IFERROR(VLOOKUP(A9,'ERS 2023-24'!C:W,19,FALSE),0) -> 0 | CG9: =IFERROR(ROUND((VLOOKUP(A9,'2023-24 Nursery Budget'!C:AJ,34,FALSE)),0),0) -> 163413 | CI9: =SUM(CA9:CH9) -> 2003672.722 | CJ9: =CI9+BZ9 -> 2033880.722
A10: 2003 | B10: 8312003 | C10: Parkview Primary School | D10: 211 | E10: 211 | F10: 0 | G10: =VLOOKUP(B10,'APT Adjusted Factors'!F:W,17,FALSE) -> 0 | H10: =VLOOKUP(B10,'APT Adjusted Factors'!F:W,18,FALSE) -> 0 | I10: 716134 | J10: 0 | K10: 0 | L10: 7200 | M10: 0 | N10: 11280 | O10: 0 | P10: 2070 | Q10: 560 | R10: 1320 | S10: 480 | T10: 0 | U10: 0 | V10: 0 | W10: 0 | X10: 0 | Y10: 0 | Z10: 0 | AA10: 0 | AB10: 2028.39779 | AC10: 0 | AD10: 42151.93889 | AE10: 0 | AF10: 0 | AG10: 0 | AH10: 128000 | AI10: 0 | AJ10: 0 | AK10: 0 | AL10: 31744 | AM10: 4771 | AN10: 0 | AO10: 0 | AP10: 0 | AQ10: 0 | AR10: 0 | AS10: 0 | AT10: 0 | AU10: 0 | AV10: 716134 | AW10: 67090.33668 | AX10: 164515 | AY10: 109682.7868 | AZ10: 947739.3367 | BA10: 911224.3367 | BB10: 4405 | BC10: 929455 | BD10: 18230.66332 | BE10: 0 | BF10: 965970 | BG10: 965970 | BH10: 0 | BI10: 965970 | BJ10: 801455 | BK10: 801455 | BL10: 3798.364929 | BM10: 3780.79717 | BN10: 0.004646575394 | BO10: 0.0003534246061 | BP10: 281.9438443 | BQ10: 966251.9438 | BR10: 4406.336227 | BS10: Y | BT10: 4579.393099 | BU10: 0.009937111851 | BV10: -15071.73 | BW10: 951180.2138 | BX10: 0 | BY10: 951180.2138 | BZ10: 31744 | CA10: 919436.2138 | CD10: =IFERROR(VLOOKUP(A10,'ERS 2023-24'!C:S,16,FALSE),0) -> 0 | CE10: =IFERROR(VLOOKUP(A10,'ERS 2023-24'!C:S,17,FALSE),0) -> 0 | CF10: =IFERROR(VLOOKUP(A10,'ERS 2023-24'!C:V,18,FALSE),0)+IFERROR(VLOOKUP(A10,'ERS 2023-24'!C:W,19,FALSE),0) -> 0 | CG10: =IFERROR(ROUND((VLOOKUP(A10,'2023-24 Nursery Budget'!C:AJ,34,FALSE)),0),0) -> 100854 | CI10: 1020290.214 | CJ10: 1052034.214
A11: 2005 | B11: 8312005 | C11: Ashgate Primary School | D11: 309 | E11: 309 | F11: 0 | G11: =VLOOKUP(B11,'APT Adjusted Factors'!F:W,17,FALSE) -> 0 | H11: =VLOOKUP(B11,'APT Adjusted Factors'!F:W,18,FALSE) -> 0 | I11: 1048746 | J11: 0 | K11: 0 | L11: 54720 | M11: 0 | N11: 84600 | O11: 0 | P11: 14490 | Q11: 29960 | R11: 1320 | S11: 13440 | T11: 26010 | U11: 30820 | V11: 0 | W11: 0 | X11: 0 | Y11: 0 | Z11: 0 | AA11: 0 | AB11: 30992.93233 | AC11: 0 | AD11: 103618.3872 | AE11: 0 | AF11: 13664.7 | AG11: 0 | AH11: 128000 | AI11: 0 | AJ11: 0 | AK11: 0 | AL11: 23702.5 | AM11: 4354.5 | AN11: 0 | AO11: 0 | AP11: 0 | AQ11: 0 | AR11: 0 | AS11: 0 | AT11: 0 | AU11: 0 | AV11: 1048746 | AW11: 403636.0195 | AX11: 156057 | AY11: 278466.7709 | AZ11: 1608439.02 | BA11: 1580382.02 | BB11: 4405 | BC11: 1361145 | BD11: 0 | BE11: 0 | BF11: 1608439.02 | BG11: 1608439.02 | BH11: 0 | BI11: 1389202 | BJ11: 1233145 | BK11: 1452382.02 | BL11: 4700.265435 | BM11: 4512.448837 | BN11: 0.04162187877 | BO11: -0.007621878766 | BP11: -10627.54143 | BQ11: 1597811.478 | BR11: 5080.11158 | BS11: Y | BT11: 5170.910932 | BU11: 0.03041454364 | BV11: -22071.87 | BW11: 1575739.608 | BX11: 0 | BY11: 1575739.608 | BZ11: 23702.5 | CA11: 1552037.108 | CD11: =IFERROR(VLOOKUP(A11,'ERS 2023-24'!C:S,16,FALSE),0) -> 0 | CE11: =IFERROR(VLOOKUP(A11,'ERS 2023-24'!C:S,17,FALSE),0) -> 0 | CF11: =IFERROR(VLOOKUP(A11,'ERS 2023-24'!C:V,18,FALSE),0)+IFERROR(VLOOKUP(A11,'ERS 2023-24'!C:W,19,FALSE),0) -> 0 | CG11: =IFERROR(ROUND((VLOOKUP(A11,'2023-24 Nursery Budget'!C:AJ,34,FALSE)),0),0) -> 0 | CI11: 1552037.108 | CJ11: 1575739.608
A12: 2405 | B12: 8312405 | C12: Becket Primary School | D12: 205 | E12: 205 | F12: 0 | G12: =VLOOKUP(B12,'APT Adjusted Factors'!F:W,17,FALSE) -> 0 | H12: =VLOOKUP(B12,'APT Adjusted Factors'!F:W,18,FALSE) -> 0 | I12: 695770 | J12: 0 | K12: 0 | L12: 49920 | M12: 0 | N12: 80370 | O12: 0 | P12: 1380 | Q12: 22960 | R12: 6600 | S12: 12000 | T12: 35190 | U12: 1340 | V12: 0 | W12: 0 | X12: 0 | Y12: 0 | Z12: 0 | AA12: 0 | AB12: 42124.57143 | AC12: 0 | AD12: 93199.28834 | AE12: 0 | AF12: 3496.5 | AG12: 0 | AH12: 128000 | AI12: 0 | AJ12: 0 | AK12: 0 | AL12: 18712.5 | AM12: -748.5 | AN12: 0 | AO12: 0 | AP12: 0 | AQ12: 0 | AR12: 0 | AS12: 0 | AT12: 0 | AU12: 0 | AV12: 695770 | AW12: 348580.3598 | AX12: 145964 | AY12: 210652.94 | AZ12: 1190314.36 | BA12: 1172350.36 | BB12: 4405 | BC12: 903025 | BD12: 0 | BE12: 0 | BF12: 1190314.36 | BG12: 1190314.36 | BH12: 0 | BI12: 920989 | BJ12: 775025 | BK12: 1044350.36 | BL12: 5094.391999 | BM12: 4815.73779 | BN12: 0.05786324356 | BO12: -0.02386324356 | BP12: -23558.42038 | BQ12: 1166755.939 | BR12: 5603.863119 | BS12: Y | BT12: 5691.492387 | BU12: 0.02825456394 | BV12: -14643.15 | BW12: 1152112.789 | BX12: 0 | BY12: 1152112.789 | BZ12: 18712.5 | CA12: 1133400.289 | CD12: =IFERROR(VLOOKUP(A12,'ERS 2023-24'!C:S,16,FALSE),0) -> 0 | CE12: =IFERROR(VLOOKUP(A12,'ERS 2023-24'!C:S,17,FALSE),0) -> 0 | CF12: =IFERROR(VLOOKUP(A12,'ERS 2023-24'!C:V,18,FALSE),0)+IFERROR(VLOOKUP(A12,'ERS 2023-24'!C:W,19,FALSE),0) -> 0 | CG12: =IFERROR(ROUND((VLOOKUP(A12,'2023-24 Nursery Budget'!C:AJ,34,FALSE)),0),0) -> 116885 | CI12: 1250285.289 | CJ12: 1268997.789
A13: 2409 | B13: 8312409 | C13: Dale Community Primary School | D13: 547 | E13: 547 | F13: 0 | G13: =VLOOKUP(B13,'APT Adjusted Factors'!F:W,17,FALSE) -> 0 | H13: =VLOOKUP(B13,'APT Adjusted Factors'!F:W,18,FALSE) -> 0 | I13: 1856518 | J13: 0 | K13: 0 | L13: 114240 | M13: 0 | N13: 174840 | O13: 0 | P13: 2300 | Q13: 49280 | R13: 55440 | S13: 35520 | T13: 4590 | U13: 2010 | V13: 0 | W13: 0 | X13: 0 | Y13: 0 | Z13: 0 | AA13: 0 | AB13: 127710.5932 | AC13: 0 | AD13: 249094.388 | AE13: 0 | AF13: 0 | AG13: 0 | AH13: 128000 | AI13: 0 | AJ13: 0 | AK13: 0 | AL13: 37376 | AM13: 5679 | AN13: 0 | AO13: 0 | AP13: 0 | AQ13: 0 | AR13: 0 | AS13: 0 | AT13: 0 | AU13: 0 | AV13: 1856518 | AW13: 815024.9812 | AX13: 171055 | AY13: 516208.5743 | AZ13: 2842597.981 | BA13: 2799542.981 | BB13: 4405 | BC13: 2409535 | BD13: 0 | BE13: 0 | BF13: 2842597.981 | BG13: 2842597.981 | BH13: 0 | BI13: 2452590 | BJ13: 2281535 | BK13: 2671542.981 | BL13: 4883.990825 | BM13: 4701.076575 | BN13: 0.03890901305 | BO13: -0.004909013051 | BP13: -12623.4725 | BQ13: 2829974.509 | BR13: 5094.916835 | BS13: Y | BT13: 5173.627987 | BU13: 0.03468991793 | BV13: -39072.21 | BW13: 2790902.299 | BX13: 0 | BY13: 2790902.299 | BZ13: 37376 | CA13: 2753526.299 | CD13: =IFERROR(VLOOKUP(A13,'ERS 2023-24'!C:S,16,FALSE),0) -> 0 | CE13: =IFERROR(VLOOKUP(A13,'ERS 2023-24'!C:S,17,FALSE),0) -> 0 | CF13: =IFERROR(VLOOKUP(A13,'ERS 2023-24'!C:V,18,FALSE),0)+IFERROR(VLOOKUP(A13,'ERS 2023-24'!C:W,19,FALSE),0) -> 0 | CG13: =IFERROR(ROUND((VLOOKUP(A13,'2023-24 Nursery Budget'!C:AJ,34,FALSE)),0),0) -> 0 | CI13: 2753526.299 | CJ13: 2790902.299
A14: 2424 | B14: 8312424 | C14: Pear Tree Infant School | D14: 261 | E14: 261 | F14: 0 | G14: =VLOOKUP(B14,'APT Adjusted Factors'!F:W,17,FALSE) -> 0 | H14: =VLOOKUP(B14,'APT Adjusted Factors'!F:W,18,FALSE) -> 0 | I14: 885834 | J14: 0 | K14: 0 | L14: 81600 | M14: 0 | N14: 122670 | O14: 0 | P14: 5520 | Q14: 5040 | R14: 44000 | S14: 53280 | T14: 1530 | U14: 2010 | V14: 0 | W14: 0 | X14: 0 | Y14: 0 | Z14: 0 | AA14: 0 | AB14: 119422 | AC14: 0 | AD14: 94358.06983 | AE14: 0 | AF14: 0 | AG14: 0 | AH14: 128000 | AI14: 0 | AJ14: 0 | AK14: 0 | AL14: 15593.75 | AM14: -499 | AN14: 0 | AO14: 0 | AP14: 0 | AQ14: 0 | AR14: 0 | AS14: 0 | AT14: 0 | AU14: 0 | AV14: 885834 | AW14: 529430.0698 | AX14: 143094.75 | AY14: 298656.4356 | AZ14: 1558358.82 | BA14: 1543264.07 | BB14: 4405 | BC14: 1149705 | BD14: 0 | BE14: 0 | BF14: 1558358.82 | BG14: 1558358.82 | BH14: 0 | BI14: 1164799.75 | BJ14: 1021705 | BK14: 1415264.07 | BL14: 5422.4677 | BM14: 5152.318669 | BN14: 0.05243251616 | BO14: -0.01843251616 | BP14: -24787.22145 | BQ14: 1533571.598 | BR14: 5817.918959 | BS14: Y | BT14: 5875.75325 | BU14: 0.03451242054 | BV14: -18643.23 | BW14: 1514928.368 | BX14: 0 | BY14: 1514928.368 | BZ14: 15593.75 | CA14: 1499334.618 | CD14: =IFERROR(VLOOKUP(A14,'ERS 2023-24'!C:S,16,FALSE),0) -> 0 | CE14: =IFERROR(VLOOKUP(A14,'ERS 2023-24'!C:S,17,FALSE),0) -> 0 | CF14: =IFERROR(VLOOKUP(A14,'ERS 2023-24'!C:V,18,FALSE),0)+IFERROR(VLOOKUP(A14,'ERS 2023-24'!C:W,19,FALSE),0) -> 0 | CG14: =IFERROR(ROUND((VLOOKUP(A14,'2023-24 Nursery Budget'!C:AJ,34,FALSE)),0),0) -> 0 | CI14: 1499334.618 | CJ14: 1514928.368
A15: 2429 | B15: 8312429 | C15: Rosehill Infant and Nursery School | D15: 138 | E15: 138 | F15: 0 | G15: =VLOOKUP(B15,'APT Adjusted Factors'!F:W,17,FALSE) -> 0 | H15: =VLOOKUP(B15,'APT Adjusted Factors'!F:W,18,FALSE) -> 0 | I15: 468372 | J15: 0 | K15: 0 | L15: 23520 | M15: 0 | N15: 34545 | O15: 0 | P15: 7590 | Q15: 2240 | R15: 26400 | S15: 9120 | T15: 1020 | U15: 10720 | V15: 0 | W15: 0 | X15: 0 | Y15: 0 | Z15: 0 | AA15: 0 | AB15: 65564.68085 | AC15: 0 | AD15: 58373.23135 | AE15: 0 | AF15: 2570.4 | AG15: 0 | AH15: 128000 | AI15: 0 | AJ15: 0 | AK15: 0 | AL15: 14096.75 | AM15: 2114.25 | AN15: 0 | AO15: 0 | AP15: 0 | AQ15: 0 | AR15: 0 | AS15: 0 | AT15: 0 | AU15: 0 | AV15: 468372 | AW15: 241663.3122 | AX15: 144211 | AY15: 146202.3962 | AZ15: 854246.3122 | BA15: 838035.3122 | BB15: 4405 | BC15: 607890 | BD15: 0 | BE15: 0 | BF15: 854246.3122 | BG15: 854246.3122 | BH15: 0 | BI15: 624101 | BJ15: 479890 | BK15: 710035.3122 | BL15: 5145.183422 | BM15: 4844.371473 | BN15: 0.06209514489 | BO15: -0.02809514489 | BP15: -18782.25795 | BQ15: 835464.0543 | BR15: 5936.616335 | BS15: Y | BT15: 6054.08735 | BU15: 0.03064406374 | BV15: -9857.34 | BW15: 825606.7143 | BX15: 0 | BY15: 825606.7143 | BZ15: 14096.75 | CA15: 811509.9643 | CD15: =IFERROR(VLOOKUP(A15,'ERS 2023-24'!C:S,16,FALSE),0) -> 0 | CE15: =IFERROR(VLOOKUP(A15,'ERS 2023-24'!C:S,17,FALSE),0) -> 0 | CF15: =IFERROR(VLOOKUP(A15,'ERS 2023-24'!C:V,18,FALSE),0)+IFERROR(VLOOKUP(A15,'ERS 2023-24'!C:W,19,FALSE),0) -> 0 | CG15: =IFERROR(ROUND((VLOOKUP(A15,'2023-24 Nursery Budget'!C:AJ,34,FALSE)),0),0) -> 119169 | CI15: 930678.9643 | CJ15: 944775.7143
A16: 2436 | B16: 8312436 | C16: Markeaton Primary School | D16: 415 | E16: 415 | F16: 0 | G16: =VLOOKUP(B16,'APT Adjusted Factors'!F:W,17,FALSE) -> 0 | H16: =VLOOKUP(B16,'APT Adjusted Factors'!F:W,18,FALSE) -> 0 | I16: 1408510 | J16: 0 | K16: 0 | L16: 43680 | M16: 0 | N16: 69090 | O16: 0 | P16: 15180 | Q16: 17640 | R16: 880 | S16: 3840 | T16: 1020 | U16: 18090 | V16: 0 | W16: 0 | X16: 0 | Y16: 0 | Z16: 0 | AA16: 0 | AB16: 14198.59551 | AC16: 0 | AD16: 124123.2709 | AE16: 0 | AF16: 0 | AG16: 0 | AH16: 128000 | AI16: 0 | AJ16: 0 | AK16: 0 | AL16: 26624 | AM16: 4107 | AN16: 0 | AO16: 0 | AP16: 0 | AQ16: 0 | AR16: 0 | AS16: 0 | AT16: 0 | AU16: 0 | AV16: 1408510 | AW16: 307741.8664 | AX16: 158731 | AY16: 278181.7405 | AZ16: 1874982.866 | BA16: 1844251.866 | BB16: 4405 | BC16: 1828075 | BD16: 0 | BE16: 0 | BF16: 1874982.866 | BG16: 1874982.866 | BH16: 0 | BI16: 1858806 | BJ16: 1700075 | BK16: 1716251.866 | BL16: 4135.546666 | BM16: 4081.808153 | BN16: 0.01316536949 | BO16: 0 | BP16: 0 | BQ16: 1874982.866 | BR16: 4443.980401 | BS16: Y | BT16: 4518.031003 | BU16: 0.01467872514 | BV16: -29643.45 | BW16: 1845339.416 | BX16: 0 | BY16: 1845339.416 | BZ16: 26624 | CA16: 1818715.416 | CD16: =IFERROR(VLOOKUP(A16,'ERS 2023-24'!C:S,16,FALSE),0) -> 12000 | CE16: =IFERROR(VLOOKUP(A16,'ERS 2023-24'!C:S,17,FALSE),0) -> 32555 | CF16: =IFERROR(VLOOKUP(A16,'ERS 2023-24'!C:V,18,FALSE),0)+IFERROR(VLOOKUP(A16,'ERS 2023-24'!C:W,19,FALSE),0) -> 20022.88 | CG16: =IFERROR(ROUND((VLOOKUP(A16,'2023-24 Nursery Budget'!C:AJ,34,FALSE)),0),0) -> 0 | CI16: 1883293.296 | CJ16: 1909917.296
A17: 2439 | B17: 8312439 | C17: Portway Infant School | D17: 183 | E17: 183 | F17: 0 | G17: =VLOOKUP(B17,'APT Adjusted Factors'!F:W,17,FALSE) -> 0 | H17: =VLOOKUP(B17,'APT Adjusted Factors'!F:W,18,FALSE) -> 0 | I17: 621102 | J17: 0 | K17: 0 | L17: 6240 | M17: 0 | N17: 9165 | O17: 0 | P17: 4830 | Q17: 1400 | R17: 440 | S17: 960 | T17: 510 | U17: 0 | V17: 0 | W17: 0 | X17: 0 | Y17: 0 | Z17: 0 | AA17: 0 | AB17: 7703.709677 | AC17: 0 | AD17: 59112.48275 | AE17: 0 | AF17: 0 | AG17: 0 | AH17: 128000 | AI17: 0 | AJ17: 0 | AK17: 0 | AL17: 11851.25 | AM17: 1777.75 | AN17: 0 | AO17: 0 | AP17: 0 | AQ17: 0 | AR17: 0 | AS17: 0 | AT17: 0 | AU17: 0 | AV17: 621102 | AW17: 90361.19243 | AX17: 141629 | AY17: 106754.3384 | AZ17: 853092.1924 | BA17: 839463.1924 | BB17: 4405 | BC17: 806115 | BD17: 0 | BE17: 0 | BF17: 853092.1924 | BG17: 853092.1924 | BH17: 0 | BI17: 819744 | BJ17: 678115 | BK17: 711463.1924 | BL17: 3887.777008 | BM17: 3839.017511 | BN17: 0.01270103531 | BO17: 0 | BP17: 0 | BQ17: 853092.1924 | BR17: 4587.23056 | BS17: Y | BT17: 4661.70597 | BU17: 0.03618261351 | BV17: -13071.69 | BW17: 840020.5024 | BX17: 0 | BY17: 840020.5024 | BZ17: 11851.25 | CA17: 828169.2524 | CD17: =IFERROR(VLOOKUP(A17,'ERS 2023-24'!C:S,16,FALSE),0) -> 0 | CE17: =IFERROR(VLOOKUP(A17,'ERS 2023-24'!C:S,17,FALSE),0) -> 0 | CF17: =IFERROR(VLOOKUP(A17,'ERS 2023-24'!C:V,18,FALSE),0)+IFERROR(VLOOKUP(A17,'ERS 2023-24'!C:W,19,FALSE),0) -> 0 | CG17: =IFERROR(ROUND((VLOOKUP(A17,'2023-24 Nursery Budget'!C:AJ,34,FALSE)),0),0) -> 0 | CI17: 828169.2524 | CJ17: 840020.5024
A18: 2443 | B18: 8312443 | C18: Alvaston Infant and Nursery School | D18: 241 | E18: 241 | F18: 0 | G18: =VLOOKUP(B18,'APT Adjusted Factors'!F:W,17,FALSE) -> 0 | H18: =VLOOKUP(B18,'APT Adjusted Factors'!F:W,18,FALSE) -> 0 | I18: 817954 | J18: 0 | K18: 0 | L18: 42240 | M18: 0 | N18: 64860 | O18: 0 | P18: 6210 | Q18: 14000 | R18: 440 | S18: 18720 | T18: 8160 | U18: 15410 | V18: 0 | W18: 0 | X18: 0 | Y18: 0 | Z18: 0 | AA18: 0 | AB18: 14154.93671 | AC18: 0 | AD18: 74905.10175 | AE18: 0 | AF18: 0 | AG18: 0 | AH18: 128000 | AI18: 0 | AJ18: 0 | AK18: 0 | AL18: 18213.5 | AM18: 2732.5 | AN18: 0 | AO18: 0 | AP18: 0 | AQ18: 0 | AR18: 0 | AS18: 0 | AT18: 0 | AU18: 0 | AV18: 817954 | AW18: 259100.0385 | AX18: 148946 | AY18: 190166.6805 | AZ18: 1226000.038 | BA18: 1205054.038 | BB18: 4405 | BC18: 1061605 | BD18: 0 | BE18: 0 | BF18: 1226000.038 | BG18: 1226000.038 | BH18: 0 | BI18: 1082551 | BJ18: 933605 | BK18: 1077054.038 | BL18: 4469.103894 | BM18: 4199.137822 | BN18: 0.06429083393 | BO18: -0.03029083393 | BP18: -30654.08813 | BQ18: 1195345.95 | BR18: 4873.02884 | BS18: Y | BT18: 4959.941703 | BU18: 0.03149183263 | BV18: -17214.63 | BW18: 1178131.32 | BX18: 0 | BY18: 1178131.32 | BZ18: 18213.5 | CA18: 1159917.82 | CD18: =IFERROR(VLOOKUP(A18,'ERS 2023-24'!C:S,16,FALSE),0) -> 0 | CE18: =IFERROR(VLOOKUP(A18,'ERS 2023-24'!C:S,17,FALSE),0) -> 0 | CF18: =IFERROR(VLOOKUP(A18,'ERS 2023-24'!C:V,18,FALSE),0)+IFERROR(VLOOKUP(A18,'ERS 2023-24'!C:W,19,FALSE),0) -> 0 | CG18: =IFERROR(ROUND((VLOOKUP(A18,'2023-24 Nursery Budget'!C:AJ,34,FALSE)),0),0) -> 289357 | CI18: 1449274.82 | CJ18: 1467488.32
A19: 2444 | B19: 8312444 | C19: Shelton Infant School | D19: 193 | E19: 193 | F19: 0 | G19: =VLOOKUP(B19,'APT Adjusted Factors'!F:W,17,FALSE) -> 0 | H19: =VLOOKUP(B19,'APT Adjusted Factors'!F:W,18,FALSE) -> 0 | I19: 655042 | J19: 0 | K19: 0 | L19: 33120 | M19: 0 | N19: 50055 | O19: 0 | P19: 12317.64398 | Q19: 3395.183246 | R19: 0 | S19: 13095.70681 | T19: 19582.93194 | U19: 8801.204188 | V19: 0 | W19: 0 | X19: 0 | Y19: 0 | Z19: 0 | AA19: 0 | AB19: 26652.38095 | AC19: 0 | AD19: 68507.73724 | AE19: 0 | AF19: 0 | AG19: 0 | AH19: 128000 | AI19: 0 | AJ19: 0 | AK19: 0 | AL19: 12475 | AM19: 1871 | AN19: 0 | AO19: 0 | AP19: 0 | AQ19: 0 | AR19: 0 | AS19: 0 | AT19: 0 | AU19: 0 | AV19: 655042 | AW19: 235527.7883 | AX19: 142346 | AY19: 162907.8997 | AZ19: 1032915.788 | BA19: 1018569.788 | BB19: 4405 | BC19: 850165 | BD19: 0 | BE19: 0 | BF19: 1032915.788 | BG19: 1032915.788 | BH19: 0 | BI19: 864511 | BJ19: 722165 | BK19: 890569.7883 | BL19: 4614.351235 | BM19: 4282.457569 | BN19: 0.07750074832 | BO19: -0.04350074832 | BP19: -35953.99101 | BQ19: 996961.7973 | BR19: 5091.273561 | BS19: Y | BT19: 5165.605168 | BU19: 0.03018944358 | BV19: -13785.99 | BW19: 983175.8073 | BX19: 0 | BY19: 983175.8073 | BZ19: 12475 | CA19: 970700.8073 | CD19: =IFERROR(VLOOKUP(A19,'ERS 2023-24'!C:S,16,FALSE),0) -> 0 | CE19: =IFERROR(VLOOKUP(A19,'ERS 2023-24'!C:S,17,FALSE),0) -> 0 | CF19: =IFERROR(VLOOKUP(A19,'ERS 2023-24'!C:V,18,FALSE),0)+IFERROR(VLOOKUP(A19,'ERS 2023-24'!C:W,19,FALSE),0) -> 0 | CG19: =IFERROR(ROUND((VLOOKUP(A19,'2023-24 Nursery Budget'!C:AJ,34,FALSE)),0),0) -> 148739 | CI19: 1119439.807 | CJ19: 1131914.807
A20: 2449 | B20: 8312449 | C20: Cavendish Close Infant School | D20: 201 | E20: 201 | F20: 0 | G20: =VLOOKUP(B20,'APT Adjusted Factors'!F:W,17,FALSE) -> 0 | H20: =VLOOKUP(B20,'APT Adjusted Factors'!F:W,18,FALSE) -> 0 | I20: 682194 | J20: 0 | K20: 0 | L20: 31680 | M20: 0 | N20: 47235 | O20: 0 | P20: 11500 | Q20: 8120 | R20: 2200 | S20: 960 | T20: 4590 | U20: 2010 | V20: 0 | W20: 0 | X20: 0 | Y20: 0 | Z20: 0 | AA20: 0 | AB20: 5259.24812 | AC20: 0 | AD20: 67797.9328 | AE20: 0 | AF20: 0 | AG20: 0 | AH20: 128000 | AI20: 0 | AJ20: 0 | AK20: 0 | AL20: 22954 | AM20: -2295 | AN20: 0 | AO20: 0 | AP20: 0 | AQ20: 0 | AR20: 0 | AS20: 0 | AT20: 0 | AU20: 0 | AV20: 682194 | AW20: 181352.1809 | AX20: 148659 | AY20: 146042.3677 | AZ20: 1012205.181 | BA20: 991546.1809 | BB20: 4405 | BC20: 885405 | BD20: 0 | BE20: 0 | BF20: 1012205.181 | BG20: 1012205.181 | BH20: 0 | BI20: 906064 | BJ20: 757405 | BK20: 863546.1809 | BL20: 4296.249656 | BM20: 4121.196805 | BN20: 0.04247621737 | BO20: -0.008476217369 | BP20: -7021.364148 | BQ20: 1005183.817 | BR20: 4898.133417 | BS20: Y | BT20: 5000.914511 | BU20: 0.04515963985 | BV20: -14357.43 | BW20: 990826.3868 | BX20: 0 | BY20: 990826.3868 | BZ20: 22954 | CA20: 967872.3868 | CD20: =IFERROR(VLOOKUP(A20,'ERS 2023-24'!C:S,16,FALSE),0) -> 0 | CE20: =IFERROR(VLOOKUP(A20,'ERS 2023-24'!C:S,17,FALSE),0) -> 0 | CF20: =IFERROR(VLOOKUP(A20,'ERS 2023-24'!C:V,18,FALSE),0)+IFERROR(VLOOKUP(A20,'ERS 2023-24'!C:W,19,FALSE),0) -> 0 | CG20: =IFERROR(ROUND((VLOOKUP(A20,'2023-24 Nursery Budget'!C:AJ,34,FALSE)),0),0) -> 213747 | CI20: 1181619.387 | CJ20: 1204573.387
A21: 2452 | B21: 8312452 | C21: Meadow Farm Community Primary School | D21: 150 | E21: 150 | F21: 0 | G21: =VLOOKUP(B21,'APT Adjusted Factors'!F:W,17,FALSE) -> 0 | H21: =VLOOKUP(B21,'APT Adjusted Factors'!F:W,18,FALSE) -> 0 | I21: 509100 | J21: 0 | K21: 0 | L21: 36960 | M21: 0 | N21: 54990 | O21: 0 | P21: 1150 | Q21: 1400 | R21: 880 | S21: 27360 | T21: 510 | U21: 4020 | V21: 0 | W21: 0 | X21: 0 | Y21: 0 | Z21: 0 | AA21: 0 | AB21: 6214.285714 | AC21: 0 | AD21: 60567.07317 | AE21: 0 | AF21: 7560 | AG21: 0 | AH21: 128000 | AI21: 0 | AJ21: 0 | AK21: 0 | AL21: 20334.25 | AM21: -2869.25 | AN21: 0 | AO21: 0 | AP21: 0 | AQ21: 0 | AR21: 0 | AS21: 0 | AT21: 0 | AU21: 0 | AV21: 509100 | AW21: 201611.3589 | AX21: 145465 | AY21: 137353.3897 | AZ21: 856176.3589 | BA21: 838711.3589 | BB21: 4405 | BC21: 660750 | BD21: 0 | BE21: 0 | BF21: 856176.3589 | BG21: 856176.3589 | BH21: 0 | BI21: 678215 | BJ21: 532750 | BK21: 710711.3589 | BL21: 4738.075726 | BM21: 4333.147704 | BN21: 0.09344893125 | BO21: -0.05944893125 | BP21: -38640.14999 | BQ21: 817536.2089 | BR21: 5333.808059 | BS21: Y | BT21: 5450.241393 | BU21: 0.02279245609 | BV21: -10714.5 | BW21: 806821.7089 | BX21: 0 | BY21: 806821.7089 | BZ21: 20334.25 | CA21: 786487.4589 | CD21: =IFERROR(VLOOKUP(A21,'ERS 2023-24'!C:S,16,FALSE),0) -> 0 | CE21: =IFERROR(VLOOKUP(A21,'ERS 2023-24'!C:S,17,FALSE),0) -> 0 | CF21: =IFERROR(VLOOKUP(A21,'ERS 2023-24'!C:V,18,FALSE),0)+IFERROR(VLOOKUP(A21,'ERS 2023-24'!C:W,19,FALSE),0) -> 0 | CG21: =IFERROR(ROUND((VLOOKUP(A21,'2023-24 Nursery Budget'!C:AJ,34,FALSE)),0),0) -> 88919 | CI21: 875406.4589 | CJ21: 895740.7089
A22: 2457 | B22: 8312457 | C22: Gayton Junior School | D22: 360 | E22: 360 | F22: 0 | G22: =VLOOKUP(B22,'APT Adjusted Factors'!F:W,17,FALSE) -> 0 | H22: =VLOOKUP(B22,'APT Adjusted Factors'!F:W,18,FALSE) -> 0 | I22: 1221840 | J22: 0 | K22: 0 | L22: 47520 | M22: 0 | N22: 78255 | O22: 0 | P22: 230 | Q22: 17640 | R22: 2200 | S22: 0 | T22: 8160 | U22: 0 | V22: 0 | W22: 0 | X22: 0 | Y22: 0 | Z22: 0 | AA22: 0 | AB22: 22620 | AC22: 0 | AD22: 108457.095 | AE22: 0 | AF22: 0 | AG22: 0 | AH22: 128000 | AI22: 0 | AJ22: 0 | AK22: 0 | AL22: 20958 | AM22: 3833 | AN22: 0 | AO22: 0 | AP22: 0 | AQ22: 0 | AR22: 0 | AS22: 0 | AT22: 0 | AU22: 0 | AV22: 1221840 | AW22: 285082.095 | AX22: 152791 | AY22: 248197.9985 | AZ22: 1659713.095 | BA22: 1634922.095 | BB22: 4405 | BC22: 1585800 | BD22: 0 | BE22: 0 | BF22: 1659713.095 | BG22: 1659713.095 | BH22: 0 | BI22: 1610591 | BJ22: 1457800 | BK22: 1506922.095 | BL22: 4185.894708 | BM22: 4070.598777 | BN22: 0.02832407157 | BO22: 0 | BP22: 0 | BQ22: 1659713.095 | BR22: 4541.450264 | BS22: Y | BT22: 4610.314153 | BU22: 0.02790471752 | BV22: -25714.8 | BW22: 1633998.295 | BX22: 0 | BY22: 1633998.295 | BZ22: 20958 | CA22: 1613040.295 | CD22: =IFERROR(VLOOKUP(A22,'ERS 2023-24'!C:S,16,FALSE),0) -> 0 | CE22: =IFERROR(VLOOKUP(A22,'ERS 2023-24'!C:S,17,FALSE),0) -> 0 | CF22: =IFERROR(VLOOKUP(A22,'ERS 2023-24'!C:V,18,FALSE),0)+IFERROR(VLOOKUP(A22,'ERS 2023-24'!C:W,19,FALSE),0) -> 0 | CG22: =IFERROR(ROUND((VLOOKUP(A22,'2023-24 Nursery Budget'!C:AJ,34,FALSE)),0),0) -> 0 | CI22: 1613040.295 | CJ22: 1633998.295
A23: 2458 | B23: 8312458 | C23: Ridgeway Infant School | D23: 268 | E23: 268 | F23: 0 | G23: =VLOOKUP(B23,'APT Adjusted Factors'!F:W,17,FALSE) -> 0 | H23: =VLOOKUP(B23,'APT Adjusted Factors'!F:W,18,FALSE) -> 0 | I23: 909592 | J23: 0 | K23: 0 | L23: 24960 | M23: 0 | N23: 36660 | O23: 0 | P23: 0 | Q23: 13160 | R23: 2640 | S23: 0 | T23: 9690 | U23: 0 | V23: 0 | W23: 0 | X23: 0 | Y23: 0 | Z23: 0 | AA23: 0 | AB23: 82496.08939 | AC23: 0 | AD23: 112663.0897 | AE23: 0 | AF23: 0 | AG23: 0 | AH23: 128000 | AI23: 0 | AJ23: 0 | AK23: 0 | AL23: 13348.25 | AM23: 1996 | AN23: 0 | AO23: 0 | AP23: 0 | AQ23: 0 | AR23: 0 | AS23: 0 | AT23: 0 | AU23: 0 | AV23: 909592 | AW23: 282269.1791 | AX23: 143344.25 | AY23: 212610.7379 | AZ23: 1335205.429 | BA23: 1319861.179 | BB23: 4405 | BC23: 1180540 | BD23: 0 | BE23: 0 | BF23: 1335205.429 | BG23: 1335205.429 | BH23: 0 | BI23: 1195884.25 | BJ23: 1052540 | BK23: 1191861.179 | BL23: 4447.243206 | BM23: 4119.621097 | BN23: 0.07952724324 | BO23: -0.04552724324 | BP23: -50264.73778 | BQ23: 1284940.691 | BR23: 4737.300154 | BS23: Y | BT23: 4794.554818 | BU23: 0.03246392621 | BV23: -19143.24 | BW23: 1265797.451 | BX23: 0 | BY23: 1265797.451 | BZ23: 13348.25 | CA23: 1252449.201 | CD23: =IFERROR(VLOOKUP(A23,'ERS 2023-24'!C:S,16,FALSE),0) -> 0 | CE23: =IFERROR(VLOOKUP(A23,'ERS 2023-24'!C:S,17,FALSE),0) -> 0 | CF23: =IFERROR(VLOOKUP(A23,'ERS 2023-24'!C:V,18,FALSE),0)+IFERROR(VLOOKUP(A23,'ERS 2023-24'!C:W,19,FALSE),0) -> 0 | CG23: =IFERROR(ROUND((VLOOKUP(A23,'2023-24 Nursery Budget'!C:AJ,34,FALSE)),0),0) -> 0 | CI23: 1252449.201 | CJ23: 1265797.451
A24: 2459 | B24: 8312459 | C24: Wren Park Primary School | D24: 381 | E24: 381 | F24: 0 | G24: =VLOOKUP(B24,'APT Adjusted Factors'!F:W,17,FALSE) -> 0 | H24: =VLOOKUP(B24,'APT Adjusted Factors'!F:W,18,FALSE) -> 0 | I24: 1293114 | J24: 0 | K24: 0 | L24: 14880 | M24: 0 | N24: 23265 | O24: 0 | P24: 463.6507937 | Q24: 1411.111111 | R24: 886.984127 | S24: 1451.428571 | T24: 514.047619 | U24: 0 | V24: 0 | W24: 0 | X24: 0 | Y24: 0 | Z24: 0 | AA24: 0 | AB24: 41898.34862 | AC24: 0 | AD24: 92433.91304 | AE24: 0 | AF24: 0 | AG24: 0 | AH24: 128000 | AI24: 0 | AJ24: 0 | AK24: 0 | AL24: 19461 | AM24: 1621.75 | AN24: 0 | AO24: 0 | AP24: 0 | AQ24: 0 | AR24: 0 | AS24: 0 | AT24: 0 | AU24: 0 | AV24: 1293114 | AW24: 177204.4839 | AX24: 149082.75 | AY24: 219649.3813 | AZ24: 1619401.234 | BA24: 1598318.484 | BB24: 4405 | BC24: 1678305 | BD24: 79986.51611 | BE24: 0 | BF24: 1699387.75 | BG24: 1699387.75 | BH24: 0 | BI24: 1699387.75 | BJ24: 1550305 | BK24: 1550305 | BL24: 4069.041995 | BM24: 4042.393701 | BN24: 0.006592206484 | BO24: 0 | BP24: 0 | BQ24: 1699387.75 | BR24: 4405 | BS24: Y | BT24: 4460.335302 | BU24: 0.006953892153 | BV24: -27214.83 | BW24: 1672172.92 | BX24: 0 | BY24: 1672172.92 | BZ24: 19461 | CA24: 1652711.92 | CD24: =IFERROR(VLOOKUP(A24,'ERS 2023-24'!C:S,16,FALSE),0) -> 0 | CE24: =IFERROR(VLOOKUP(A24,'ERS 2023-24'!C:S,17,FALSE),0) -> 0 | CF24: =IFERROR(VLOOKUP(A24,'ERS 2023-24'!C:V,18,FALSE),0)+IFERROR(VLOOKUP(A24,'ERS 2023-24'!C:W,19,FALSE),0) -> 0 | CG24: =IFERROR(ROUND((VLOOKUP(A24,'2023-24 Nursery Budget'!C:AJ,34,FALSE)),0),0) -> 0 | CI24: 1652711.92 | CJ24: 1672172.92
A25: 2462 | B25: 8312462 | C25: Ravensdale Infant and Nursery School | D25: 243 | E25: 243 | F25: 0 | G25: =VLOOKUP(B25,'APT Adjusted Factors'!F:W,17,FALSE) -> 0 | H25: =VLOOKUP(B25,'APT Adjusted Factors'!F:W,18,FALSE) -> 0 | I25: 824742 | J25: 0 | K25: 0 | L25: 30720 | M25: 0 | N25: 45120 | O25: 0 | P25: 6440 | Q25: 2240 | R25: 2200 | S25: 4320 | T25: 510 | U25: 2010 | V25: 0 | W25: 0 | X25: 0 | Y25: 0 | Z25: 0 | AA25: 0 | AB25: 15558.31169 | AC25: 0 | AD25: 84871.41798 | AE25: 0 | AF25: 0 | AG25: 0 | AH25: 128000 | AI25: 0 | AJ25: 0 | AK25: 0 | AL25: 17964 | AM25: 0 | AN25: 0 | AO25: 0 | AP25: 0 | AQ25: 0 | AR25: 0 | AS25: 0 | AT25: 0 | AU25: 0 | AV25: 824742 | AW25: 193989.7297 | AX25: 145964 | AY25: 168097.2187 | AZ25: 1164695.73 | BA25: 1146731.73 | BB25: 4405 | BC25: 1070415 | BD25: 0 | BE25: 0 | BF25: 1164695.73 | BG25: 1164695.73 | BH25: 0 | BI25: 1088379 | BJ25: 942415 | BK25: 1018731.73 | BL25: 4192.311645 | BM25: 4068.246398 | BN25: 0.03049600108 | BO25: 0 | BP25: 0 | BQ25: 1164695.73 | BR25: 4719.060616 | BS25: Y | BT25: 4792.986542 | BU25: 0.01378009873 | BV25: -17357.49 | BW25: 1147338.24 | BX25: 0 | BY25: 1147338.24 | BZ25: 17964 | CA25: 1129374.24 | CD25: =IFERROR(VLOOKUP(A25,'ERS 2023-24'!C:S,16,FALSE),0) -> 0 | CE25: =IFERROR(VLOOKUP(A25,'ERS 2023-24'!C:S,17,FALSE),0) -> 0 | CF25: =IFERROR(VLOOKUP(A25,'ERS 2023-24'!C:V,18,FALSE),0)+IFERROR(VLOOKUP(A25,'ERS 2023-24'!C:W,19,FALSE),0) -> 0 | CG25: =IFERROR(ROUND((VLOOKUP(A25,'2023-24 Nursery Budget'!C:AJ,34,FALSE)),0),0) -> 136861 | CI25: 1266235.24 | CJ25: 1284199.24
A26: 2469 | B26: 8312469 | C26: Silverhill Primary School | D26: 419 | E26: 419 | F26: 0 | G26: =VLOOKUP(B26,'APT Adjusted Factors'!F:W,17,FALSE) -> 0 | H26: =VLOOKUP(B26,'APT Adjusted Factors'!F:W,18,FALSE) -> 0 | I26: 1422086 | J26: 0 | K26: 0 | L26: 9600 | M26: 0 | N26: 15510 | O26: 0 | P26: 3450 | Q26: 840 | R26: 0 | S26: 2880 | T26: 0 | U26: 0 | V26: 0 | W26: 0 | X26: 0 | Y26: 0 | Z26: 0 | AA26: 0 | AB26: 7530.197183 | AC26: 0 | AD26: 101787.493 | AE26: 0 | AF26: 0 | AG26: 0 | AH26: 128000 | AI26: 0 | AJ26: 0 | AK26: 0 | AL26: 19835.25 | AM26: 623.75 | AN26: 0 | AO26: 0 | AP26: 0 | AQ26: 0 | AR26: 0 | AS26: 0 | AT26: 0 | AU26: 0 | AV26: 1422086 | AW26: 141597.6901 | AX26: 148459 | AY26: 220924.9552 | AZ26: 1712142.69 | BA26: 1691683.69 | BB26: 4405 | BC26: 1845695 | BD26: 154011.3099 | BE26: 0 | BF26: 1866154 | BG26: 1866154 | BH26: 0 | BI26: 1866154 | BJ26: 1717695 | BK26: 1717695 | BL26: 4099.51074 | BM26: 4068.354916 | BN26: 0.007658088941 | BO26: 0 | BP26: 0 | BQ26: 1866154 | BR26: 4405 | BS26: Y | BT26: 4453.828162 | BU26: 0.006990167655 | BV26: -29929.17 | BW26: 1836224.83 | BX26: 0 | BY26: 1836224.83 | BZ26: 19835.25 | CA26: 1816389.58 | CD26: =IFERROR(VLOOKUP(A26,'ERS 2023-24'!C:S,16,FALSE),0) -> 0 | CE26: =IFERROR(VLOOKUP(A26,'ERS 2023-24'!C:S,17,FALSE),0) -> 0 | CF26: =IFERROR(VLOOKUP(A26,'ERS 2023-24'!C:V,18,FALSE),0)+IFERROR(VLOOKUP(A26,'ERS 2023-24'!C:W,19,FALSE),0) -> 0 | CG26: =IFERROR(ROUND((VLOOKUP(A26,'2023-24 Nursery Budget'!C:AJ,34,FALSE)),0),0) -> 0 | CI26: 1816389.58 | CJ26: 1836224.83
A27: 2473 | B27: 8312473 | C27: Oakwood Infant and Nursery School | D27: 260 | E27: 260 | F27: 0 | G27: =VLOOKUP(B27,'APT Adjusted Factors'!F:W,17,FALSE) -> 0 | H27: =VLOOKUP(B27,'APT Adjusted Factors'!F:W,18,FALSE) -> 0 | I27: 882440 | J27: 0 | K27: 0 | L27: 41760 | M27: 0 | N27: 62745 | O27: 0 | P27: 923.5521236 | Q27: 16583.78378 | R27: 0 | S27: 7709.65251 | T27: 8191.505792 | U27: 23540.54054 | V27: 0 | W27: 0 | X27: 0 | Y27: 0 | Z27: 0 | AA27: 0 | AB27: 17741.17647 | AC27: 0 | AD27: 106539.6793 | AE27: 0 | AF27: 0 | AG27: 0 | AH27: 128000 | AI27: 0 | AJ27: 0 | AK27: 0 | AL27: 23424 | AM27: -3339 | AN27: 0 | AO27: 0 | AP27: 0 | AQ27: 0 | AR27: 0 | AS27: 0 | AT27: 0 | AU27: 0 | AV27: 882440 | AW27: 285734.8905 | AX27: 148085 | AY27: 207465.9254 | AZ27: 1316259.891 | BA27: 1296174.891 | BB27: 4405 | BC27: 1145300 | BD27: 0 | BE27: 0 | BF27: 1316259.891 | BG27: 1316259.891 | BH27: 0 | BI27: 1165385 | BJ27: 1017300 | BK27: 1168174.891 | BL27: 4492.980348 | BM27: 4326.421362 | BN27: 0.03849809641 | BO27: -0.00449809641 | BP27: -5059.771703 | BQ27: 1311200.119 | BR27: 4965.82738 | BS27: Y | BT27: 5043.07738 | BU27: 0.02732902174 | BV27: -18571.8 | BW27: 1292628.319 | BX27: 0 | BY27: 1292628.319 | BZ27: 23424 | CA27: 1269204.319 | CD27: =IFERROR(VLOOKUP(A27,'ERS 2023-24'!C:S,16,FALSE),0) -> 0 | CE27: =IFERROR(VLOOKUP(A27,'ERS 2023-24'!C:S,17,FALSE),0) -> 0 | CF27: =IFERROR(VLOOKUP(A27,'ERS 2023-24'!C:V,18,FALSE),0)+IFERROR(VLOOKUP(A27,'ERS 2023-24'!C:W,19,FALSE),0) -> 0 | CG27: =IFERROR(ROUND((VLOOKUP(A27,'2023-24 Nursery Budget'!C:AJ,34,FALSE)),0),0) -> 192106 | CI27: 1461310.319 | CJ27: 1484734.319
A28: 2505 | B28: 8312505 | C28: Redwood Primary School | D28: 595 | E28: 595 | F28: 0 | G28: =VLOOKUP(B28,'APT Adjusted Factors'!F:W,17,FALSE) -> 0 | H28: =VLOOKUP(B28,'APT Adjusted Factors'!F:W,18,FALSE) -> 0 | I28: 2019430 | J28: 0 | K28: 0 | L28: 106560 | M28: 0 | N28: 157920 | O28: 0 | P28: 1151.936027 | Q28: 24961.95286 | R28: 4848.148148 | S28: 40387.87879 | T28: 90421.9697 | U28: 5369.023569 | V28: 0 | W28: 0 | X28: 0 | Y28: 0 | Z28: 0 | AA28: 0 | AB28: 86275 | AC28: 0 | AD28: 263652.3585 | AE28: 0 | AF28: 1228.5 | AG28: 0 | AH28: 128000 | AI28: 0 | AJ28: 0 | AK28: 0 | AL28: 40192 | AM28: 768 | AN28: 0 | AO28: 0 | AP28: 0 | AQ28: 0 | AR28: 0 | AS28: 0 | AT28: 0 | AU28: 0 | AV28: 2019430 | AW28: 782776.7676 | AX28: 168960 | AY28: 523197.0643 | AZ28: 2971166.768 | BA28: 2930206.768 | BB28: 4405 | BC28: 2620975 | BD28: 0 | BE28: 0 | BF28: 2971166.768 | BG28: 2971166.768 | BH28: 0 | BI28: 2661935 | BJ28: 2492975 | BK28: 2802206.768 | BL28: 4709.591206 | BM28: 4591.598275 | BN28: 0.02569757282 | BO28: 0 | BP28: 0 | BQ28: 2971166.768 | BR28: 4924.717256 | BS28: Y | BT28: 4993.557593 | BU28: 0.02456896715 | BV28: -42500.85 | BW28: 2928665.918 | BX28: 0 | BY28: 2928665.918 | BZ28: 40192 | CA28: 2888473.918 | CD28: =IFERROR(VLOOKUP(A28,'ERS 2023-24'!C:S,16,FALSE),0) -> 0 | CE28: =IFERROR(VLOOKUP(A28,'ERS 2023-24'!C:S,17,FALSE),0) -> 0 | CF28: =IFERROR(VLOOKUP(A28,'ERS 2023-24'!C:V,18,FALSE),0)+IFERROR(VLOOKUP(A28,'ERS 2023-24'!C:W,19,FALSE),0) -> 0 | CG28: =IFERROR(ROUND((VLOOKUP(A28,'2023-24 Nursery Budget'!C:AJ,34,FALSE)),0),0) -> 219461 | CI28: 3107934.918 | CJ28: 3148126.918
A29: 2627 | B29: 8312627 | C29: Mickleover Primary School | D29: 422 | E29: 422 | F29: 0 | G29: =VLOOKUP(B29,'APT Adjusted Factors'!F:W,17,FALSE) -> 0 | H29: =VLOOKUP(B29,'APT Adjusted Factors'!F:W,18,FALSE) -> 0 | I29: 1432268 | J29: 0 | K29: 0 | L29: 23520 | M29: 0 | N29: 35955 | O29: 0 | P29: 4370 | Q29: 3360 | R29: 1320 | S29: 1440 | T29: 1020 | U29: 0 | V29: 0 | W29: 0 | X29: 0 | Y29: 0 | Z29: 0 | AA29: 0 | AB29: 30258.79121 | AC29: 0 | AD29: 120586.2998 | AE29: 0 | AF29: 0 | AG29: 0 | AH29: 128000 | AI29: 0 | AJ29: 0 | AK29: 0 | AL29: 17964 | AM29: 2695 | AN29: 0 | AO29: 0 | AP29: 0 | AQ29: 0 | AR29: 0 | AS29: 0 | AT29: 0 | AU29: 0 | AV29: 1432268 | AW29: 221830.091 | AX29: 148659 | AY29: 251519.6891 | AZ29: 1802757.091 | BA29: 1782098.091 | BB29: 4405 | BC29: 1858910 | BD29: 76811.90898 | BE29: 0 | BF29: 1879569 | BG29: 1879569 | BH29: 0 | BI29: 1879569 | BJ29: 1730910 | BK29: 1730910 | BL29: 4101.682464 | BM29: 4072.797101 | BN29: 0.007092266638 | BO29: 0 | BP29: 0 | BQ29: 1879569 | BR29: 4405 | BS29: Y | BT29: 4453.954976 | BU29: 0.006440213668 | BV29: -30143.46 | BW29: 1849425.54 | BX29: 0 | BY29: 1849425.54 | BZ29: 17964 | CA29: 1831461.54 | CD29: =IFERROR(VLOOKUP(A29,'ERS 2023-24'!C:S,16,FALSE),0) -> 0 | CE29: =IFERROR(VLOOKUP(A29,'ERS 2023-24'!C:S,17,FALSE),0) -> 0 | CF29: =IFERROR(VLOOKUP(A29,'ERS 2023-24'!C:V,18,FALSE),0)+IFERROR(VLOOKUP(A29,'ERS 2023-24'!C:W,19,FALSE),0) -> 0 | CG29: =IFERROR(ROUND((VLOOKUP(A29,'2023-24 Nursery Budget'!C:AJ,34,FALSE)),0),0) -> 0 | CI29: 1831461.54 | CJ29: 1849425.54
A30: 3526 | B30: 8313526 | C30: St James' Church of England Aided Infant School | D30: 69 | E30: 69 | F30: 0 | G30: =VLOOKUP(B30,'APT Adjusted Factors'!F:W,17,FALSE) -> 0 | H30: =VLOOKUP(B30,'APT Adjusted Factors'!F:W,18,FALSE) -> 0 | I30: 234186 | J30: 0 | K30: 0 | L30: 17280 | M30: 0 | N30: 25380 | O30: 0 | P30: 920 | Q30: 5600 | R30: 7040 | S30: 8640 | T30: 1020 | U30: 6030 | V30: 0 | W30: 0 | X30: 0 | Y30: 0 | Z30: 0 | AA30: 0 | AB30: 32957.64706 | AC30: 0 | AD30: 25137.17194 | AE30: 0 | AF30: 2702.7 | AG30: 0 | AH30: 128000 | AI30: 0 | AJ30: 0 | AK30: 0 | AL30: 1594.15 | AM30: 177.3 | AN30: 0 | AO30: 0 | AP30: 0 | AQ30: 0 | AR30: 0 | AS30: 0 | AT30: 0 | AU30: 0 | AV30: 234186 | AW30: 132707.519 | AX30: 129771.45 | AY30: 78213.68576 | AZ30: 496664.969 | BA30: 494893.519 | BB30: 4405 | BC30: 303945 | BD30: 0 | BE30: 0 | BF30: 496664.969 | BG30: 496664.969 | BH30: 0 | BI30: 305716.45 | BJ30: 175945 | BK30: 366893.519 | BL30: 5317.297377 | BM30: 4840.564837 | BN30: 0.09848696509 | BO30: -0.06448696509 | BP30: -21538.58016 | BQ30: 475126.3888 | BR30: 6860.216505 | BS30: Y | BT30: 6885.889693 | BU30: 0.06287685238 | BV30: -4928.67 | BW30: 470197.7188 | BX30: 0 | BY30: 470197.7188 | BZ30: 1594.15 | CA30: 468603.5688 | CD30: =IFERROR(VLOOKUP(A30,'ERS 2023-24'!C:S,16,FALSE),0) -> 0 | CE30: =IFERROR(VLOOKUP(A30,'ERS 2023-24'!C:S,17,FALSE),0) -> 0 | CF30: =IFERROR(VLOOKUP(A30,'ERS 2023-24'!C:V,18,FALSE),0)+IFERROR(VLOOKUP(A30,'ERS 2023-24'!C:W,19,FALSE),0) -> 0 | CG30: =IFERROR(ROUND((VLOOKUP(A30,'2023-24 Nursery Budget'!C:AJ,34,FALSE)),0),0) -> 62057 | CI30: 530660.5688 | CJ30: 532254.7188
A31: 5209 | B31: 8315209 | C31: Shelton Junior School | D31: 281 | E31: 281 | F31: 0 | G31: =VLOOKUP(B31,'APT Adjusted Factors'!F:W,17,FALSE) -> 0 | H31: =VLOOKUP(B31,'APT Adjusted Factors'!F:W,18,FALSE) -> 0 | I31: 953714 | J31: 0 | K31: 0 | L31: 50400 | M31: 0 | N31: 81075 | O31: 0 | P31: 20240 | Q31: 4480 | R31: 0 | S31: 11520 | T31: 23970 | U31: 12730 | V31: 0 | W31: 0 | X31: 0 | Y31: 0 | Z31: 0 | AA31: 0 | AB31: 8700 | AC31: 0 | AD31: 100369.3536 | AE31: 0 | AF31: 2967.3 | AG31: 0 | AH31: 128000 | AI31: 0 | AJ31: 0 | AK31: 0 | AL31: 4224 | AM31: 648 | AN31: 0 | AO31: 0 | AP31: 0 | AQ31: 0 | AR31: 0 | AS31: 0 | AT31: 0 | AU31: 0 | AV31: 953714 | AW31: 316451.6536 | AX31: 132872 | AY31: 228333.8146 | AZ31: 1403037.654 | BA31: 1398165.654 | BB31: 4405 | BC31: 1237805 | BD31: 0 | BE31: 0 | BF31: 1403037.654 | BG31: 1403037.654 | BH31: 0 | BI31: 1242677 | BJ31: 1109805 | BK31: 1270165.654 | BL31: 4520.162468 | BM31: 4347.95383 | BN31: 0.03960682312 | BO31: -0.005606823115 | BP31: -6850.276459 | BQ31: 1396187.377 | BR31: 4951.300275 | BS31: Y | BT31: 4968.638353 | BU31: 0.03041707883 | BV31: -20071.83 | BW31: 1376115.547 | BX31: 0 | BY31: 1376115.547 | BZ31: 4224 | CA31: 1371891.547 | CD31: =IFERROR(VLOOKUP(A31,'ERS 2023-24'!C:S,16,FALSE),0) -> 0 | CE31: =IFERROR(VLOOKUP(A31,'ERS 2023-24'!C:S,17,FALSE),0) -> 0 | CF31: =IFERROR(VLOOKUP(A31,'ERS 2023-24'!C:V,18,FALSE),0)+IFERROR(VLOOKUP(A31,'ERS 2023-24'!C:W,19,FALSE),0) -> 0 | CG31: =IFERROR(ROUND((VLOOKUP(A31,'2023-24 Nursery Budget'!C:AJ,34,FALSE)),0),0) -> 0 | CI31: 1371891.547 | CJ31: 1376115.547
A32: 4182 | B32: 8314182 | C32: Littleover Community School | D32: 1465 | E32: 0 | F32: 1465 | G32: =VLOOKUP(B32,'APT Adjusted Factors'!F:W,17,FALSE) -> 879 | H32: =VLOOKUP(B32,'APT Adjusted Factors'!F:W,18,FALSE) -> 586 | I32: 0 | J32: 4206015 | K32: 3160298 | L32: 0 | M32: 87360 | N32: 0 | O32: 238960 | P32: 0 | Q32: 0 | R32: 0 | S32: 0 | T32: 0 | U32: 0 | V32: 52031.54925 | W32: 22741.56977 | X32: 18638.16689 | Y32: 4088.372093 | Z32: 2925.991792 | AA32: 931.9083447 | AB32: 0 | AC32: 34500.64979 | AD32: 0 | AE32: 482892.9185 | AF32: 0 | AG32: 0 | AH32: 128000 | AI32: 0 | AJ32: 0 | AK32: 0 | AL32: 144640 | AM32: 24320 | AN32: 0 | AO32: 0 | AP32: 0 | AQ32: 0 | AR32: 0 | AS32: 0 | AT32: 0 | AU32: 0 | AV32: 7366313 | AW32: 945071.1264 | AX32: 296960 | AY32: 1015510.776 | AZ32: 8608344.126 | BA32: 8439384.126 | BB32: 5715 | BC32: 8372475 | BD32: 0 | BE32: 0 | BF32: 8608344.126 | BG32: 0 | BH32: 8608344.126 | BI32: 8541435 | BJ32: 8244475 | BK32: 8311384.126 | BL32: 5673.299745 | BM32: 5603.255116 | BN32: 0.01250070318 | BO32: 0 | BP32: 0 | BQ32: 8608344.126 | BR32: 5760.671759 | BS32: Y | BT32: 5876.002817 | BU32: 0.01498736886 | BV32: -88266.25 | BW32: 8520077.876 | BX32: 0 | BY32: 8520077.876 | BZ32: 144640 | CA32: 8375437.876 | CD32: =IFERROR(VLOOKUP(A32,'ERS 2023-24'!C:S,16,FALSE),0) -> 0 | CE32: =IFERROR(VLOOKUP(A32,'ERS 2023-24'!C:S,17,FALSE),0) -> 0 | CF32: =IFERROR(VLOOKUP(A32,'ERS 2023-24'!C:V,18,FALSE),0)+IFERROR(VLOOKUP(A32,'ERS 2023-24'!C:W,19,FALSE),0) -> 0 | CG32: =IFERROR(ROUND((VLOOKUP(A32,'2023-24 Nursery Budget'!C:AJ,34,FALSE)),0),0) -> 0 | CI32: 8375437.876 | CJ32: 8520077.876
A33: 5406 | B33: 8315406 | C33: Murray Park Community School | D33: 1124.333333 | E33: 0 | F33: 1124.333333 | G33: =VLOOKUP(B33,'APT Adjusted Factors'!F:W,17,FALSE) -> 694.3333333 | H33: =VLOOKUP(B33,'APT Adjusted Factors'!F:W,18,FALSE) -> 430 | I33: 0 | J33: 3322385 | K33: 2318990 | L33: 0 | M33: 160325.4113 | N33: 0 | O33: 416013.6106 | P33: 0 | Q33: 0 | R33: 0 | S33: 0 | T33: 0 | U33: 0 | V33: 99590.42238 | W33: 52642.04788 | X33: 40179.74382 | Y33: 65752.41232 | Z33: 24780.59469 | AA33: 32526.45929 | AB33: 0 | AC33: 33838.10897 | AD33: 0 | AE33: 555803.1615 | AF33: 0 | AG33: 0 | AH33: 128000 | AI33: 0 | AJ33: 0 | AK33: 0 | AL33: 25395.2 | AM33: 4300.8 | AN33: 0 | AO33: 0 | AP33: 0 | AQ33: 0 | AR33: 0 | AS33: 0 | AT33: 0 | AU33: 0 | AV33: 5641375 | AW33: 1481451.973 | AX33: 157696 | AY33: 1046236.232 | AZ33: 7280522.973 | BA33: 7250826.973 | BB33: 5715 | BC33: 6425565 | BD33: 0 | BE33: 0 | BF33: 7280522.973 | BG33: 0 | BH33: 7280522.973 | BI33: 6455261 | BJ33: 6297565 | BK33: 7122826.973 | BL33: 6335.15592 | BM33: 6217.697058 | BN33: 0.01889105585 | BO33: 0 | BP33: 0 | BQ33: 7280522.973 | BR33: 6449.001162 | BS33: Y | BT33: 6475.413258 | BU33: 0.0182043527 | BV33: -67741.08333 | BW33: 7212781.889 | BX33: 0 | BY33: 7212781.889 | BZ33: 25395.2 | CA33: 7187386.689 | CD33: =IFERROR(VLOOKUP(A33,'ERS 2023-24'!C:S,16,FALSE),0) -> 0 | CE33: =IFERROR(VLOOKUP(A33,'ERS 2023-24'!C:S,17,FALSE),0) -> 0 | CF33: =IFERROR(VLOOKUP(A33,'ERS 2023-24'!C:V,18,FALSE),0)+IFERROR(VLOOKUP(A33,'ERS 2023-24'!C:W,19,FALSE),0) -> 0 | CG33: =IFERROR(ROUND((VLOOKUP(A33,'2023-24 Nursery Budget'!C:AJ,34,FALSE)),0),0) -> 0 | CI33: 7187386.689 | CJ33: 7212781.889
A34: 4177 | B34: 8314177 | C34: The Bemrose School | D34: 1281.25 | E34: 343 | F34: 938.25 | G34: =VLOOKUP(B34,'APT Adjusted Factors'!F:W,17,FALSE) -> 581.25 | H34: =VLOOKUP(B34,'APT Adjusted Factors'!F:W,18,FALSE) -> 357 | I34: 1164142 | J34: 2781281.25 | K34: 1925301 | L34: 48000 | M34: 217772.7632 | N34: 78960 | O34: 533002.1299 | P34: 4140 | Q34: 31640 | R34: 27720 | S34: 24000 | T34: 16830 | U34: 6700 | V34: 31707.08882 | W34: 72333.72533 | X34: 191353.6184 | Y34: 143412.3355 | Z34: 36048.55263 | AA34: 40184.25987 | AB34: 47558.04714 | AC34: 236250.3017 | AD34: 144520.992 | AE34: 706775.7007 | AF34: 26856.9 | AG34: 87498.51429 | AH34: 128000 | AI34: 0 | AJ34: 0 | AK34: 0 | AL34: 22528 | AM34: 3328 | AN34: 0 | AO34: 0 | AP34: 0 | AQ34: 0 | AR34: 0 | AS34: 0 | AT34: 0 | AU34: 0 | AV34: 5870724.25 | AW34: 2753264.93 | AX34: 153856 | AY34: 1633828.617 | AZ34: 8777845.18 | BA34: 8751989.18 | BB34: 4950.833333 | BC34: 6343255.208 | BD34: 0 | BE34: 0 | BF34: 8777845.18 | BG34: 1662256.316 | BH34: 7115588.863 | BI34: 6369111.208 | BJ34: 6215255.208 | BK34: 8623989.18 | BL34: 6730.918384 | BM34: 6526.115678 | BN34: 0.0313820221 | BO34: 0 | BP34: 0 | BQ34: 8777845.18 | BR34: 6830.820823 | BS34: Y | BT34: 6851.001116 | BU34: 0.03083402654 | BV34: -81030.0525 | BW34: 8696815.127 | BX34: 0 | BY34: 8696815.127 | BZ34: 22528 | CA34: 8674287.127 | CD34: =IFERROR(VLOOKUP(A34,'ERS 2023-24'!C:S,16,FALSE),0) -> 270000 | CE34: =IFERROR(VLOOKUP(A34,'ERS 2023-24'!C:S,17,FALSE),0) -> 342000 | CF34: =IFERROR(VLOOKUP(A34,'ERS 2023-24'!C:V,18,FALSE),0)+IFERROR(VLOOKUP(A34,'ERS 2023-24'!C:W,19,FALSE),0) -> 0 | CG34: =IFERROR(ROUND((VLOOKUP(A34,'2023-24 Nursery Budget'!C:AJ,34,FALSE)),0),0) -> 45730 | CI34: 9332017.127 | CJ34: 9354545.127
A35: 2002 | B35: 8312002 | C35: Griffe Field Primary School | D35: 428 | E35: 428 | F35: 0 | G35: =VLOOKUP(B35,'APT Adjusted Factors'!F:W,17,FALSE) -> 0 | H35: =VLOOKUP(B35,'APT Adjusted Factors'!F:W,18,FALSE) -> 0 | I35: 1452632 | J35: 0 | K35: 0 | L35: 12960 | M35: 0 | N35: 19035 | O35: 0 | P35: 18573.58491 | Q35: 847.9245283 | R35: 2664.90566 | S35: 1453.584906 | T35: 514.8113208 | U35: 0 | V35: 0 | W35: 0 | X35: 0 | Y35: 0 | Z35: 0 | AA35: 0 | AB35: 16189.56522 | AC35: 0 | AD35: 99326.71906 | AE35: 0 | AF35: 0 | AG35: 0 | AH35: 128000 | AI35: 0 | AJ35: 0 | AK35: 0 | AL35: 10035.2 | AM35: 0 | AN35: 0 | AO35: 0 | AP35: 0 | AQ35: 0 | AR35: 0 | AS35: 0 | AT35: 0 | AU35: 0 | AV35: 1452632 | AW35: 171566.0956 | AX35: 138035.2 | AY35: 235569.9878 | AZ35: 1762233.296 | BA35: 1752198.096 | BB35: 4405 | BC35: 1885340 | BD35: 133141.9044 | BE35: 0 | BF35: 1895375.2 | BG35: 1895375.2 | BH35: 0 | BI35: 1895375.2 | BJ35: 1757340 | BK35: 1757340 | BL35: 4105.934579 | BM35: 4082.068966 | BN35: 0.005846450446 | BO35: 0 | BP35: 0 | BQ35: 1895375.2 | BR35: 4405 | BS35: Y | BT35: 4428.446729 | BU35: 0.006530900452 | BV35: 0 | BW35: 1895375.2 | BX35: 0 | BY35: 1895375.2 | BZ35: 10035.2 | CA35: 1885340 | CD35: =IFERROR(VLOOKUP(A35,'ERS 2023-24'!C:S,16,FALSE),0) -> 0 | CE35: =IFERROR(VLOOKUP(A35,'ERS 2023-24'!C:S,17,FALSE),0) -> 0 | CF35: =IFERROR(VLOOKUP(A35,'ERS 2023-24'!C:V,18,FALSE),0)+IFERROR(VLOOKUP(A35,'ERS 2023-24'!C:W,19,FALSE),0) -> 0 | CG35: =IFERROR(ROUND((VLOOKUP(A35,'2023-24 Nursery Budget'!C:AJ,34,FALSE)),0),0) -> 139672 | CI35: 2025012 | CJ35: 2035047.2
A36: 2004 | B36: 8312004 | C36: Beaufort Community Primary School | D36: 277 | E36: 277 | F36: 0 | G36: =VLOOKUP(B36,'APT Adjusted Factors'!F:W,17,FALSE) -> 0 | H36: =VLOOKUP(B36,'APT Adjusted Factors'!F:W,18,FALSE) -> 0 | I36: 940138 | J36: 0 | K36: 0 | L36: 72000 | M36: 0 | N36: 106455 | O36: 0 | P36: 10580 | Q36: 6720 | R36: 11880 | S36: 480 | T36: 9690 | U36: 85760 | V36: 0 | W36: 0 | X36: 0 | Y36: 0 | Z36: 0 | AA36: 0 | AB36: 14426.61224 | AC36: 0 | AD36: 83675.30769 | AE36: 0 | AF36: 0 | AG36: 0 | AH36: 128000 | AI36: 0 | AJ36: 0 | AK36: 0 | AL36: 4992 | AM36: 0 | AN36: 0 | AO36: 0 | AP36: 0 | AQ36: 0 | AR36: 0 | AS36: 0 | AT36: 0 | AU36: 0 | AV36: 940138 | AW36: 401666.9199 | AX36: 132992 | AY36: 255096.6267 | AZ36: 1474796.92 | BA36: 1469804.92 | BB36: 4405 | BC36: 1220185 | BD36: 0 | BE36: 0 | BF36: 1474796.92 | BG36: 1474796.92 | BH36: 0 | BI36: 1225177 | BJ36: 1092185 | BK36: 1341804.92 | BL36: 4844.061083 | BM36: 4730.55813 | BN36: 0.02399356468 | BO36: 0 | BP36: 0 | BQ36: 1474796.92 | BR36: 5306.154946 | BS36: Y | BT36: 5324.176606 | BU36: 0.02182596399 | BV36: 0 | BW36: 1474796.92 | BX36: 0 | BY36: 1474796.92 | BZ36: 4992 | CA36: 1469804.92 | CD36: =IFERROR(VLOOKUP(A36,'ERS 2023-24'!C:S,16,FALSE),0) -> 0 | CE36: =IFERROR(VLOOKUP(A36,'ERS 2023-24'!C:S,17,FALSE),0) -> 0 | CF36: =IFERROR(VLOOKUP(A36,'ERS 2023-24'!C:V,18,FALSE),0)+IFERROR(VLOOKUP(A36,'ERS 2023-24'!C:W,19,FALSE),0) -> 0 | CG36: =IFERROR(ROUND((VLOOKUP(A36,'2023-24 Nursery Budget'!C:AJ,34,FALSE)),0),0) -> 83569 | CI36: 1553373.92 | CJ36: 1558365.92
A37: 2006 | B37: 8312006 | C37: Homefields Primary School | D37: 315 | E37: 315 | F37: 0 | G37: =VLOOKUP(B37,'APT Adjusted Factors'!F:W,17,FALSE) -> 0 | H37: =VLOOKUP(B37,'APT Adjusted Factors'!F:W,18,FALSE) -> 0 | I37: 1069110 | J37: 0 | K37: 0 | L37: 5280 | M37: 0 | N37: 9165 | O37: 0 | P37: 1840 | Q37: 560 | R37: 0 | S37: 480 | T37: 0 | U37: 0 | V37: 0 | W37: 0 | X37: 0 | Y37: 0 | Z37: 0 | AA37: 0 | AB37: 24726.31579 | AC37: 0 | AD37: 66337.92614 | AE37: 0 | AF37: 0 | AG37: 0 | AH37: 128000 | AI37: 0 | AJ37: 0 | AK37: 0 | AL37: 6963.2 | AM37: 0 | AN37: 0 | AO37: 0 | AP37: 0 | AQ37: 0 | AR37: 0 | AS37: 0 | AT37: 0 | AU37: 0 | AV37: 1069110 | AW37: 108389.2419 | AX37: 134963.2 | AY37: 167687.2709 | AZ37: 1312462.442 | BA37: 1305499.242 | BB37: 4405 | BC37: 1387575 | BD37: 82075.75807 | BE37: 0 | BF37: 1394538.2 | BG37: 1394538.2 | BH37: 0 | BI37: 1394538.2 | BJ37: 1259575 | BK37: 1259575 | BL37: 3998.650794 | BM37: 3970.547368 | BN37: 0.007077972545 | BO37: 0 | BP37: 0 | BQ37: 1394538.2 | BR37: 4405 | BS37: Y | BT37: 4427.105397 | BU37: 0.004738888752 | BV37: 0 | BW37: 1394538.2 | BX37: 0 | BY37: 1394538.2 | BZ37: 6963.2 | CA37: 1387575 | CD37: =IFERROR(VLOOKUP(A37,'ERS 2023-24'!C:S,16,FALSE),0) -> 0 | CE37: =IFERROR(VLOOKUP(A37,'ERS 2023-24'!C:S,17,FALSE),0) -> 0 | CF37: =IFERROR(VLOOKUP(A37,'ERS 2023-24'!C:V,18,FALSE),0)+IFERROR(VLOOKUP(A37,'ERS 2023-24'!C:W,19,FALSE),0) -> 0 | CG37: =IFERROR(ROUND((VLOOKUP(A37,'2023-24 Nursery Budget'!C:AJ,34,FALSE)),0),0) -> 130862 | CI37: 1518437 | CJ37: 1525400.2
A38: 2007 | B38: 8312007 | C38: Wyndham Spencer Academy | D38: 441 | E38: 441 | F38: 0 | G38: =VLOOKUP(B38,'APT Adjusted Factors'!F:W,17,FALSE) -> 0 | H38: =VLOOKUP(B38,'APT Adjusted Factors'!F:W,18,FALSE) -> 0 | I38: 1496754 | J38: 0 | K38: 0 | L38: 73440 | M38: 0 | N38: 116325 | O38: 0 | P38: 7360 | Q38: 14840 | R38: 0 | S38: 35520 | T38: 94350 | U38: 10720 | V38: 0 | W38: 0 | X38: 0 | Y38: 0 | Z38: 0 | AA38: 0 | AB38: 36923.62205 | AC38: 0 | AD38: 132579.6107 | AE38: 0 | AF38: 1455.3 | AG38: 0 | AH38: 128000 | AI38: 0 | AJ38: 0 | AK38: 0 | AL38: 6195.2 | AM38: 0 | AN38: 0 | AO38: 0 | AP38: 0 | AQ38: 0 | AR38: 0 | AS38: 0 | AT38: 0 | AU38: 0 | AV38: 1496754 | AW38: 523513.5327 | AX38: 134195.2 | AY38: 366863.6409 | AZ38: 2154462.733 | BA38: 2148267.533 | BB38: 4405 | BC38: 1942605 | BD38: 0 | BE38: 0 | BF38: 2154462.733 | BG38: 2154462.733 | BH38: 0 | BI38: 1948800.2 | BJ38: 1814605 | BK38: 2020267.533 | BL38: 4581.105516 | BM38: 4469.980706 | BN38: 0.02486024388 | BO38: 0 | BP38: 0 | BQ38: 2154462.733 | BR38: 4871.354949 | BS38: Y | BT38: 4885.403022 | BU38: 0.02398509316 | BV38: 0 | BW38: 2154462.733 | BX38: 0 | BY38: 2154462.733 | BZ38: 6195.2 | CA38: 2148267.533 | CD38: =IFERROR(VLOOKUP(A38,'ERS 2023-24'!C:S,16,FALSE),0) -> 0 | CE38: =IFERROR(VLOOKUP(A38,'ERS 2023-24'!C:S,17,FALSE),0) -> 0 | CF38: =IFERROR(VLOOKUP(A38,'ERS 2023-24'!C:V,18,FALSE),0)+IFERROR(VLOOKUP(A38,'ERS 2023-24'!C:W,19,FALSE),0) -> 0 | CG38: =IFERROR(ROUND((VLOOKUP(A38,'2023-24 Nursery Budget'!C:AJ,34,FALSE)),0),0) -> 144163 | CI38: 2292430.533 | CJ38: 2298625.733
A39: 2008 | B39: 8312008 | C39: St John Fisher Catholic Voluntary Academy | D39: 203 | E39: 203 | F39: 0 | G39: =VLOOKUP(B39,'APT Adjusted Factors'!F:W,17,FALSE) -> 0 | H39: =VLOOKUP(B39,'APT Adjusted Factors'!F:W,18,FALSE) -> 0 | I39: 688982 | J39: 0 | K39: 0 | L39: 18240 | M39: 0 | N39: 29610 | O39: 0 | P39: 8510 | Q39: 10360 | R39: 0 | S39: 18720 | T39: 15300 | U39: 6030 | V39: 0 | W39: 0 | X39: 0 | Y39: 0 | Z39: 0 | AA39: 0 | AB39: 14634.35028 | AC39: 0 | AD39: 58616.25 | AE39: 0 | AF39: 0 | AG39: 0 | AH39: 128000 | AI39: 0 | AJ39: 0 | AK39: 0 | AL39: 3660.8 | AM39: 0 | AN39: 0 | AO39: 0 | AP39: 0 | AQ39: 0 | AR39: 0 | AS39: 0 | AT39: 0 | AU39: 0 | AV39: 688982 | AW39: 180020.6003 | AX39: 131660.8 | AY39: 146837.5504 | AZ39: 1000663.4 | BA39: 997002.6003 | BB39: 4405 | BC39: 894215 | BD39: 0 | BE39: 0 | BF39: 1000663.4 | BG39: 1000663.4 | BH39: 0 | BI39: 897875.8 | BJ39: 766215 | BK39: 869002.6003 | BL39: 4280.800987 | BM39: 4188.861525 | BN39: 0.02194855606 | BO39: 0 | BP39: 0 | BQ39: 1000663.4 | BR39: 4911.342859 | BS39: Y | BT39: 4929.376356 | BU39: 0.01905231186 | BV39: 0 | BW39: 1000663.4 | BX39: 0 | BY39: 1000663.4 | BZ39: 3660.8 | CA39: 997002.6003 | CD39: =IFERROR(VLOOKUP(A39,'ERS 2023-24'!C:S,16,FALSE),0) -> 0 | CE39: =IFERROR(VLOOKUP(A39,'ERS 2023-24'!C:S,17,FALSE),0) -> 0 | CF39: =IFERROR(VLOOKUP(A39,'ERS 2023-24'!C:V,18,FALSE),0)+IFERROR(VLOOKUP(A39,'ERS 2023-24'!C:W,19,FALSE),0) -> 0 | CG39: =IFERROR(ROUND((VLOOKUP(A39,'2023-24 Nursery Budget'!C:AJ,34,FALSE)),0),0) -> 0 | CI39: 997002.6003 | CJ39: 1000663.4
A40: 2009 | B40: 8312009 | C40: Landau Forte Academy Moorhead | D40: 206 | E40: 206 | F40: 0 | G40: =VLOOKUP(B40,'APT Adjusted Factors'!F:W,17,FALSE) -> 0 | H40: =VLOOKUP(B40,'APT Adjusted Factors'!F:W,18,FALSE) -> 0 | I40: 699164 | J40: 0 | K40: 0 | L40: 63360 | M40: 0 | N40: 94470 | O40: 0 | P40: 1641.881188 | Q40: 3140.990099 | R40: 0 | S40: 28880.79208 | T40: 36927.0297 | U40: 15715.14851 | V40: 0 | W40: 0 | X40: 0 | Y40: 0 | Z40: 0 | AA40: 0 | AB40: 25782.52632 | AC40: 0 | AD40: 96861.39304 | AE40: 0 | AF40: 4384.8 | AG40: 0 | AH40: 128000 | AI40: 0 | AJ40: 0 | AK40: 0 | AL40: 3763.2 | AM40: 0 | AN40: 0 | AO40: 0 | AP40: 0 | AQ40: 0 | AR40: 0 | AS40: 0 | AT40: 0 | AU40: 0 | AV40: 699164 | AW40: 371164.5609 | AX40: 131763.2 | AY40: 218811.907 | AZ40: 1202091.761 | BA40: 1198328.561 | BB40: 4405 | BC40: 907430 | BD40: 0 | BE40: 0 | BF40: 1202091.761 | BG40: 1202091.761 | BH40: 0 | BI40: 911193.2 | BJ40: 779430 | BK40: 1070328.561 | BL40: 5195.769713 | BM40: 4714.775581 | BN40: 0.1020184576 | BO40: -0.06801845756 | BP40: -66062.50312 | BQ40: 1136029.258 | BR40: 5496.437174 | BS40: Y | BT40: 5514.705135 | BU40: 0.0345105932 | BV40: 0 | BW40: 1136029.258 | BX40: 0 | BY40: 1136029.258 | BZ40: 3763.2 | CA40: 1132266.058 | CD40: =IFERROR(VLOOKUP(A40,'ERS 2023-24'!C:S,16,FALSE),0) -> 0 | CE40: =IFERROR(VLOOKUP(A40,'ERS 2023-24'!C:S,17,FALSE),0) -> 0 | CF40: =IFERROR(VLOOKUP(A40,'ERS 2023-24'!C:V,18,FALSE),0)+IFERROR(VLOOKUP(A40,'ERS 2023-24'!C:W,19,FALSE),0) -> 0 | CG40: =IFERROR(ROUND((VLOOKUP(A40,'2023-24 Nursery Budget'!C:AJ,34,FALSE)),0),0) -> 0 | CI40: 1132266.058 | CJ40: 1136029.258
A41: 2010 | B41: 8312010 | C41: Grampian Primary Academy | D41: 204 | E41: 204 | F41: 0 | G41: =VLOOKUP(B41,'APT Adjusted Factors'!F:W,17,FALSE) -> 0 | H41: =VLOOKUP(B41,'APT Adjusted Factors'!F:W,18,FALSE) -> 0 | I41: 692376 | J41: 0 | K41: 0 | L41: 52320 | M41: 0 | N41: 78960 | O41: 0 | P41: 230 | Q41: 4480 | R41: 880 | S41: 36960 | T41: 33660 | U41: 3350 | V41: 0 | W41: 0 | X41: 0 | Y41: 0 | Z41: 0 | AA41: 0 | AB41: 14960 | AC41: 0 | AD41: 66793.64074 | AE41: 0 | AF41: 2608.2 | AG41: 0 | AH41: 128000 | AI41: 0 | AJ41: 0 | AK41: 0 | AL41: 4096 | AM41: 0 | AN41: 0 | AO41: 0 | AP41: 0 | AQ41: 0 | AR41: 0 | AS41: 0 | AT41: 0 | AU41: 0 | AV41: 692376 | AW41: 295201.8407 | AX41: 132096 | AY41: 189550.6584 | AZ41: 1119673.841 | BA41: 1115577.841 | BB41: 4405 | BC41: 898620 | BD41: 0 | BE41: 0 | BF41: 1119673.841 | BG41: 1119673.841 | BH41: 0 | BI41: 902716 | BJ41: 770620 | BK41: 987577.8407 | BL41: 4841.067847 | BM41: 4623.807688 | BN41: 0.04698728267 | BO41: -0.01298728267 | BP41: -12250.34228 | BQ41: 1107423.498 | BR41: 5408.46813 | BS41: Y | BT41: 5428.546561 | BU41: 0.03160611513 | BV41: 0 | BW41: 1107423.498 | BX41: 0 | BY41: 1107423.498 | BZ41: 4096 | CA41: 1103327.498 | CD41: =IFERROR(VLOOKUP(A41,'ERS 2023-24'!C:S,16,FALSE),0) -> 0 | CE41: =IFERROR(VLOOKUP(A41,'ERS 2023-24'!C:S,17,FALSE),0) -> 0 | CF41: =IFERROR(VLOOKUP(A41,'ERS 2023-24'!C:V,18,FALSE),0)+IFERROR(VLOOKUP(A41,'ERS 2023-24'!C:W,19,FALSE),0) -> 0 | CG41: =IFERROR(ROUND((VLOOKUP(A41,'2023-24 Nursery Budget'!C:AJ,34,FALSE)),0),0) -> 81201 | CI41: =SUM(CA41:CH41) -> 1184528.498 | CJ41: =CI41+BZ41 -> 1188624.498
A42: 2011 | B42: 8312011 | C42: Bishop Lonsdale Church of England Primary School and Nursery | D42: 212 | E42: 212 | F42: 0 | G42: =VLOOKUP(B42,'APT Adjusted Factors'!F:W,17,FALSE) -> 0 | H42: =VLOOKUP(B42,'APT Adjusted Factors'!F:W,18,FALSE) -> 0 | I42: 719528 | J42: 0 | K42: 0 | L42: 37440 | M42: 0 | N42: 54990 | O42: 0 | P42: 1625.333333 | Q42: 31093.33333 | R42: 12881.52381 | S42: 8237.714286 | T42: 7722.857143 | U42: 0 | V42: 0 | W42: 0 | X42: 0 | Y42: 0 | Z42: 0 | AA42: 0 | AB42: 16526.88172 | AC42: 0 | AD42: 59905.86826 | AE42: 0 | AF42: 0 | AG42: 0 | AH42: 128000 | AI42: 0 | AJ42: 0 | AK42: 0 | AL42: 6400 | AM42: 0 | AN42: 0 | AO42: 0 | AP42: 0 | AQ42: 0 | AR42: 0 | AS42: 0 | AT42: 0 | AU42: 0 | AV42: 719528 | AW42: 230423.5119 | AX42: 134400 | AY42: 168360.9383 | AZ42: 1084351.512 | BA42: 1077951.512 | BB42: 4405 | BC42: 933860 | BD42: 0 | BE42: 0 | BF42: 1084351.512 | BG42: 1084351.512 | BH42: 0 | BI42: 940260 | BJ42: 805860 | BK42: 949951.5119 | BL42: 4480.903358 | BM42: 4291.887322 | BN42: 0.04404030726 | BO42: -0.01004030726 | BP42: -9135.475896 | BQ42: 1075216.036 | BR42: 5041.585075 | BS42: Y | BT42: 5071.773755 | BU42: 0.03015923188 | BV42: 0 | BW42: 1075216.036 | BX42: 0 | BY42: 1075216.036 | BZ42: 6400 | CA42: 1068816.036 | CD42: =IFERROR(VLOOKUP(A42,'ERS 2023-24'!C:S,16,FALSE),0) -> 0 | CE42: =IFERROR(VLOOKUP(A42,'ERS 2023-24'!C:S,17,FALSE),0) -> 0 | CF42: =IFERROR(VLOOKUP(A42,'ERS 2023-24'!C:V,18,FALSE),0)+IFERROR(VLOOKUP(A42,'ERS 2023-24'!C:W,19,FALSE),0) -> 0 | CG42: =IFERROR(ROUND((VLOOKUP(A42,'2023-24 Nursery Budget'!C:AJ,34,FALSE)),0),0) -> 46719 | CI42: 1115535.036 | CJ42: 1121935.036
A43: 2012 | B43: 8312012 | C43: Allenton Primary School | D43: 317 | E43: 317 | F43: 0 | G43: =VLOOKUP(B43,'APT Adjusted Factors'!F:W,17,FALSE) -> 0 | H43: =VLOOKUP(B43,'APT Adjusted Factors'!F:W,18,FALSE) -> 0 | I43: 1075898 | J43: 0 | K43: 0 | L43: 95040 | M43: 0 | N43: 141000 | O43: 0 | P43: 1615.094937 | Q43: 842.6582278 | R43: 1324.177215 | S43: 26965.06329 | T43: 99253.10127 | U43: 30245.41139 | V43: 0 | W43: 0 | X43: 0 | Y43: 0 | Z43: 0 | AA43: 0 | AB43: 31500.48951 | AC43: 0 | AD43: 130052.2328 | AE43: 0 | AF43: 7541.1 | AG43: 0 | AH43: 128000 | AI43: 0 | AJ43: 0 | AK43: 0 | AL43: 7475.2 | AM43: 0 | AN43: 0 | AO43: 0 | AP43: 0 | AQ43: 0 | AR43: 0 | AS43: 0 | AT43: 0 | AU43: 0 | AV43: 1075898 | AW43: 565379.3287 | AX43: 135475.2 | AY43: 334798.8591 | AZ43: 1776752.529 | BA43: 1769277.329 | BB43: 4405 | BC43: 1396385 | BD43: 0 | BE43: 0 | BF43: 1776752.529 | BG43: 1776752.529 | BH43: 0 | BI43: 1403860.2 | BJ43: 1268385 | BK43: 1641277.329 | BL43: 5177.531005 | BM43: 4908.467769 | BN43: 0.05481613596 | BO43: -0.02081613596 | BP43: -32389.58038 | BQ43: 1744362.948 | BR43: 5479.141162 | BS43: Y | BT43: 5502.722234 | BU43: 0.03590857941 | BV43: 0 | BW43: 1744362.948 | BX43: 0 | BY43: 1744362.948 | BZ43: 7475.2 | CA43: 1736887.748 | CD43: =IFERROR(VLOOKUP(A43,'ERS 2023-24'!C:S,16,FALSE),0) -> 0 | CE43: =IFERROR(VLOOKUP(A43,'ERS 2023-24'!C:S,17,FALSE),0) -> 0 | CF43: =IFERROR(VLOOKUP(A43,'ERS 2023-24'!C:V,18,FALSE),0)+IFERROR(VLOOKUP(A43,'ERS 2023-24'!C:W,19,FALSE),0) -> 0 | CG43: =IFERROR(ROUND((VLOOKUP(A43,'2023-24 Nursery Budget'!C:AJ,34,FALSE)),0),0) -> 0 | CI43: 1736887.748 | CJ43: 1744362.948
A44: 2013 | B44: 8312013 | C44: Firs Primary School | D44: 383 | E44: 383 | F44: 0 | G44: =VLOOKUP(B44,'APT Adjusted Factors'!F:W,17,FALSE) -> 0 | H44: =VLOOKUP(B44,'APT Adjusted Factors'!F:W,18,FALSE) -> 0 | I44: 1299902 | J44: 0 | K44: 0 | L44: 107520 | M44: 0 | N44: 158625 | O44: 0 | P44: 4140 | Q44: 35000 | R44: 31240 | S44: 41760 | T44: 26520 | U44: 7370 | V44: 0 | W44: 0 | X44: 0 | Y44: 0 | Z44: 0 | AA44: 0 | AB44: 114652.9032 | AC44: 0 | AD44: 235115.2559 | AE44: 0 | AF44: 62609.07016 | AG44: 0 | AH44: 128000 | AI44: 0 | AJ44: 0 | AK44: 0 | AL44: 4506.52 | AM44: 0 | AN44: 0 | AO44: 0 | AP44: 0 | AQ44: 0 | AR44: 0 | AS44: 0 | AT44: 0 | AU44: 0 | AV44: 1299902 | AW44: 824552.2293 | AX44: 132506.52 | AY44: 492685.6131 | AZ44: 2256960.749 | BA44: 2252454.229 | BB44: 4405 | BC44: 1687115 | BD44: 0 | BE44: 0 | BF44: 2256960.749 | BG44: 2256960.749 | BH44: 0 | BI44: 1691621.52 | BJ44: 1559115 | BK44: 2124454.229 | BL44: 5546.877883 | BM44: 5418.541818 | BN44: 0.02368461289 | BO44: 0 | BP44: 0 | BQ44: 2256960.749 | BR44: 5881.081539 | BS44: Y | BT44: 5892.847909 | BU44: 0.01981555472 | BV44: 0 | BW44: 2256960.749 | BX44: 0 | BY44: 2256960.749 | BZ44: 4506.52 | CA44: 2252454.229 | CD44: =IFERROR(VLOOKUP(A44,'ERS 2023-24'!C:S,16,FALSE),0) -> 0 | CE44: =IFERROR(VLOOKUP(A44,'ERS 2023-24'!C:S,17,FALSE),0) -> 0 | CF44: =IFERROR(VLOOKUP(A44,'ERS 2023-24'!C:V,18,FALSE),0)+IFERROR(VLOOKUP(A44,'ERS 2023-24'!C:W,19,FALSE),0) -> 0 | CG44: =IFERROR(ROUND((VLOOKUP(A44,'2023-24 Nursery Budget'!C:AJ,34,FALSE)),0),0) -> 124507 | CI44: 2376961.229 | CJ44: 2381467.749
A45: 2014 | B45: 8312014 | C45: Akaal Primary School | D45: 204 | E45: 204 | F45: 0 | G45: =VLOOKUP(B45,'APT Adjusted Factors'!F:W,17,FALSE) -> 0 | H45: =VLOOKUP(B45,'APT Adjusted Factors'!F:W,18,FALSE) -> 0 | I45: 692376 | J45: 0 | K45: 0 | L45: 27840 | M45: 0 | N45: 42300 | O45: 0 | P45: 693.3990148 | Q45: 9004.137931 | R45: 16360.19704 | S45: 10129.65517 | T45: 14350.34483 | U45: 2019.901478 | V45: 0 | W45: 0 | X45: 0 | Y45: 0 | Z45: 0 | AA45: 0 | AB45: 46688.43243 | AC45: 0 | AD45: 100950.9243 | AE45: 0 | AF45: 9223.2 | AG45: 0 | AH45: 128000 | AI45: 0 | AJ45: 0 | AK45: 0 | AL45: 4615.75 | AM45: 0 | AN45: 0 | AO45: 0 | AP45: 0 | AQ45: 0 | AR45: 0 | AS45: 0 | AT45: 0 | AU45: 0 | AV45: 692376 | AW45: 279560.1922 | AX45: 132615.75 | AY45: 189843.1545 | AZ45: 1104551.942 | BA45: 1099936.192 | BB45: 4405 | BC45: 898620 | BD45: 0 | BE45: 0 | BF45: 1104551.942 | BG45: 1104551.942 | BH45: 0 | BI45: 903235.75 | BJ45: 770620 | BK45: 971936.1922 | BL45: 4764.393099 | BM45: 4357.851701 | BN45: 0.09328940627 | BO45: -0.05928940627 | BP45: -52708.38576 | BQ45: 1051843.556 | BR45: 5133.469639 | BS45: Y | BT45: 5156.095865 | BU45: 0.01728694613 | BV45: 0 | BW45: 1051843.556 | BX45: 0 | BY45: 1051843.556 | BZ45: 4615.75 | CA45: 1047227.806 | CD45: =IFERROR(VLOOKUP(A45,'ERS 2023-24'!C:S,16,FALSE),0) -> 0 | CE45: =IFERROR(VLOOKUP(A45,'ERS 2023-24'!C:S,17,FALSE),0) -> 0 | CF45: =IFERROR(VLOOKUP(A45,'ERS 2023-24'!C:V,18,FALSE),0)+IFERROR(VLOOKUP(A45,'ERS 2023-24'!C:W,19,FALSE),0) -> 0 | CG45: =IFERROR(ROUND((VLOOKUP(A45,'2023-24 Nursery Budget'!C:AJ,34,FALSE)),0),0) -> 0 | CI45: 1047227.806 | CJ45: 1051843.556
A46: 2016 | B46: 8312016 | C46: Derwent Primary School | D46: 231 | E46: 231 | F46: 0 | G46: =VLOOKUP(B46,'APT Adjusted Factors'!F:W,17,FALSE) -> 0 | H46: =VLOOKUP(B46,'APT Adjusted Factors'!F:W,18,FALSE) -> 0 | I46: 784014 | J46: 0 | K46: 0 | L46: 74400 | M46: 0 | N46: 109275 | O46: 0 | P46: 2330.263158 | Q46: 13616.84211 | R46: 1783.157895 | S46: 972.6315789 | T46: 3616.973684 | U46: 94355.39474 | V46: 0 | W46: 0 | X46: 0 | Y46: 0 | Z46: 0 | AA46: 0 | AB46: 18456.42857 | AC46: 0 | AD46: 76935.83333 | AE46: 0 | AF46: 10527.3 | AG46: 0 | AH46: 128000 | AI46: 0 | AJ46: 0 | AK46: 0 | AL46: 5734.4 | AM46: 0 | AN46: 0 | AO46: 0 | AP46: 0 | AQ46: 0 | AR46: 0 | AS46: 0 | AT46: 0 | AU46: 0 | AV46: 784014 | AW46: 406269.8251 | AX46: 133734.4 | AY46: 244994.1287 | AZ46: 1324018.225 | BA46: 1318283.825 | BB46: 4405 | BC46: 1017555 | BD46: 0 | BE46: 0 | BF46: 1324018.225 | BG46: 1324018.225 | BH46: 0 | BI46: 1023289.4 | BJ46: 889555 | BK46: 1190283.825 | BL46: 5152.743831 | BM46: 4902.062517 | BN46: 0.05113792686 | BO46: -0.01713792686 | BP46: -19406.58463 | BQ46: 1304611.64 | BR46: 5622.845197 | BS46: Y | BT46: 5647.669439 | BU46: 0.02067656244 | BV46: 0 | BW46: 1304611.64 | BX46: 0 | BY46: 1304611.64 | BZ46: 5734.4 | CA46: 1298877.24 | CD46: =IFERROR(VLOOKUP(A46,'ERS 2023-24'!C:S,16,FALSE),0) -> 0 | CE46: =IFERROR(VLOOKUP(A46,'ERS 2023-24'!C:S,17,FALSE),0) -> 0 | CF46: =IFERROR(VLOOKUP(A46,'ERS 2023-24'!C:V,18,FALSE),0)+IFERROR(VLOOKUP(A46,'ERS 2023-24'!C:W,19,FALSE),0) -> 0 | CG46: =IFERROR(ROUND((VLOOKUP(A46,'2023-24 Nursery Budget'!C:AJ,34,FALSE)),0),0) -> 116897 | CI46: 1415774.24 | CJ46: 1421508.64
A47: 2017 | B47: 8312017 | C47: Pear Tree Community Junior School | D47: 355 | E47: 355 | F47: 0 | G47: =VLOOKUP(B47,'APT Adjusted Factors'!F:W,17,FALSE) -> 0 | H47: =VLOOKUP(B47,'APT Adjusted Factors'!F:W,18,FALSE) -> 0 | I47: 1204870 | J47: 0 | K47: 0 | L47: 119520 | M47: 0 | N47: 183300 | O47: 0 | P47: 8740 | Q47: 6440 | R47: 60720 | S47: 64800 | T47: 3060 | U47: 7370 | V47: 0 | W47: 0 | X47: 0 | Y47: 0 | Z47: 0 | AA47: 0 | AB47: 69411.04816 | AC47: 0 | AD47: 160321.9444 | AE47: 0 | AF47: 0 | AG47: 0 | AH47: 128000 | AI47: 0 | AJ47: 0 | AK47: 0 | AL47: 3993.6 | AM47: 0 | AN47: 0 | AO47: 0 | AP47: 0 | AQ47: 0 | AR47: 0 | AS47: 0 | AT47: 0 | AU47: 0 | AV47: 1204870 | AW47: 683682.9926 | AX47: 131993.6 | AY47: 388914.3852 | AZ47: 2020546.593 | BA47: 2016552.993 | BB47: 4405 | BC47: 1563775 | BD47: 0 | BE47: 0 | BF47: 2020546.593 | BG47: 2020546.593 | BH47: 0 | BI47: 1567768.6 | BJ47: 1435775 | BK47: 1888552.993 | BL47: 5319.867585 | BM47: 5196.019266 | BN47: 0.02383523079 | BO47: 0 | BP47: 0 | BQ47: 2020546.593 | BR47: 5680.430965 | BS47: Y | BT47: 5691.680543 | BU47: 0.02155112513 | BV47: 0 | BW47: 2020546.593 | BX47: 0 | BY47: 2020546.593 | BZ47: 3993.6 | CA47: 2016552.993 | CD47: =IFERROR(VLOOKUP(A47,'ERS 2023-24'!C:S,16,FALSE),0) -> 0 | CE47: =IFERROR(VLOOKUP(A47,'ERS 2023-24'!C:S,17,FALSE),0) -> 0 | CF47: =IFERROR(VLOOKUP(A47,'ERS 2023-24'!C:V,18,FALSE),0)+IFERROR(VLOOKUP(A47,'ERS 2023-24'!C:W,19,FALSE),0) -> 0 | CG47: =IFERROR(ROUND((VLOOKUP(A47,'2023-24 Nursery Budget'!C:AJ,34,FALSE)),0),0) -> 0 | CI47: 2016552.993 | CJ47: 2020546.593
A48: 2018 | B48: 8312018 | C48: Breadsall Hill Top Primary School | D48: 366 | E48: 366 | F48: 0 | G48: =VLOOKUP(B48,'APT Adjusted Factors'!F:W,17,FALSE) -> 0 | H48: =VLOOKUP(B48,'APT Adjusted Factors'!F:W,18,FALSE) -> 0 | I48: 1242204 | J48: 0 | K48: 0 | L48: 89760 | M48: 0 | N48: 133245 | O48: 0 | P48: 32749.47945 | Q48: 17969.09589 | R48: 14559.78082 | S48: 3369.205479 | T48: 7159.561644 | U48: 21498.73973 | V48: 0 | W48: 0 | X48: 0 | Y48: 0 | Z48: 0 | AA48: 0 | AB48: 9767.484663 | AC48: 0 | AD48: 158740.6497 | AE48: 0 | AF48: 11377.8 | AG48: 0 | AH48: 128000 | AI48: 0 | AJ48: 0 | AK48: 0 | AL48: 6400 | AM48: 0 | AN48: 0 | AO48: 0 | AP48: 0 | AQ48: 0 | AR48: 0 | AS48: 0 | AT48: 0 | AU48: 0 | AV48: 1242204 | AW48: 500196.7974 | AX48: 134400 | AY48: 333219.8158 | AZ48: 1876800.797 | BA48: 1870400.797 | BB48: 4405 | BC48: 1612230 | BD48: 0 | BE48: 0 | BF48: 1876800.797 | BG48: 1876800.797 | BH48: 0 | BI48: 1618630 | BJ48: 1484230 | BK48: 1742400.797 | BL48: 4760.657916 | BM48: 4475.6182 | BN48: 0.0636872279 | BO48: -0.0296872279 | BP48: -48629.94328 | BQ48: 1828170.854 | BR48: 4977.515995 | BS48: Y | BT48: 4995.002334 | BU48: 0.03004669821 | BV48: 0 | BW48: 1828170.854 | BX48: 0 | BY48: 1828170.854 | BZ48: 6400 | CA48: 1821770.854 | CD48: =IFERROR(VLOOKUP(A48,'ERS 2023-24'!C:S,16,FALSE),0) -> 0 | CE48: =IFERROR(VLOOKUP(A48,'ERS 2023-24'!C:S,17,FALSE),0) -> 0 | CF48: =IFERROR(VLOOKUP(A48,'ERS 2023-24'!C:V,18,FALSE),0)+IFERROR(VLOOKUP(A48,'ERS 2023-24'!C:W,19,FALSE),0) -> 0 | CG48: =IFERROR(ROUND((VLOOKUP(A48,'2023-24 Nursery Budget'!C:AJ,34,FALSE)),0),0) -> 133238 | CI48: 1955008.854 | CJ48: 1961408.854
A49: 2019 | B49: 8312019 | C49: Cavendish Close Junior Academy | D49: 313 | E49: 313 | F49: 0 | G49: =VLOOKUP(B49,'APT Adjusted Factors'!F:W,17,FALSE) -> 0 | H49: =VLOOKUP(B49,'APT Adjusted Factors'!F:W,18,FALSE) -> 0 | I49: 1062322 | J49: 0 | K49: 0 | L49: 52800 | M49: 0 | N49: 86715 | O49: 0 | P49: 14950 | Q49: 12040 | R49: 3960 | S49: 1440 | T49: 5100 | U49: 2010 | V49: 0 | W49: 0 | X49: 0 | Y49: 0 | Z49: 0 | AA49: 0 | AB49: 4060 | AC49: 0 | AD49: 138094.338 | AE49: 0 | AF49: 0 | AG49: 0 | AH49: 128000 | AI49: 0 | AJ49: 0 | AK49: 0 | AL49: 5068.8 | AM49: 0 | AN49: 0 | AO49: 0 | AP49: 0 | AQ49: 0 | AR49: 0 | AS49: 0 | AT49: 0 | AU49: 0 | AV49: 1062322 | AW49: 321169.338 | AX49: 133068.8 | AY49: 240885.7116 | AZ49: 1516560.138 | BA49: 1511491.338 | BB49: 4405 | BC49: 1378765 | BD49: 0 | BE49: 0 | BF49: 1516560.138 | BG49: 1516560.138 | BH49: 0 | BI49: 1383833.8 | BJ49: 1250765 | BK49: 1383491.338 | BL49: 4420.100121 | BM49: 4271.531078 | BN49: 0.03478121565 | BO49: -0.0007812156493 | BP49: -1044.476907 | BQ49: 1515515.661 | BR49: 4825.708821 | BS49: Y | BT49: 4841.90307 | BU49: 0.02997043102 | BV49: 0 | BW49: 1515515.661 | BX49: 0 | BY49: 1515515.661 | BZ49: 5068.8 | CA49: 1510446.861 | CD49: =IFERROR(VLOOKUP(A49,'ERS 2023-24'!C:S,16,FALSE),0) -> 0 | CE49: =IFERROR(VLOOKUP(A49,'ERS 2023-24'!C:S,17,FALSE),0) -> 0 | CF49: =IFERROR(VLOOKUP(A49,'ERS 2023-24'!C:V,18,FALSE),0)+IFERROR(VLOOKUP(A49,'ERS 2023-24'!C:W,19,FALSE),0) -> 0 | CG49: =IFERROR(ROUND((VLOOKUP(A49,'2023-24 Nursery Budget'!C:AJ,34,FALSE)),0),0) -> 0 | CI49: 1510446.861 | CJ49: 1515515.661
A50: 2020 | B50: 8312020 | C50: Reigate Park Primary Academy | D50: 360 | E50: 360 | F50: 0 | G50: =VLOOKUP(B50,'APT Adjusted Factors'!F:W,17,FALSE) -> 0 | H50: =VLOOKUP(B50,'APT Adjusted Factors'!F:W,18,FALSE) -> 0 | I50: 1221840 | J50: 0 | K50: 0 | L50: 68160 | M50: 0 | N50: 106455 | O50: 0 | P50: 53277.99443 | Q50: 1965.45961 | R50: 1764.902507 | S50: 27436.2117 | T50: 2557.103064 | U50: 13437.32591 | V50: 0 | W50: 0 | X50: 0 | Y50: 0 | Z50: 0 | AA50: 0 | AB50: 21693.50649 | AC50: 0 | AD50: 167631.6086 | AE50: 0 | AF50: 14553 | AG50: 0 | AH50: 128000 | AI50: 0 | AJ50: 0 | AK50: 0 | AL50: 4915.2 | AM50: 0 | AN50: 0 | AO50: 0 | AP50: 0 | AQ50: 0 | AR50: 0 | AS50: 0 | AT50: 0 | AU50: 0 | AV50: 1221840 | AW50: 478932.1123 | AX50: 132915.2 | AY50: 325908.7254 | AZ50: 1833687.312 | BA50: 1828772.112 | BB50: 4405 | BC50: 1585800 | BD50: 0 | BE50: 0 | BF50: 1833687.312 | BG50: 1833687.312 | BH50: 0 | BI50: 1590715.2 | BJ50: 1457800 | BK50: 1700772.112 | BL50: 4724.366979 | BM50: 4583.629673 | BN50: 0.03070433605 | BO50: 0 | BP50: 0 | BQ50: 1833687.312 | BR50: 5079.922534 | BS50: Y | BT50: 5093.575868 | BU50: 0.027731695 | BV50: 0 | BW50: 1833687.312 | BX50: 0 | BY50: 1833687.312 | BZ50: 4915.2 | CA50: 1828772.112 | CD50: =IFERROR(VLOOKUP(A50,'ERS 2023-24'!C:S,16,FALSE),0) -> 72000 | CE50: =IFERROR(VLOOKUP(A50,'ERS 2023-24'!C:S,17,FALSE),0) -> 48000 | CF50: =IFERROR(VLOOKUP(A50,'ERS 2023-24'!C:V,18,FALSE),0)+IFERROR(VLOOKUP(A50,'ERS 2023-24'!C:W,19,FALSE),0) -> 0 | CG50: =IFERROR(ROUND((VLOOKUP(A50,'2023-24 Nursery Budget'!C:AJ,34,FALSE)),0),0) -> 96272 | CI50: 2045044.112 | CJ50: 2049959.312
A51: 2021 | B51: 8312021 | C51: Ashwood Spencer Academy | D51: 503 | E51: 503 | F51: 0 | G51: =VLOOKUP(B51,'APT Adjusted Factors'!F:W,17,FALSE) -> 0 | H51: =VLOOKUP(B51,'APT Adjusted Factors'!F:W,18,FALSE) -> 0 | I51: 1707182 | J51: 0 | K51: 0 | L51: 146400 | M51: 0 | N51: 216435 | O51: 0 | P51: 2304.581673 | Q51: 4208.366534 | R51: 7494.900398 | S51: 9619.123506 | T51: 75119.34263 | U51: 189987.7092 | V51: 0 | W51: 0 | X51: 0 | Y51: 0 | Z51: 0 | AA51: 0 | AB51: 64024.38914 | AC51: 0 | AD51: 206568.6067 | AE51: 0 | AF51: 16839.9 | AG51: 0 | AH51: 128000 | AI51: 0 | AJ51: 0 | AK51: 0 | AL51: 4966.4 | AM51: 0 | AN51: 0 | AO51: 0 | AP51: 0 | AQ51: 0 | AR51: 0 | AS51: 0 | AT51: 0 | AU51: 0 | AV51: 1707182 | AW51: 939001.9198 | AX51: 132966.4 | AY51: 549837.0227 | AZ51: 2779150.32 | BA51: 2774183.92 | BB51: 4405 | BC51: 2215715 | BD51: 0 | BE51: 0 | BF51: 2779150.32 | BG51: 2779150.32 | BH51: 0 | BI51: 2220681.4 | BJ51: 2087715 | BK51: 2646183.92 | BL51: 5260.803021 | BM51: 5105.216046 | BN51: 0.03047608047 | BO51: 0 | BP51: 0 | BQ51: 2779150.32 | BR51: 5515.276182 | BS51: Y | BT51: 5525.149741 | BU51: 0.0311704475 | BV51: 0 | BW51: 2779150.32 | BX51: 0 | BY51: 2779150.32 | BZ51: 4966.4 | CA51: 2774183.92 | CD51: =IFERROR(VLOOKUP(A51,'ERS 2023-24'!C:S,16,FALSE),0) -> 0 | CE51: =IFERROR(VLOOKUP(A51,'ERS 2023-24'!C:S,17,FALSE),0) -> 0 | CF51: =IFERROR(VLOOKUP(A51,'ERS 2023-24'!C:V,18,FALSE),0)+IFERROR(VLOOKUP(A51,'ERS 2023-24'!C:W,19,FALSE),0) -> 0 | CG51: =IFERROR(ROUND((VLOOKUP(A51,'2023-24 Nursery Budget'!C:AJ,34,FALSE)),0),0) -> 134631 | CI51: 2908814.92 | CJ51: 2913781.32
A52: 2022 | B52: 8312022 | C52: Lakeside Primary Academy | D52: 568 | E52: 568 | F52: 0 | G52: =VLOOKUP(B52,'APT Adjusted Factors'!F:W,17,FALSE) -> 0 | H52: =VLOOKUP(B52,'APT Adjusted Factors'!F:W,18,FALSE) -> 0 | I52: 1927792 | J52: 0 | K52: 0 | L52: 126720 | M52: 0 | N52: 192465 | O52: 0 | P52: 25070 | Q52: 31920 | R52: 2200 | S52: 43680 | T52: 44880 | U52: 22110 | V52: 0 | W52: 0 | X52: 0 | Y52: 0 | Z52: 0 | AA52: 0 | AB52: 45645.3012 | AC52: 0 | AD52: 249495.3183 | AE52: 0 | AF52: 12209.4 | AG52: 0 | AH52: 128000 | AI52: 0 | AJ52: 0 | AK52: 0 | AL52: 10547.2 | AM52: 0 | AN52: 178275 | AO52: 0 | AP52: 0 | AQ52: 0 | AR52: 0 | AS52: 0 | AT52: 0 | AU52: 0 | AV52: 1927792 | AW52: 796395.0195 | AX52: 316822.2 | AY52: 522160.8453 | AZ52: 3041009.22 | BA52: 2852187.02 | BB52: 4405 | BC52: 2502040 | BD52: 0 | BE52: 0 | BF52: 3041009.22 | BG52: 3041009.22 | BH52: 0 | BI52: 2690862.2 | BJ52: 2552315 | BK52: 2902462.02 | BL52: 5109.968344 | BM52: 4915.880937 | BN52: 0.0394817145 | BO52: -0.0054817145 | BP52: -15306.1549 | BQ52: 3025703.065 | BR52: 4994.508564 | BS52: Y | BT52: 5326.942015 | BU52: 0.03335270769 | BV52: 0 | BW52: 3025703.065 | BX52: 0 | BY52: 3025703.065 | BZ52: 10547.2 | CA52: 3015155.865 | CD52: =IFERROR(VLOOKUP(A52,'ERS 2023-24'!C:S,16,FALSE),0) -> 0 | CE52: =IFERROR(VLOOKUP(A52,'ERS 2023-24'!C:S,17,FALSE),0) -> 0 | CF52: =IFERROR(VLOOKUP(A52,'ERS 2023-24'!C:V,18,FALSE),0)+IFERROR(VLOOKUP(A52,'ERS 2023-24'!C:W,19,FALSE),0) -> 0 | CG52: =IFERROR(ROUND((VLOOKUP(A52,'2023-24 Nursery Budget'!C:AJ,34,FALSE)),0),0) -> 184783 | CI52: 3199938.865 | CJ52: 3210486.065
A53: 2023 | B53: 8312023 | C53: Cottons Farm Primary Academy | D53: 98 | E53: 98 | F53: 0 | G53: =VLOOKUP(B53,'APT Adjusted Factors'!F:W,17,FALSE) -> 0 | H53: =VLOOKUP(B53,'APT Adjusted Factors'!F:W,18,FALSE) -> 0 | I53: 332612 | J53: 0 | K53: 0 | L53: 32160 | M53: 0 | N53: 47235 | O53: 0 | P53: 230 | Q53: 560 | R53: 1320 | S53: 960 | T53: 38250 | U53: 670 | V53: 0 | W53: 0 | X53: 0 | Y53: 0 | Z53: 0 | AA53: 0 | AB53: 21398.58824 | AC53: 0 | AD53: 52422.93269 | AE53: 0 | AF53: 8618.4 | AG53: 0 | AH53: 128000 | AI53: 0 | AJ53: 0 | AK53: 0 | AL53: 4736 | AM53: 0 | AN53: 29101 | AO53: 0 | AP53: 0 | AQ53: 0 | AR53: 0 | AS53: 0 | AT53: 0 | AU53: 0 | AV53: 332612 | AW53: 203824.9209 | AX53: 161837 | AY53: 118369.2709 | AZ53: 698273.9209 | BA53: 664436.9209 | BB53: 4405 | BC53: 431690 | BD53: 0 | BE53: 0 | BF53: 698273.9209 | BG53: 698273.9209 | BH53: 0 | BI53: 465527 | BJ53: 332791 | BK53: 565537.9209 | BL53: 5770.795112 | BM53: 5441.832676 | BN53: 0.06045067082 | BO53: -0.02645067082 | BP53: -14106.13222 | BQ53: 684167.7887 | BR53: 6636.028456 | BS53: Y | BT53: 6981.303966 | BU53: 0.02069600977 | BV53: 0 | BW53: 684167.7887 | BX53: 0 | BY53: 684167.7887 | BZ53: 4736 | CA53: 679431.7887 | CD53: =IFERROR(VLOOKUP(A53,'ERS 2023-24'!C:S,16,FALSE),0) -> 0 | CE53: =IFERROR(VLOOKUP(A53,'ERS 2023-24'!C:S,17,FALSE),0) -> 0 | CF53: =IFERROR(VLOOKUP(A53,'ERS 2023-24'!C:V,18,FALSE),0)+IFERROR(VLOOKUP(A53,'ERS 2023-24'!C:W,19,FALSE),0) -> 0 | CG53: =IFERROR(ROUND((VLOOKUP(A53,'2023-24 Nursery Budget'!C:AJ,34,FALSE)),0),0) -> 24442 | CI53: 703873.7887 | CJ53: 708609.7887
A54: 2024 | B54: 8312024 | C54: Hackwood Primary Academy | D54: 203 | E54: 203 | F54: 0 | G54: =VLOOKUP(B54,'APT Adjusted Factors'!F:W,17,FALSE) -> 0 | H54: =VLOOKUP(B54,'APT Adjusted Factors'!F:W,18,FALSE) -> 0 | I54: 688982 | J54: 0 | K54: 0 | L54: 27360 | M54: 0 | N54: 43005 | O54: 0 | P54: 5290 | Q54: 840 | R54: 0 | S54: 0 | T54: 0 | U54: 0 | V54: 0 | W54: 0 | X54: 0 | Y54: 0 | Z54: 0 | AA54: 0 | AB54: 16916.66667 | AC54: 0 | AD54: 58406.90625 | AE54: 0 | AF54: 19674.9 | AG54: 0 | AH54: 128000 | AI54: 0 | AJ54: 0 | AK54: 0 | AL54: 8704 | AM54: 0 | AN54: 0 | AO54: 0 | AP54: 0 | AQ54: 0 | AR54: 0 | AS54: 0 | AT54: 0 | AU54: 0 | AV54: 688982 | AW54: 171493.4729 | AX54: 136704 | AY54: 156680.787 | AZ54: 997179.4729 | BA54: 988475.4729 | BB54: 4405 | BC54: 894215 | BD54: 0 | BE54: 0 | BF54: 997179.4729 | BG54: 997179.4729 | BH54: 0 | BI54: 902919 | BJ54: 766215 | BK54: 860475.4729 | BL54: 4238.795433 | BM54: 3977.621304 | BN54: 0.0656608835 | BO54: -0.0316608835 | BP54: -25564.80595 | BQ54: 971614.667 | BR54: 4743.4023 | BS54: Y | BT54: 4786.279148 | BU54: 0.02929937967 | BV54: 0 | BW54: 971614.667 | BX54: 0 | BY54: 971614.667 | BZ54: 8704 | CA54: 962910.667 | CD54: =IFERROR(VLOOKUP(A54,'ERS 2023-24'!C:S,16,FALSE),0) -> 0 | CE54: =IFERROR(VLOOKUP(A54,'ERS 2023-24'!C:S,17,FALSE),0) -> 0 | CF54: =IFERROR(VLOOKUP(A54,'ERS 2023-24'!C:V,18,FALSE),0)+IFERROR(VLOOKUP(A54,'ERS 2023-24'!C:W,19,FALSE),0) -> 0 | CG54: =IFERROR(ROUND((VLOOKUP(A54,'2023-24 Nursery Budget'!C:AJ,34,FALSE)),0),0) -> 127191 | CI54: 1090101.667 | CJ54: 1098805.667
A55: 2025 | B55: 8312025 | C55: St Peter's Church of England Aided Junior School | D55: 196 | E55: 196 | F55: 0 | G55: =VLOOKUP(B55,'APT Adjusted Factors'!F:W,17,FALSE) -> 0 | H55: =VLOOKUP(B55,'APT Adjusted Factors'!F:W,18,FALSE) -> 0 | I55: 665224 | J55: 0 | K55: 0 | L55: 27360 | M55: 0 | N55: 40890 | O55: 0 | P55: 2070 | Q55: 4760 | R55: 3080 | S55: 1440 | T55: 1020 | U55: 670 | V55: 0 | W55: 0 | X55: 0 | Y55: 0 | Z55: 0 | AA55: 0 | AB55: 8120 | AC55: 0 | AD55: 72547.3743 | AE55: 0 | AF55: 0 | AG55: 0 | AH55: 128000 | AI55: 0 | AJ55: 0 | AK55: 0 | AL55: 3456 | AM55: 0 | AN55: 0 | AO55: 0 | AP55: 0 | AQ55: 0 | AR55: 0 | AS55: 0 | AT55: 0 | AU55: 0 | AV55: 665224 | AW55: 161957.3743 | AX55: 131456 | AY55: 137306.6144 | AZ55: 958637.3743 | BA55: 955181.3743 | BB55: 4405 | BC55: 863380 | BD55: 0 | BE55: 0 | BF55: 958637.3743 | BG55: 958637.3743 | BH55: 0 | BI55: 866836 | BJ55: 735380 | BK55: 827181.3743 | BL55: 4220.313134 | BM55: 4049.091891 | BN55: 0.04228633189 | BO55: -0.008286331893 | BP55: -6576.215377 | BQ55: 952061.1589 | BR55: 4839.822239 | BS55: Y | BT55: 4857.454892 | BU55: 0.03418429652 | BV55: 0 | BW55: 952061.1589 | BX55: 0 | BY55: 952061.1589 | BZ55: 3456 | CA55: 948605.1589 | CD55: =IFERROR(VLOOKUP(A55,'ERS 2023-24'!C:S,16,FALSE),0) -> 0 | CE55: =IFERROR(VLOOKUP(A55,'ERS 2023-24'!C:S,17,FALSE),0) -> 0 | CF55: =IFERROR(VLOOKUP(A55,'ERS 2023-24'!C:V,18,FALSE),0)+IFERROR(VLOOKUP(A55,'ERS 2023-24'!C:W,19,FALSE),0) -> 0 | CG55: =IFERROR(ROUND((VLOOKUP(A55,'2023-24 Nursery Budget'!C:AJ,34,FALSE)),0),0) -> 0 | CI55: 948605.1589 | CJ55: 952061.1589
A56: 2026 | B56: 8312026 | C56: Brackensdale Spencer Academy | D56: 431 | E56: 431 | F56: 0 | G56: =VLOOKUP(B56,'APT Adjusted Factors'!F:W,17,FALSE) -> 0 | H56: =VLOOKUP(B56,'APT Adjusted Factors'!F:W,18,FALSE) -> 0 | I56: 1462814 | J56: 0 | K56: 0 | L56: 82080 | M56: 0 | N56: 121965 | O56: 0 | P56: 59016.93023 | Q56: 7577.581395 | R56: 441.0232558 | S56: 25499.16279 | T56: 1533.55814 | U56: 32906.34884 | V56: 0 | W56: 0 | X56: 0 | Y56: 0 | Z56: 0 | AA56: 0 | AB56: 17613.76694 | AC56: 0 | AD56: 225143.0683 | AE56: 0 | AF56: 0 | AG56: 0 | AH56: 128000 | AI56: 0 | AJ56: 0 | AK56: 0 | AL56: 30464 | AM56: 0 | AN56: 0 | AO56: 0 | AP56: 0 | AQ56: 0 | AR56: 0 | AS56: 0 | AT56: 0 | AU56: 0 | AV56: 1462814 | AW56: 573776.4399 | AX56: 158464 | AY56: 378639.3359 | AZ56: 2195054.44 | BA56: 2164590.44 | BB56: 4405 | BC56: 1898555 | BD56: 0 | BE56: 0 | BF56: 2195054.44 | BG56: 2195054.44 | BH56: 0 | BI56: 1929019 | BJ56: 1770555 | BK56: 2036590.44 | BL56: 4725.267842 | BM56: 4608.690477 | BN56: 0.02529511705 | BO56: 0 | BP56: 0 | BQ56: 2195054.44 | BR56: 5022.251601 | BS56: Y | BT56: 5092.933735 | BU56: 0.02315063459 | BV56: 0 | BW56: 2195054.44 | BX56: 0 | BY56: 2195054.44 | BZ56: 30464 | CA56: 2164590.44 | CD56: =IFERROR(VLOOKUP(A56,'ERS 2023-24'!C:S,16,FALSE),0) -> 252500 | CE56: =IFERROR(VLOOKUP(A56,'ERS 2023-24'!C:S,17,FALSE),0) -> 304000 | CF56: =IFERROR(VLOOKUP(A56,'ERS 2023-24'!C:V,18,FALSE),0)+IFERROR(VLOOKUP(A56,'ERS 2023-24'!C:W,19,FALSE),0) -> 0 | CG56: =IFERROR(ROUND((VLOOKUP(A56,'2023-24 Nursery Budget'!C:AJ,34,FALSE)),0),0) -> 111200 | CI56: 2832290.44 | CJ56: 2862754.44
A57: 2027 | B57: 8312027 | C57: Castleward Spencer Academy | D57: 64.16666667 | E57: 64.16666667 | F57: 0 | G57: =VLOOKUP(B57,'APT Adjusted Factors'!F:W,17,FALSE) -> 0 | H57: =VLOOKUP(B57,'APT Adjusted Factors'!F:W,18,FALSE) -> 0 | I57: 217781.6667 | J57: 0 | K57: 0 | L57: 8800 | M57: 0 | N57: 12925 | O57: 0 | P57: 1054.166667 | Q57: 11550 | R57: 0 | S57: 3300 | T57: 0 | U57: 6141.666667 | V57: 0 | W57: 0 | X57: 0 | Y57: 0 | Z57: 0 | AA57: 0 | AB57: 23683.33333 | AC57: 0 | AD57: 60637.5 | AE57: 0 | AF57: 2858.625 | AG57: 0 | AH57: 128000 | AI57: 0 | AJ57: 0 | AK57: 0 | AL57: 4610.8214 | AM57: 0 | AN57: 0 | AO57: 0 | AP57: 0 | AQ57: 0 | AR57: 0 | AS57: 0 | AT57: 0 | AU57: 0 | AV57: 217781.6667 | AW57: 130950.2917 | AX57: 132610.8214 | AY57: 75281.5375 | AZ57: 481342.7797 | BA57: 476731.9583 | BB57: 4405 | BC57: 282654.1667 | BD57: 0 | BE57: 0 | BF57: 481342.7797 | BG57: 481342.7797 | BH57: 0 | BI57: 287264.9881 | BJ57: 154654.1667 | BK57: 348731.9583 | BL57: 5434.783766 | BM57: 4290.133333 | BN57: 0.2668099903 | BO57: 0 | BP57: 0 | BQ57: 481342.7797 | BR57: 7429.588961 | BS57: Y | BT57: 7501.445918 | BU57: -0.03402698381 | BV57: 0 | BW57: 481342.7797 | BX57: 0 | BY57: 481342.7797 | BZ57: 4610.8214 | CA57: 476731.9583 | CD57: =IFERROR(VLOOKUP(A57,'ERS 2023-24'!C:S,16,FALSE),0) -> 0 | CE57: =IFERROR(VLOOKUP(A57,'ERS 2023-24'!C:S,17,FALSE),0) -> 0 | CF57: =IFERROR(VLOOKUP(A57,'ERS 2023-24'!C:V,18,FALSE),0)+IFERROR(VLOOKUP(A57,'ERS 2023-24'!C:W,19,FALSE),0) -> 0 | CG57: =IFERROR(ROUND((VLOOKUP(A57,'2023-24 Nursery Budget'!C:AJ,34,FALSE)),0),0) -> 76672 | CI57: 553403.9583 | CJ57: 558014.7797
A58: 2440 | B58: 8312440 | C58: Portway Junior School | D58: 343 | E58: 343 | F58: 0 | G58: =VLOOKUP(B58,'APT Adjusted Factors'!F:W,17,FALSE) -> 0 | H58: =VLOOKUP(B58,'APT Adjusted Factors'!F:W,18,FALSE) -> 0 | I58: 1164142 | J58: 0 | K58: 0 | L58: 21120 | M58: 0 | N58: 35250 | O58: 0 | P58: 5290 | Q58: 2240 | R58: 2200 | S58: 4320 | T58: 1530 | U58: 0 | V58: 0 | W58: 0 | X58: 0 | Y58: 0 | Z58: 0 | AA58: 0 | AB58: 1750.205279 | AC58: 0 | AD58: 75175.88855 | AE58: 0 | AF58: 0 | AG58: 0 | AH58: 128000 | AI58: 0 | AJ58: 0 | AK58: 0 | AL58: 7065.6 | AM58: 0 | AN58: 0 | AO58: 0 | AP58: 0 | AQ58: 0 | AR58: 0 | AS58: 0 | AT58: 0 | AU58: 0 | AV58: 1164142 | AW58: 148876.0938 | AX58: 135065.6 | AY58: 192259.8729 | AZ58: 1448083.694 | BA58: 1441018.094 | BB58: 4405 | BC58: 1510915 | BD58: 69896.90617 | BE58: 0 | BF58: 1517980.6 | BG58: 1517980.6 | BH58: 0 | BI58: 1517980.6 | BJ58: 1382915 | BK58: 1382915 | BL58: 4031.822157 | BM58: 4020.995542 | BN58: 0.002692521225 | BO58: 0.002307478775 | BP58: 3182.47812 | BQ58: 1521163.078 | BR58: 4414.278362 | BS58: Y | BT58: 4434.877779 | BU58: 0.003431984206 | BV58: 0 | BW58: 1521163.078 | BX58: 0 | BY58: 1521163.078 | BZ58: 7065.6 | CA58: 1514097.478 | CD58: =IFERROR(VLOOKUP(A58,'ERS 2023-24'!C:S,16,FALSE),0) -> 0 | CE58: =IFERROR(VLOOKUP(A58,'ERS 2023-24'!C:S,17,FALSE),0) -> 0 | CF58: =IFERROR(VLOOKUP(A58,'ERS 2023-24'!C:V,18,FALSE),0)+IFERROR(VLOOKUP(A58,'ERS 2023-24'!C:W,19,FALSE),0) -> 0 | CG58: =IFERROR(ROUND((VLOOKUP(A58,'2023-24 Nursery Budget'!C:AJ,34,FALSE)),0),0) -> 0 | CI58: 1514097.478 | CJ58: 1521163.078
A59: 2442 | B59: 8312442 | C59: Alvaston Junior Academy | D59: 333 | E59: 333 | F59: 0 | G59: =VLOOKUP(B59,'APT Adjusted Factors'!F:W,17,FALSE) -> 0 | H59: =VLOOKUP(B59,'APT Adjusted Factors'!F:W,18,FALSE) -> 0 | I59: 1130202 | J59: 0 | K59: 0 | L59: 55680 | M59: 0 | N59: 93765 | O59: 0 | P59: 13800 | Q59: 18200 | R59: 1320 | S59: 15360 | T59: 10710 | U59: 22110 | V59: 0 | W59: 0 | X59: 0 | Y59: 0 | Z59: 0 | AA59: 0 | AB59: 9280 | AC59: 0 | AD59: 70377.25256 | AE59: 0 | AF59: 0 | AG59: 0 | AH59: 128000 | AI59: 0 | AJ59: 0 | AK59: 0 | AL59: 4838.4 | AM59: 0 | AN59: 0 | AO59: 0 | AP59: 0 | AQ59: 0 | AR59: 0 | AS59: 0 | AT59: 0 | AU59: 0 | AV59: 1130202 | AW59: 310602.2526 | AX59: 132838.4 | AY59: 245556.974 | AZ59: 1573642.653 | BA59: 1568804.253 | BB59: 4405 | BC59: 1466865 | BD59: 0 | BE59: 0 | BF59: 1573642.653 | BG59: 1573642.653 | BH59: 0 | BI59: 1471703.4 | BJ59: 1338865 | BK59: 1440804.253 | BL59: 4326.739497 | BM59: 4233.059107 | BN59: 0.02213065956 | BO59: 0 | BP59: 0 | BQ59: 1573642.653 | BR59: 4711.123882 | BS59: Y | BT59: 4725.653611 | BU59: 0.02044325879 | BV59: 0 | BW59: 1573642.653 | BX59: 0 | BY59: 1573642.653 | BZ59: 4838.4 | CA59: 1568804.253 | CD59: =IFERROR(VLOOKUP(A59,'ERS 2023-24'!C:S,16,FALSE),0) -> 0 | CE59: =IFERROR(VLOOKUP(A59,'ERS 2023-24'!C:S,17,FALSE),0) -> 0 | CF59: =IFERROR(VLOOKUP(A59,'ERS 2023-24'!C:V,18,FALSE),0)+IFERROR(VLOOKUP(A59,'ERS 2023-24'!C:W,19,FALSE),0) -> 0 | CG59: =IFERROR(ROUND((VLOOKUP(A59,'2023-24 Nursery Budget'!C:AJ,34,FALSE)),0),0) -> 0 | CI59: 1568804.253 | CJ59: 1573642.653
A60: 2451 | B60: 8312451 | C60: Cherry Tree Hill Primary School | D60: 583 | E60: 583 | F60: 0 | G60: =VLOOKUP(B60,'APT Adjusted Factors'!F:W,17,FALSE) -> 0 | H60: =VLOOKUP(B60,'APT Adjusted Factors'!F:W,18,FALSE) -> 0 | I60: 1978702 | J60: 0 | K60: 0 | L60: 95520 | M60: 0 | N60: 147345 | O60: 0 | P60: 9906.993127 | Q60: 39547.83505 | R60: 21597.04467 | S60: 24041.23711 | T60: 5619.639175 | U60: 12080.72165 | V60: 0 | W60: 0 | X60: 0 | Y60: 0 | Z60: 0 | AA60: 0 | AB60: 10184.93976 | AC60: 0 | AD60: 133232.7385 | AE60: 0 | AF60: 0 | AG60: 0 | AH60: 128000 | AI60: 0 | AJ60: 0 | AK60: 0 | AL60: 7424 | AM60: 0 | AN60: 0 | AO60: 0 | AP60: 0 | AQ60: 0 | AR60: 0 | AS60: 0 | AT60: 0 | AU60: 0 | AV60: 1978702 | AW60: 499076.1491 | AX60: 135424 | AY60: 413857.4597 | AZ60: 2613202.149 | BA60: 2605778.149 | BB60: 4405 | BC60: 2568115 | BD60: 0 | BE60: 0 | BF60: 2613202.149 | BG60: 2613202.149 | BH60: 0 | BI60: 2575539 | BJ60: 2440115 | BK60: 2477778.149 | BL60: 4250.048283 | BM60: 4175.528399 | BN60: 0.01784681523 | BO60: 0 | BP60: 0 | BQ60: 2613202.149 | BR60: 4469.602314 | BS60: Y | BT60: 4482.336448 | BU60: 0.01661350863 | BV60: 0 | BW60: 2613202.149 | BX60: 0 | BY60: 2613202.149 | BZ60: 7424 | CA60: 2605778.149 | CD60: =IFERROR(VLOOKUP(A60,'ERS 2023-24'!C:S,16,FALSE),0) -> 0 | CE60: =IFERROR(VLOOKUP(A60,'ERS 2023-24'!C:S,17,FALSE),0) -> 0 | CF60: =IFERROR(VLOOKUP(A60,'ERS 2023-24'!C:V,18,FALSE),0)+IFERROR(VLOOKUP(A60,'ERS 2023-24'!C:W,19,FALSE),0) -> 0 | CG60: =IFERROR(ROUND((VLOOKUP(A60,'2023-24 Nursery Budget'!C:AJ,34,FALSE)),0),0) -> 147107 | CI60: 2752885.149 | CJ60: 2760309.149
A61: 2455 | B61: 8312455 | C61: Chellaston Infant School | D61: 284 | E61: 284 | F61: 0 | G61: =VLOOKUP(B61,'APT Adjusted Factors'!F:W,17,FALSE) -> 0 | H61: =VLOOKUP(B61,'APT Adjusted Factors'!F:W,18,FALSE) -> 0 | I61: 963896 | J61: 0 | K61: 0 | L61: 33120 | M61: 0 | N61: 48645 | O61: 0 | P61: 9232.508834 | Q61: 280.9893993 | R61: 0 | S61: 963.3922261 | T61: 3070.812721 | U61: 2017.102473 | V61: 0 | W61: 0 | X61: 0 | Y61: 0 | Z61: 0 | AA61: 0 | AB61: 15204.92308 | AC61: 0 | AD61: 110954.8409 | AE61: 0 | AF61: 0 | AG61: 0 | AH61: 128000 | AI61: 0 | AJ61: 0 | AK61: 0 | AL61: 5171.2 | AM61: 0 | AN61: 0 | AO61: 0 | AP61: 0 | AQ61: 0 | AR61: 0 | AS61: 0 | AT61: 0 | AU61: 0 | AV61: 963896 | AW61: 223489.5696 | AX61: 133171.2 | AY61: 195177.4296 | AZ61: 1320556.77 | BA61: 1315385.57 | BB61: 4405 | BC61: 1251020 | BD61: 0 | BE61: 0 | BF61: 1320556.77 | BG61: 1320556.77 | BH61: 0 | BI61: 1256191.2 | BJ61: 1123020 | BK61: 1187385.57 | BL61: 4180.935104 | BM61: 4019.99885 | BN61: 0.04003390561 | BO61: -0.006033905614 | BP61: -6888.787391 | BQ61: 1313667.982 | BR61: 4607.383036 | BS61: Y | BT61: 4625.591487 | BU61: 0.03862426801 | BV61: 0 | BW61: 1313667.982 | BX61: 0 | BY61: 1313667.982 | BZ61: 5171.2 | CA61: 1308496.782 | CD61: =IFERROR(VLOOKUP(A61,'ERS 2023-24'!C:S,16,FALSE),0) -> 0 | CE61: =IFERROR(VLOOKUP(A61,'ERS 2023-24'!C:S,17,FALSE),0) -> 0 | CF61: =IFERROR(VLOOKUP(A61,'ERS 2023-24'!C:V,18,FALSE),0)+IFERROR(VLOOKUP(A61,'ERS 2023-24'!C:W,19,FALSE),0) -> 0 | CG61: =IFERROR(ROUND((VLOOKUP(A61,'2023-24 Nursery Budget'!C:AJ,34,FALSE)),0),0) -> 0 | CI61: 1308496.782 | CJ61: 1313667.982
A62: 2456 | B62: 8312456 | C62: Carlyle Infant and Nursery Academy | D62: 125 | E62: 125 | F62: 0 | G62: =VLOOKUP(B62,'APT Adjusted Factors'!F:W,17,FALSE) -> 0 | H62: =VLOOKUP(B62,'APT Adjusted Factors'!F:W,18,FALSE) -> 0 | I62: 424250 | J62: 0 | K62: 0 | L62: 8640 | M62: 0 | N62: 13395 | O62: 0 | P62: 920 | Q62: 1680 | R62: 2200 | S62: 960 | T62: 1020 | U62: 670 | V62: 0 | W62: 0 | X62: 0 | Y62: 0 | Z62: 0 | AA62: 0 | AB62: 31622.34043 | AC62: 0 | AD62: 46528.3192 | AE62: 0 | AF62: 0 | AG62: 0 | AH62: 128000 | AI62: 0 | AJ62: 0 | AK62: 0 | AL62: 2841.6 | AM62: 0 | AN62: 0 | AO62: 0 | AP62: 0 | AQ62: 0 | AR62: 0 | AS62: 0 | AT62: 0 | AU62: 0 | AV62: 424250 | AW62: 107635.6596 | AX62: 130841.6 | AY62: 90369.44236 | AZ62: 662727.2596 | BA62: 659885.6596 | BB62: 4405 | BC62: 550625 | BD62: 0 | BE62: 0 | BF62: 662727.2596 | BG62: 662727.2596 | BH62: 0 | BI62: 553466.6 | BJ62: 422625 | BK62: 531885.6596 | BL62: 4255.085277 | BM62: 4013.492332 | BN62: 0.06019519291 | BO62: -0.02619519291 | BP62: -13141.77574 | BQ62: 649585.4839 | BR62: 5173.951071 | BS62: Y | BT62: 5196.683871 | BU62: 0.07222006148 | BV62: 0 | BW62: 649585.4839 | BX62: 0 | BY62: 649585.4839 | BZ62: 2841.6 | CA62: 646743.8839 | CD62: =IFERROR(VLOOKUP(A62,'ERS 2023-24'!C:S,16,FALSE),0) -> 0 | CE62: =IFERROR(VLOOKUP(A62,'ERS 2023-24'!C:S,17,FALSE),0) -> 0 | CF62: =IFERROR(VLOOKUP(A62,'ERS 2023-24'!C:V,18,FALSE),0)+IFERROR(VLOOKUP(A62,'ERS 2023-24'!C:W,19,FALSE),0) -> 0 | CG62: =IFERROR(ROUND((VLOOKUP(A62,'2023-24 Nursery Budget'!C:AJ,34,FALSE)),0),0) -> 123158 | CI62: 769901.8839 | CJ62: 772743.4839
A63: 2463 | B63: 8312463 | C63: Ravensdale Junior School | D63: 358 | E63: 358 | F63: 0 | G63: =VLOOKUP(B63,'APT Adjusted Factors'!F:W,17,FALSE) -> 0 | H63: =VLOOKUP(B63,'APT Adjusted Factors'!F:W,18,FALSE) -> 0 | I63: 1215052 | J63: 0 | K63: 0 | L63: 48000 | M63: 0 | N63: 74025 | O63: 0 | P63: 9251.685393 | Q63: 7039.325843 | R63: 5309.662921 | S63: 3861.573034 | T63: 512.8651685 | U63: 4716.348315 | V63: 0 | W63: 0 | X63: 0 | Y63: 0 | Z63: 0 | AA63: 0 | AB63: 15080 | AC63: 0 | AD63: 116782.4882 | AE63: 0 | AF63: 0 | AG63: 0 | AH63: 128000 | AI63: 0 | AJ63: 0 | AK63: 0 | AL63: 3968 | AM63: 0 | AN63: 0 | AO63: 0 | AP63: 0 | AQ63: 0 | AR63: 0 | AS63: 0 | AT63: 0 | AU63: 0 | AV63: 1215052 | AW63: 284578.9488 | AX63: 131968 | AY63: 246844.1595 | AZ63: 1631598.949 | BA63: 1627630.949 | BB63: 4405 | BC63: 1576990 | BD63: 0 | BE63: 0 | BF63: 1631598.949 | BG63: 1631598.949 | BH63: 0 | BI63: 1580958 | BJ63: 1448990 | BK63: 1499630.949 | BL63: 4188.913265 | BM63: 4046.502305 | BN63: 0.03519359414 | BO63: -0.001193594138 | BP63: -1729.097552 | BQ63: 1629869.851 | BR63: 4541.625283 | BS63: Y | BT63: 4552.709082 | BU63: 0.02988248554 | BV63: 0 | BW63: 1629869.851 | BX63: 0 | BY63: 1629869.851 | BZ63: 3968 | CA63: 1625901.851 | CD63: =IFERROR(VLOOKUP(A63,'ERS 2023-24'!C:S,16,FALSE),0) -> 0 | CE63: =IFERROR(VLOOKUP(A63,'ERS 2023-24'!C:S,17,FALSE),0) -> 0 | CF63: =IFERROR(VLOOKUP(A63,'ERS 2023-24'!C:V,18,FALSE),0)+IFERROR(VLOOKUP(A63,'ERS 2023-24'!C:W,19,FALSE),0) -> 0 | CG63: =IFERROR(ROUND((VLOOKUP(A63,'2023-24 Nursery Budget'!C:AJ,34,FALSE)),0),0) -> 0 | CI63: 1625901.851 | CJ63: 1629869.851
A64: 2464 | B64: 8312464 | C64: Asterdale Primary School | D64: 197 | E64: 197 | F64: 0 | G64: =VLOOKUP(B64,'APT Adjusted Factors'!F:W,17,FALSE) -> 0 | H64: =VLOOKUP(B64,'APT Adjusted Factors'!F:W,18,FALSE) -> 0 | I64: 668618 | J64: 0 | K64: 0 | L64: 26400 | M64: 0 | N64: 38775 | O64: 0 | P64: 9759.076923 | Q64: 19235.28205 | R64: 889.025641 | S64: 20366.76923 | T64: 0 | U64: 676.8717949 | V64: 0 | W64: 0 | X64: 0 | Y64: 0 | Z64: 0 | AA64: 0 | AB64: 4009.122807 | AC64: 0 | AD64: 57216.40351 | AE64: 0 | AF64: 0 | AG64: 0 | AH64: 128000 | AI64: 0 | AJ64: 0 | AK64: 0 | AL64: 3840 | AM64: 0 | AN64: 0 | AO64: 0 | AP64: 0 | AQ64: 0 | AR64: 0 | AS64: 0 | AT64: 0 | AU64: 0 | AV64: 668618 | AW64: 177327.552 | AX64: 131840 | AY64: 142934.56 | AZ64: 977785.552 | BA64: 973945.552 | BB64: 4405 | BC64: 867785 | BD64: 0 | BE64: 0 | BF64: 977785.552 | BG64: 977785.552 | BH64: 0 | BI64: 871625 | BJ64: 739785 | BK64: 845945.552 | BL64: 4294.139858 | BM64: 4187.280649 | BN64: 0.02551995378 | BO64: 0 | BP64: 0 | BQ64: 977785.552 | BR64: 4943.886051 | BS64: Y | BT64: 4963.378436 | BU64: 0.02690770348 | BV64: 0 | BW64: 977785.552 | BX64: 0 | BY64: 977785.552 | BZ64: 3840 | CA64: 973945.552 | CD64: =IFERROR(VLOOKUP(A64,'ERS 2023-24'!C:S,16,FALSE),0) -> 0 | CE64: =IFERROR(VLOOKUP(A64,'ERS 2023-24'!C:S,17,FALSE),0) -> 0 | CF64: =IFERROR(VLOOKUP(A64,'ERS 2023-24'!C:V,18,FALSE),0)+IFERROR(VLOOKUP(A64,'ERS 2023-24'!C:W,19,FALSE),0) -> 0 | CG64: =IFERROR(ROUND((VLOOKUP(A64,'2023-24 Nursery Budget'!C:AJ,34,FALSE)),0),0) -> 123796 | CI64: 1097741.552 | CJ64: 1101581.552
A65: 2466 | B65: 8312466 | C65: Springfield Primary School | D65: 342 | E65: 342 | F65: 0 | G65: =VLOOKUP(B65,'APT Adjusted Factors'!F:W,17,FALSE) -> 0 | H65: =VLOOKUP(B65,'APT Adjusted Factors'!F:W,18,FALSE) -> 0 | I65: 1160748 | J65: 0 | K65: 0 | L65: 43200 | M65: 0 | N65: 66975 | O65: 0 | P65: 16790 | Q65: 10360 | R65: 2200 | S65: 17280 | T65: 3060 | U65: 6700 | V65: 0 | W65: 0 | X65: 0 | Y65: 0 | Z65: 0 | AA65: 0 | AB65: 7273.2 | AC65: 0 | AD65: 141992.7761 | AE65: 0 | AF65: 0 | AG65: 0 | AH65: 128000 | AI65: 0 | AJ65: 0 | AK65: 0 | AL65: 3456 | AM65: 0 | AN65: 0 | AO65: 0 | AP65: 0 | AQ65: 0 | AR65: 0 | AS65: 0 | AT65: 0 | AU65: 0 | AV65: 1160748 | AW65: 315830.9761 | AX65: 131456 | AY65: 250969.2927 | AZ65: 1608034.976 | BA65: 1604578.976 | BB65: 4405 | BC65: 1506510 | BD65: 0 | BE65: 0 | BF65: 1608034.976 | BG65: 1608034.976 | BH65: 0 | BI65: 1509966 | BJ65: 1378510 | BK65: 1476578.976 | BL65: 4317.482386 | BM65: 4135.392278 | BN65: 0.04403212451 | BO65: -0.01003212451 | BP65: -14188.47542 | BQ65: 1593846.501 | BR65: 4650.264622 | BS65: Y | BT65: 4660.369885 | BU65: 0.0313922041 | BV65: 0 | BW65: 1593846.501 | BX65: 0 | BY65: 1593846.501 | BZ65: 3456 | CA65: 1590390.501 | CD65: =IFERROR(VLOOKUP(A65,'ERS 2023-24'!C:S,16,FALSE),0) -> 197500 | CE65: =IFERROR(VLOOKUP(A65,'ERS 2023-24'!C:S,17,FALSE),0) -> 264000 | CF65: =IFERROR(VLOOKUP(A65,'ERS 2023-24'!C:V,18,FALSE),0)+IFERROR(VLOOKUP(A65,'ERS 2023-24'!C:W,19,FALSE),0) -> 0 | CG65: =IFERROR(ROUND((VLOOKUP(A65,'2023-24 Nursery Budget'!C:AJ,34,FALSE)),0),0) -> 0 | CI65: 2051890.501 | CJ65: 2055346.501
A66: 2467 | B66: 8312467 | C66: Chaddesden Park Primary School | D66: 275 | E66: 275 | F66: 0 | G66: =VLOOKUP(B66,'APT Adjusted Factors'!F:W,17,FALSE) -> 0 | H66: =VLOOKUP(B66,'APT Adjusted Factors'!F:W,18,FALSE) -> 0 | I66: 933350 | J66: 0 | K66: 0 | L66: 49920 | M66: 0 | N66: 76140 | O66: 0 | P66: 4370 | Q66: 14560 | R66: 36960 | S66: 1440 | T66: 4590 | U66: 3350 | V66: 0 | W66: 0 | X66: 0 | Y66: 0 | Z66: 0 | AA66: 0 | AB66: 5104 | AC66: 0 | AD66: 83184.47621 | AE66: 0 | AF66: 0 | AG66: 0 | AH66: 128000 | AI66: 0 | AJ66: 0 | AK66: 0 | AL66: 3020.8 | AM66: 0 | AN66: 0 | AO66: 0 | AP66: 0 | AQ66: 0 | AR66: 0 | AS66: 0 | AT66: 0 | AU66: 0 | AV66: 933350 | AW66: 279618.4762 | AX66: 131020.8 | AY66: 210812.5049 | AZ66: 1343989.276 | BA66: 1340968.476 | BB66: 4405 | BC66: 1211375 | BD66: 0 | BE66: 0 | BF66: 1343989.276 | BG66: 1343989.276 | BH66: 0 | BI66: 1214395.8 | BJ66: 1083375 | BK66: 1212968.476 | BL66: 4410.794459 | BM66: 4253.804324 | BN66: 0.03690581949 | BO66: -0.002905819493 | BP66: -3399.216569 | BQ66: 1340590.06 | BR66: 4863.888217 | BS66: Y | BT66: 4874.872944 | BU66: 0.03490163837 | BV66: 0 | BW66: 1340590.06 | BX66: 0 | BY66: 1340590.06 | BZ66: 3020.8 | CA66: 1337569.26 | CD66: =IFERROR(VLOOKUP(A66,'ERS 2023-24'!C:S,16,FALSE),0) -> 0 | CE66: =IFERROR(VLOOKUP(A66,'ERS 2023-24'!C:S,17,FALSE),0) -> 0 | CF66: =IFERROR(VLOOKUP(A66,'ERS 2023-24'!C:V,18,FALSE),0)+IFERROR(VLOOKUP(A66,'ERS 2023-24'!C:W,19,FALSE),0) -> 0 | CG66: =IFERROR(ROUND((VLOOKUP(A66,'2023-24 Nursery Budget'!C:AJ,34,FALSE)),0),0) -> 119956 | CI66: 1457525.26 | CJ66: 1460546.06
A67: 2471 | B67: 8312471 | C67: Oakwood Junior School | D67: 349 | E67: 349 | F67: 0 | G67: =VLOOKUP(B67,'APT Adjusted Factors'!F:W,17,FALSE) -> 0 | H67: =VLOOKUP(B67,'APT Adjusted Factors'!F:W,18,FALSE) -> 0 | I67: 1184506 | J67: 0 | K67: 0 | L67: 73440 | M67: 0 | N67: 116325 | O67: 0 | P67: 2760 | Q67: 22680 | R67: 0 | S67: 10560 | T67: 12240 | U67: 38860 | V67: 0 | W67: 0 | X67: 0 | Y67: 0 | Z67: 0 | AA67: 0 | AB67: 7540 | AC67: 0 | AD67: 119600.3795 | AE67: 0 | AF67: 0 | AG67: 0 | AH67: 128000 | AI67: 0 | AJ67: 0 | AK67: 0 | AL67: 23424 | AM67: 0 | AN67: 0 | AO67: 0 | AP67: 0 | AQ67: 0 | AR67: 0 | AS67: 0 | AT67: 0 | AU67: 0 | AV67: 1184506 | AW67: 404005.3795 | AX67: 151424 | AY67: 284914.5363 | AZ67: 1739935.38 | BA67: 1716511.38 | BB67: 4405 | BC67: 1537345 | BD67: 0 | BE67: 0 | BF67: 1739935.38 | BG67: 1739935.38 | BH67: 0 | BI67: 1560769 | BJ67: 1409345 | BK67: 1588511.38 | BL67: 4551.608537 | BM67: 4451.193294 | BN67: 0.02255917377 | BO67: 0 | BP67: 0 | BQ67: 1739935.38 | BR67: 4918.370715 | BS67: Y | BT67: 4985.488193 | BU67: 0.02027952325 | BV67: 0 | BW67: 1739935.38 | BX67: 0 | BY67: 1739935.38 | BZ67: 23424 | CA67: 1716511.38 | CD67: =IFERROR(VLOOKUP(A67,'ERS 2023-24'!C:S,16,FALSE),0) -> 0 | CE67: =IFERROR(VLOOKUP(A67,'ERS 2023-24'!C:S,17,FALSE),0) -> 0 | CF67: =IFERROR(VLOOKUP(A67,'ERS 2023-24'!C:V,18,FALSE),0)+IFERROR(VLOOKUP(A67,'ERS 2023-24'!C:W,19,FALSE),0) -> 0 | CG67: =IFERROR(ROUND((VLOOKUP(A67,'2023-24 Nursery Budget'!C:AJ,34,FALSE)),0),0) -> 0 | CI67: 1716511.38 | CJ67: 1739935.38
A68: 2509 | B68: 8312509 | C68: Ash Croft Primary Academy | D68: 152 | E68: 152 | F68: 0 | G68: =VLOOKUP(B68,'APT Adjusted Factors'!F:W,17,FALSE) -> 0 | H68: =VLOOKUP(B68,'APT Adjusted Factors'!F:W,18,FALSE) -> 0 | I68: 515888 | J68: 0 | K68: 0 | L68: 39360 | M68: 0 | N68: 57810 | O68: 0 | P68: 0 | Q68: 6720 | R68: 1320 | S68: 9600 | T68: 10710 | U68: 670 | V68: 0 | W68: 0 | X68: 0 | Y68: 0 | Z68: 0 | AA68: 0 | AB68: 25281.17647 | AC68: 0 | AD68: 63036.36706 | AE68: 0 | AF68: 15006.6 | AG68: 0 | AH68: 128000 | AI68: 0 | AJ68: 0 | AK68: 0 | AL68: 4044.8 | AM68: 0 | AN68: 0 | AO68: 0 | AP68: 0 | AQ68: 0 | AR68: 0 | AS68: 0 | AT68: 0 | AU68: 0 | AV68: 515888 | AW68: 229514.1435 | AX68: 132044.8 | AY68: 153740.5656 | AZ68: 877446.9435 | BA68: 873402.1435 | BB68: 4405 | BC68: 669560 | BD68: 0 | BE68: 0 | BF68: 877446.9435 | BG68: 877446.9435 | BH68: 0 | BI68: 673604.8 | BJ68: 541560 | BK68: 745402.1435 | BL68: 4903.961471 | BM68: 4564.006652 | BN68: 0.07448604812 | BO68: -0.04048604812 | BP68: -28086.34612 | BQ68: 849360.5974 | BR68: 5561.288141 | BS68: Y | BT68: 5587.898667 | BU68: 0.03981902487 | BV68: 0 | BW68: 849360.5974 | BX68: 0 | BY68: 849360.5974 | BZ68: 4044.8 | CA68: 845315.7974 | CD68: =IFERROR(VLOOKUP(A68,'ERS 2023-24'!C:S,16,FALSE),0) -> 0 | CE68: =IFERROR(VLOOKUP(A68,'ERS 2023-24'!C:S,17,FALSE),0) -> 0 | CF68: =IFERROR(VLOOKUP(A68,'ERS 2023-24'!C:V,18,FALSE),0)+IFERROR(VLOOKUP(A68,'ERS 2023-24'!C:W,19,FALSE),0) -> 0 | CG68: =IFERROR(ROUND((VLOOKUP(A68,'2023-24 Nursery Budget'!C:AJ,34,FALSE)),0),0) -> 59502 | CI68: 904817.7974 | CJ68: 908862.5974
A69: 2512 | B69: 8312512 | C69: Brookfield Primary School | D69: 217 | E69: 217 | F69: 0 | G69: =VLOOKUP(B69,'APT Adjusted Factors'!F:W,17,FALSE) -> 0 | H69: =VLOOKUP(B69,'APT Adjusted Factors'!F:W,18,FALSE) -> 0 | I69: 736498 | J69: 0 | K69: 0 | L69: 12960 | M69: 0 | N69: 19740 | O69: 0 | P69: 12071.25581 | Q69: 1130.418605 | R69: 0 | S69: 0 | T69: 514.744186 | U69: 0 | V69: 0 | W69: 0 | X69: 0 | Y69: 0 | Z69: 0 | AA69: 0 | AB69: 18845.34759 | AC69: 0 | AD69: 65042.50679 | AE69: 0 | AF69: 0 | AG69: 0 | AH69: 128000 | AI69: 0 | AJ69: 0 | AK69: 0 | AL69: 5324.8 | AM69: 0 | AN69: 0 | AO69: 0 | AP69: 0 | AQ69: 0 | AR69: 0 | AS69: 0 | AT69: 0 | AU69: 0 | AV69: 736498 | AW69: 130304.273 | AX69: 133324.8 | AY69: 135216.5929 | AZ69: 1000127.073 | BA69: 994802.273 | BB69: 4405 | BC69: 955885 | BD69: 0 | BE69: 0 | BF69: 1000127.073 | BG69: 1000127.073 | BH69: 0 | BI69: 961209.8 | BJ69: 827885 | BK69: 866802.273 | BL69: 3994.480521 | BM69: 3860.777672 | BN69: 0.03463106649 | BO69: -0.000631066488 | BP69: -528.7004072 | BQ69: 999598.3726 | BR69: 4581.905864 | BS69: Y | BT69: 4606.444113 | BU69: 0.02886221126 | BV69: 0 | BW69: 999598.3726 | BX69: 0 | BY69: 999598.3726 | BZ69: 5324.8 | CA69: 994273.5726 | CD69: =IFERROR(VLOOKUP(A69,'ERS 2023-24'!C:S,16,FALSE),0) -> 0 | CE69: =IFERROR(VLOOKUP(A69,'ERS 2023-24'!C:S,17,FALSE),0) -> 0 | CF69: =IFERROR(VLOOKUP(A69,'ERS 2023-24'!C:V,18,FALSE),0)+IFERROR(VLOOKUP(A69,'ERS 2023-24'!C:W,19,FALSE),0) -> 0 | CG69: =IFERROR(ROUND((VLOOKUP(A69,'2023-24 Nursery Budget'!C:AJ,34,FALSE)),0),0) -> 130579 | CI69: 1124852.573 | CJ69: 1130177.373
A70: 2522 | B70: 8312522 | C70: Lawn Primary School | D70: 425 | E70: 425 | F70: 0 | G70: =VLOOKUP(B70,'APT Adjusted Factors'!F:W,17,FALSE) -> 0 | H70: =VLOOKUP(B70,'APT Adjusted Factors'!F:W,18,FALSE) -> 0 | I70: 1442450 | J70: 0 | K70: 0 | L70: 15360 | M70: 0 | N70: 25380 | O70: 0 | P70: 6670 | Q70: 2240 | R70: 1760 | S70: 2400 | T70: 1020 | U70: 2010 | V70: 0 | W70: 0 | X70: 0 | Y70: 0 | Z70: 0 | AA70: 0 | AB70: 6753.424658 | AC70: 0 | AD70: 105056.1675 | AE70: 0 | AF70: 0 | AG70: 0 | AH70: 128000 | AI70: 0 | AJ70: 0 | AK70: 0 | AL70: 5094.4 | AM70: 0 | AN70: 0 | AO70: 0 | AP70: 0 | AQ70: 0 | AR70: 0 | AS70: 0 | AT70: 0 | AU70: 0 | AV70: 1442450 | AW70: 168649.5921 | AX70: 133094.4 | AY70: 232867.1456 | AZ70: 1744193.992 | BA70: 1739099.592 | BB70: 4405 | BC70: 1872125 | BD70: 133025.4079 | BE70: 0 | BF70: 1877219.4 | BG70: 1877219.4 | BH70: 0 | BI70: 1877219.4 | BJ70: 1744125 | BK70: 1744125 | BL70: 4103.823529 | BM70: 4076.553991 | BN70: 0.006689360392 | BO70: 0 | BP70: 0 | BQ70: 1877219.4 | BR70: 4405 | BS70: Y | BT70: 4416.986824 | BU70: 0.006414262193 | BV70: 0 | BW70: 1877219.4 | BX70: 0 | BY70: 1877219.4 | BZ70: 5094.4 | CA70: 1872125 | CD70: =IFERROR(VLOOKUP(A70,'ERS 2023-24'!C:S,16,FALSE),0) -> 0 | CE70: =IFERROR(VLOOKUP(A70,'ERS 2023-24'!C:S,17,FALSE),0) -> 0 | CF70: =IFERROR(VLOOKUP(A70,'ERS 2023-24'!C:V,18,FALSE),0)+IFERROR(VLOOKUP(A70,'ERS 2023-24'!C:W,19,FALSE),0) -> 0 | CG70: =IFERROR(ROUND((VLOOKUP(A70,'2023-24 Nursery Budget'!C:AJ,34,FALSE)),0),0) -> 0 | CI70: 1872125 | CJ70: 1877219.4
A71: 2629 | B71: 8312629 | C71: Arboretum Primary School | D71: 536 | E71: 536 | F71: 0 | G71: =VLOOKUP(B71,'APT Adjusted Factors'!F:W,17,FALSE) -> 0 | H71: =VLOOKUP(B71,'APT Adjusted Factors'!F:W,18,FALSE) -> 0 | I71: 1819184 | J71: 0 | K71: 0 | L71: 102720 | M71: 0 | N71: 153690 | O71: 0 | P71: 11960 | Q71: 7280 | R71: 110440 | S71: 79200 | T71: 5100 | U71: 4020 | V71: 0 | W71: 0 | X71: 0 | Y71: 0 | Z71: 0 | AA71: 0 | AB71: 122059.1757 | AC71: 0 | AD71: 236013.4464 | AE71: 0 | AF71: 0 | AG71: 0 | AH71: 128000 | AI71: 0 | AJ71: 0 | AK71: 0 | AL71: 11980.8 | AM71: 0 | AN71: 0 | AO71: 0 | AP71: 0 | AQ71: 0 | AR71: 0 | AS71: 0 | AT71: 0 | AU71: 0 | AV71: 1819184 | AW71: 832482.6221 | AX71: 139980.8 | AY71: 517611.0447 | AZ71: 2791647.422 | BA71: 2779666.622 | BB71: 4405 | BC71: 2361080 | BD71: 0 | BE71: 0 | BF71: 2791647.422 | BG71: 2791647.422 | BH71: 0 | BI71: 2373060.8 | BJ71: 2233080 | BK71: 2651666.622 | BL71: 4947.13922 | BM71: 4814.930348 | BN71: 0.02745810687 | BO71: 0 | BP71: 0 | BQ71: 2791647.422 | BR71: 5185.94519 | BS71: Y | BT71: 5208.297429 | BU71: 0.02487671661 | BV71: 0 | BW71: 2791647.422 | BX71: 0 | BY71: 2791647.422 | BZ71: 11980.8 | CA71: 2779666.622 | CD71: =IFERROR(VLOOKUP(A71,'ERS 2023-24'!C:S,16,FALSE),0) -> 0 | CE71: =IFERROR(VLOOKUP(A71,'ERS 2023-24'!C:S,17,FALSE),0) -> 0 | CF71: =IFERROR(VLOOKUP(A71,'ERS 2023-24'!C:V,18,FALSE),0)+IFERROR(VLOOKUP(A71,'ERS 2023-24'!C:W,19,FALSE),0) -> 0 | CG71: =IFERROR(ROUND((VLOOKUP(A71,'2023-24 Nursery Budget'!C:AJ,34,FALSE)),0),0) -> 222149 | CI71: 3001815.622 | CJ71: 3013796.422
A72: 3158 | B72: 8313158 | C72: Derby St Chad's CofE Nursery and Infant School | D72: 102 | E72: 102 | F72: 0 | G72: =VLOOKUP(B72,'APT Adjusted Factors'!F:W,17,FALSE) -> 0 | H72: =VLOOKUP(B72,'APT Adjusted Factors'!F:W,18,FALSE) -> 0 | I72: 346188 | J72: 0 | K72: 0 | L72: 26400 | M72: 0 | N72: 39480 | O72: 0 | P72: 230 | Q72: 6440 | R72: 19800 | S72: 12480 | T72: 510 | U72: 670 | V72: 0 | W72: 0 | X72: 0 | Y72: 0 | Z72: 0 | AA72: 0 | AB72: 55779.42857 | AC72: 0 | AD72: 42297.7356 | AE72: 0 | AF72: 0 | AG72: 0 | AH72: 128000 | AI72: 0 | AJ72: 0 | AK72: 0 | AL72: 2073.6 | AM72: 0 | AN72: 0 | AO72: 0 | AP72: 0 | AQ72: 0 | AR72: 0 | AS72: 0 | AT72: 0 | AU72: 0 | AV72: 346188 | AW72: 204087.1642 | AX72: 130073.6 | AY72: 116160.6979 | AZ72: 680348.7642 | BA72: 678275.1642 | BB72: 4405 | BC72: 449310 | BD72: 0 | BE72: 0 | BF72: 680348.7642 | BG72: 680348.7642 | BH72: 0 | BI72: 451383.6 | BJ72: 321310 | BK72: 550275.1642 | BL72: 5394.854551 | BM72: 5060.759724 | BN72: 0.06601673354 | BO72: -0.03201673354 | BP72: -16526.95755 | BQ72: 663821.8066 | BR72: 6487.727516 | BS72: Y | BT72: 6508.056928 | BU72: 0.01882920084 | BV72: 0 | BW72: 663821.8066 | BX72: 0 | BY72: 663821.8066 | BZ72: 2073.6 | CA72: 661748.2066 | CD72: =IFERROR(VLOOKUP(A72,'ERS 2023-24'!C:S,16,FALSE),0) -> 0 | CE72: =IFERROR(VLOOKUP(A72,'ERS 2023-24'!C:S,17,FALSE),0) -> 0 | CF72: =IFERROR(VLOOKUP(A72,'ERS 2023-24'!C:V,18,FALSE),0)+IFERROR(VLOOKUP(A72,'ERS 2023-24'!C:W,19,FALSE),0) -> 0 | CG72: =IFERROR(ROUND((VLOOKUP(A72,'2023-24 Nursery Budget'!C:AJ,34,FALSE)),0),0) -> 47787 | CI72: 709535.2066 | CJ72: 711608.8066
A73: 3528 | B73: 8313528 | C73: St Mary's Catholic Voluntary Academy | D73: 329 | E73: 329 | F73: 0 | G73: =VLOOKUP(B73,'APT Adjusted Factors'!F:W,17,FALSE) -> 0 | H73: =VLOOKUP(B73,'APT Adjusted Factors'!F:W,18,FALSE) -> 0 | I73: 1116626 | J73: 0 | K73: 0 | L73: 45600 | M73: 0 | N73: 71205 | O73: 0 | P73: 19780 | Q73: 10360 | R73: 8800 | S73: 10080 | T73: 5100 | U73: 18090 | V73: 0 | W73: 0 | X73: 0 | Y73: 0 | Z73: 0 | AA73: 0 | AB73: 45091.0274 | AC73: 0 | AD73: 143140.9737 | AE73: 0 | AF73: 16310.7 | AG73: 0 | AH73: 128000 | AI73: 0 | AJ73: 0 | AK73: 0 | AL73: 9062.4 | AM73: 0 | AN73: 0 | AO73: 0 | AP73: 0 | AQ73: 0 | AR73: 0 | AS73: 0 | AT73: 0 | AU73: 0 | AV73: 1116626 | AW73: 393557.7011 | AX73: 137062.4 | AY73: 285449.7572 | AZ73: 1647246.101 | BA73: 1638183.701 | BB73: 4405 | BC73: 1449245 | BD73: 0 | BE73: 0 | BF73: 1647246.101 | BG73: 1647246.101 | BH73: 0 | BI73: 1458307.4 | BJ73: 1321245 | BK73: 1510183.701 | BL73: 4590.224015 | BM73: 4344.118568 | BN73: 0.05665256231 | BO73: -0.02265256231 | BP73: -32375.38204 | BQ73: 1614870.719 | BR73: 4880.87635 | BS73: Y | BT73: 4908.421638 | BU73: 0.02782818638 | BV73: 0 | BW73: 1614870.719 | BX73: 0 | BY73: 1614870.719 | BZ73: 9062.4 | CA73: 1605808.319 | CD73: =IFERROR(VLOOKUP(A73,'ERS 2023-24'!C:S,16,FALSE),0) -> 0 | CE73: =IFERROR(VLOOKUP(A73,'ERS 2023-24'!C:S,17,FALSE),0) -> 0 | CF73: =IFERROR(VLOOKUP(A73,'ERS 2023-24'!C:V,18,FALSE),0)+IFERROR(VLOOKUP(A73,'ERS 2023-24'!C:W,19,FALSE),0) -> 0 | CG73: =IFERROR(ROUND((VLOOKUP(A73,'2023-24 Nursery Budget'!C:AJ,34,FALSE)),0),0) -> 115046 | CI73: =SUM(CA73:CH73) -> 1720854.319 | CJ73: =CI73+BZ73 -> 1729916.719
A74: 3530 | B74: 8313530 | C74: Walter Evans Church of England Aided Primary School | D74: 415 | E74: 415 | F74: 0 | G74: =VLOOKUP(B74,'APT Adjusted Factors'!F:W,17,FALSE) -> 0 | H74: =VLOOKUP(B74,'APT Adjusted Factors'!F:W,18,FALSE) -> 0 | I74: 1408510 | J74: 0 | K74: 0 | L74: 9120 | M74: 0 | N74: 14805 | O74: 0 | P74: 2300 | Q74: 1400 | R74: 1320 | S74: 2880 | T74: 510 | U74: 1340 | V74: 0 | W74: 0 | X74: 0 | Y74: 0 | Z74: 0 | AA74: 0 | AB74: 4045.378151 | AC74: 0 | AD74: 65540.35714 | AE74: 0 | AF74: 0 | AG74: 0 | AH74: 128000 | AI74: 0 | AJ74: 0 | AK74: 0 | AL74: 5120 | AM74: 0 | AN74: 0 | AO74: 0 | AP74: 0 | AQ74: 0 | AR74: 0 | AS74: 0 | AT74: 0 | AU74: 0 | AV74: 1408510 | AW74: 103260.7353 | AX74: 133120 | AY74: 205614.7873 | AZ74: 1644890.735 | BA74: 1639770.735 | BB74: 4405 | BC74: 1828075 | BD74: 188304.2647 | BE74: 0 | BF74: 1833195 | BG74: 1833195 | BH74: 0 | BI74: 1833195 | BJ74: 1700075 | BK74: 1700075 | BL74: 4096.566265 | BM74: 4068.151079 | BN74: 0.006984791216 | BO74: 0 | BP74: 0 | BQ74: 1833195 | BR74: 4405 | BS74: Y | BT74: 4417.337349 | BU74: 0.006788154141 | BV74: 0 | BW74: 1833195 | BX74: 0 | BY74: 1833195 | BZ74: 5120 | CA74: 1828075 | CD74: =IFERROR(VLOOKUP(A74,'ERS 2023-24'!C:S,16,FALSE),0) -> 0 | CE74: =IFERROR(VLOOKUP(A74,'ERS 2023-24'!C:S,17,FALSE),0) -> 0 | CF74: =IFERROR(VLOOKUP(A74,'ERS 2023-24'!C:V,18,FALSE),0)+IFERROR(VLOOKUP(A74,'ERS 2023-24'!C:W,19,FALSE),0) -> 0 | CG74: =IFERROR(ROUND((VLOOKUP(A74,'2023-24 Nursery Budget'!C:AJ,34,FALSE)),0),0) -> 138345 | CI74: 1966420 | CJ74: 1971540
A75: 3531 | B75: 8313531 | C75: St George's Catholic Voluntary Academy | D75: 323 | E75: 323 | F75: 0 | G75: =VLOOKUP(B75,'APT Adjusted Factors'!F:W,17,FALSE) -> 0 | H75: =VLOOKUP(B75,'APT Adjusted Factors'!F:W,18,FALSE) -> 0 | I75: 1096262 | J75: 0 | K75: 0 | L75: 38400 | M75: 0 | N75: 56400 | O75: 0 | P75: 460 | Q75: 13440 | R75: 4840 | S75: 9120 | T75: 22950 | U75: 3350 | V75: 0 | W75: 0 | X75: 0 | Y75: 0 | Z75: 0 | AA75: 0 | AB75: 44041.33333 | AC75: 0 | AD75: 95489.98948 | AE75: 0 | AF75: 0 | AG75: 0 | AH75: 128000 | AI75: 0 | AJ75: 0 | AK75: 0 | AL75: 4736 | AM75: 0 | AN75: 0 | AO75: 0 | AP75: 0 | AQ75: 0 | AR75: 0 | AS75: 0 | AT75: 0 | AU75: 0 | AV75: 1096262 | AW75: 288491.3228 | AX75: 132736 | AY75: 235358.6153 | AZ75: 1517489.323 | BA75: 1512753.323 | BB75: 4405 | BC75: 1422815 | BD75: 0 | BE75: 0 | BF75: 1517489.323 | BG75: 1517489.323 | BH75: 0 | BI75: 1427551 | BJ75: 1294815 | BK75: 1384753.323 | BL75: 4287.16199 | BM75: 4120.854113 | BN75: 0.04035762302 | BO75: -0.00635762302 | BP75: -8462.224342 | BQ75: 1509027.098 | BR75: 4657.247983 | BS75: Y | BT75: 4671.910522 | BU75: 0.03503755239 | BV75: 0 | BW75: 1509027.098 | BX75: 0 | BY75: 1509027.098 | BZ75: 4736 | CA75: 1504291.098 | CD75: =IFERROR(VLOOKUP(A75,'ERS 2023-24'!C:S,16,FALSE),0) -> 0 | CE75: =IFERROR(VLOOKUP(A75,'ERS 2023-24'!C:S,17,FALSE),0) -> 0 | CF75: =IFERROR(VLOOKUP(A75,'ERS 2023-24'!C:V,18,FALSE),0)+IFERROR(VLOOKUP(A75,'ERS 2023-24'!C:W,19,FALSE),0) -> 0 | CG75: =IFERROR(ROUND((VLOOKUP(A75,'2023-24 Nursery Budget'!C:AJ,34,FALSE)),0),0) -> 0 | CI75: 1504291.098 | CJ75: 1509027.098
A76: 3532 | B76: 8313532 | C76: St Werburgh's CofE Primary School | D76: 300 | E76: 300 | F76: 0 | G76: =VLOOKUP(B76,'APT Adjusted Factors'!F:W,17,FALSE) -> 0 | H76: =VLOOKUP(B76,'APT Adjusted Factors'!F:W,18,FALSE) -> 0 | I76: 1018200 | J76: 0 | K76: 0 | L76: 22560 | M76: 0 | N76: 35250 | O76: 0 | P76: 12190 | Q76: 3920 | R76: 2200 | S76: 5760 | T76: 2040 | U76: 1340 | V76: 0 | W76: 0 | X76: 0 | Y76: 0 | Z76: 0 | AA76: 0 | AB76: 1940.520446 | AC76: 0 | AD76: 81750 | AE76: 0 | AF76: 0 | AG76: 0 | AH76: 128000 | AI76: 0 | AJ76: 0 | AK76: 0 | AL76: 5120 | AM76: 0 | AN76: 0 | AO76: 0 | AP76: 0 | AQ76: 0 | AR76: 0 | AS76: 0 | AT76: 0 | AU76: 0 | AV76: 1018200 | AW76: 168950.5204 | AX76: 133120 | AY76: 181832.2034 | AZ76: 1320270.52 | BA76: 1315150.52 | BB76: 4405 | BC76: 1321500 | BD76: 6349.479554 | BE76: 0 | BF76: 1326620 | BG76: 1326620 | BH76: 0 | BI76: 1326620 | BJ76: 1193500 | BK76: 1193500 | BL76: 3978.333333 | BM76: 3975.253205 | BN76: 0.0007748256642 | BO76: 0.004225174336 | BP76: 5038.841346 | BQ76: 1331658.841 | BR76: 4421.796138 | BS76: Y | BT76: 4438.862804 | BU76: 0.008340331423 | BV76: 0 | BW76: 1331658.841 | BX76: 0 | BY76: 1331658.841 | BZ76: 5120 | CA76: 1326538.841 | CD76: =IFERROR(VLOOKUP(A76,'ERS 2023-24'!C:S,16,FALSE),0) -> 0 | CE76: =IFERROR(VLOOKUP(A76,'ERS 2023-24'!C:S,17,FALSE),0) -> 0 | CF76: =IFERROR(VLOOKUP(A76,'ERS 2023-24'!C:V,18,FALSE),0)+IFERROR(VLOOKUP(A76,'ERS 2023-24'!C:W,19,FALSE),0) -> 0 | CG76: =IFERROR(ROUND((VLOOKUP(A76,'2023-24 Nursery Budget'!C:AJ,34,FALSE)),0),0) -> 0 | CI76: 1326538.841 | CJ76: 1331658.841
A77: 3535 | B77: 8313535 | C77: St James' Church of England Aided Junior School | D77: 287 | E77: 287 | F77: 0 | G77: =VLOOKUP(B77,'APT Adjusted Factors'!F:W,17,FALSE) -> 0 | H77: =VLOOKUP(B77,'APT Adjusted Factors'!F:W,18,FALSE) -> 0 | I77: 974078 | J77: 0 | K77: 0 | L77: 80160 | M77: 0 | N77: 118440 | O77: 0 | P77: 11960 | Q77: 9800 | R77: 44880 | S77: 25440 | T77: 3060 | U77: 22110 | V77: 0 | W77: 0 | X77: 0 | Y77: 0 | Z77: 0 | AA77: 0 | AB77: 50636.43357 | AC77: 0 | AD77: 129082.5064 | AE77: 0 | AF77: 2627.1 | AG77: 0 | AH77: 128000 | AI77: 0 | AJ77: 0 | AK77: 0 | AL77: 3276.8 | AM77: 0 | AN77: 0 | AO77: 0 | AP77: 0 | AQ77: 0 | AR77: 0 | AS77: 0 | AT77: 0 | AU77: 0 | AV77: 974078 | AW77: 498196.0399 | AX77: 131276.8 | AY77: 296635.0601 | AZ77: 1603550.84 | BA77: 1600274.04 | BB77: 4405 | BC77: 1264235 | BD77: 0 | BE77: 0 | BF77: 1603550.84 | BG77: 1603550.84 | BH77: 0 | BI77: 1267511.8 | BJ77: 1136235 | BK77: 1472274.04 | BL77: 5129.874704 | BM77: 4876.050381 | BN77: 0.05205531169 | BO77: -0.01805531169 | BP77: -25267.08092 | BQ77: 1578283.759 | BR77: 5487.829125 | BS77: Y | BT77: 5499.246547 | BU77: 0.02918347888 | BV77: 0 | BW77: 1578283.759 | BX77: 0 | BY77: 1578283.759 | BZ77: 3276.8 | CA77: 1575006.959 | CD77: =IFERROR(VLOOKUP(A77,'ERS 2023-24'!C:S,16,FALSE),0) -> 0 | CE77: =IFERROR(VLOOKUP(A77,'ERS 2023-24'!C:S,17,FALSE),0) -> 0 | CF77: =IFERROR(VLOOKUP(A77,'ERS 2023-24'!C:V,18,FALSE),0)+IFERROR(VLOOKUP(A77,'ERS 2023-24'!C:W,19,FALSE),0) -> 0 | CG77: =IFERROR(ROUND((VLOOKUP(A77,'2023-24 Nursery Budget'!C:AJ,34,FALSE)),0),0) -> 0 | CI77: 1575006.959 | CJ77: 1578283.759
A78: 3542 | B78: 8313542 | C78: St Joseph's Catholic Voluntary Academy | D78: 373 | E78: 373 | F78: 0 | G78: =VLOOKUP(B78,'APT Adjusted Factors'!F:W,17,FALSE) -> 0 | H78: =VLOOKUP(B78,'APT Adjusted Factors'!F:W,18,FALSE) -> 0 | I78: 1265962 | J78: 0 | K78: 0 | L78: 34560 | M78: 0 | N78: 53580 | O78: 0 | P78: 6440 | Q78: 28840 | R78: 18480 | S78: 24480 | T78: 17340 | U78: 15410 | V78: 0 | W78: 0 | X78: 0 | Y78: 0 | Z78: 0 | AA78: 0 | AB78: 73676.16099 | AC78: 0 | AD78: 90176.2037 | AE78: 0 | AF78: 0 | AG78: 0 | AH78: 128000 | AI78: 0 | AJ78: 0 | AK78: 0 | AL78: 6246.4 | AM78: 0 | AN78: 0 | AO78: 0 | AP78: 0 | AQ78: 0 | AR78: 0 | AS78: 0 | AT78: 0 | AU78: 0 | AV78: 1265962 | AW78: 362982.3647 | AX78: 134246.4 | AY78: 283403.1793 | AZ78: 1763190.765 | BA78: 1756944.365 | BB78: 4405 | BC78: 1643065 | BD78: 0 | BE78: 0 | BF78: 1763190.765 | BG78: 1763190.765 | BH78: 0 | BI78: 1649311.4 | BJ78: 1515065 | BK78: 1628944.365 | BL78: 4367.143069 | BM78: 4307.397178 | BN78: 0.0138705321 | BO78: 0 | BP78: 0 | BQ78: 1763190.765 | BR78: 4710.306608 | BS78: Y | BT78: 4727.052988 | BU78: 0.01295953646 | BV78: 0 | BW78: 1763190.765 | BX78: 0 | BY78: 1763190.765 | BZ78: 6246.4 | CA78: 1756944.365 | CD78: =IFERROR(VLOOKUP(A78,'ERS 2023-24'!C:S,16,FALSE),0) -> 0 | CE78: =IFERROR(VLOOKUP(A78,'ERS 2023-24'!C:S,17,FALSE),0) -> 0 | CF78: =IFERROR(VLOOKUP(A78,'ERS 2023-24'!C:V,18,FALSE),0)+IFERROR(VLOOKUP(A78,'ERS 2023-24'!C:W,19,FALSE),0) -> 0 | CG78: =IFERROR(ROUND((VLOOKUP(A78,'2023-24 Nursery Budget'!C:AJ,34,FALSE)),0),0) -> 0 | CI78: 1756944.365 | CJ78: 1763190.765
A79: 3543 | B79: 8313543 | C79: St Alban's Catholic Voluntary Academy | D79: 301 | E79: 301 | F79: 0 | G79: =VLOOKUP(B79,'APT Adjusted Factors'!F:W,17,FALSE) -> 0 | H79: =VLOOKUP(B79,'APT Adjusted Factors'!F:W,18,FALSE) -> 0 | I79: 1021594 | J79: 0 | K79: 0 | L79: 19680 | M79: 0 | N79: 31020 | O79: 0 | P79: 12880 | Q79: 7840 | R79: 9240 | S79: 3360 | T79: 11220 | U79: 12060 | V79: 0 | W79: 0 | X79: 0 | Y79: 0 | Z79: 0 | AA79: 0 | AB79: 16177.2973 | AC79: 0 | AD79: 82503.75 | AE79: 0 | AF79: 0 | AG79: 0 | AH79: 128000 | AI79: 0 | AJ79: 0 | AK79: 0 | AL79: 4838.4 | AM79: 0 | AN79: 0 | AO79: 0 | AP79: 0 | AQ79: 0 | AR79: 0 | AS79: 0 | AT79: 0 | AU79: 0 | AV79: 1021594 | AW79: 205981.0473 | AX79: 132838.4 | AY79: 195976.1094 | AZ79: 1360413.447 | BA79: 1355575.047 | BB79: 4405 | BC79: 1325905 | BD79: 0 | BE79: 0 | BF79: 1360413.447 | BG79: 1360413.447 | BH79: 0 | BI79: 1330743.4 | BJ79: 1197905 | BK79: 1227575.047 | BL79: 4078.322416 | BM79: 3992.036408 | BN79: 0.02161453434 | BO79: 0 | BP79: 0 | BQ79: 1360413.447 | BR79: 4503.571586 | BS79: Y | BT79: 4519.646004 | BU79: 0.02017833211 | BV79: 0 | BW79: 1360413.447 | BX79: 0 | BY79: 1360413.447 | BZ79: 4838.4 | CA79: 1355575.047 | CD79: =IFERROR(VLOOKUP(A79,'ERS 2023-24'!C:S,16,FALSE),0) -> 0 | CE79: =IFERROR(VLOOKUP(A79,'ERS 2023-24'!C:S,17,FALSE),0) -> 0 | CF79: =IFERROR(VLOOKUP(A79,'ERS 2023-24'!C:V,18,FALSE),0)+IFERROR(VLOOKUP(A79,'ERS 2023-24'!C:W,19,FALSE),0) -> 0 | CG79: =IFERROR(ROUND((VLOOKUP(A79,'2023-24 Nursery Budget'!C:AJ,34,FALSE)),0),0) -> 168770 | CI79: 1524345.047 | CJ79: 1529183.447
A80: 3544 | B80: 8313544 | C80: Hardwick Primary School | D80: 539 | E80: 539 | F80: 0 | G80: =VLOOKUP(B80,'APT Adjusted Factors'!F:W,17,FALSE) -> 0 | H80: =VLOOKUP(B80,'APT Adjusted Factors'!F:W,18,FALSE) -> 0 | I80: 1829366 | J80: 0 | K80: 0 | L80: 132480 | M80: 0 | N80: 198105 | O80: 0 | P80: 2070 | Q80: 10080 | R80: 112200 | S80: 106080 | T80: 2040 | U80: 670 | V80: 0 | W80: 0 | X80: 0 | Y80: 0 | Z80: 0 | AA80: 0 | AB80: 146193.904 | AC80: 0 | AD80: 278798.8822 | AE80: 0 | AF80: 4403.7 | AG80: 0 | AH80: 128000 | AI80: 0 | AJ80: 0 | AK80: 0 | AL80: 13414.4 | AM80: 0 | AN80: 165537 | AO80: 0 | AP80: 0 | AQ80: 0 | AR80: 0 | AS80: 0 | AT80: 0 | AU80: 0 | AV80: 1829366 | AW80: 993121.4862 | AX80: 306951.4 | AY80: 579467.947 | AZ80: 3129438.886 | BA80: 2950487.486 | BB80: 4405 | BC80: 2374295 | BD80: 0 | BE80: 0 | BF80: 3129438.886 | BG80: 3129438.886 | BH80: 0 | BI80: 2553246.4 | BJ80: 2411832 | BK80: 2988024.486 | BL80: 5543.644687 | BM80: 5298.721262 | BN80: 0.04622311924 | BO80: -0.01222311924 | BP80: -34909.36009 | BQ80: 3094529.526 | BR80: 5409.235855 | BS80: Y | BT80: 5741.242163 | BU80: 0.0324219744 | BV80: 0 | BW80: 3094529.526 | BX80: 0 | BY80: 3094529.526 | BZ80: 13414.4 | CA80: 3081115.126 | CD80: =IFERROR(VLOOKUP(A80,'ERS 2023-24'!C:S,16,FALSE),0) -> 0 | CE80: =IFERROR(VLOOKUP(A80,'ERS 2023-24'!C:S,17,FALSE),0) -> 0 | CF80: =IFERROR(VLOOKUP(A80,'ERS 2023-24'!C:V,18,FALSE),0)+IFERROR(VLOOKUP(A80,'ERS 2023-24'!C:W,19,FALSE),0) -> 0 | CG80: =IFERROR(ROUND((VLOOKUP(A80,'2023-24 Nursery Budget'!C:AJ,34,FALSE)),0),0) -> 144690 | CI80: 3225805.126 | CJ80: 3239219.526
A81: 3546 | B81: 8313546 | C81: Village Primary Academy | D81: 605 | E81: 605 | F81: 0 | G81: =VLOOKUP(B81,'APT Adjusted Factors'!F:W,17,FALSE) -> 0 | H81: =VLOOKUP(B81,'APT Adjusted Factors'!F:W,18,FALSE) -> 0 | I81: 2053370 | J81: 0 | K81: 0 | L81: 134400 | M81: 0 | N81: 204450 | O81: 0 | P81: 920 | Q81: 38360 | R81: 61600 | S81: 11040 | T81: 78540 | U81: 5360 | V81: 0 | W81: 0 | X81: 0 | Y81: 0 | Z81: 0 | AA81: 0 | AB81: 122644.6602 | AC81: 0 | AD81: 267513.8312 | AE81: 0 | AF81: 719.3890728 | AG81: 0 | AH81: 128000 | AI81: 0 | AJ81: 0 | AK81: 0 | AL81: 15564.8 | AM81: 0 | AN81: 0 | AO81: 0 | AP81: 0 | AQ81: 0 | AR81: 0 | AS81: 0 | AT81: 0 | AU81: 0 | AV81: 2053370 | AW81: 925547.8805 | AX81: 143564.8 | AY81: 579012.776 | AZ81: 3122482.68 | BA81: 3106917.88 | BB81: 4405 | BC81: 2665025 | BD81: 0 | BE81: 0 | BF81: 3122482.68 | BG81: 3122482.68 | BH81: 0 | BI81: 2680589.8 | BJ81: 2537025 | BK81: 2978917.88 | BL81: 4923.831207 | BM81: 4749.879746 | BN81: 0.03662228739 | BO81: -0.002622287392 | BP81: -7535.607613 | BQ81: 3114947.073 | BR81: 5122.945906 | BS81: Y | BT81: 5148.672848 | BU81: 0.03306083558 | BV81: 0 | BW81: 3114947.073 | BX81: 0 | BY81: 3114947.073 | BZ81: 15564.8 | CA81: 3099382.273 | CD81: =IFERROR(VLOOKUP(A81,'ERS 2023-24'!C:S,16,FALSE),0) -> 0 | CE81: =IFERROR(VLOOKUP(A81,'ERS 2023-24'!C:S,17,FALSE),0) -> 0 | CF81: =IFERROR(VLOOKUP(A81,'ERS 2023-24'!C:V,18,FALSE),0)+IFERROR(VLOOKUP(A81,'ERS 2023-24'!C:W,19,FALSE),0) -> 0 | CG81: =IFERROR(ROUND((VLOOKUP(A81,'2023-24 Nursery Budget'!C:AJ,34,FALSE)),0),0) -> 184545 | CI81: 3283927.273 | CJ81: 3299492.073
A82: 4000 | B82: 8314000 | C82: Zaytouna Primary School | D82: 420 | E82: 420 | F82: 0 | G82: =VLOOKUP(B82,'APT Adjusted Factors'!F:W,17,FALSE) -> 0 | H82: =VLOOKUP(B82,'APT Adjusted Factors'!F:W,18,FALSE) -> 0 | I82: 1425480 | J82: 0 | K82: 0 | L82: 76800 | M82: 0 | N82: 113505 | O82: 0 | P82: 12219.09308 | Q82: 22172.79236 | R82: 35725.05967 | S82: 32236.75418 | T82: 15847.7327 | U82: 18133.17422 | V82: 0 | W82: 0 | X82: 0 | Y82: 0 | Z82: 0 | AA82: 0 | AB82: 136010 | AC82: 0 | AD82: 134400 | AE82: 0 | AF82: 27216 | AG82: 0 | AH82: 128000 | AI82: 0 | AJ82: 0 | AK82: 0 | AL82: 12390.4 | AM82: 0 | AN82: 0 | AO82: 0 | AP82: 0 | AQ82: 0 | AR82: 0 | AS82: 0 | AT82: 0 | AU82: 0 | AV82: 1425480 | AW82: 624265.6062 | AX82: 140390.4 | AY82: 415262.0662 | AZ82: 2190136.006 | BA82: 2177745.606 | BB82: 4405 | BC82: 1850100 | BD82: 0 | BE82: 0 | BF82: 2190136.006 | BG82: 2190136.006 | BH82: 0 | BI82: 1862490.4 | BJ82: 1722100 | BK82: 2049745.606 | BL82: 4880.346681 | BM82: 4558.201219 | BN82: 0.07067381341 | BO82: -0.03667381341 | BP82: -70209.98081 | BQ82: 2119926.025 | BR82: 5017.941965 | BS82: Y | BT82: 5047.442918 | BU82: 0.02528842351 | BV82: 0 | BW82: 2119926.025 | BX82: 0 | BY82: 2119926.025 | BZ82: 12390.4 | CA82: 2107535.625 | CD82: =IFERROR(VLOOKUP(A82,'ERS 2023-24'!C:S,16,FALSE),0) -> 0 | CE82: =IFERROR(VLOOKUP(A82,'ERS 2023-24'!C:S,17,FALSE),0) -> 0 | CF82: =IFERROR(VLOOKUP(A82,'ERS 2023-24'!C:V,18,FALSE),0)+IFERROR(VLOOKUP(A82,'ERS 2023-24'!C:W,19,FALSE),0) -> 0 | CG82: =IFERROR(ROUND((VLOOKUP(A82,'2023-24 Nursery Budget'!C:AJ,34,FALSE)),0),0) -> 72670 | CI82: 2180205.625 | CJ82: 2192596.025
A83: 5201 | B83: 8315201 | C83: Borrow Wood Primary School | D83: 288 | E83: 288 | F83: 0 | G83: =VLOOKUP(B83,'APT Adjusted Factors'!F:W,17,FALSE) -> 0 | H83: =VLOOKUP(B83,'APT Adjusted Factors'!F:W,18,FALSE) -> 0 | I83: 977472 | J83: 0 | K83: 0 | L83: 30720 | M83: 0 | N83: 47940 | O83: 0 | P83: 6440 | Q83: 5320 | R83: 0 | S83: 17760 | T83: 0 | U83: 0 | V83: 0 | W83: 0 | X83: 0 | Y83: 0 | Z83: 0 | AA83: 0 | AB83: 8288.244275 | AC83: 0 | AD83: 73926.14362 | AE83: 0 | AF83: 4460.4 | AG83: 0 | AH83: 128000 | AI83: 0 | AJ83: 0 | AK83: 0 | AL83: 6092.8 | AM83: 0 | AN83: 0 | AO83: 0 | AP83: 0 | AQ83: 0 | AR83: 0 | AS83: 0 | AT83: 0 | AU83: 0 | AV83: 977472 | AW83: 194854.7879 | AX83: 134092.8 | AY83: 189268.8975 | AZ83: 1306419.588 | BA83: 1300326.788 | BB83: 4405 | BC83: 1268640 | BD83: 0 | BE83: 0 | BF83: 1306419.588 | BG83: 1306419.588 | BH83: 0 | BI83: 1274732.8 | BJ83: 1140640 | BK83: 1172326.788 | BL83: 4070.579125 | BM83: 3990.403374 | BN83: 0.02009214173 | BO83: 0 | BP83: 0 | BQ83: 1306419.588 | BR83: 4515.023569 | BS83: Y | BT83: 4536.179125 | BU83: 0.0278723325 | BV83: 0 | BW83: 1306419.588 | BX83: 0 | BY83: 1306419.588 | BZ83: 6092.8 | CA83: 1300326.788 | CD83: =IFERROR(VLOOKUP(A83,'ERS 2023-24'!C:S,16,FALSE),0) -> 0 | CE83: =IFERROR(VLOOKUP(A83,'ERS 2023-24'!C:S,17,FALSE),0) -> 0 | CF83: =IFERROR(VLOOKUP(A83,'ERS 2023-24'!C:V,18,FALSE),0)+IFERROR(VLOOKUP(A83,'ERS 2023-24'!C:W,19,FALSE),0) -> 0 | CG83: =IFERROR(ROUND((VLOOKUP(A83,'2023-24 Nursery Budget'!C:AJ,34,FALSE)),0),0) -> 98254 | CI83: 1398580.788 | CJ83: 1404673.588
A84: 5203 | B84: 8315203 | C84: Chellaston Junior School | D84: 508 | E84: 508 | F84: 0 | G84: =VLOOKUP(B84,'APT Adjusted Factors'!F:W,17,FALSE) -> 0 | H84: =VLOOKUP(B84,'APT Adjusted Factors'!F:W,18,FALSE) -> 0 | I84: 1724152 | J84: 0 | K84: 0 | L84: 64320 | M84: 0 | N84: 104340 | O84: 0 | P84: 21390 | Q84: 1120 | R84: 440 | S84: 480 | T84: 5100 | U84: 3350 | V84: 0 | W84: 0 | X84: 0 | Y84: 0 | Z84: 0 | AA84: 0 | AB84: 8700 | AC84: 0 | AD84: 140072.5887 | AE84: 0 | AF84: 0 | AG84: 0 | AH84: 128000 | AI84: 0 | AJ84: 0 | AK84: 0 | AL84: 6451.2 | AM84: 0 | AN84: 0 | AO84: 0 | AP84: 0 | AQ84: 0 | AR84: 0 | AS84: 0 | AT84: 0 | AU84: 0 | AV84: 1724152 | AW84: 349312.5887 | AX84: 134451.2 | AY84: 330448.5275 | AZ84: 2207915.789 | BA84: 2201464.589 | BB84: 4405 | BC84: 2237740 | BD84: 36275.41126 | BE84: 0 | BF84: 2244191.2 | BG84: 2244191.2 | BH84: 0 | BI84: 2244191.2 | BJ84: 2109740 | BK84: 2109740 | BL84: 4153.031496 | BM84: 4140.86811 | BN84: 0.002937399961 | BO84: 0.002062600039 | BP84: 4338.805 | BQ84: 2248530.005 | BR84: 4413.540955 | BS84: Y | BT84: 4426.240167 | BU84: 0.004621153192 | BV84: 0 | BW84: 2248530.005 | BX84: 0 | BY84: 2248530.005 | BZ84: 6451.2 | CA84: 2242078.805 | CD84: =IFERROR(VLOOKUP(A84,'ERS 2023-24'!C:S,16,FALSE),0) -> 0 | CE84: =IFERROR(VLOOKUP(A84,'ERS 2023-24'!C:S,17,FALSE),0) -> 0 | CF84: =IFERROR(VLOOKUP(A84,'ERS 2023-24'!C:V,18,FALSE),0)+IFERROR(VLOOKUP(A84,'ERS 2023-24'!C:W,19,FALSE),0) -> 0 | CG84: =IFERROR(ROUND((VLOOKUP(A84,'2023-24 Nursery Budget'!C:AJ,34,FALSE)),0),0) -> 0 | CI84: 2242078.805 | CJ84: 2248530.005
A85: 4004 | B85: 8314004 | C85: Derby Cathedral School | D85: 884 | E85: 0 | F85: 884 | G85: =VLOOKUP(B85,'APT Adjusted Factors'!F:W,17,FALSE) -> 536 | H85: =VLOOKUP(B85,'APT Adjusted Factors'!F:W,18,FALSE) -> 348 | I85: 0 | J85: 2564760 | K85: 1876764 | L85: 0 | M85: 150240 | N85: 0 | O85: 379040 | P85: 0 | Q85: 0 | R85: 0 | S85: 0 | T85: 0 | U85: 0 | V85: 31525.66251 | W85: 85982.26501 | X85: 50276.87429 | Y85: 81692.41223 | Z85: 80390.93998 | AA85: 91243.21631 | AB85: 0 | AC85: 39258.22928 | AD85: 0 | AE85: 363158.9456 | AF85: 0 | AG85: 0 | AH85: 128000 | AI85: 0 | AJ85: 0 | AK85: 0 | AL85: 33536 | AM85: 0 | AN85: 0 | AO85: 0 | AP85: 0 | AQ85: 0 | AR85: 0 | AS85: 0 | AT85: 0 | AU85: 0 | AV85: 4441524 | AW85: 1352808.545 | AX85: 161536 | AY85: 889495.8604 | AZ85: 5955868.545 | BA85: 5922332.545 | BB85: 5715 | BC85: 5052060 | BD85: 0 | BE85: 0 | BF85: 5955868.545 | BG85: 0 | BH85: 5955868.545 | BI85: 5085596 | BJ85: 4924060 | BK85: 5794332.545 | BL85: 6554.674825 | BM85: 6214.973855 | BN85: 0.05465847131 | BO85: -0.02065847131 | BP85: -113498.4034 | BQ85: 5842370.142 | BR85: 6571.079346 | BS85: Y | BT85: 6609.015997 | BU85: 0.03464668417 | BV85: 0 | BW85: 5842370.142 | BX85: 0 | BY85: 5842370.142 | BZ85: 33536 | CA85: 5808834.142 | CD85: =IFERROR(VLOOKUP(A85,'ERS 2023-24'!C:S,16,FALSE),0) -> 0 | CE85: =IFERROR(VLOOKUP(A85,'ERS 2023-24'!C:S,17,FALSE),0) -> 0 | CF85: =IFERROR(VLOOKUP(A85,'ERS 2023-24'!C:V,18,FALSE),0)+IFERROR(VLOOKUP(A85,'ERS 2023-24'!C:W,19,FALSE),0) -> 0 | CG85: =IFERROR(ROUND((VLOOKUP(A85,'2023-24 Nursery Budget'!C:AJ,34,FALSE)),0),0) -> 0 | CI85: 5808834.142 | CJ85: 5842370.142
A86: 4005 | B86: 8314005 | C86: Noel-Baker Academy | D86: 1123 | E86: 0 | F86: 1123 | G86: =VLOOKUP(B86,'APT Adjusted Factors'!F:W,17,FALSE) -> 775 | H86: =VLOOKUP(B86,'APT Adjusted Factors'!F:W,18,FALSE) -> 348 | I86: 0 | J86: 3708375 | K86: 1876764 | L86: 0 | M86: 196320 | N86: 0 | O86: 544870 | P86: 0 | Q86: 0 | R86: 0 | S86: 0 | T86: 0 | U86: 0 | V86: 45560 | W86: 70310 | X86: 4960 | Y86: 98600 | Z86: 141620 | AA86: 150660 | AB86: 0 | AC86: 26628.71212 | AD86: 0 | AE86: 534322.6757 | AF86: 0 | AG86: 0 | AH86: 128000 | AI86: 0 | AJ86: 0 | AK86: 0 | AL86: 27904 | AM86: 0 | AN86: 419920 | AO86: 0 | AP86: 0 | AQ86: 0 | AR86: 0 | AS86: 0 | AT86: 0 | AU86: 0 | AV86: 5585139 | AW86: 1813851.388 | AX86: 575824 | AY86: 1162337.901 | AZ86: 7974814.388 | BA86: 7526990.388 | BB86: 5715 | BC86: 6417945 | BD86: 0 | BE86: 0 | BF86: 7974814.388 | BG86: 0 | BH86: 7974814.388 | BI86: 6865769 | BJ86: 6709865 | BK86: 7818910.388 | BL86: 6962.520381 | BM86: 6798.342285 | BN86: 0.02414972483 | BO86: 0 | BP86: 0 | BQ86: 7974814.388 | BR86: 6702.573809 | BS86: Y | BT86: 7101.34852 | BU86: 0.02259932151 | BV86: 0 | BW86: 7974814.388 | BX86: 0 | BY86: 7974814.388 | BZ86: 27904 | CA86: 7946910.388 | CD86: =IFERROR(VLOOKUP(A86,'ERS 2023-24'!C:S,16,FALSE),0) -> 0 | CE86: =IFERROR(VLOOKUP(A86,'ERS 2023-24'!C:S,17,FALSE),0) -> 0 | CF86: =IFERROR(VLOOKUP(A86,'ERS 2023-24'!C:V,18,FALSE),0)+IFERROR(VLOOKUP(A86,'ERS 2023-24'!C:W,19,FALSE),0) -> 0 | CG86: =IFERROR(ROUND((VLOOKUP(A86,'2023-24 Nursery Budget'!C:AJ,34,FALSE)),0),0) -> 0 | CI86: 7946910.388 | CJ86: 7974814.388
A87: 4006 | B87: 8314006 | C87: Lees Brook Academy | D87: 1038 | E87: 0 | F87: 1038 | G87: =VLOOKUP(B87,'APT Adjusted Factors'!F:W,17,FALSE) -> 618 | H87: =VLOOKUP(B87,'APT Adjusted Factors'!F:W,18,FALSE) -> 420 | I87: 0 | J87: 2957130 | K87: 2265060 | L87: 0 | M87: 124800 | N87: 0 | O87: 342990 | P87: 0 | Q87: 0 | R87: 0 | S87: 0 | T87: 0 | U87: 0 | V87: 52981.04147 | W87: 44542.91225 | X87: 49027.2324 | Y87: 12932.45902 | Z87: 27036.04629 | AA87: 61439.18997 | AB87: 0 | AC87: 23565.81238 | AD87: 0 | AE87: 422280.0935 | AF87: 0 | AG87: 0 | AH87: 128000 | AI87: 0 | AJ87: 0 | AK87: 0 | AL87: 27136 | AM87: 0 | AN87: 0 | AO87: 0 | AP87: 0 | AQ87: 0 | AR87: 0 | AS87: 0 | AT87: 0 | AU87: 0 | AV87: 5222190 | AW87: 1161594.787 | AX87: 155136 | AY87: 892909.6095 | AZ87: 6538920.787 | BA87: 6511784.787 | BB87: 5715 | BC87: 5932170 | BD87: 0 | BE87: 0 | BF87: 6538920.787 | BG87: 0 | BH87: 6538920.787 | BI87: 5959306 | BJ87: 5804170 | BK87: 6383784.787 | BL87: 6150.081683 | BM87: 5968.868023 | BN87: 0.03035980353 | BO87: 0 | BP87: 0 | BQ87: 6538920.787 | BR87: 6273.395749 | BS87: Y | BT87: 6299.538331 | BU87: 0.02972596023 | BV87: 0 | BW87: 6538920.787 | BX87: 0 | BY87: 6538920.787 | BZ87: 27136 | CA87: 6511784.787 | CD87: =IFERROR(VLOOKUP(A87,'ERS 2023-24'!C:S,16,FALSE),0) -> 0 | CE87: =IFERROR(VLOOKUP(A87,'ERS 2023-24'!C:S,17,FALSE),0) -> 0 | CF87: =IFERROR(VLOOKUP(A87,'ERS 2023-24'!C:V,18,FALSE),0)+IFERROR(VLOOKUP(A87,'ERS 2023-24'!C:W,19,FALSE),0) -> 0 | CG87: =IFERROR(ROUND((VLOOKUP(A87,'2023-24 Nursery Budget'!C:AJ,34,FALSE)),0),0) -> 0 | CI87: 6511784.787 | CJ87: 6538920.787
A88: 4007 | B88: 8314007 | C88: Da Vinci Academy | D88: 725.4166667 | E88: 0 | F88: 725.4166667 | G88: =VLOOKUP(B88,'APT Adjusted Factors'!F:W,17,FALSE) -> 443.4166667 | H88: =VLOOKUP(B88,'APT Adjusted Factors'!F:W,18,FALSE) -> 282 | I88: 0 | J88: 2121748.75 | K88: 1520826 | L88: 0 | M88: 161873.8764 | N88: 0 | O88: 405071.8516 | P88: 0 | Q88: 0 | R88: 0 | S88: 0 | T88: 0 | U88: 0 | V88: 57681.83228 | W88: 43525 | X88: 27162.37125 | Y88: 4156.882022 | Z88: 71400.5618 | AA88: 197085.1124 | AB88: 0 | AC88: 30509.56801 | AD88: 0 | AE88: 407128.7603 | AF88: 0 | AG88: 6022.080638 | AH88: 128000 | AI88: 0 | AJ88: 0 | AK88: 0 | AL88: 22835.2 | AM88: 0 | AN88: 27078 | AO88: 0 | AP88: 0 | AQ88: 0 | AR88: 0 | AS88: 0 | AT88: 0 | AU88: 0 | AV88: 3642574.75 | AW88: 1411617.897 | AX88: 177913.2 | AY88: 840015.9776 | AZ88: 5232105.847 | BA88: 5182192.647 | BB88: 5715 | BC88: 4145756.25 | BD88: 0 | BE88: 0 | BF88: 5232105.847 | BG88: 0 | BH88: 5232105.847 | BI88: 4195669.45 | BJ88: 4044834.25 | BK88: 5081270.647 | BL88: 7004.623522 | BM88: 6821.934968 | BN88: 0.02677958014 | BO88: 0 | BP88: 0 | BQ88: 5232105.847 | BR88: 7143.746325 | BS88: Y | BT88: 7212.552574 | BU88: 0.02229693328 | BV88: 0 | BW88: 5232105.847 | BX88: 0 | BY88: 5232105.847 | BZ88: 22835.2 | CA88: 5209270.647 | CD88: =IFERROR(VLOOKUP(A88,'ERS 2023-24'!C:S,16,FALSE),0) -> 0 | CE88: =IFERROR(VLOOKUP(A88,'ERS 2023-24'!C:S,17,FALSE),0) -> 0 | CF88: =IFERROR(VLOOKUP(A88,'ERS 2023-24'!C:V,18,FALSE),0)+IFERROR(VLOOKUP(A88,'ERS 2023-24'!C:W,19,FALSE),0) -> 0 | CG88: =IFERROR(ROUND((VLOOKUP(A88,'2023-24 Nursery Budget'!C:AJ,34,FALSE)),0),0) -> 0 | CI88: 5209270.647 | CJ88: 5232105.847
A89: 4008 | B89: 8314008 | C89: City of Derby Academy | D89: 973.9166667 | E89: 0 | F89: 973.9166667 | G89: =VLOOKUP(B89,'APT Adjusted Factors'!F:W,17,FALSE) -> 613.9166667 | H89: =VLOOKUP(B89,'APT Adjusted Factors'!F:W,18,FALSE) -> 360 | I89: 0 | J89: 2937591.25 | K89: 1941480 | L89: 0 | M89: 207068.4232 | N89: 0 | O89: 500526.4877 | P89: 0 | Q89: 0 | R89: 0 | S89: 0 | T89: 0 | U89: 0 | V89: 13226.84122 | W89: 64873.78378 | X89: 99801.14865 | Y89: 127358.3333 | Z89: 139679.0878 | AA89: 24479.52703 | AB89: 0 | AC89: 141187.1614 | AD89: 0 | AE89: 583819.3039 | AF89: 0 | AG89: 33312.60215 | AH89: 128000 | AI89: 0 | AJ89: 0 | AK89: 0 | AL89: 33024 | AM89: 0 | AN89: 0 | AO89: 0 | AP89: 0 | AQ89: 0 | AR89: 0 | AS89: 0 | AT89: 0 | AU89: 0 | AV89: 4879071.25 | AW89: 1935332.7 | AX89: 161024 | AY89: 1163047.746 | AZ89: 6975427.95 | BA89: 6942403.95 | BB89: 5715 | BC89: 5565933.75 | BD89: 0 | BE89: 0 | BF89: 6975427.95 | BG89: 0 | BH89: 6975427.95 | BI89: 5598957.75 | BJ89: 5437933.75 | BK89: 6814403.95 | BL89: 6996.906597 | BM89: 6812.334396 | BN89: 0.02709382572 | BO89: 0 | BP89: 0 | BQ89: 6975427.95 | BR89: 7128.33468 | BS89: Y | BT89: 7162.243125 | BU89: 0.02590085465 | BV89: 0 | BW89: 6975427.95 | BX89: 0 | BY89: 6975427.95 | BZ89: 33024 | CA89: 6942403.95 | CD89: =IFERROR(VLOOKUP(A89,'ERS 2023-24'!C:S,16,FALSE),0) -> 0 | CE89: =IFERROR(VLOOKUP(A89,'ERS 2023-24'!C:S,17,FALSE),0) -> 0 | CF89: =IFERROR(VLOOKUP(A89,'ERS 2023-24'!C:V,18,FALSE),0)+IFERROR(VLOOKUP(A89,'ERS 2023-24'!C:W,19,FALSE),0) -> 0 | CG89: =IFERROR(ROUND((VLOOKUP(A89,'2023-24 Nursery Budget'!C:AJ,34,FALSE)),0),0) -> 0 | CI89: 6942403.95 | CJ89: 6975427.95
A90: 4010 | B90: 8314010 | C90: UTC Derby Pride Park | D90: 212 | E90: 0 | F90: 212 | G90: =VLOOKUP(B90,'APT Adjusted Factors'!F:W,17,FALSE) -> 93 | H90: =VLOOKUP(B90,'APT Adjusted Factors'!F:W,18,FALSE) -> 119 | I90: 0 | J90: 445005 | K90: 641767 | L90: 0 | M90: 26880 | N90: 0 | O90: 84460 | P90: 0 | Q90: 0 | R90: 0 | S90: 0 | T90: 0 | U90: 0 | V90: 7035 | W90: 9790 | X90: 9920 | Y90: 10880 | Z90: 18250 | AA90: 12090 | AB90: 0 | AC90: 8043.151515 | AD90: 0 | AE90: 117080.8307 | AF90: 0 | AG90: 8540.8 | AH90: 128000 | AI90: 0 | AJ90: 0 | AK90: 0 | AL90: 26880 | AM90: 0 | AN90: 0 | AO90: 0 | AP90: 0 | AQ90: 0 | AR90: 0 | AS90: 0 | AT90: 0 | AU90: 0 | AV90: 1086772 | AW90: 312969.7822 | AX90: 154880 | AY90: 214788.0646 | AZ90: 1554621.782 | BA90: 1527741.782 | BB90: 5856.333333 | BC90: 1241542.667 | BD90: 0 | BE90: 0 | BF90: 1554621.782 | BG90: 0 | BH90: 1554621.782 | BI90: 1268422.667 | BJ90: 1113542.667 | BK90: 1399741.782 | BL90: 6602.555576 | BM90: 6367.27088 | BN90: 0.03695220466 | BO90: -0.002952204656 | BP90: -3985.067188 | BQ90: 1550636.715 | BR90: 7187.531675 | BS90: Y | BT90: 7314.324127 | BU90: -0.0292344956 | BV90: 0 | BW90: 1550636.715 | BX90: 0 | BY90: 1550636.715 | BZ90: 26880 | CA90: 1523756.715 | CD90: =IFERROR(VLOOKUP(A90,'ERS 2023-24'!C:S,16,FALSE),0) -> 0 | CE90: =IFERROR(VLOOKUP(A90,'ERS 2023-24'!C:S,17,FALSE),0) -> 0 | CF90: =IFERROR(VLOOKUP(A90,'ERS 2023-24'!C:V,18,FALSE),0)+IFERROR(VLOOKUP(A90,'ERS 2023-24'!C:W,19,FALSE),0) -> 0 | CG90: =IFERROR(ROUND((VLOOKUP(A90,'2023-24 Nursery Budget'!C:AJ,34,FALSE)),0),0) -> 0 | CI90: 1523756.715 | CJ90: 1550636.715
A91: 4011 | B91: 8314011 | C91: Alvaston Moor Academy | D91: 873 | E91: 0 | F91: 873 | G91: =VLOOKUP(B91,'APT Adjusted Factors'!F:W,17,FALSE) -> 540 | H91: =VLOOKUP(B91,'APT Adjusted Factors'!F:W,18,FALSE) -> 333 | I91: 0 | J91: 2583900 | K91: 1795869 | L91: 0 | M91: 232800 | N91: 0 | O91: 602550 | P91: 0 | Q91: 0 | R91: 0 | S91: 0 | T91: 0 | U91: 0 | V91: 18446.12959 | W91: 30740.21216 | X91: 30414.83945 | Y91: 110286.3303 | Z91: 204634.4037 | AA91: 171316.2385 | AB91: 0 | AC91: 138036.2342 | AD91: 0 | AE91: 553087.2922 | AF91: 0 | AG91: 45991.76487 | AH91: 128000 | AI91: 0 | AJ91: 0 | AK91: 0 | AL91: 37376 | AM91: 0 | AN91: 415069 | AO91: 0 | AP91: 0 | AQ91: 0 | AR91: 0 | AS91: 0 | AT91: 0 | AU91: 0 | AV91: 4379769 | AW91: 2138303.445 | AX91: 580445 | AY91: 1195779.166 | AZ91: 7098517.445 | BA91: 6646072.445 | BB91: 5715 | BC91: 4989195 | BD91: 0 | BE91: 0 | BF91: 7098517.445 | BG91: 0 | BH91: 7098517.445 | BI91: 5441640 | BJ91: 5276264 | BK91: 6933141.445 | BL91: 7941.742778 | BM91: 7661.651289 | BN91: 0.03655758773 | BO91: -0.002557587733 | BP91: -17106.73649 | BQ91: 7081410.708 | BR91: 7593.316963 | BS91: Y | BT91: 8111.581568 | BU91: 0.03183161741 | BV91: 0 | BW91: 7081410.708 | BX91: 0 | BY91: 7081410.708 | BZ91: 37376 | CA91: 7044034.708 | CD91: =IFERROR(VLOOKUP(A91,'ERS 2023-24'!C:S,16,FALSE),0) -> 0 | CE91: =IFERROR(VLOOKUP(A91,'ERS 2023-24'!C:S,17,FALSE),0) -> 0 | CF91: =IFERROR(VLOOKUP(A91,'ERS 2023-24'!C:V,18,FALSE),0)+IFERROR(VLOOKUP(A91,'ERS 2023-24'!C:W,19,FALSE),0) -> 0 | CG91: =IFERROR(ROUND((VLOOKUP(A91,'2023-24 Nursery Budget'!C:AJ,34,FALSE)),0),0) -> 0 | CI91: 7044034.708 | CJ91: 7081410.708
A92: 4012 | B92: 8314012 | C92: Chellaston Academy | D92: 1483 | E92: 0 | F92: 1483 | G92: =VLOOKUP(B92,'APT Adjusted Factors'!F:W,17,FALSE) -> 902 | H92: =VLOOKUP(B92,'APT Adjusted Factors'!F:W,18,FALSE) -> 581 | I92: 0 | J92: 4316070 | K92: 3133333 | L92: 0 | M92: 102240 | N92: 0 | O92: 251320 | P92: 0 | Q92: 0 | R92: 0 | S92: 0 | T92: 0 | U92: 0 | V92: 45621.526 | W92: 2673.605672 | X92: 620.8372721 | Y92: 3404.591492 | Z92: 7309.858204 | AA92: 2793.767725 | AB92: 0 | AC92: 14123.09331 | AD92: 0 | AE92: 441119.3284 | AF92: 0 | AG92: 0 | AH92: 128000 | AI92: 0 | AJ92: 0 | AK92: 0 | AL92: 43520 | AM92: 0 | AN92: 0 | AO92: 0 | AP92: 0 | AQ92: 0 | AR92: 0 | AS92: 0 | AT92: 0 | AU92: 0 | AV92: 7449403 | AW92: 871226.608 | AX92: 171520 | AY92: 996850.7157 | AZ92: 8492149.608 | BA92: 8448629.608 | BB92: 5715 | BC92: 8475345 | BD92: 0 | BE92: 26715.39196 | BF92: 8518865 | BG92: 0 | BH92: 8518865 | BI92: 8518865 | BJ92: 8347345 | BK92: 8347345 | BL92: 5628.688469 | BM92: 5603.653005 | BN92: 0.004467704162 | BO92: 0.0005322958381 | BP92: 4423.494139 | BQ92: 8523288.494 | BR92: 5717.982801 | BS92: Y | BT92: 5747.328722 | BU92: 0.004562658535 | BV92: 0 | BW92: 8523288.494 | BX92: 0 | BY92: 8523288.494 | BZ92: 43520 | CA92: 8479768.494 | CD92: =IFERROR(VLOOKUP(A92,'ERS 2023-24'!C:S,16,FALSE),0) -> 0 | CE92: =IFERROR(VLOOKUP(A92,'ERS 2023-24'!C:S,17,FALSE),0) -> 0 | CF92: =IFERROR(VLOOKUP(A92,'ERS 2023-24'!C:V,18,FALSE),0)+IFERROR(VLOOKUP(A92,'ERS 2023-24'!C:W,19,FALSE),0) -> 0 | CG92: =IFERROR(ROUND((VLOOKUP(A92,'2023-24 Nursery Budget'!C:AJ,34,FALSE)),0),0) -> 0 | CI92: 8479768.494 | CJ92: 8523288.494
A93: 4178 | B93: 8314178 | C93: Derby Moor Spencer Academy | D93: 1434 | E93: 0 | F93: 1434 | G93: =VLOOKUP(B93,'APT Adjusted Factors'!F:W,17,FALSE) -> 881 | H93: =VLOOKUP(B93,'APT Adjusted Factors'!F:W,18,FALSE) -> 553 | I93: 0 | J93: 4215585 | K93: 2982329 | L93: 0 | M93: 189600 | N93: 0 | O93: 464530 | P93: 0 | Q93: 0 | R93: 0 | S93: 0 | T93: 0 | U93: 0 | V93: 2346.636427 | W93: 108210.4606 | X93: 156349.03 | Y93: 140858.2275 | Z93: 95696.73412 | AA93: 7445.191905 | AB93: 0 | AC93: 62643.68458 | AD93: 0 | AE93: 595506.2209 | AF93: 0 | AG93: 0 | AH93: 128000 | AI93: 0 | AJ93: 0 | AK93: 0 | AL93: 31488 | AM93: 0 | AN93: 0 | AO93: 0 | AP93: 0 | AQ93: 0 | AR93: 0 | AS93: 0 | AT93: 0 | AU93: 0 | AV93: 7197914 | AW93: 1823186.186 | AX93: 159488 | AY93: 1311966.765 | AZ93: 9180588.186 | BA93: 9149100.186 | BB93: 5715 | BC93: 8195310 | BD93: 0 | BE93: 0 | BF93: 9180588.186 | BG93: 0 | BH93: 9180588.186 | BI93: 8226798 | BJ93: 8067310 | BK93: 9021100.186 | BL93: 6290.864844 | BM93: 6119.484918 | BN93: 0.02800561289 | BO93: 0 | BP93: 0 | BQ93: 9180588.186 | BR93: 6380.125653 | BS93: Y | BT93: 6402.083812 | BU93: 0.02736514029 | BV93: 0 | BW93: 9180588.186 | BX93: 0 | BY93: 9180588.186 | BZ93: 31488 | CA93: 9149100.186 | CD93: =IFERROR(VLOOKUP(A93,'ERS 2023-24'!C:S,16,FALSE),0) -> 0 | CE93: =IFERROR(VLOOKUP(A93,'ERS 2023-24'!C:S,17,FALSE),0) -> 0 | CF93: =IFERROR(VLOOKUP(A93,'ERS 2023-24'!C:V,18,FALSE),0)+IFERROR(VLOOKUP(A93,'ERS 2023-24'!C:W,19,FALSE),0) -> 0 | CG93: =IFERROR(ROUND((VLOOKUP(A93,'2023-24 Nursery Budget'!C:AJ,34,FALSE)),0),0) -> 0 | CI93: 9149100.186 | CJ93: 9180588.186
A94: 4607 | B94: 8314607 | C94: Saint Benedict, A Catholic Voluntary Academy | D94: 1246.5 | E94: 0 | F94: 1246.5 | G94: =VLOOKUP(B94,'APT Adjusted Factors'!F:W,17,FALSE) -> 785.5 | H94: =VLOOKUP(B94,'APT Adjusted Factors'!F:W,18,FALSE) -> 461 | I94: 0 | J94: 3758617.5 | K94: 2486173 | L94: 0 | M94: 151333.8693 | N94: 0 | O94: 378501.7085 | P94: 0 | Q94: 0 | R94: 0 | S94: 0 | T94: 0 | U94: 0 | V94: 46863.80653 | W94: 88267.65075 | X94: 64726.13065 | Y94: 91577.03518 | Z94: 145560.7161 | AA94: 107769.0075 | AB94: 0 | AC94: 47460.06921 | AD94: 0 | AE94: 494396.847 | AF94: 0 | AG94: 0 | AH94: 128000 | AI94: 0 | AJ94: 0 | AK94: 0 | AL94: 28416 | AM94: 0 | AN94: 0 | AO94: 0 | AP94: 0 | AQ94: 0 | AR94: 0 | AS94: 0 | AT94: 0 | AU94: 0 | AV94: 6244790.5 | AW94: 1616456.841 | AX94: 156416 | AY94: 1151221.747 | AZ94: 8017663.341 | BA94: 7989247.341 | BB94: 5715 | BC94: 7123747.5 | BD94: 0 | BE94: 0 | BF94: 8017663.341 | BG94: 0 | BH94: 8017663.341 | BI94: 7152163.5 | BJ94: 6995747.5 | BK94: 7861247.341 | BL94: 6306.656511 | BM94: 6124.676029 | BN94: 0.02971267067 | BO94: 0 | BP94: 0 | BQ94: 8017663.341 | BR94: 6409.344036 | BS94: Y | BT94: 6432.140667 | BU94: 0.02829775071 | BV94: 0 | BW94: 8017663.341 | BX94: 0 | BY94: 8017663.341 | BZ94: 28416 | CA94: 7989247.341 | CD94: =IFERROR(VLOOKUP(A94,'ERS 2023-24'!C:S,16,FALSE),0) -> 72000 | CE94: =IFERROR(VLOOKUP(A94,'ERS 2023-24'!C:S,17,FALSE),0) -> 110000 | CF94: =IFERROR(VLOOKUP(A94,'ERS 2023-24'!C:V,18,FALSE),0)+IFERROR(VLOOKUP(A94,'ERS 2023-24'!C:W,19,FALSE),0) -> 95365.79 | CG94: =IFERROR(ROUND((VLOOKUP(A94,'2023-24 Nursery Budget'!C:AJ,34,FALSE)),0),0) -> 0 | CI94: 8266613.131 | CJ94: 8295029.131
A95: 5412 | B95: 8315412 | C95: West Park School | D95: 1484 | E95: 0 | F95: 1484 | G95: =VLOOKUP(B95,'APT Adjusted Factors'!F:W,17,FALSE) -> 895 | H95: =VLOOKUP(B95,'APT Adjusted Factors'!F:W,18,FALSE) -> 589 | I95: 0 | J95: 4282575 | K95: 3176477 | L95: 0 | M95: 111840 | N95: 0 | O95: 305910 | P95: 0 | Q95: 0 | R95: 0 | S95: 0 | T95: 0 | U95: 0 | V95: 56615 | W95: 116590 | X95: 24180 | Y95: 104040 | Z95: 5110 | AA95: 9300 | AB95: 0 | AC95: 1569.22973 | AD95: 0 | AE95: 551363.753 | AF95: 0 | AG95: 0 | AH95: 128000 | AI95: 0 | AJ95: 0 | AK95: 0 | AL95: 27392 | AM95: 0 | AN95: 0 | AO95: 0 | AP95: 0 | AQ95: 0 | AR95: 0 | AS95: 0 | AT95: 0 | AU95: 0 | AV95: 7459052 | AW95: 1286517.983 | AX95: 155392 | AY95: 1143112.652 | AZ95: 8900961.983 | BA95: 8873569.983 | BB95: 5715 | BC95: 8481060 | BD95: 0 | BE95: 0 | BF95: 8900961.983 | BG95: 0 | BH95: 8900961.983 | BI95: 8508452 | BJ95: 8353060 | BK95: 8745569.983 | BL95: 5893.241228 | BM95: 5738.435553 | BN95: 0.02697698243 | BO95: 0 | BP95: 0 | BQ95: 8900961.983 | BR95: 5979.494598 | BS95: Y | BT95: 5997.952819 | BU95: 0.02593793098 | BV95: 0 | BW95: 8900961.983 | BX95: 0 | BY95: 8900961.983 | BZ95: 27392 | CA95: 8873569.983 | CD95: =IFERROR(VLOOKUP(A95,'ERS 2023-24'!C:S,16,FALSE),0) -> 0 | CE95: =IFERROR(VLOOKUP(A95,'ERS 2023-24'!C:S,17,FALSE),0) -> 0 | CF95: =IFERROR(VLOOKUP(A95,'ERS 2023-24'!C:V,18,FALSE),0)+IFERROR(VLOOKUP(A95,'ERS 2023-24'!C:W,19,FALSE),0) -> 0 | CG95: =IFERROR(ROUND((VLOOKUP(A95,'2023-24 Nursery Budget'!C:AJ,34,FALSE)),0),0) -> 0 | CI95: 8873569.983 | CJ95: 8900961.983
A96: 5414 | B96: 8315414 | C96: Allestree Woodlands School | D96: 1147 | E96: 0 | F96: 1147 | G96: =VLOOKUP(B96,'APT Adjusted Factors'!F:W,17,FALSE) -> 696 | H96: =VLOOKUP(B96,'APT Adjusted Factors'!F:W,18,FALSE) -> 451 | I96: 0 | J96: 3330360 | K96: 2432243 | L96: 0 | M96: 88320 | N96: 0 | O96: 231750 | P96: 0 | Q96: 0 | R96: 0 | S96: 0 | T96: 0 | U96: 0 | V96: 51590 | W96: 28480 | X96: 8060 | Y96: 41480 | Z96: 16790 | AA96: 37200 | AB96: 0 | AC96: 18796.38743 | AD96: 0 | AE96: 315843.0911 | AF96: 0 | AG96: 0 | AH96: 128000 | AI96: 0 | AJ96: 0 | AK96: 0 | AL96: 31488 | AM96: 0 | AN96: 0 | AO96: 0 | AP96: 0 | AQ96: 0 | AR96: 0 | AS96: 0 | AT96: 0 | AU96: 0 | AV96: 5762603 | AW96: 838309.4785 | AX96: 159488 | AY96: 829353.8087 | AZ96: 6760400.479 | BA96: 6728912.479 | BB96: 5715 | BC96: 6555105 | BD96: 0 | BE96: 0 | BF96: 6760400.479 | BG96: 0 | BH96: 6760400.479 | BI96: 6586593 | BJ96: 6427105 | BK96: 6600912.479 | BL96: 5754.936773 | BM96: 5617.875616 | BN96: 0.02439732851 | BO96: 0 | BP96: 0 | BQ96: 6760400.479 | BR96: 5866.532239 | BS96: Y | BT96: 5893.984724 | BU96: 0.0238477685 | BV96: 0 | BW96: 6760400.479 | BX96: 0 | BY96: 6760400.479 | BZ96: 31488 | CA96: 6728912.479 | CD96: =IFERROR(VLOOKUP(A96,'ERS 2023-24'!C:S,16,FALSE),0) -> 156000 | CE96: =IFERROR(VLOOKUP(A96,'ERS 2023-24'!C:S,17,FALSE),0) -> 120000 | CF96: =IFERROR(VLOOKUP(A96,'ERS 2023-24'!C:V,18,FALSE),0)+IFERROR(VLOOKUP(A96,'ERS 2023-24'!C:W,19,FALSE),0) -> 9994.52 | CG96: =IFERROR(ROUND((VLOOKUP(A96,'2023-24 Nursery Budget'!C:AJ,34,FALSE)),0),0) -> 0 | CI96: 7014906.999 | CJ96: 7046394.999
A97: 6905 | B97: 8316905 | C97: Landau Forte College | D97: 1020.75 | E97: 0 | F97: 1020.75 | G97: =VLOOKUP(B97,'APT Adjusted Factors'!F:W,17,FALSE) -> 659.75 | H97: =VLOOKUP(B97,'APT Adjusted Factors'!F:W,18,FALSE) -> 361 | I97: 0 | J97: 3156903.75 | K97: 1946873 | L97: 0 | M97: 106262.1786 | N97: 0 | O97: 330166.0451 | P97: 0 | Q97: 0 | R97: 0 | S97: 0 | T97: 0 | U97: 0 | V97: 40604.61359 | W97: 63744.28484 | X97: 85706.93817 | Y97: 77653.13052 | Z97: 65081.57753 | AA97: 51237.84347 | AB97: 0 | AC97: 15707.70649 | AD97: 0 | AE97: 279772.7949 | AF97: 0 | AG97: 0 | AH97: 128000 | AI97: 0 | AJ97: 0 | AK97: 0 | AL97: 47360 | AM97: 0 | AN97: 0 | AO97: 0 | AP97: 0 | AQ97: 0 | AR97: 0 | AS97: 0 | AT97: 0 | AU97: 0 | AV97: 5103776.75 | AW97: 1115937.113 | AX97: 175360 | AY97: 868356.606 | AZ97: 6395073.863 | BA97: 6347713.863 | BB97: 5715 | BC97: 5833586.25 | BD97: 0 | BE97: 0 | BF97: 6395073.863 | BG97: 0 | BH97: 6395073.863 | BI97: 5880946.25 | BJ97: 5705586.25 | BK97: 6219713.863 | BL97: 6093.278338 | BM97: 5922.981644 | BN97: 0.02875185235 | BO97: 0 | BP97: 0 | BQ97: 6395073.863 | BR97: 6218.676329 | BS97: Y | BT97: 6265.073586 | BU97: 0.02486585378 | BV97: 0 | BW97: 6395073.863 | BX97: 0 | BY97: 6395073.863 | BZ97: 47360 | CA97: 6347713.863 | CD97: =IFERROR(VLOOKUP(A97,'ERS 2023-24'!C:S,16,FALSE),0) -> 0 | CE97: =IFERROR(VLOOKUP(A97,'ERS 2023-24'!C:S,17,FALSE),0) -> 0 | CF97: =IFERROR(VLOOKUP(A97,'ERS 2023-24'!C:V,18,FALSE),0)+IFERROR(VLOOKUP(A97,'ERS 2023-24'!C:W,19,FALSE),0) -> 0 | CG97: =IFERROR(ROUND((VLOOKUP(A97,'2023-24 Nursery Budget'!C:AJ,34,FALSE)),0),0) -> 0 | CI97: 6347713.863 | CJ97: 6395073.863
A98: 0124 | B98: 8310124 | C98: Oak Grange Primary School | D98: 26.25 | E98: 26.25 | F98: 0 | G98: =VLOOKUP(B98,'APT Adjusted Factors'!F:W,17,FALSE) -> 0 | H98: =VLOOKUP(B98,'APT Adjusted Factors'!F:W,18,FALSE) -> 0 | I98: 89092.5 | J98: 0 | K98: 0 | L98: 4031.206433 | M98: 0 | N98: 6243.006595 | O98: 0 | P98: 564.8709028 | Q98: 866.0109993 | R98: 5.684055118 | S98: 421.6242013 | T98: 573.7561966 | U98: 1414.771359 | V98: 0 | W98: 0 | X98: 0 | Y98: 0 | Z98: 0 | AA98: 0 | AB98: 1053.309629 | AC98: 0 | AD98: 0 | AE98: 0 | AF98: 0 | AG98: 0 | AH98: 74666.66667 | AI98: 0 | AJ98: 0 | AK98: 0 | AL98: 3080 | AM98: 0 | AN98: 0 | AO98: 0 | AP98: 0 | AQ98: 0 | AR98: 0 | AS98: 0 | AT98: 0 | AU98: 0 | AV98: 89092.5 | AW98: 15174.24037 | AX98: 77746.66667 | AY98: 16090.57859 | AZ98: 182013.407 | BA98: 178933.407 | BB98: 4405 | BC98: 115631.25 | BD98: 0 | BE98: 0 | BF98: 182013.407 | BG98: 182013.407 | BH98: 0 | BI98: 118711.25 | BJ98: 40964.58333 | BK98: 104266.7404 | BL98: 3972.0663 | BM98: 0 | BN98: 0 | BO98: 0.005 | BP98: 0 | BQ98: 182013.407 | BR98: 6816.510744 | BS98: Y | BT98: 6933.844078 | BU98: 0 | BV98: 0 | BW98: 182013.407 | BX98: 0 | BY98: 182013.407 | BZ98: 3080 | CA98: 178933.407 | CD98: =IFERROR(VLOOKUP(A98,'ERS 2023-24'!C:S,16,FALSE),0) -> 0 | CE98: =IFERROR(VLOOKUP(A98,'ERS 2023-24'!C:S,17,FALSE),0) -> 0 | CF98: =IFERROR(VLOOKUP(A98,'ERS 2023-24'!C:V,18,FALSE),0)+IFERROR(VLOOKUP(A98,'ERS 2023-24'!C:W,19,FALSE),0) -> 0 | CG98: =IFERROR(ROUND((VLOOKUP(A98,'2023-24 Nursery Budget'!C:AJ,34,FALSE)),0),0) -> 39570 | CI98: =SUM(CA98:CH98) -> 218503.407 | CJ98: =CI98+BZ98 -> 221583.407
A101: ERS Contingency | CF101: ='ERS 2023-24'!V25+'ERS 2023-24'!W25 -> 0 | CI101: =SUM(CA101:CH101) -> 0 | CJ101: =CI101 -> 0
CK102: Rates
A103: 1014 | C103: Ashgate Nursery | BZ103: 9481 | CG103: =IFERROR(ROUND((VLOOKUP(A103,'2023-24 Nursery Budget'!C:AJ,34,FALSE)),0),0)-CK103 -> 307956 | CI103: =SUM(CA103:CH103) -> 307956 | CJ103: =CI103+CK103 -> 317437 | CK103: ='2023-24 Nursery Budget'!AE12 -> 9481
A104: 1006 | C104: Central Nursery | BZ104: 10853.25 | CG104: =IFERROR(ROUND((VLOOKUP(A104,'2023-24 Nursery Budget'!C:AJ,34,FALSE)),0),0)-CK104 -> 375868.75 | CI104: 375868.75 | CJ104: =CI104+CK104 -> 386722 | CK104: ='2023-24 Nursery Budget'!AE16 -> 10853.25
A105: 1008 | C105: Harrington Nursery | BZ105: 5863.25 | CG105: =IFERROR(ROUND((VLOOKUP(A105,'2023-24 Nursery Budget'!C:AJ,34,FALSE)),0),0)-CK105 -> 409487.75 | CI105: 409487.75 | CJ105: 415351 | CK105: ='2023-24 Nursery Budget'!AE17 -> 5863.25
A106: 1005 | C106: Lord St Nursery | BZ106: 10354.25 | CG106: =IFERROR(ROUND((VLOOKUP(A106,'2023-24 Nursery Budget'!C:AJ,34,FALSE)),0),0)-CK106 -> 397934.75 | CI106: 397934.75 | CJ106: 408289 | CK106: ='2023-24 Nursery Budget'!AE18 -> 10354.25
A107: 1010 | C107: Stonehill Nursery | BZ107: 5114.75 | CG107: =IFERROR(ROUND((VLOOKUP(A107,'2023-24 Nursery Budget'!C:AJ,34,FALSE)),0),0)-CK107 -> 354256.25 | CI107: 354256.25 | CJ107: 359371 | CK107: ='2023-24 Nursery Budget'!AE28 -> 5114.75
A108: 1009 | C108: Walbrook Nursery | BZ108: 6487 | CG108: =IFERROR(ROUND((VLOOKUP(A108,'2023-24 Nursery Budget'!C:AJ,34,FALSE)),0),0)-CK108 -> 395062 | CI108: 395062 | CJ108: 401549 | CK108: ='2023-24 Nursery Budget'!AE29 -> 6487
A109: 1015 | C109: Whitecross Nursery | BZ109: 7597 | CG109: =IFERROR(ROUND((VLOOKUP(A109,'2023-24 Nursery Budget'!C:AJ,34,FALSE)),0),0)-CK109 -> 437798 | CI109: 437798 | CJ109: 445395 | CK109: ='2023-24 Nursery Budget'!AE30 -> 7597
A110: 206189 | C110: Ace Nursery | CG110: =IFERROR(ROUND((VLOOKUP(A110,'2023-24 Nursery Budget'!C:AJ,34,FALSE)),0),0) -> 137000 | CI110: 137000 | CJ110: =CI110 -> 137000
A111: 2579160 | C111: Alvaston Achievers | CG111: =IFERROR(ROUND((VLOOKUP(A111,'2023-24 Nursery Budget'!C:AJ,34,FALSE)),0),0) -> 144427 | CI111: 144427 | CJ111: 144427
A112: EY362920 | C112: An-Noor Nursery | CG112: =IFERROR(ROUND((VLOOKUP(A112,'2023-24 Nursery Budget'!C:AJ,34,FALSE)),0),0) -> 19006 | CI112: 19006 | CJ112: 19006
A113: EY467568 | C113: Best Start Sinfin called The Learning Tree | CG113: =IFERROR(ROUND((VLOOKUP(A113,'2023-24 Nursery Budget'!C:AJ,34,FALSE)),0),0) -> 79035 | CI113: 79035 | CJ113: 79035
A114: EY450983 | C114: Bizzy Kidz | CG114: =IFERROR(ROUND((VLOOKUP(A114,'2023-24 Nursery Budget'!C:AJ,34,FALSE)),0),0) -> 243201 | CI114: 243201 | CJ114: 243201
A115: 206124 | C115: Boulton Lane Park Pre-School Playgroup | CG115: =IFERROR(ROUND((VLOOKUP(A115,'2023-24 Nursery Budget'!C:AJ,34,FALSE)),0),0) -> 14147 | CI115: 14147 | CJ115: 14147
A116: EY282068 | C116: Bramble Brook Pre-School Playgroup | CG116: =IFERROR(ROUND((VLOOKUP(A116,'2023-24 Nursery Budget'!C:AJ,34,FALSE)),0),0) -> 100127 | CI116: 100127 | CJ116: 100127
A117: 206126 | C117: Busy Bees Pre-School | CG117: =IFERROR(ROUND((VLOOKUP(A117,'2023-24 Nursery Budget'!C:AJ,34,FALSE)),0),0) -> 138625 | CI117: 138625 | CJ117: 138625
A118: 206111 | C118: Busy Bees-Derby, Heatherton | CG118: =IFERROR(ROUND((VLOOKUP(A118,'2023-24 Nursery Budget'!C:AJ,34,FALSE)),0),0) -> 268298 | CI118: 268298 | CJ118: 268298
A119: 206091 | C119: Carlton Private Day Nursery | CG119: =IFERROR(ROUND((VLOOKUP(A119,'2023-24 Nursery Budget'!C:AJ,34,FALSE)),0),0) -> 115783 | CI119: 115783 | CJ119: 115783
A120: 206128 | C120: Chuckles Pre-School Playgroup | CG120: =IFERROR(ROUND((VLOOKUP(A120,'2023-24 Nursery Budget'!C:AJ,34,FALSE)),0),0) -> 8521 | CI120: 8521 | CJ120: 8521
A121: 205999 | C121: Derby City Childminding Network - Amanda Reeves | CG121: =IFERROR(ROUND((VLOOKUP(A121,'2023-24 Nursery Budget'!C:AJ,34,FALSE)),0),0) -> 60769 | CI121: 60769 | CJ121: 60769
A122: EY451228 | C122: Derby City Childminding Network - Amber Rose Worsfold | CG122: =IFERROR(ROUND((VLOOKUP(A122,'2023-24 Nursery Budget'!C:AJ,34,FALSE)),0),0) -> 15702 | CI122: 15702 | CJ122: 15702
A123: EY398922 | C123: Derby City Childminding Network - Andrea Louise Banyard | CG123: =IFERROR(ROUND((VLOOKUP(A123,'2023-24 Nursery Budget'!C:AJ,34,FALSE)),0),0) -> 20624 | CI123: 20624 | CJ123: 20624
A124: 205921 | C124: Derby City Childminding Network - Angela Jane Hatton | CG124: =IFERROR(ROUND((VLOOKUP(A124,'2023-24 Nursery Budget'!C:AJ,34,FALSE)),0),0) -> 2133 | CI124: 2133 | CJ124: 2133
A125: 206011 | C125: Derby City Childminding Network - Ann Stanley | CG125: =IFERROR(ROUND((VLOOKUP(A125,'2023-24 Nursery Budget'!C:AJ,34,FALSE)),0),0) -> 7592 | CI125: 7592 | CJ125: 7592
A126: EY491735 | C126: Derby City Childminding Network - Anne-Marie Davies | CG126: =IFERROR(ROUND((VLOOKUP(A126,'2023-24 Nursery Budget'!C:AJ,34,FALSE)),0),0) -> 6980 | CI126: 6980 | CJ126: 6980
A127: EY000013 | C127: Derby City Childminding Network - Arline Mali | CG127: =IFERROR(ROUND((VLOOKUP(A127,'2023-24 Nursery Budget'!C:AJ,34,FALSE)),0),0) -> 2679 | CI127: 2679 | CJ127: 2679
A128: EY444837 | C128: Derby City Childminding Network - Ashley Jane Elizabeth Hallas | CG128: =IFERROR(ROUND((VLOOKUP(A128,'2023-24 Nursery Budget'!C:AJ,34,FALSE)),0),0) -> 3169 | CI128: 3169 | CJ128: 3169
A129: EY440600 | C129: Derby City Childminding Network - Aina Boladale Ogunwole | CG129: =IFERROR(ROUND((VLOOKUP(A129,'2023-24 Nursery Budget'!C:AJ,34,FALSE)),0),0) -> 9531 | CI129: 9531 | CJ129: 9531
A130: 2549324 | C130: Derby City Childminding Network - Bonnies Childminding | CG130: =IFERROR(ROUND((VLOOKUP(A130,'2023-24 Nursery Budget'!C:AJ,34,FALSE)),0),0) -> 40768 | CI130: 40768 | CJ130: 40768
A131: EY542496 | C131: Derby City Childminding Network - Carrieann Redfern | CG131: =IFERROR(ROUND((VLOOKUP(A131,'2023-24 Nursery Budget'!C:AJ,34,FALSE)),0),0) -> 3593 | CI131: 3593 | CJ131: 3593
A132: 2519477 | C132: Derby City Childminding Network - Caroline Clifford | CG132: =IFERROR(ROUND((VLOOKUP(A132,'2023-24 Nursery Budget'!C:AJ,34,FALSE)),0),0) -> 3064 | CI132: 3064 | CJ132: 3064
A133: EY421552 | C133: Derby City Childminding Network - Celia Murfin | CG133: =IFERROR(ROUND((VLOOKUP(A133,'2023-24 Nursery Budget'!C:AJ,34,FALSE)),0),0) -> 10892 | CI133: 10892 | CJ133: 10892
A134: EY251518 | C134: Derby City Childminding Network - Cheryll Lesley Haywood-Phillips | CG134: =IFERROR(ROUND((VLOOKUP(A134,'2023-24 Nursery Budget'!C:AJ,34,FALSE)),0),0) -> 13299 | CI134: 13299 | CJ134: 13299
A135: 205852 | C135: Derby City Childminding Network - Christine Ann Brocklehurst | CG135: =IFERROR(ROUND((VLOOKUP(A135,'2023-24 Nursery Budget'!C:AJ,34,FALSE)),0),0) -> 17273 | CI135: =SUM(CA135:CH135) -> 17273 | CJ135: 17273
A136: 205902 | C136: Derby City Childminding Network - Christine Avis Gibbons | CG136: =IFERROR(ROUND((VLOOKUP(A136,'2023-24 Nursery Budget'!C:AJ,34,FALSE)),0),0) -> 3794 | CI136: 3794 | CJ136: 3794
A137: 205922 | C137: Derby City Childminding Network - Christine Julie Heathcote | CG137: =IFERROR(ROUND((VLOOKUP(A137,'2023-24 Nursery Budget'!C:AJ,34,FALSE)),0),0) -> 8194 | CI137: 8194 | CJ137: 8194
A138: EY412756 | C138: Derby City Childminding Network - Claire-Ellen Oakley | CG138: =IFERROR(ROUND((VLOOKUP(A138,'2023-24 Nursery Budget'!C:AJ,34,FALSE)),0),0) -> 10348 | CI138: 10348 | CJ138: 10348
A139: EY294474 | C139: Derby City Childminding Network - Deborah Scaife | CG139: =IFERROR(ROUND((VLOOKUP(A139,'2023-24 Nursery Budget'!C:AJ,34,FALSE)),0),0) -> 23096 | CI139: 23096 | CJ139: 23096
A140: 205947 | C140: Derby City Childminding Network - Diane Helena Kendrick | CG140: =IFERROR(ROUND((VLOOKUP(A140,'2023-24 Nursery Budget'!C:AJ,34,FALSE)),0),0) -> 5655 | CI140: 5655 | CJ140: 5655
A141: 205919 | C141: Derby City Childminding Network - Donna Gladwin | CG141: =IFERROR(ROUND((VLOOKUP(A141,'2023-24 Nursery Budget'!C:AJ,34,FALSE)),0),0) -> 5138 | CI141: 5138 | CJ141: 5138
A142: EY386644 | C142: Derby City Childminding Network - Dorothy Faye Thomson | CG142: =IFERROR(ROUND((VLOOKUP(A142,'2023-24 Nursery Budget'!C:AJ,34,FALSE)),0),0) -> 5985 | CI142: 5985 | CJ142: 5985
A143: EY552102 | C143: Derby City Childminding Network - Emma Shepherd | CG143: =IFERROR(ROUND((VLOOKUP(A143,'2023-24 Nursery Budget'!C:AJ,34,FALSE)),0),0) -> 20776 | CI143: 20776 | CJ143: 20776
A144: EY455065 | C144: Derby City Childminding Network - Emma Louise Strange, | CG144: =IFERROR(ROUND((VLOOKUP(A144,'2023-24 Nursery Budget'!C:AJ,34,FALSE)),0),0) -> 8219 | CI144: 8219 | CJ144: 8219
A145: 205879 | C145: Derby City Childminding Network - Enza Dawson | CG145: =IFERROR(ROUND((VLOOKUP(A145,'2023-24 Nursery Budget'!C:AJ,34,FALSE)),0),0) -> 7345 | CI145: 7345 | CJ145: 7345
A146: EY460509 | C146: Derby City Childminding Network - Evangelista Muchineripi Kafuru | CG146: =IFERROR(ROUND((VLOOKUP(A146,'2023-24 Nursery Budget'!C:AJ,34,FALSE)),0),0) -> 3323 | CI146: 3323 | CJ146: 3323
A147: EY321377 | C147: Derby City Childminding Network - Eve Lavinia Wakefield | CG147: =IFERROR(ROUND((VLOOKUP(A147,'2023-24 Nursery Budget'!C:AJ,34,FALSE)),0),0) -> 0 | CI147: 0 | CJ147: 0
A148: EY401536 | C148: Derby City Childminding Network - Fiona Meek | CG148: =IFERROR(ROUND((VLOOKUP(A148,'2023-24 Nursery Budget'!C:AJ,34,FALSE)),0),0) -> 7312 | CI148: 7312 | CJ148: 7312
A149: HCEY00158 | C149: Derby City Childminding Network - Grace Ogabi | CG149: =IFERROR(ROUND((VLOOKUP(A149,'2023-24 Nursery Budget'!C:AJ,34,FALSE)),0),0) -> 0 | CI149: 0 | CJ149: 0
A150: EY316120 | C150: Derby City Childminding Network - Heather Brocklehurst | CG150: =IFERROR(ROUND((VLOOKUP(A150,'2023-24 Nursery Budget'!C:AJ,34,FALSE)),0),0) -> 20061 | CI150: 20061 | CJ150: 20061
A151: EY561853 | C151: Derby City Childminding Network - Helen Marie Samuels | CG151: =IFERROR(ROUND((VLOOKUP(A151,'2023-24 Nursery Budget'!C:AJ,34,FALSE)),0),0) -> 20869 | CI151: 20869 | CJ151: 20869
A152: 2617229 | C152: Derby City Childminding Network - Jade ElishaO'Donnell | CG152: =IFERROR(ROUND((VLOOKUP(A152,'2023-24 Nursery Budget'!C:AJ,34,FALSE)),0),0) -> 5804 | CI152: 5804 | CJ152: 5804
A153: EY501608 | C153: Derby City Childminding Network - Jayne Gemma Davies | CG153: =IFERROR(ROUND((VLOOKUP(A153,'2023-24 Nursery Budget'!C:AJ,34,FALSE)),0),0) -> 0 | CI153: 0 | CJ153: 0
A154: 2559906 | C154: Derby City Childminding Network - Jennifer Hayley Brown | CG154: =IFERROR(ROUND((VLOOKUP(A154,'2023-24 Nursery Budget'!C:AJ,34,FALSE)),0),0) -> 0 | CI154: 0 | CJ154: 0
A155: EY493729 | C155: Derby City Childminding Network - Jennifer Sarah Armstrong | CG155: =IFERROR(ROUND((VLOOKUP(A155,'2023-24 Nursery Budget'!C:AJ,34,FALSE)),0),0) -> 2675 | CI155: 2675 | CJ155: 2675
A156: 2562992 | C156: Derby City Childminding Network - Jennifer Smith | CG156: =IFERROR(ROUND((VLOOKUP(A156,'2023-24 Nursery Budget'!C:AJ,34,FALSE)),0),0) -> 2347 | CI156: 2347 | CJ156: 2347
A157: HCEY00183 | C157: Derby City Childminding Network - Joanna Abiola | CG157: =IFERROR(ROUND((VLOOKUP(A157,'2023-24 Nursery Budget'!C:AJ,34,FALSE)),0),0) -> 0 | CI157: 0 | CJ157: 0
A158: EY430291 | C158: Derby City Childminding Network - Joanne Claire Hurst | CG158: =IFERROR(ROUND((VLOOKUP(A158,'2023-24 Nursery Budget'!C:AJ,34,FALSE)),0),0) -> 2813 | CI158: 2813 | CJ158: 2813
A159: EY462623 | C159: Derby City Childminding Network - Joanne Mycroft | CG159: =IFERROR(ROUND((VLOOKUP(A159,'2023-24 Nursery Budget'!C:AJ,34,FALSE)),0),0) -> 0 | CI159: 0 | CJ159: 0
A160: EY264853 | C160: Derby City Childminding Network - Joyce, Mary Cliff | CG160: =IFERROR(ROUND((VLOOKUP(A160,'2023-24 Nursery Budget'!C:AJ,34,FALSE)),0),0) -> 0 | CI160: 0 | CJ160: 0
A161: 205881 | C161: Derby City Childminding Network - Judith Deakin | CG161: =IFERROR(ROUND((VLOOKUP(A161,'2023-24 Nursery Budget'!C:AJ,34,FALSE)),0),0) -> 12971 | CI161: 12971 | CJ161: 12971
A162: EY492729 | C162: Derby City Childminding Network - Julie Croft | CG162: =IFERROR(ROUND((VLOOKUP(A162,'2023-24 Nursery Budget'!C:AJ,34,FALSE)),0),0) -> 7602 | CI162: 7602 | CJ162: 7602
A163: EY368441 | C163: Derby City Childminding Network - Julie Elizabeth Sewter, | CG163: =IFERROR(ROUND((VLOOKUP(A163,'2023-24 Nursery Budget'!C:AJ,34,FALSE)),0),0) -> 26547 | CI163: 26547 | CJ163: 26547
A164: EY316309 | C164: Derby City Childminding Network - Julie Margaret Warren | CG164: =IFERROR(ROUND((VLOOKUP(A164,'2023-24 Nursery Budget'!C:AJ,34,FALSE)),0),0) -> 8086 | CI164: 8086 | CJ164: 8086
A165: 2575281 | C165: Derby City Childminding Network - Kathryn Mary Sarsfield | CG165: =IFERROR(ROUND((VLOOKUP(A165,'2023-24 Nursery Budget'!C:AJ,34,FALSE)),0),0) -> 2679 | CI165: 2679 | CJ165: 2679
A166: EY405755 | C166: Derby City Childminding Network - Kerry Jehane Derbyshire | CG166: =IFERROR(ROUND((VLOOKUP(A166,'2023-24 Nursery Budget'!C:AJ,34,FALSE)),0),0) -> 5635 | CI166: 5635 | CJ166: 5635
A167: 306845 | C167: Derby City Childminding Network - Laura Marshall | CG167: =IFERROR(ROUND((VLOOKUP(A167,'2023-24 Nursery Budget'!C:AJ,34,FALSE)),0),0) -> 4706 | CI167: =SUM(CA167:CH167) -> 4706 | CJ167: 4706
A168: 2518126 | C168: Derby City Childminding Network - Laura Murphy | CG168: =IFERROR(ROUND((VLOOKUP(A168,'2023-24 Nursery Budget'!C:AJ,34,FALSE)),0),0) -> 3203 | CI168: 3203 | CJ168: =CI168 -> 3203
A169: EY493212 | C169: Derby City Childminding Network - Laura Neale | CG169: =IFERROR(ROUND((VLOOKUP(A169,'2023-24 Nursery Budget'!C:AJ,34,FALSE)),0),0) -> 3572 | CI169: 3572 | CJ169: 3572
A170: EY408462 | C170: Derby City Childminding Network - Lisa Marie North | CG170: =IFERROR(ROUND((VLOOKUP(A170,'2023-24 Nursery Budget'!C:AJ,34,FALSE)),0),0) -> 5193 | CI170: 5193 | CJ170: 5193
A171: EY546840 | C171: Derby City Childminding Network - Leah Sheridan | CG171: =IFERROR(ROUND((VLOOKUP(A171,'2023-24 Nursery Budget'!C:AJ,34,FALSE)),0),0) -> 4292 | CI171: 4292 | CJ171: 4292
A172: 205878 | C172: Derby City Childminding Network - Lorraine Duthie | CG172: =IFERROR(ROUND((VLOOKUP(A172,'2023-24 Nursery Budget'!C:AJ,34,FALSE)),0),0) -> 13968 | CI172: 13968 | CJ172: 13968
A173: EY440552 | C173: Derby City Childminding Network - Miranda Heather Gunston | CG173: =IFERROR(ROUND((VLOOKUP(A173,'2023-24 Nursery Budget'!C:AJ,34,FALSE)),0),0) -> 9875 | CI173: 9875 | CJ173: 9875
A174: EY428424 | C174: Derby City Childminding Network - Nicky Sherratt | CG174: =IFERROR(ROUND((VLOOKUP(A174,'2023-24 Nursery Budget'!C:AJ,34,FALSE)),0),0) -> 11585 | CI174: 11585 | CJ174: 11585
A175: 205980 | C175: Derby City Childminding Network - Jackie Nettleship | CG175: =IFERROR(ROUND((VLOOKUP(A175,'2023-24 Nursery Budget'!C:AJ,34,FALSE)),0),0) -> 0 | CI175: 0 | CJ175: 0
A176: 2578607 | C176: Derby City Childminding Network - Monika Brown | CG176: =IFERROR(ROUND((VLOOKUP(A176,'2023-24 Nursery Budget'!C:AJ,34,FALSE)),0),0) -> 17964 | CI176: 17964 | CJ176: 17964
A177: EY396733 | C177: Derby City Childminding Network - Nicola Johnson | CG177: =IFERROR(ROUND((VLOOKUP(A177,'2023-24 Nursery Budget'!C:AJ,34,FALSE)),0),0) -> 0 | CI177: 0 | CJ177: 0
A178: EY393390 | C178: Derby City Childminding Network - Nicola Smith | CG178: =IFERROR(ROUND((VLOOKUP(A178,'2023-24 Nursery Budget'!C:AJ,34,FALSE)),0),0) -> 0 | CI178: 0 | CJ178: 0
A179: EY236462 | C179: Derby City Childminding Network - Paula Jane Wathey | CG179: =IFERROR(ROUND((VLOOKUP(A179,'2023-24 Nursery Budget'!C:AJ,34,FALSE)),0),0) -> 12391 | CI179: 12391 | CJ179: 12391
A180: EY484039 | C180: Derby City Childminding Network - Rachael Elizabeth Eagles | CG180: =IFERROR(ROUND((VLOOKUP(A180,'2023-24 Nursery Budget'!C:AJ,34,FALSE)),0),0) -> 20415 | CI180: 20415 | CJ180: 20415
A181: EY487257 | C181: Derby City Childminding Network - Rachel Gillian Brownsword | CG181: =IFERROR(ROUND((VLOOKUP(A181,'2023-24 Nursery Budget'!C:AJ,34,FALSE)),0),0) -> 9274 | CI181: 9274 | CJ181: 9274
A182: EY307352 | C182: Derby City Childminding Network - Rachel Jane Weightman | CG182: =IFERROR(ROUND((VLOOKUP(A182,'2023-24 Nursery Budget'!C:AJ,34,FALSE)),0),0) -> 4299 | CI182: 4299 | CJ182: 4299
A183: EY447118 | C183: Derby City Childminding Network - Rachel Wiggins | CG183: =IFERROR(ROUND((VLOOKUP(A183,'2023-24 Nursery Budget'!C:AJ,34,FALSE)),0),0) -> 7568 | CI183: 7568 | CJ183: 7568
A184: EY393682 | C184: Derby City Childminding Network - Rebecca Anne Cotton | CG184: =IFERROR(ROUND((VLOOKUP(A184,'2023-24 Nursery Budget'!C:AJ,34,FALSE)),0),0) -> 4318 | CI184: 4318 | CJ184: 4318
A185: EY396913 | C185: Derby City Childminding Network - Rebecca Louise Dudley | CG185: =IFERROR(ROUND((VLOOKUP(A185,'2023-24 Nursery Budget'!C:AJ,34,FALSE)),0),0) -> 5449 | CI185: 5449 | CJ185: 5449
A186: EY278371 | C186: Derby City Childminding Network - Rebecca Sarah Wall | CG186: =IFERROR(ROUND((VLOOKUP(A186,'2023-24 Nursery Budget'!C:AJ,34,FALSE)),0),0) -> 4653 | CI186: 4653 | CJ186: 4653
A187: EY541336 | C187: Derby City Childminding Network - Regina Zakrzewska | CG187: =IFERROR(ROUND((VLOOKUP(A187,'2023-24 Nursery Budget'!C:AJ,34,FALSE)),0),0) -> 3905 | CI187: 3905 | CJ187: 3905
A188: 206046 | C188: Derby City Childminding Network - Sally -Anne Thompson | CG188: =IFERROR(ROUND((VLOOKUP(A188,'2023-24 Nursery Budget'!C:AJ,34,FALSE)),0),0) -> 12338 | CI188: 12338 | CJ188: 12338
A189: EY406938 | C189: Derby City Childminding Network - Samantha Anne Fisher | CG189: =IFERROR(ROUND((VLOOKUP(A189,'2023-24 Nursery Budget'!C:AJ,34,FALSE)),0),0) -> 10034 | CI189: 10034 | CJ189: 10034
A190: EY546157 | C190: Derby City Childminding Network - Samantha McGirr | CG190: =IFERROR(ROUND((VLOOKUP(A190,'2023-24 Nursery Budget'!C:AJ,34,FALSE)),0),0) -> 0 | CI190: 0 | CJ190: 0
A191: EY299821 | C191: Derby City Childminding Network - Sandra Upton | CG191: =IFERROR(ROUND((VLOOKUP(A191,'2023-24 Nursery Budget'!C:AJ,34,FALSE)),0),0) -> 1542 | CI191: 1542 | CJ191: 1542
A192: 260848 | C192: Derby City Childminding Network - Sara Helen Cooper | CG192: =IFERROR(ROUND((VLOOKUP(A192,'2023-24 Nursery Budget'!C:AJ,34,FALSE)),0),0) -> 2793 | CI192: 2793 | CJ192: 2793
A193: 205978 | C193: Derby City Childminding Network - Sara Mycroft | CG193: =IFERROR(ROUND((VLOOKUP(A193,'2023-24 Nursery Budget'!C:AJ,34,FALSE)),0),0) -> 12422 | CI193: 12422 | CJ193: 12422
A194: EY488697 | C194: Derby City Childminding Network - Sarah Houghton-Clarke | CG194: =IFERROR(ROUND((VLOOKUP(A194,'2023-24 Nursery Budget'!C:AJ,34,FALSE)),0),0) -> 0 | CI194: 0 | CJ194: 0
A195: 2563900 | C195: Derby City Childminding Network - Sarah Jane Jackson | CG195: =IFERROR(ROUND((VLOOKUP(A195,'2023-24 Nursery Budget'!C:AJ,34,FALSE)),0),0) -> 10944 | CI195: 10944 | CJ195: 10944
A196: EY436155 | C196: Derby City Childminding Network - Sharron Ann Silkstone | CG196: =IFERROR(ROUND((VLOOKUP(A196,'2023-24 Nursery Budget'!C:AJ,34,FALSE)),0),0) -> 4484 | CI196: 4484 | CJ196: 4484
A197: 206043 | C197: Derby City Childminding Network - Sharon Taylor | CG197: =IFERROR(ROUND((VLOOKUP(A197,'2023-24 Nursery Budget'!C:AJ,34,FALSE)),0),0) -> 7162 | CI197: 7162 | CJ197: 7162
A198: EY336425 | C198: Derby City Childminding Network - Shirley Kerr | CG198: =IFERROR(ROUND((VLOOKUP(A198,'2023-24 Nursery Budget'!C:AJ,34,FALSE)),0),0) -> 6941 | CI198: 6941 | CJ198: 6941
A199: 505502 | C199: Derby City Childminding Network - Stella Louise Bayliss | CG199: =IFERROR(ROUND((VLOOKUP(A199,'2023-24 Nursery Budget'!C:AJ,34,FALSE)),0),0) -> 4301 | CI199: =SUM(CA199:CH199) -> 4301 | CJ199: 4301
A200: EY252328 | C200: Derby City Childminding Network - Susan Jane Bonell | CG200: =IFERROR(ROUND((VLOOKUP(A200,'2023-24 Nursery Budget'!C:AJ,34,FALSE)),0),0) -> 0 | CI200: 0 | CJ200: 0
A201: EY435150 | C201: Derby City Childminding Network - Susan Theresa McPhee | CG201: =IFERROR(ROUND((VLOOKUP(A201,'2023-24 Nursery Budget'!C:AJ,34,FALSE)),0),0) -> 2524 | CI201: 2524 | CJ201: 2524
A202: EY299849 | C202: Derby City Childminding Network - Tamasine Louise Ashforth | CG202: =IFERROR(ROUND((VLOOKUP(A202,'2023-24 Nursery Budget'!C:AJ,34,FALSE)),0),0) -> 11441 | CI202: 11441 | CJ202: 11441
A203: EY00058 | C203: Derby City Childminding Network - Toni Reed | CG203: =IFERROR(ROUND((VLOOKUP(A203,'2023-24 Nursery Budget'!C:AJ,34,FALSE)),0),0) -> 0 | CI203: 0 | CJ203: 0
A204: EY547709 | C204: Derby City Childminding Network - Valerie Sutton | CG204: =IFERROR(ROUND((VLOOKUP(A204,'2023-24 Nursery Budget'!C:AJ,34,FALSE)),0),0) -> 13543 | CI204: 13543 | CJ204: 13543
... 75 more rows

Sheet ERS 2023-24 (hidden)
A1: ERS funding 2023/24
J5: Breakdown of placements | R5: 6000
A6: School | B6: Phase | C6: DfE | D6: Banding 2023/24 | E6: Places 22/23 AY | F6: Local agreement | G6: Places 23/24 AY | I6: Element 1&2 place | J6: DCC Pre 16 | K6: DCC Post 16 | L6: Other LA Pre 16 | M6: Other LA Post 16 | N6: Total | O6: Vacant places | P6: Over commissioned places | R6: Element 2 place funding | S6: Element 3 Funding DCC only | T6: Exceptional funding | U6: Teacher | V6: MFG | W6: PFI | X6: Total DCC payment | Y6: Vacant top up funding
A7: Allestree Woodlands School | B7: Secondary | C7: 5414 | D7: 6000 | E7: 22 | F7: 4 | G7: 26 | I7: 26 | J7: 20 | K7: 0 | L7: 4 | M7: 1 | N7: 25 | P7: -1 | R7: 156000 | S7: 120000 | T7: 9994.52 | X7: 285994.52 | Z7: Local agreement - to increase to 26 for full year
A8: Brackensdale Spencer Primary School | B8: Primary | C8: 2026 | D8: 8000 | E8: 45 | G8: 40 | I8: 42.08333333 | J8: 38 | K8: 0 | L8: 1 | M8: 0 | N8: 39 | O8: 3.083333333 | R8: 252500 | S8: 304000 | T8: 0 | X8: 556500 | Y8: 24666.66667
A9: Markeaton Primary School | B9: Primary | C9: 2436 | D9: 22980 | E9: 4 | G9: 2 | I9: 2 | J9: 2 | K9: 0 | L9: 0 | M9: 0 | N9: 2 | P9: 0 | R9: 12000 | S9: 32555 | T9: 20022.88 | X9: 64577.88 | Z9: decommsiong
A10: Reigate Park Primary Academy | B10: Primary | C10: 2020 | D10: 6000 | E10: 12 | G10: 12 | I10: 12 | J10: 8 | K10: 0 | L10: 4 | M10: 0 | N10: 12 | P10: 0 | R10: 72000 | S10: 48000 | T10: 0 | X10: 120000
A11: Saint Benedict CVA | B11: Secondary | C11: 4607 | D11: 10000 | E11: 15 | G11: 12 | I11: 12 | J11: 11 | K11: 0 | L11: 2 | M11: 1 | N11: 14 | P11: 3 | R11: 72000 | S11: 110000 | T11: 70365.79 | U11: 25000 | X11: 277365.79
A12: Saint Benedict Catholic School - Post 16 | B12: Secondary | C12: 4607 | D12: 10000 | E12: 2 | G12: 0 | N12: 0 | X12: 0
A13: Springfield Primary School | B13: Primary | C13: 2466 | D13: 8000 | E13: 30 | G13: 35 | I13: 32.91666667 | J13: 33 | K13: 0 | L13: 4 | M13: 0 | N13: 37 | P13: 4.083333333 | R13: 197500 | S13: 264000 | T13: 0 | X13: 461500
A14: The Bemrose School | B14: Secondary | C14: 4177 | D14: 9000 | E14: 45 | G14: 45 | I14: 45 | J14: 38 | K14: 0 | L14: 2 | M14: 0 | N14: 40 | O14: 5 | R14: 270000 | S14: 342000 | T14: 0 | X14: 612000 | Y14: 45000 | Z14: why are we over commisioning - which children are you planning to put in to september
A17: Total for all schools | C17: All | E17: 175 | F17: 4 | G17: 172 | I17: 172 | J17: 150 | K17: 0 | L17: 17 | M17: 2 | N17: 169 | O17: 8.083333333 | P17: 6.083333333 | R17: 1032000 | S17: 1220555 | T17: 100383.19 | U17: 25000 | V17: 0 | W17: 0 | X17: 2377938.19 | Y17: 69666.66667
A18: Total for academies | E18: 126 | F18: 4 | G18: 125 | I18: 124 | J18: 110 | K18: 0 | L18: 15 | M18: 2 | N18: 127 | O18: 3.083333333 | P18: 6.083333333 | R18: 750000 | S18: 846000 | T18: 80360.31 | U18: 25000 | V18: 0 | W18: 0 | X18: 1701360.31 | Y18: 24666.66667 | Z18: 870666.6667
A19: Total for maintained schools | E19: 49 | F19: 0 | G19: 47 | I19: 47 | J19: 40 | K19: 0 | L19: 2 | M19: 0 | N19: 42 | O19: 5 | P19: 0 | R19: 282000 | S19: 374555 | T19: 20022.88 | U19: 0 | V19: 0 | W19: 0 | X19: 676577.88 | Y19: 45000 | Z19: 419555
R22: =R10/R5 -> 12
A25: Lookup table for year group
A26: 2 yr old | B26: Pre 16
A27: Nursery 1 | B27: Pre 16
A28: Nursery 2 | B28: Pre 16
A29: Reception | B29: Pre 16
A30: NC Year 1 | B30: Pre 16
A31: NC Year 2 | B31: Pre 16
A32: NC Year 3 | B32: Pre 16
A33: NC Year 4 | B33: Pre 16
A34: NC Year 5 | B34: Pre 16
A35: NC Year 6 | B35: Pre 16
A36: NC Year 7 | B36: Pre 16
A37: NC Year 8 | B37: Pre 16
A38: NC Year 9 | B38: Pre 16
A39: NC Year 10 | B39: Pre 16
A40: NC Year 11 | B40: Pre 16
A41: NC Year 12 | B41: Post 16
A42: NC Year 13 | B42: Post 16
A43: NC Year 14 | B43: Post 16
A44: NC Year 15 | B44: Post 16

Sheet Special Schools 2023-24 (hidden)
A1: Special Schools Funding 2023/24
Q2: =H20*V4 -> 628210
M4: Breakdown of placements | U4: 10000 | V4: 660
A5: School | B5: Phase | C5: Ref | D5: Banding 2023/24 | E5: Places 22/23 AY | F5: Local agreement for April to August 23 | G5: Places change request for 23/24 AY | H5: Budget numbers | I5: Pre 16 | J5: Post 16 | K5: AP | L5: Element 1&2 place | M5: DCC Pre 16 | N5: DCC Post 16 | O5: Other LA Pre 16 | P5: Other LA Post 16 | Q5: Total | R5: Vacant places | S5: Over commissioned places | U5: Element 1 & 2 place funding | V5: Teachers pay and pension | W5: Element 3 Funding DCC only (pre 16) | X5: Element 3 Funding DCC only (post 16) | Y5: Residential places | Z5: Exceptional funding | AA5: MFG | AB5: PFI | AC5: Total DCC payment | AD5: Vacant top up funding | AF5: Element 3 (Top Up Funding Other LA) - Academy to recoup themselves - for info on statement sheets only - not part of the budget sheet | AG5: Total School Funding | AK5: DCC E1/2 places 22/23 budget | AL5: Variance on places 2022/23 budget to 2023/24 | AM5: DCC E3 places 22/23 budget | AN5: Variance on places 2022/23 budget to 2023/24 | AO5: 2021/22 Budget incl Other LA's | AP5: Variance 2021/22 to 2022/23 budget incl Other LA's excluding pensions | AQ5: 2022/23 Budget Derby City only | AR5: Variance 2022/23 to 2023/24 budget Derby City only | AS5: % variance
A6: Ivy House School | B6: All | C6: 7026 | D6: 16173 | E6: 86 | F6: 13 | G6: 99 | H6: 93.58333333 | I6: 74.58333333 | J6: 19 | L6: 99 | M6: 71 | N6: 19 | O6: 6 | P6: 0 | Q6: 96 | R6: 3 | U6: 935833.3333 | V6: 61765 | W6: 1148283 | X6: 307287 | Z6: 42935.52 | AC6: 2496103.853 | AD6: 48519 | AF6: 97038 | AG6: 2593141.853 | AH6: local agreement to pay 13 places for April to August | AK6: 86 | AL6: 13 | AM6: 78 | AN6: 12 | AO6: 2204324 | AP6: 327052.8533 | AQ6: 2141516 | AR6: 354587.8533 | AS6: 0.1291995907
A7: St Andrews School - Day | B7: Secondary | C7: 7027 | D7: 10670 | E7: 136 | F7: 14 | G7: 150 | H7: 144.1666667 | I7: 108.1666667 | J7: 36 | L7: 150 | M7: 95 | N7: 36 | O7: 6 | P7: 9 | Q7: 146 | R7: 4 | U7: 1441666.667 | V7: 95150 | W7: 1013650 | X7: 384120 | Z7: 73934.45 | AC7: 3008521.117 | AD7: 42680 | AF7: 160050 | AG7: 3168571.117 | AK7: 136 | AL7: 14 | AM7: 115 | AN7: 16 | AO7: 2786071 | AP7: 287350.1167 | AQ7: 2641045 | AR7: 367476.1167 | AS7: 0.09349519827
A8: St Andrews Resi | C8: 7027 | D8: 19530 | E8: 12 | G8: 12 | H8: 12 | I8: 12 | J8: 0 | L8: 12 | M8: 12 | Q8: 12 | U8: 120000 | V8: 7920 | Y8: 234360 | AA8: 0 | AC8: 362280 | AE8: are you continue to fund this at 12 places - have you te evidene that they are actually using this - last year this had a MFG of £12150 no increase in the funding amount will this need to increase | AF8: 0 | AG8: 362280 | AK8: 12 | AL8: 0 | AM8: 12 | AN8: 0 | AO8: 374430 | AP8: -20070 | AQ8: 374430 | AR8: -12150 | AS8: -0.05663731798
A9: St Clare's School | B9: Secondary | C9: 7025 | D9: 6605 | E9: 135 | G9: 145 | H9: 140.8333333 | I9: 139.8333333 | J9: 1 | L9: 140.8333333 | M9: 107 | N9: 1 | O9: 19 | P9: 3 | Q9: 130 | R9: 10.83333333 | U9: 1408333.333 | V9: 92950 | W9: 706735 | X9: 6605 | Z9: 7568.35 | AC9: 2222191.683 | AD9: 71554.16667 | AF9: 145310 | AG9: 2367501.683 | AK9: 137.0833333 | AL9: 3.75 | AM9: 118 | AN9: -10 | AO9: 2359128.333 | AP9: -84576.65 | AQ9: 2218042.333 | AR9: 4149.35 | AS9: -0.03718387699
A10: St Giles School | B10: Primary | C10: 7024 | D10: 11178 | E10: 140 | G10: 140 | H10: 140 | I10: 140 | J10: 0 | L10: 140 | M10: 136 | N10: 0 | O10: 5 | P10: 0 | Q10: 141 | S10: 1 | U10: 1400000 | V10: 92400 | W10: 1520208 | X10: 0 | Z10: 46606.63 | AC10: 3059214.63 | AF10: 55890 | AG10: 3115104.63 | AK10: 140 | AL10: 0 | AM10: 138 | AN10: -2 | AO10: 3033384 | AP10: -10679.37 | AQ10: 2989976 | AR10: 69238.63 | AS10: -0.003533051127
A11: St Martins School & Horizons | B11: Secondary | C11: 7021 | D11: 9145 | E11: 205 | G11: 205 | H11: 205 | I11: 151 | J11: 54 | L11: 205 | M11: 135 | N11: 54 | O11: 8 | P11: 16 | Q11: 213 | R11: 18 | U11: 2050000 | V11: 135300 | W11: 1234575 | X11: 493830 | Z11: 12694.72 | AB11: 94219 | AC11: 4020618.72 | AD11: 164610 | AE11: 230 currently in the schools - synergy need to be updatedPFI wh owritten to them has the letter gone out | AF11: 219480 | AG11: 4240098.72 | AK11: 205 | AL11: 0 | AM11: 194 | AN11: -5 | AO11: 4206262.293 | AP11: -101463.5728 | AQ11: 4002045.293 | AR11: 18573.42715 | AS11: -0.02471828213
D12: 0 | Q12: 0 | U12: 0 | V12: 0 | AC12: 0 | AF12: 0 | AG12: 0 | AL12: 0 | AM12: 0 | AN12: 0 | AP12: 0 | AQ12: 0 | AR12: 0
A13: The Kingsmead School | B13: Secondary | C13: 7029 | D13: 18021 | E13: 90 | G13: 135 | H13: 116.25 | I13: 79.25 | J13: 37 | L13: 135 | M13: 66 | N13: 37 | O13: 6 | P13: 3 | Q13: 112 | R13: 23 | U13: =135*U4 -> 1350000 | V13: 76725 | W13: 1189386 | X13: 666777 | Z13: 0 | AC13: 3095388 | AD13: 414483 | AE13: need to SLA to align to the budgets | AF13: 162189 | AG13: 3257577 | AK13: 90 | AL13: 45 | AM13: 90 | AN13: 13 | AO13: 2534040 | AP13: 646812 | AQ13: 2534040 | AR13: 561348 | AS13: 0.2033455187
A14: KS 1/2 PRU | B14: Primary | C14: 1104 | D14: 14424 | E14: 40 | G14: 40 | H14: 40 | J14: 0 | K14: 40 | Q14: 0 | U14: 400000 | V14: 26400 | W14: 576960 | AC14: 1003360 | AE14: need to SLA to align to the budgets | AF14: 0 | AG14: 1003360 | AK14: 40 | AL14: -40 | AM14: 40 | AN14: -40 | AO14: 986560 | AP14: -9600 | AQ14: 986560 | AR14: 16800 | AS14: -0.009826400262
A15: KS 3/4 PRU | B15: Secondary | C15: 1103 | D15: 16654 | E15: 60 | G15: 60 | H15: 60 | J15: 0 | K15: 60 | Q15: 0 | U15: 600000 | V15: 39600 | W15: 999240 | AC15: 1638840 | AE15: need to SLA to align to the budgets | AF15: 0 | AG15: 1638840 | AK15: 60 | AL15: -60 | AM15: 60 | AN15: -60 | AO15: 1618549 | AP15: -19309 | AQ15: 1618549 | AR15: 20291 | AS15: -0.01207386008
A16: Expected exceptional needs funding | Q16: 0 | Z16: 316260.33 | AC16: 316260.33
A20: Total for all schools | C20: All | E20: 910 | F20: 27 | G20: 988 | H20: =SUM(H6:H15) -> 951.8333333 | I20: =SUM(I6:I15) -> 704.8333333 | J20: =SUM(J6:J15) -> 147 | K20: =SUM(K6:K15) -> 100 | L20: =SUM(L6:L15) -> 881.8333333 | M20: =SUM(M6:M15) -> 622 | N20: 147 | O20: 50 | P20: 31 | Q20: 850 | R20: 58.83333333 | S20: 1 | U20: =SUM(U6:U15) -> 9705833.333 | V20: 628210 | W20: 8389037 | X20: 1858619 | Y20: 234360 | Z20: 183739.67 | AA20: 0 | AB20: 94219 | AC20: 20906518 | AD20: 741846.1667 | AF20: 839957 | AG20: 21746475
A21: Total for academies | E21: 708 | F21: 27 | G21: 741 | L21: 734.8333333 | M21: 544 | N21: 110 | O21: 44 | P21: 28 | Q21: 726 | R21: 35.83333333 | S21: 1 | T21: 0 | U21: 7272500 | V21: 510565 | W21: 5623451 | X21: 1191842 | Y21: 0 | Z21: 183739.67 | AA21: 0 | AB21: 94219 | AC21: 14876316.67 | AD21: 327363.1667
A22: Total for maintained schools | E22: 190 | F22: 0 | G22: 235 | L22: 135 | M22: 66 | N22: 37 | O22: 6 | P22: 3 | Q22: 112 | R22: 23 | S22: 0 | T22: 0 | U22: 2162500 | V22: 142725 | W22: 2765586 | X22: 666777 | Y22: 0 | Z22: 0 | AA22: 0 | AB22: 0 | AC22: 5737588 | AD22: 414483
A24: Derby Pride | E24: 6 | G24: 2 | H24: 3.666666667 | J24: 0 | K24: 3.666666667 | Q24: 0 | U24: 36666.66667 | V24: 33000 | AC24: 69666.66667 | AF24: 0 | AG24: 69666.66667 | AK24: 20 | AL24: -20 | AM24: 0 | AN24: 0 | AO24: 213200 | AP24: -176533.3333 | AQ24: 213200 | AR24: -143533.3333
A26: Possible hub at 20 places for St Martins/St Clare's - budget based on St Martins | L26: 20 | U26: 116666.6667 | V26: 7700 | W26: 106691.6667 | X26: 0 | AC26: 231058.3333 | AD26: 115529.1667 | AE26: Not until
A27: Possible hub at 20 places for St Giles | L27: 10 | U27: 100000 | V27: 6600 | W27: 111780 | X27: 0 | AC27: 218380 | AD27: 109190 | AE27: applied - translate in to a placement
AC28: 449438.3333 | AD28: clarify various hub models there working - funding levels and funding for how long
A29: Kingsmead Personalised programms - 20 places at £35,000 | U29: 200000 | W29: 500000 | AC29: 700000 | AE29: applied - translate in to a placement
A31: Lookup table for year group | E31: Kingsmead | F31: 20 places at £35K for PP places | M31: 700000
A32: 2 yr old | B32: Pre 16 | F32: 10 places at primary special - conversion from PRU to Special places | Z32: Exceptional needs funding set at £475,484 last year
A33: Nursery 1 | B33: Pre 16
A34: Nursery 2 | B34: Pre 16 | W34: 198796 | Z34: 2% reduction on Element 3 Banding for special schools and AP
A35: Reception | B35: Pre 16 | W35: 3330.833333 | Z35: 2% reduction on Element 3 for HUBs
A36: NC Year 1 | B36: Pre 16 | W36: 202126.8333 | Z36: Total reduction if 1% applied to Element 3 instead of the proposed 3%
A37: NC Year 2 | B37: Pre 16
A38: NC Year 3 | B38: Pre 16
A39: NC Year 4 | B39: Pre 16
A40: NC Year 5 | B40: Pre 16
A41: NC Year 6 | B41: Pre 16
A42: NC Year 7 | B42: Pre 16
A43: NC Year 8 | B43: Pre 16
A44: NC Year 9 | B44: Pre 16
A45: NC Year 10 | B45: Pre 16
A46: NC Year 11 | B46: Pre 16
A47: NC Year 12 | B47: Post 16
A48: NC Year 13 | B48: Post 16
A49: NC Year 14 | B49: Post 16
A50: NC Year 15 | B50: Post 16

Sheet De-del (hidden)
G6: Contingencies | I6: Insurance | K6: Staff costs supply cover | M6: Support to underperforming ethnic minority groups and bilingual learners | O6: Behaviour support services | Q6: Total unit value | S6: Total de delegation
E7: Primary | F7: Secondary | G7: Primary | H7: Secondary | I7: Primary | J7: Secondary | K7: Primary | L7: Secondary | M7: Primary | N7: Secondary | O7: Primary | P7: Secondary | Q7: Primary | R7: Secondary | S7: Primary | T7: Secondary | U7: Total
C8: Primary AWPU | E8: 7061 | G8: 6.44 | I8: 14.65 | K8: =19.66+5 -> 24.66 | M8: 14.5 | O8: =4.36+6.82 -> 11.18 | Q8: =SUM(G8:P8) -> 71.43 | S8: =E8*Q8 -> 504367.23 | U8: =S8 -> 504367.23
C9: Secondary AWPU | F9: 3527.583333 | H9: 6.44 | J9: 14.65 | L9: =19.66+5 -> 24.66 | N9: 14.5 | P9: 0 | R9: =SUM(G9:P9) -> 60.25 | T9: =F9*R9 -> 212536.8958 | U9: =T9 -> 212536.8958
A12: All | E12: =SUM(E13:E38) -> 7061 | F12: 3527.583333 | G12: =SUM(G13:G38) -> 45472.84 | H12: =SUM(H13:H38) -> 22717.63667 | I12: =SUM(I13:I38) -> 103443.65 | J12: 51679.09583 | K12: 174124.26 | L12: 86990.205 | M12: 102384.5 | N12: 51149.95833 | O12: 78941.98 | P12: 0 | S12: =SUM(S13:S38) -> 504367.23 | T12: =SUM(T13:T38) -> 212536.8958 | U12: 716904.1258
A13: 2001 | B13: 8312001 | C13: Roe Farm Primary School | D13: P | E13: =VLOOKUP(B13,'Summary for Prints'!B:F,4,FALSE) -> 366 | F13: =VLOOKUP(B13,'Summary for Prints'!B:F,5,FALSE) -> 0 | G13: =E13*$G$8 -> 2357.04 | H13: =F13*$H$9 -> 0 | I13: =E13*$I$8 -> 5361.9 | J13: =F13*$J$9 -> 0 | K13: =E13*$K$8 -> 9025.56 | L13: =F13*$L$9 -> 0 | M13: =E13*$M$8 -> 5307 | N13: =F13*$N$9 -> 0 | O13: =E13*$O$8 -> 4091.88 | P13: =F13*$P$9 -> 0 | S13: =E13*$Q$8 -> 26143.38 | T13: =F13*$R$9 -> 0 | U13: =SUM(S13:T13) -> 26143.38
A14: 2003 | B14: 8312003 | C14: Parkview Primary School | D14: P | E14: =VLOOKUP(B14,'Summary for Prints'!B:F,4,FALSE) -> 211 | F14: =VLOOKUP(B14,'Summary for Prints'!B:F,5,FALSE) -> 0 | G14: =E14*$G$8 -> 1358.84 | H14: =F14*$H$9 -> 0 | I14: =E14*$I$8 -> 3091.15 | J14: =F14*$J$9 -> 0 | K14: =E14*$K$8 -> 5203.26 | L14: =F14*$L$9 -> 0 | M14: =E14*$M$8 -> 3059.5 | N14: =F14*$N$9 -> 0 | O14: =E14*$O$8 -> 2358.98 | P14: =F14*$P$9 -> 0 | S14: 15071.73 | T14: 0 | U14: =SUM(S14:T14) -> 15071.73
A15: 2005 | B15: 8312005 | C15: Ashgate Primary School | D15: P | E15: =VLOOKUP(B15,'Summary for Prints'!B:F,4,FALSE) -> 309 | F15: =VLOOKUP(B15,'Summary for Prints'!B:F,5,FALSE) -> 0 | G15: 1989.96 | H15: 0 | I15: 4526.85 | J15: 0 | K15: 7619.94 | L15: 0 | M15: 4480.5 | N15: 0 | O15: 3454.62 | P15: 0 | S15: 22071.87 | T15: 0 | U15: 22071.87
A16: 2405 | B16: 8312405 | C16: Becket Primary School | D16: P | E16: =VLOOKUP(B16,'Summary for Prints'!B:F,4,FALSE) -> 205 | F16: =VLOOKUP(B16,'Summary for Prints'!B:F,5,FALSE) -> 0 | G16: 1320.2 | H16: 0 | I16: 3003.25 | J16: 0 | K16: 5055.3 | L16: 0 | M16: 2972.5 | N16: 0 | O16: 2291.9 | P16: 0 | S16: 14643.15 | T16: 0 | U16: 14643.15
A17: 2409 | B17: 8312409 | C17: Dale Community Primary School | D17: P | E17: =VLOOKUP(B17,'Summary for Prints'!B:F,4,FALSE) -> 547 | F17: =VLOOKUP(B17,'Summary for Prints'!B:F,5,FALSE) -> 0 | G17: 3522.68 | H17: 0 | I17: 8013.55 | J17: 0 | K17: 13489.02 | L17: 0 | M17: 7931.5 | N17: 0 | O17: 6115.46 | P17: 0 | S17: 39072.21 | T17: 0 | U17: 39072.21
A18: 2424 | B18: 8312424 | C18: Pear Tree Infant School | D18: P | E18: =VLOOKUP(B18,'Summary for Prints'!B:F,4,FALSE) -> 261 | F18: =VLOOKUP(B18,'Summary for Prints'!B:F,5,FALSE) -> 0 | G18: 1680.84 | H18: 0 | I18: 3823.65 | J18: 0 | K18: 6436.26 | L18: 0 | M18: 3784.5 | N18: 0 | O18: 2917.98 | P18: 0 | S18: 18643.23 | T18: 0 | U18: 18643.23
A19: 2429 | B19: 8312429 | C19: Rosehill Infant and Nursery School | D19: P | E19: =VLOOKUP(B19,'Summary for Prints'!B:F,4,FALSE) -> 138 | F19: =VLOOKUP(B19,'Summary for Prints'!B:F,5,FALSE) -> 0 | G19: 888.72 | H19: 0 | I19: 2021.7 | J19: 0 | K19: 3403.08 | L19: 0 | M19: 2001 | N19: 0 | O19: 1542.84 | P19: 0 | S19: 9857.34 | T19: 0 | U19: 9857.34
A20: 2436 | B20: 8312436 | C20: Markeaton Primary School | D20: P | E20: =VLOOKUP(B20,'Summary for Prints'!B:F,4,FALSE) -> 415 | F20: =VLOOKUP(B20,'Summary for Prints'!B:F,5,FALSE) -> 0 | G20: 2672.6 | H20: 0 | I20: 6079.75 | J20: 0 | K20: 10233.9 | L20: 0 | M20: 6017.5 | N20: 0 | O20: 4639.7 | P20: 0 | S20: 29643.45 | T20: 0 | U20: 29643.45
A21: 2439 | B21: 8312439 | C21: Portway Infant School | D21: P | E21: =VLOOKUP(B21,'Summary for Prints'!B:F,4,FALSE) -> 183 | F21: =VLOOKUP(B21,'Summary for Prints'!B:F,5,FALSE) -> 0 | G21: 1178.52 | H21: 0 | I21: 2680.95 | J21: 0 | K21: 4512.78 | L21: 0 | M21: 2653.5 | N21: 0 | O21: 2045.94 | P21: 0 | S21: 13071.69 | T21: 0 | U21: 13071.69
A22: 2443 | B22: 8312443 | C22: Alvaston Infant and Nursery School | D22: P | E22: =VLOOKUP(B22,'Summary for Prints'!B:F,4,FALSE) -> 241 | F22: =VLOOKUP(B22,'Summary for Prints'!B:F,5,FALSE) -> 0 | G22: 1552.04 | H22: 0 | I22: 3530.65 | J22: 0 | K22: 5943.06 | L22: 0 | M22: 3494.5 | N22: 0 | O22: 2694.38 | P22: 0 | S22: 17214.63 | T22: 0 | U22: 17214.63
A23: 2444 | B23: 8312444 | C23: Shelton Infant School | D23: P | E23: =VLOOKUP(B23,'Summary for Prints'!B:F,4,FALSE) -> 193 | F23: =VLOOKUP(B23,'Summary for Prints'!B:F,5,FALSE) -> 0 | G23: 1242.92 | H23: 0 | I23: 2827.45 | J23: 0 | K23: 4759.38 | L23: 0 | M23: 2798.5 | N23: 0 | O23: 2157.74 | P23: 0 | S23: 13785.99 | T23: 0 | U23: 13785.99
A24: 2449 | B24: 8312449 | C24: Cavendish Close Infant School | D24: P | E24: =VLOOKUP(B24,'Summary for Prints'!B:F,4,FALSE) -> 201 | F24: =VLOOKUP(B24,'Summary for Prints'!B:F,5,FALSE) -> 0 | G24: 1294.44 | H24: 0 | I24: 2944.65 | J24: 0 | K24: 4956.66 | L24: 0 | M24: 2914.5 | N24: 0 | O24: 2247.18 | P24: 0 | S24: 14357.43 | T24: 0 | U24: 14357.43
A25: 2452 | B25: 8312452 | C25: Meadow Farm Community Primary School | D25: P | E25: =VLOOKUP(B25,'Summary for Prints'!B:F,4,FALSE) -> 150 | F25: =VLOOKUP(B25,'Summary for Prints'!B:F,5,FALSE) -> 0 | G25: 966 | H25: 0 | I25: 2197.5 | J25: 0 | K25: 3699 | L25: 0 | M25: 2175 | N25: 0 | O25: 1677 | P25: 0 | S25: 10714.5 | T25: 0 | U25: 10714.5
